Workbook

Sheet Steel Eurocode 3
B1: version: 1.1. - FREE LITE VERSION | Q1: © 2013-2019 Damian Janicki
D2: YourSpreadsheets™ Your Office Address Goes Here www.YourSpreadsheets.co.uk Tel: 010 1234 567890 (example only) | Q2: TEST PROJECT NAME
V3: Revision | X3: A
Q4: Job No: | T4: 123 | V4: Page: | X4: 1
C5: Member: | D5: test member (this is unlicensed version of the spreadsheet) | Q5: Prepared By: | T5: DJ | V5: Date: | X5: =TODAY() -> 2019-08-26
C7: GENERAL DATA | H7: SELECTED SECTION | P7: SECTION PROPERTIES | AF7: SUMMARY:
C8: Steel Grade: | E8: S450 | S8: h = | T8: =OFFSET('Section tables new'!$C$1,$AE$34-1,1) -> 368.2 | U8: mm | W8: Iyy = | X8: =OFFSET('Section tables new'!$C$1,$AE$34-1,8) -> 57100 | Y8: cm4 | AF8: =I42 -> 0.4201306526 | AG8: moment
C9: fy [MPa] = | E9: =AD16 -> 440 | S9: b = | T9: =OFFSET('Section tables new'!$C$1,$AE$34-1,2) -> 372.6 | U9: mm | W9: Wel,y = | X9: =OFFSET('Section tables new'!$C$1,$AE$34-1,9) -> 3100 | Y9: cm3 | AF9: =I49 -> 0.1691340951 | AG9: shear
C10: E [GPa] = | E10: 210 | H10: Classification: | L10: ="Class "&MAX(IF((T9-T10-2*T12)/2/T11<9*SQRT(235/E9),1,IF((T9-T10-2*T12)/2/T11<10*SQRT(235/E9),2,IF((T9-T10-2*T12)/2/T11<14*SQRT(235/E9),3,4))),IF((T8-2*T11-2*T12)/T10<72*SQRT(235/E9),1,IF((T8-2*T11-2*T12)/T10<83*SQRT(235/E9),2,IF((T8-2*T11-2*T12)/T10<124*SQRT(235/E9),3,4)))) -> Class 2 | S10: tw = | T10: =OFFSET('Section tables new'!$C$1,$AE$34-1,3) -> 14.4 | U10: mm | W10: Wpl,y = | X10: =OFFSET('Section tables new'!$C$1,$AE$34-1,10) -> 3460 | Y10: cm3 | AF10: =I57 -> 0.3244683915 | AG10: wLL only
S11: tf = | T11: =OFFSET('Section tables new'!$C$1,$AE$34-1,4) -> 23.8 | U11: mm | W11: iy = | X11: =OFFSET('Section tables new'!$C$1,$AE$34-1,11) -> 15.9 | Y11: cm | AF11: =I61 -> 0.8606848663 | AG11: wDL + LL + SL
C12: SPAN [m] = | E12: 8 | H12: INCLUDE S/W | S12: r = | T12: =OFFSET('Section tables new'!$C$1,$AE$34-1,5) -> 15.2 | U12: mm | W12: Izz = | X12: =OFFSET('Section tables new'!$C$1,$AE$34-1,12) -> 20500 | Y12: cm4 | AB12: thickness | AC12: =MAX(T10:T11) -> 23.8
S13: A = | T13: =OFFSET('Section tables new'!$C$1,$AE$34-1,6) -> 22600 | U13: mm2 | W13: Wel,z = | X13: =OFFSET('Section tables new'!$C$1,$AE$34-1,13) -> 1100 | Y13: cm3 | AB13: steel grade | AC13: S235 | AD13: =IF($AC$12<=40,235,215) -> 235
S14: Av = | T14: =OFFSET('Section tables new'!$C$1,$AE$34-1,18)*100 -> 5930.48 | U14: mm2 | W14: Wpl,z = | X14: =OFFSET('Section tables new'!$C$1,$AE$34-1,14) -> 1670 | Y14: cm3 | AC14: S275 | AD14: =IF($AC$12<=16,275,IF($AC$12<=40,265,IF($AC$12<=63,255,245))) -> 265
C15: EFFECTIVE LENGTH [m] = | E15: 8 | H15: SAFETY FACTORS | S15: It = | T15: =OFFSET('Section tables new'!$C$1,$AE$34-1,16) -> 381 | U15: cm4 | W15: iz = | X15: =OFFSET('Section tables new'!$C$1,$AE$34-1,15) -> 9.54 | Y15: cm | AC15: S355 | AD15: =IF($AC$12<=16,355,IF($AC$12<=40,345,IF($AC$12<=63,335,325))) -> 345
I16: γg = | J16: 1.35 | S16: weight = | T16: =OFFSET('Section tables new'!$C$1,$AE$34-1,7) -> 177 | U16: kg/m | W16: Iw (x10-3) = | X16: =OFFSET('Section tables new'!$C$1,$AE$34-1,17) -> 6090 | Y16: cm6 | AC16: S450 | AD16: =IF($AC$12<=40,440,410) -> 440
I17: γq = | J17: 1.5
I18: γs = | J18: 1.5 | L18: ψ0,s = | M18: 0.75
AB19: steel type | AC19: - EU sections -
AC20: HD
AC21: HE
C22: LOADING | AC22: HL
D23: Perm. | F23: Variable | H23: Snow | K23: position from left | M23: length | AC23: IPE
C24: UDL = | D24: 15 | F24: 10 | H24: 5 | J24: kN/m | AC24: IPN
C25: PUDLa = | D25: 15 | F25: 10 | H25: 5 | J25: kN/m | K25: 1 | L25: m | M25: 1 | N25: m | AC25: UPE
C26: PUDLb = | D26: 15 | F26: 10 | H26: 5 | J26: kN/m | K26: 3 | L26: m | M26: 1 | N26: m | AC26: UPN
C27: PLa = | D27: 15 | F27: 10 | H27: 5 | J27: kN | K27: 5 | L27: m | M27: ~~~~ | AC27: - UK sections -
C28: PLb = | D28: 15 | F28: 10 | H28: 5 | J28: kN | K28: 6 | L28: m | M28: ~~~~ | AC28: UB
C29: Note: all loads assumed to be non-destabilizing. | AC29: UC
C30: SUMMARY OF RESULTS | P30: REACTIONS | T30: Perm. | U30: Variable | V30: Snow | X30: Total | Y30: [kN] | AC30: PFC
C31: Max Applied Moment = | G31: =FIXED(I38,2)&" kNm" -> 550.49 kNm | J31: =IF(I41="Error","...Error!",IF(I42>1,"> ","< ")&FIXED(I41,2)&" kNm") -> < 1,310.29 kNm | M31: =IF(I42>1,"NOT OK","OK") -> OK | P31: Left Reaction = | T31: ='Graph Properties'!F19 -> 97.08 | U31: ='Graph Properties'!H19 -> 60 | V31: ='Graph Properties'!J19 -> 30 | X31: =T31+U31+V31 -> 187.08 | Y31: (SLS) | AB31: selected | AC31: UC
C32: Max Applied Shear = | G32: =FIXED(I46,2)&" kN" -> 254.81 kN | J32: =IF(I49>1,"> ","< ")&FIXED(I47,2)&" kN" -> < 1,506.54 kN | M32: =IF(I49>1,"NOT OK","OK") -> OK | P32: Right Reaction = | T32: ='Graph Properties'!G19 -> 97.08 | U32: ='Graph Properties'!I19 -> 60 | V32: ='Graph Properties'!K19 -> 30 | X32: =V32+U32+T32 -> 187.08 | AD32: height of type range
C33: Deflection LL = | G33: =FIXED(I55,2)&" mm" -> 7.21 mm | J33: =IF(I57>1,"> ","< ")&FIXED(I56,2)&" mm" -> < 22.22 mm | M33: =IF(I57>1,"NOT OK","OK") -> OK | P33: Left Reaction = | T33: =T31*J16 -> 131.058 | U33: =J17*U31 -> 90 | V33: =J18*M18*V31 -> 33.75 | X33: =V33+U33+T33 -> 254.808 | Y33: (ULS) | AB33: row of the type | AC33: =MATCH(AC31,'Section tables new'!B:B,0) -> 447 | AD33: =INDEX('Section tables new'!B:B,$AC$33+1) -> 46 | AE33: row of section
C34: ="Deflection DL + LL"&IF(SUM(H24:I28)>0," (+SL) ="," =") -> Deflection DL + LL (+SL) = | G34: =FIXED(I59,2)&" mm" -> 21.52 mm | J34: =IF($L$58=$AB$46,"",IF(I61>1,"> ","< ")&FIXED(I60,2)&" mm") -> < 25.00 mm | M34: =IF($L$58=$AB$46,"",IF(I61>1,"NOT OK","OK")) -> OK | P34: Right Reaction = | T34: =J16*T32 -> 131.058 | U34: =J17*U32 -> 90 | V34: =J18*M18*V32 -> 33.75 | X34: =V34+U34+T34 -> 254.808 | AB34: selected section | AD34: 356x368x177 | AE34: =MATCH(AD34,OFFSET('Section tables new'!$B$1,'Steel Eurocode 3'!$AC$33,1,'Steel Eurocode 3'!$AD$33),0)+AC33 -> 475
AB35: include selfweight | AC35: TRUE | AD35: UDL1d | AE35: =15+AD36 -> 16.77
AC36: =IF(AC35=TRUE,1,0) -> 1 | AD36: =IF(AC36=1,0.01*T16,0) -> 1.77
C37: DETAILED RESULTS: | I37: MOMENT (ULS) | AB37: Allowable deflection | AC37: (L/200) | AD37: =8000/200 -> 40
C38: Actual moment MEd = | I38: =ABS(MIN('Graph Properties'!$C$80:$C$330)) -> 550.491 | K38: kNm | AC38: (L/250) | AD38: =8000/250 -> 32
C39: Elastic critical moment Mcr = | I39: ='Graph Properties'!C40 -> 2586.351989 | K39: kNm | AC39: (L/200) or 25 | AD39: =MIN(25,8000/200) -> 25
C40: Allowable moment Mc,Rd = | I40: =IF(I48>1,"Error",IF(L10=3,X9*E9/1000,IF(L10=4,X9*E9/1000,X10*E9/1000))*IF(I49>0.5,(1-I48),1)) -> 1522.4 | K40: kNm | AC40: (L/250) or 25 | AD40: =MIN(25,8000/250) -> 25
C41: Allowable moment Mb,Rd = | I41: =IF(I40="Error","Error",I40*'Graph Properties'!C46) -> 1310.285257 | K41: kNm
C42: Usage factor = | I42: =IF(I40="Error","Error",I38/I41) -> 0.4201306526 | AB42: Display deflection | AC42: ="DL + LL"&IF(SUM(H24:I28)>0," (+SL)","") -> DL + LL (+SL)
AC43: LL only
C45: DETAILED RESULTS: | I45: SHEAR (ULS) | AB45: consider
C46: Actual shear VEd = | I46: =MAX('Graph Properties'!$D$80,-'Graph Properties'!$D$330) -> 254.808 | K46: kN | AB46: ignore
C47: Allowable shear Vpl,Rd = | I47: =E9*T14/1000/SQRT(3) -> 1506.544259 | K47: kN
C48: Reduction factor due to shear ρ = | I48: =IF(I49<0.5,1,MAX(0,(2*I46/I47-1)^2)) -> 1
C49: Usage factor = | I49: =I46/I47 -> 0.1691340951
C53: DETAILED RESULTS: | I53: DEFLECTION (SLS)
C54: Variable load deflection:
C55: Actual deflection wLL only = | I55: =ABS(MIN('Graph Properties'!$G$80:$G$330)) -> 7.210408699 | K55: mm | L55: ="(L/ " &(ROUND(8000/I55,0)) & ")" -> (L/ 1110)
C56: Allowable deflection wLL only = | I56: =MIN(8000/$U$61,X61) -> 22.22222222 | K56: mm | L56: ="(L/"&$U$61&")"&IF($X$61<>$AB$46," or "&X61,"") -> (L/360)
C57: Usage factor = | I57: =I55/I56 -> 0.3244683915
C58: Variable plus Permanent load deflection: | L58: consider
C59: Actual deflection wDL + LL (+SL) = | I59: =ABS(MIN('Graph Properties'!$F$80:$F$330)) -> 21.51712166 | K59: mm | L59: ="(L/ " &(ROUND(8000/I59,0)) & ")" -> (L/ 372)
C60: Allowable deflection wDL + LL (+SL) = | I60: =IF($L$58=$AB$46,"N/A",MIN(8000/$U$62,$X$62)) -> 25 | K60: mm | L60: ="(L/"&$U$62&")"&IF($X$62<>$AB$46," or "&X62,"") -> (L/200) or 25
C61: Usage factor = | I61: =IF($L$58=$AB$46,"N/A",I59/I60) -> 0.8606848663 | P61: DEFLECTION LIMITS | T61: variable = L/ | U61: 360 | V61: or global = | X61: ignore | Y61: mm
C62: Show deflection on the diagram as: | L62: DL + LL (+SL) | T62: total = L/ | U62: 200 | V62: =IF($L$58=$AB$46,"N/A","or global =") -> or global = | X62: 25 | Y62: mm
C64: Spreadsheet provided by: www.YourSpreadsheets.co.uk | Y64: calculations are based on Eurocode 3 (EN 1993-1-1: 2005)

Sheet Graph Properties (hidden)
C1: p,P | D1: a | E1: b | F1: c | G1: R1 | H1: R2 | I1: a' | J1: Drawing Max: | K1: =MAX(1,15+10+5+C2+MAX('Steel Eurocode 3'!D27+'Steel Eurocode 3'!F27+'Steel Eurocode 3'!H27,'Steel Eurocode 3'!D28+'Steel Eurocode 3'!F28+'Steel Eurocode 3'!H28,'Steel Eurocode 3'!D25+'Steel Eurocode 3'!F25+'Steel Eurocode 3'!H25,'Steel Eurocode 3'!D26+'Steel Eurocode 3'!F26+'Steel Eurocode 3'!H26)) -> 61.77
B2: self weight | C2: ='Steel Eurocode 3'!AD36 -> 1.77 | D2: - | E2: - | F2: - | G2: - | H2: - | I2: - | J2: Length: | K2: =8 -> 8
B3: pudl | C3: =(C2+15)*'Steel Eurocode 3'!J16+'Steel Eurocode 3'!J17*10+'Steel Eurocode 3'!J18*'Steel Eurocode 3'!M18*5 -> 43.2645 | D3: - | E3: - | F3: - | G3: - | H3: - | I3: - | J3: EI | K3: ='Steel Eurocode 3'!X8*'Steel Eurocode 3'!E10 -> 11991000
B4: pudl,a | C4: ='Steel Eurocode 3'!J16*'Steel Eurocode 3'!D25+'Steel Eurocode 3'!J17*'Steel Eurocode 3'!F25+'Steel Eurocode 3'!J18*'Steel Eurocode 3'!M18*'Steel Eurocode 3'!H25 -> 40.875 | D4: ='Steel Eurocode 3'!K25 -> 1 | E4: =1 -> 1 | F4: =8-'Graph Properties'!D4-'Graph Properties'!E4 -> 6 | G4: =C4*E4/(2*8)*(2*F4+E4) -> 33.2109375 | H4: =-C4*E4/(2*8)*(2*D4+E4) -> -7.6640625 | I4: =D4+E4 -> 2
B5: pudl,b | C5: ='Steel Eurocode 3'!J16*'Steel Eurocode 3'!D26+'Steel Eurocode 3'!J17*'Steel Eurocode 3'!F26+'Steel Eurocode 3'!J18*'Steel Eurocode 3'!M18*'Steel Eurocode 3'!H26 -> 40.875 | D5: 3 | E5: ='Steel Eurocode 3'!M26 -> 1 | F5: =8-'Graph Properties'!D5-'Graph Properties'!E5 -> 4 | G5: =C5*E5/(2*8)*(2*F5+E5) -> 22.9921875 | H5: =-C5*E5/(2*8)*(2*D5+E5) -> -17.8828125 | I5: =D5+E5 -> 4
B6: P,a | C6: ='Steel Eurocode 3'!J$16*'Steel Eurocode 3'!D27+'Steel Eurocode 3'!J$17*'Steel Eurocode 3'!F27+'Steel Eurocode 3'!J18*'Steel Eurocode 3'!M18*'Steel Eurocode 3'!H27 -> 40.875 | D6: ='Steel Eurocode 3'!K27 -> 5 | E6: =8-D6 -> 3 | F6: - | G6: =C6*E6/8 -> 15.328125 | H6: =C6*D6/8 -> 25.546875 | I6: -
B7: P,b | C7: ='Steel Eurocode 3'!J$16*'Steel Eurocode 3'!D28+'Steel Eurocode 3'!J$17*'Steel Eurocode 3'!F28+'Steel Eurocode 3'!J18*'Steel Eurocode 3'!M18*'Steel Eurocode 3'!H28 -> 40.875 | D7: ='Steel Eurocode 3'!K28 -> 6 | E7: =8-D7 -> 2 | F7: - | G7: =C7*E7/8 -> 10.21875 | H7: =C7*D7/8 -> 30.65625 | I7: -
D9: Section type: | E9: IPE
D10: δ type: | E10: =IF('Steel Eurocode 3'!L62='Steel Eurocode 3'!AC42,"max",2) -> max
B13: G | C13: Q | D13: G+Ψ*Q+Ψ*S | E13: γgG+γqΨqQ+γsΨsQ | F13: GR1 | G13: GR2 | H13: QR1 | I13: QR2 | J13: SR1 | K13: SR2
A14: pudl | B14: =C2+15 -> 16.77 | C14: =10 -> 10 | D14: =B14+C14+B20*'Steel Eurocode 3'!M$18 -> 30.52 | E14: ='Steel Eurocode 3'!J$16*'Graph Properties'!B14+'Steel Eurocode 3'!J$17*'Graph Properties'!C14 -> 37.6395 | F14: =B14*8/2 -> 67.08 | G14: =B14*8/2 -> 67.08 | H14: =C14*8/2 -> 40 | I14: =C14*8/2 -> 40 | J14: =B20*8/2 -> 20 | K14: =B20*8/2 -> 20
A15: pudl,a | B15: ='Steel Eurocode 3'!D25 -> 15 | C15: ='Steel Eurocode 3'!F25 -> 10 | D15: =B15+C15+B21*'Steel Eurocode 3'!M$18 -> 28.75 | E15: ='Steel Eurocode 3'!J$16*'Graph Properties'!B15+'Steel Eurocode 3'!J$17*'Graph Properties'!C15 -> 35.25 | F15: =B15*$E4/(2*8)*(2*$F4+$E4) -> 12.1875 | G15: =B15*E4/(2*8)*(2*D4+E4) -> 2.8125 | H15: =C15*$E4/(2*8)*(2*$F4+$E4) -> 8.125 | I15: =C15*E4/(2*8)*(2*D4+E4) -> 1.875 | J15: =B21*$E4/(2*8)*(2*$F4+$E4) -> 4.0625 | K15: =B21*E4/(2*8)*(2*D4+E4) -> 0.9375
A16: pudl,b | B16: ='Steel Eurocode 3'!D26 -> 15 | C16: ='Steel Eurocode 3'!F26 -> 10 | D16: =B16+C16+B22*'Steel Eurocode 3'!M$18 -> 28.75 | E16: ='Steel Eurocode 3'!J$16*'Graph Properties'!B16+'Steel Eurocode 3'!J$17*'Graph Properties'!C16 -> 35.25 | F16: =B16*$E5/(2*8)*(2*$F5+$E5) -> 8.4375 | G16: =B16*E5/(2*8)*(2*D5+E5) -> 6.5625 | H16: =C16*$E5/(2*8)*(2*$F5+$E5) -> 5.625 | I16: =C16*E5/(2*8)*(2*D5+E5) -> 4.375 | J16: =B22*$E5/(2*8)*(2*$F5+$E5) -> 2.8125 | K16: =B22*E5/(2*8)*(2*D5+E5) -> 2.1875
A17: P,a | B17: ='Steel Eurocode 3'!D27 -> 15 | C17: ='Steel Eurocode 3'!F27 -> 10 | D17: =B17+C17+B23*'Steel Eurocode 3'!M$18 -> 28.75 | E17: ='Steel Eurocode 3'!J$16*'Graph Properties'!B17+'Steel Eurocode 3'!J$17*'Graph Properties'!C17 -> 35.25 | F17: =B17*E6/8 -> 5.625 | G17: =B17*D6/8 -> 9.375 | H17: =C17*E6/8 -> 3.75 | I17: =C17*D6/8 -> 6.25 | J17: =B23*E6/8 -> 1.875 | K17: =B23*D6/8 -> 3.125
A18: P,b | B18: ='Steel Eurocode 3'!D28 -> 15 | C18: ='Steel Eurocode 3'!F28 -> 10 | D18: =B18+C18+B24*'Steel Eurocode 3'!M$18 -> 28.75 | E18: ='Steel Eurocode 3'!J$16*'Graph Properties'!B18+'Steel Eurocode 3'!J$17*'Graph Properties'!C18 -> 35.25 | F18: =B18*E7/8 -> 3.75 | G18: =B18*D7/8 -> 11.25 | H18: =C18*E7/8 -> 2.5 | I18: =C18*D7/8 -> 7.5 | J18: =B24*E7/8 -> 1.25 | K18: =B24*D7/8 -> 3.75
B19: S | C19: Q+S | F19: =SUM(F14:F18) -> 97.08 | G19: 97.08 | H19: 60 | I19: 60 | J19: 30 | K19: 30
A20: pudl | B20: =5 -> 5 | C20: =C14+'Steel Eurocode 3'!M$18*'Graph Properties'!B20 -> 13.75
A21: pudl,a | B21: ='Steel Eurocode 3'!H25 -> 5 | C21: =C15+'Steel Eurocode 3'!M$18*'Graph Properties'!B21 -> 13.75
A22: pudl,b | B22: ='Steel Eurocode 3'!H26 -> 5 | C22: =C16+'Steel Eurocode 3'!M$18*'Graph Properties'!B22 -> 13.75
A23: P,a | B23: ='Steel Eurocode 3'!H27 -> 5 | C23: =C17+'Steel Eurocode 3'!M$18*'Graph Properties'!B23 -> 13.75
A24: P,b | B24: ='Steel Eurocode 3'!H28 -> 5 | C24: =C18+'Steel Eurocode 3'!M$18*'Graph Properties'!B24 -> 13.75
B26: g | C26: =SQRT(1-('Steel Eurocode 3'!X12/'Steel Eurocode 3'!X8)) -> 0.8006127251
B27: Lcr | C27: ='Steel Eurocode 3'!$E$15 -> 8
B28: C1 | C28: =1/C44^2 -> 1.131733816
B29: C2 | C29: 0.459
B30: C3 | C30: 0.553
B31: K | C31: 1
B32: KW | C32: 1
B33: G | C33: =C34/2/(1+0.3) -> 80769230.77
B34: E | C34: ='Steel Eurocode 3'!E10*10^6 -> 210000000
B35: Iz | C35: ='Steel Eurocode 3'!X12/100^4 -> 0.000205
B36: It | C36: ='Steel Eurocode 3'!T15/100^4 -> 3.81e-06
B37: Iw | C37: ='Steel Eurocode 3'!X16*1000/100^6 -> 6.09e-06
B38: zg | C38: 0 | D38: Lcr/L
B39: alt | C39: =IF(OR(E9="UPN",E9="UPE"),0.76,IF('Steel Eurocode 3'!T8/'Steel Eurocode 3'!T9<=2,0.34,IF('Steel Eurocode 3'!T8/'Steel Eurocode 3'!T9<=3.1,0.49,0.76))) -> 0.34 | D39: =C27/K2 -> 1
B40: Mcr | C40: =C28*3.14^2*C34*C35/(C26*C27^2)*(SQRT(C37/C35+(C27^2*C33*C36/(3.14^2*C34*C35))+(C29*C38)^2)-(C29*C38)) -> 2586.351989
B41: λlt | C41: =SQRT('Steel Eurocode 3'!I40/'Graph Properties'!C40) -> 0.7672211609
B42: Φlt | C42: =0.5*(1+C39*(C41-0.4)+0.75*C41^2) -> 0.7831632135
B43: xlt | C43: =MIN(1,1/(C42+SQRT(C42^2-0.75*C41^2)),1/(C41^2)) -> 0.8349061807
B44: kc | C44: =IF(AND(30=0,OR(AND(SUM('Steel Eurocode 3'!D27:I28)<>0,SUM('Steel Eurocode 3'!D28:I28)<>0,PosPLa1=8/2,PosPLb1=8/2),AND(SUM('Steel Eurocode 3'!D27:I27)<>0,SUM('Steel Eurocode 3'!D28:I28)=0,PosPLa1=8/2),AND(SUM('Steel Eurocode 3'!D27:I27)=0,SUM('Steel Eurocode 3'!D28:I28)<>0,PosPLb1=8/2))),0.86,0.94) -> 0.94
B45: f | C45: =MIN(1,1-0.5*(1-C44)*(1-2*(C41-0.8)^2)) -> 0.9700644671
B46: xlt,mod | C46: =MIN(1,C43/C45) -> 0.8606708203
B50: Loading diagram
B51: Beam | C51: 0.1 | D51: =0.1+8 -> 8.1
C52: 0 | D52: 0
B54: Supports | C54: =D54-8/25 -> -0.22 | D54: 0.1 | E54: =2*D54+-C54 -> 0.42 | F54: =C54 -> -0.22 | G54: =H54+-8/25 -> 7.78 | H54: =0.1+8 -> 8.1 | I54: =H54+8/25 -> 8.42 | J54: =G54 -> 7.78
C55: =C56 -> -12.354 | D55: 0 | E55: =C56 -> -12.354 | F55: =C56 -> -12.354 | G55: =C56 -> -12.354 | H55: =C8 -> 0 | I55: =C56 -> -12.354 | J55: =C56 -> -12.354
C56: =-0.2*MAX(SUM(UDL1d,10,5,PUDL1d,PUDL1l,PUDL1s),SUM(UDL1d,10,5,PLa1d,PLa1l,PLa1s),SUM(UDL1d,10,5,PLb1d,PLb1l,PLb1s)) -> -12.354
B57: UDL | C57: 0.1 | D57: 0.1 | E57: =IF(OR(UDL1d>0,10>0),0.1+8,0) -> 8.1 | F57: =IF(OR(UDL1d>0,10>0),0.1+8,0) -> 8.1
B58: Dead | C58: 0 | D58: =UDL1d -> 16.77 | E58: =UDL1d -> 16.77 | F58: 0
B59: Live | C59: =IF(10>0,UDL1d,0) -> 16.77 | D59: =IF(10>0,UDL1d+10,0) -> 26.77 | E59: =IF(10>0,UDL1d+10,0) -> 26.77 | F59: =IF(10>0,UDL1d,0) -> 16.77
B60: Snow | C60: =D59 -> 26.77 | D60: =C60+5 -> 31.77 | E60: =D60 -> 31.77 | F60: =C60 -> 26.77
B61: PUDL a | C61: =IF(OR(PUDL1d>0,PUDL1l>0),0.1+PosPUDL1,0) -> 1.1 | D61: =IF(OR(PUDL1d>0,PUDL1l>0),0.1+PosPUDL1,0) -> 1.1 | E61: =IF(OR(PUDL1d>0,PUDL1l>0),0.1+PosPUDL1+1,0) -> 2.1 | F61: =IF(OR(PUDL1d>0,PUDL1l>0),0.1+PosPUDL1+1,0) -> 2.1
B62: Dead | C62: =UDL1d+10+5 -> 31.77 | D62: =UDL1d+10+5+PUDL1d -> 46.77 | E62: =UDL1d+10+5+PUDL1d -> 46.77 | F62: =UDL1d+10+5 -> 31.77
B63: Live | C63: =UDL1d+10+5+PUDL1d -> 46.77 | D63: =UDL1d+10+5+PUDL1d+PUDL1l -> 56.77 | E63: =UDL1d+10+5+PUDL1d+PUDL1l -> 56.77 | F63: =UDL1d+10+5+PUDL1d -> 46.77
B64: Snow | C64: =D63 -> 56.77 | D64: =C64+PUDL1s -> 61.77 | E64: =D64 -> 61.77 | F64: =C64 -> 56.77
B65: PUDL b | C65: =IF(OR(PUDL2d>0,PUDL2l>0),0.1+3,0) -> 3.1 | D65: =IF(OR(PUDL2d>0,PUDL2l>0),0.1+3,0) -> 3.1 | E65: =IF(OR(PUDL2d>0,PUDL2l>0),0.1+3+LePUDL2,0) -> 4.1 | F65: =IF(OR(PUDL2d>0,PUDL2l>0),0.1+3+LePUDL2,0) -> 4.1
B66: Dead | C66: =UDL1d+10+5 -> 31.77 | D66: =UDL1d+10+5+PUDL2d -> 46.77 | E66: =UDL1d+10+5+PUDL2d -> 46.77 | F66: =UDL1d+10+5 -> 31.77
B67: Live | C67: =UDL1d+10+5+PUDL2d -> 46.77 | D67: =UDL1d+10+5+PUDL2d+PUDL2l -> 56.77 | E67: =UDL1d+10+5+PUDL2d+PUDL2l -> 56.77 | F67: =UDL1d+10+5+PUDL2d -> 46.77
B68: Snow | C68: =D67 -> 56.77 | D68: =C68+PUDL2s -> 61.77 | E68: =D68 -> 61.77 | F68: =C68 -> 56.77
B69: LL a | C69: =IF(OR(PLa1d>0,PLa1l>0),0.1+PosPLa1,0) -> 5.1 | D69: =IF(OR(PLa1d>0,PLa1l>0),0.1+PosPLa1,0) -> 5.1
B70: Dead | C70: =IF(PLa1d>0,UDL1d+10+5,0) -> 31.77 | D70: =IF(PLa1d>0,UDL1d+10+5+PLa1d,0) -> 46.77
B71: Live | C71: =IF(PLa1l>0,UDL1d+10+5+PLa1d,0) -> 46.77 | D71: =IF(PLa1l>0,UDL1d+10+5+PLa1d+PLa1l,0) -> 56.77
B72: Snow | C72: =IF(PLa1s>0,D71,0) -> 56.77 | D72: =C72+PLa1s -> 61.77
B73: LL b | C73: =IF(OR(PLb1d>0,PLb1l>0),0.1+PosPLb1,0) -> 6.1 | D73: =IF(OR(PLb1d>0,PLb1l>0),0.1+PosPLb1,0) -> 6.1
B74: Dead | C74: =IF(PLb1d>0,UDL1d+10+5,0) -> 31.77 | D74: =IF(PLb1d>0,UDL1d+10+5+PLb1d,0) -> 46.77
B75: Live | C75: =IF(PLb1l>0,UDL1d+10+5+PLb1d,0) -> 46.77 | D75: =IF(PLb1l>0,UDL1d+10+5+PLb1d+PLb1l,0) -> 56.77
B76: Snow | C76: =IF(PLb1s>0,D75,0) -> 56.77 | D76: =C76+PLb1s -> 61.77
B79: x (m) | C79: [M] KNm | D79: [Q] KNm | E79: δ (mm) | F79: δmax(mm) | G79: δ1(mm) | H79: Qudl,a | I79: Qudl,b | J79: Qpa | K79: Qpb | L79: Qudl | M79: Mudl,a | N79: Mudl,b | O79: Mpa | P79: Mpb | Q79: Mudl | R79: δudl,a | S79: δudl,b | T79: δpa | U79: δpb | V79: δudl | X79: Xpa | Y79: Xpb | Z79: Δx- | AA79: Δxcorrect | AB79: Δx- | AC79: Δxcorrect | AE79: δudl,a | AF79: δudl,b | AG79: δpa | AH79: δpb | AI79: δudl | AK79: Xpa | AL79: Xpb | AM79: Δx- | AN79: Δxcorrect | AO79: Δx- | AP79: Δxcorrect
A80: 1 | B80: 0 | C80: =-SUM(M80:Q80) -> 0 | D80: =H80+I80+J80+K80+L80 -> 254.808 | E80: =IF(E$10=2,G80,F80) -> 0 | F80: =-SUM(R80:V80) -> 0 | G80: =-SUM(AE80:AI80) -> 0 | H80: =IF(B80>D$4, IF(B80<(D$4+E$4),G$4-C$4*(B80-D$4),H$4),G$4) -> 33.2109375 | I80: =IF(B80>D$5, IF(B80<(D$5+E$5),G$5-C$5*(B80-D$5),H$5),G$5) -> 22.9921875 | J80: =IF(B80>D$6,-H$6,G$6) -> 15.328125 | K80: =IF(B80>D$7,-H$7,G$7) -> 10.21875 | L80: ='Graph Properties'!C$3*8/2-B80*C$3 -> 173.058 | M80: =IF(B80>D$4, IF(B80<(D$4+E$4),G$4*B80-C$4/2*(B80-D$4)^2,-(8-B80)*H$4),G$4*B80) -> 0 | N80: =IF(B80>D$5, IF(B80<(D$5+E$5),G$5*B80-C$5/2*(B80-D$5)^2,-(8-B80)*H$5),G$5*B80) -> 0 | O80: =IF(B80<D$6,G$6*B80,G$6*B80-C$6*(B80-D$6)) -> 0 | P80: =IF(B80<D$7,G$7*B80,G$7*B80-C$7*(B80-D$7)) -> 0 | Q80: =C$3*8/2*'Graph Properties'!B80-'Graph Properties'!C$3*B80^2/2 -> 0 | R80: =(AA80-Z80)*1000*100 -> 0 | S80: =(AC80-AB80)*1000*100 -> 0 | T80: =D$17*$E$6/(6*8*'Steel Eurocode 3'!$X$8*'Steel Eurocode 3'!$E$10)*100*1000*X80 -> 0 | U80: =D$18*E$7/(6*8*'Steel Eurocode 3'!X$8*'Steel Eurocode 3'!E$10)*100*1000*Y80 -> 0 | V80: =D$14*B80*(8^3-2*8*B80^2+B80^3)/24/('Steel Eurocode 3'!E$10*'Steel Eurocode 3'!X$8)*100*1000 -> 0 | X80: =IF(B80<D$6,B80*(8^2-B80^2-E$6^2),8/E$6*(B80-D$6)^3+(8^2-E$6^2)*B80-B80^3) -> 0 | Y80: =IF(B80<D$7,B80*(8^2-B80^2-E$7^2),8/E$7*(B80-D$7)^3+(8^2-E$7^2)*B80-B80^3) -> 0 | Z80: =IF(B80<D$4,B80*D$15/(24*K$2*K$3)*((D$4^2)*(2*K$2-D$4)^2-2*(D$4*B80^2)*(2*K$2-D$4)+K$2*B80^3),D$15/(24*K$2*K$3)*(D$4^2*(K$2-B80))*(4*B80*K$2-2*B80^2-D$4^2)) -> 0 | AA80: =IF(B80<I$4,B80*D$15/(24*K$2*K$3)*((I$4^2)*(2*K$2-I$4)^2-2*(I$4*B80^2)*(2*K$2-I$4)+K$2*B80^3),D$15/(24*K$2*K$3)*(I$4^2*(K$2-B80))*(4*B80*K$2-2*B80^2-I$4^2)) -> 0 | AB80: =IF(B80<D$5,B80*D$16/(24*K$2*K$3)*((D$5^2)*(2*K$2-D$5)^2-2*(D$5*B80^2)*(2*K$2-D$5)+K$2*B80^3),D$16/(24*K$2*K$3)*(D$5^2*(K$2-B80))*(4*B80*K$2-2*B80^2-D$5^2)) -> 0 | AC80: =IF(B80<I$5,B80*D$16/(24*K$2*K$3)*((I$5^2)*(2*K$2-I$5)^2-2*(I$5*B80^2)*(2*K$2-I$5)+K$2*B80^3),D$16/(24*K$2*K$3)*(I$5^2*(K$2-B80))*(4*B80*K$2-2*B80^2-I$5^2)) -> 0 | AE80: =AN80-AM80 -> 0 | AF80: =(AP80-AO80)*1000*100 -> 0 | AG80: =C$17*$E$6/(6*8*'Steel Eurocode 3'!$X$8*'Steel Eurocode 3'!$E$10)*100*1000*AK80 -> 0 | AH80: =C$18*E$7/(6*8*'Steel Eurocode 3'!X$8*'Steel Eurocode 3'!E$10)*100*1000*Y80 -> 0 | AI80: =C$14*B80*(8^3-2*8*B80^2+B80^3)/24/('Steel Eurocode 3'!E$10*'Steel Eurocode 3'!X$8)*100*1000 -> 0 | AK80: =IF(B80<D$6,B80*(8^2-B80^2-E$6^2),8/E$6*(B80-D$6)^3+(8^2-E$6^2)*B80-B80^3) -> 0 | AL80: =IF(B80<D$7,B80*(8^2-B80^2-E$7^2),8/E$7*(B80-D$7)^3+(8^2-E$7^2)*B80-B80^3) -> 0 | AM80: =IF(B80<D$4,B80*C$15/(24*K$2*K$3)*((D$4^2)*(2*K$2-D$4)^2-2*(D$4*B80^2)*(2*K$2-D$4)+K$2*B80^3),C$15/(24*K$2*K$3)*(D$4^2*(K$2-B80))*(4*B80*K$2-2*B80^2-D$4^2)) -> 0 | AN80: =IF(B80<I$4,B80*C$15/(24*K$2*K$3)*((I$4^2)*(2*K$2-I$4)^2-2*(I$4*B80^2)*(2*K$2-I$4)+K$2*B80^3),C$15/(24*K$2*K$3)*(I$4^2*(K$2-B80))*(4*B80*K$2-2*B80^2-I$4^2)) -> 0 | AO80: =IF(B80<D$5,B80*C$16/(24*K$2*K$3)*((D$5^2)*(2*K$2-D$5)^2-2*(D$5*B80^2)*(2*K$2-D$5)+K$2*B80^3),C$16/(24*K$2*K$3)*(D$5^2*(K$2-B80))*(4*B80*K$2-2*B80^2-D$5^2)) -> 0 | AP80: =IF(B80<I$5,B80*C$16/(24*K$2*K$3)*((I$5^2)*(2*K$2-I$5)^2-2*(I$5*B80^2)*(2*K$2-I$5)+K$2*B80^3),C$16/(24*K$2*K$3)*(I$5^2*(K$2-B80))*(4*B80*K$2-2*B80^2-I$5^2)) -> 0
A81: 2 | B81: =B80+8/250 -> 0.032 | C81: =-SUM(M81:Q81) -> -8.131704576 | D81: =H81+I81+J81+K81+L81 -> 253.423536 | E81: =IF(E$10=2,G81,F81) -> -0.2729290628 | F81: =-SUM(R81:V81) -> -0.2729290628 | G81: =-SUM(AE81:AI81) -> -0.0914269543 | H81: =IF(B81>D$4, IF(B81<(D$4+E$4),G$4-C$4*(B81-D$4),H$4),G$4) -> 33.2109375 | I81: =IF(B81>D$5, IF(B81<(D$5+E$5),G$5-C$5*(B81-D$5),H$5),G$5) -> 22.9921875 | J81: =IF(B81>D$6,-H$6,G$6) -> 15.328125 | K81: =IF(B81>D$7,-H$7,G$7) -> 10.21875 | L81: ='Graph Properties'!C$3*8/2-B81*C$3 -> 171.673536 | M81: 1.06275 | N81: 0.73575 | O81: =IF(B81<D$6,G$6*B81,G$6*B81-C$6*(B81-D$6)) -> 0.4905 | P81: =IF(B81<D$7,G$7*B81,G$7*B81-C$7*(B81-D$7)) -> 0.327 | Q81: =C$3*8/2*'Graph Properties'!B81-'Graph Properties'!C$3*B81^2/2 -> 5.515704576 | R81: =(AA81-Z81)*1000*100 -> 0.0223368701 | S81: =(AC81-AB81)*1000*100 -> 0.03128835527 | T81: =D$17*$E$6/(6*8*'Steel Eurocode 3'!$X$8*'Steel Eurocode 3'!$E$10)*100*1000*X81 -> 0.02637345609 | U81: =D$18*E$7/(6*8*'Steel Eurocode 3'!X$8*'Steel Eurocode 3'!E$10)*100*1000*Y81 -> 0.0191807251 | V81: =D$14*B81*(8^3-2*8*B81^2+B81^3)/24/('Steel Eurocode 3'!E$10*'Steel Eurocode 3'!X$8)*100*1000 -> 0.1737496562 | X81: 1.759967232 | Y81: 1.919967232 | Z81: 8.989901227e-08 | AA81: 3.132677132e-07 | AB81: 6.077677872e-07 | AC81: 9.206513398e-07 | AE81: =(AN81-AM81)*1000*100 -> 0.007769346121 | AF81: =(AP81-AO81)*1000*100 -> 0.01088290618 | AG81: =C$17*$E$6/(6*8*'Steel Eurocode 3'!$X$8*'Steel Eurocode 3'!$E$10)*100*1000*AK81 -> 0.009173376032 | AH81: =C$18*E$7/(6*8*'Steel Eurocode 3'!X$8*'Steel Eurocode 3'!E$10)*100*1000*Y81 -> 0.006671556556 | AI81: =C$14*B81*(8^3-2*8*B81^2+B81^3)/24/('Steel Eurocode 3'!E$10*'Steel Eurocode 3'!X$8)*100*1000 -> 0.05692976941 | AK81: 1.759967232 | AL81: 1.919967232 | AM81: 3.126922166e-08 | AN81: 1.089626829e-07 | AO81: 2.113974912e-07 | AP81: 3.20226553e-07
A82: 3 | B82: 0.064 | C82: =-SUM(M82:Q82) -> -16.2191063 | D82: =H82+I82+J82+K82+L82 -> 252.039072 | E82: =IF(E$10=2,G82,F82) -> -0.5458092072 | F82: =-SUM(R82:V82) -> -0.5458092072 | G82: =-SUM(AE82:AI82) -> -0.1828375633 | H82: =IF(B82>D$4, IF(B82<(D$4+E$4),G$4-C$4*(B82-D$4),H$4),G$4) -> 33.2109375 | I82: =IF(B82>D$5, IF(B82<(D$5+E$5),G$5-C$5*(B82-D$5),H$5),G$5) -> 22.9921875 | J82: =IF(B82>D$6,-H$6,G$6) -> 15.328125 | K82: =IF(B82>D$7,-H$7,G$7) -> 10.21875 | L82: ='Graph Properties'!C$3*8/2-B82*C$3 -> 170.289072 | M82: 2.1255 | N82: 1.4715 | O82: =IF(B82<D$6,G$6*B82,G$6*B82-C$6*(B82-D$6)) -> 0.981 | P82: =IF(B82<D$7,G$7*B82,G$7*B82-C$7*(B82-D$7)) -> 0.654 | Q82: =C$3*8/2*'Graph Properties'!B82-'Graph Properties'!C$3*B82^2/2 -> 10.9871063 | R82: =(AA82-Z82)*1000*100 -> 0.04466735674 | S82: =(AC82-AB82)*1000*100 -> 0.06257229122 | T82: =D$17*$E$6/(6*8*'Steel Eurocode 3'!$X$8*'Steel Eurocode 3'!$E$10)*100*1000*X82 -> 0.05274396597 | U82: =D$18*E$7/(6*8*'Steel Eurocode 3'!X$8*'Steel Eurocode 3'!E$10)*100*1000*Y82 -> 0.03835948606 | V82: =D$14*B82*(8^3-2*8*B82^2+B82^3)/24/('Steel Eurocode 3'!E$10*'Steel Eurocode 3'!X$8)*100*1000 -> 0.3474661072 | X82: 3.519737856 | Y82: 3.839737856 | Z82: 1.797258359e-07 | AA82: 6.263994033e-07 | AB82: 1.215345537e-06 | AC82: 1.841068449e-06 | AE82: =(AN82-AM82)*1000*100 -> 0.01553647191 | AF82: =(AP82-AO82)*1000*100 -> 0.02176427521 | AG82: =C$17*$E$6/(6*8*'Steel Eurocode 3'!$X$8*'Steel Eurocode 3'!$E$10)*100*1000*AK82 -> 0.0183457273 | AH82: =C$18*E$7/(6*8*'Steel Eurocode 3'!X$8*'Steel Eurocode 3'!E$10)*100*1000*Y82 -> 0.01334242993 | AI82: =C$14*B82*(8^3-2*8*B82^2+B82^3)/24/('Steel Eurocode 3'!E$10*'Steel Eurocode 3'!X$8)*100*1000 -> 0.113848659 | AK82: 3.519737856 | AL82: 3.839737856 | AM82: 6.251333421e-08 | AN82: 2.178780533e-07 | AO82: 4.227288825e-07 | AP82: 6.403716346e-07
A83: 4 | B83: 0.096 | C83: -24.26220518 | D83: 250.654608 | E83: -0.8185917593 | F83: -0.8185917593 | G83: -0.2742155619 | H83: 33.2109375 | I83: 22.9921875 | J83: 15.328125 | K83: 10.21875 | L83: ='Graph Properties'!C$3*8/2-B83*C$3 -> 168.904608 | M83: 3.18825 | N83: 2.20725 | O83: 1.4715 | P83: 0.981 | Q83: =C$3*8/2*'Graph Properties'!B83-'Graph Properties'!C$3*B83^2/2 -> 16.41420518 | R83: 0.06698507647 | S83: 0.09384738854 | T83: =D$17*$E$6/(6*8*'Steel Eurocode 3'!$X$8*'Steel Eurocode 3'!$E$10)*100*1000*X83 -> 0.07910858344 | U83: =D$18*E$7/(6*8*'Steel Eurocode 3'!X$8*'Steel Eurocode 3'!E$10)*100*1000*Y83 -> 0.05753431874 | V83: =D$14*B83*(8^3-2*8*B83^2+B83^3)/24/('Steel Eurocode 3'!E$10*'Steel Eurocode 3'!X$8)*100*1000 -> 0.5211163921 | X83: 5.279115264 | Y83: 5.759115264 | Z83: 2.694105867e-07 | AA83: 9.392613514e-07 | AB83: 1.822545518e-06 | AC83: 2.761019403e-06 | AE83: 0.02329915703 | AF83: 0.03264256993 | AG83: =C$17*$E$6/(6*8*'Steel Eurocode 3'!$X$8*'Steel Eurocode 3'!$E$10)*100*1000*AK83 -> 0.02751602902 | AH83: =C$18*E$7/(6*8*'Steel Eurocode 3'!X$8*'Steel Eurocode 3'!E$10)*100*1000*Y83 -> 0.02001193695 | AI83: =C$14*B83*(8^3-2*8*B83^2+B83^3)/24/('Steel Eurocode 3'!E$10*'Steel Eurocode 3'!X$8)*100*1000 -> 0.170745869 | AK83: 5.279115264 | AL83: 5.759115264 | AM83: 9.370803014e-08 | AN83: 3.266996005e-07 | AO83: 6.339288758e-07 | AP83: 9.603545751e-07
A84: 5 | B84: 0.128 | C84: -32.26100122 | D84: 249.270144 | E84: -1.091228312 | F84: -1.091228312 | G84: -0.3655447724 | H84: 33.2109375 | I84: 22.9921875 | J84: 15.328125 | K84: 10.21875 | L84: ='Graph Properties'!C$3*8/2-B84*C$3 -> 167.520144 | M84: 4.251 | N84: 2.943 | O84: 1.962 | P84: 1.308 | Q84: =C$3*8/2*'Graph Properties'!B84-'Graph Properties'!C$3*B84^2/2 -> 21.79700122 | R84: 0.08928364585 | S84: 0.1251092279 | T84: =D$17*$E$6/(6*8*'Steel Eurocode 3'!$X$8*'Steel Eurocode 3'!$E$10)*100*1000*X84 -> 0.1054643623 | U84: =D$18*E$7/(6*8*'Steel Eurocode 3'!X$8*'Steel Eurocode 3'!E$10)*100*1000*Y84 -> 0.076703259 | V84: =D$14*B84*(8^3-2*8*B84^2+B84^3)/24/('Steel Eurocode 3'!E$10*'Steel Eurocode 3'!X$8)*100*1000 -> 0.6946678173 | X84: 7.037902848 | Y84: 7.677902848 | Z84: 3.588858947e-07 | AA84: 1.251722353e-06 | AB84: 2.42918251e-06 | AC84: 3.68027479e-06 | AE84: 0.03105518116 | AF84: 0.04351625319 | AG84: =C$17*$E$6/(6*8*'Steel Eurocode 3'!$X$8*'Steel Eurocode 3'!$E$10)*100*1000*AK84 -> 0.03668325644 | AH84: =C$18*E$7/(6*8*'Steel Eurocode 3'!X$8*'Steel Eurocode 3'!E$10)*100*1000*Y84 -> 0.02667939443 | AI84: =C$14*B84*(8^3-2*8*B84^2+B84^3)/24/('Steel Eurocode 3'!E$10*'Steel Eurocode 3'!X$8)*100*1000 -> 0.2276106872 | AK84: 7.037902848 | AL84: 7.677902848 | AM84: 1.248298764e-07 | AN84: 4.353816881e-07 | AO84: 8.449330471e-07 | AP84: 1.280095579e-06
A85: 6 | B85: 0.16 | C85: -40.2154944 | D85: 247.88568 | E85: -1.363670726 | F85: -1.363670726 | G85: -0.4568091046 | H85: 33.2109375 | I85: 22.9921875 | J85: 15.328125 | K85: 10.21875 | L85: ='Graph Properties'!C$3*8/2-B85*C$3 -> 166.13568 | M85: 5.31375 | N85: 3.67875 | O85: 2.4525 | P85: 1.635 | Q85: =C$3*8/2*'Graph Properties'!B85-'Graph Properties'!C$3*B85^2/2 -> 27.1354944 | R85: 0.1115566814 | S85: 0.15635339 | T85: =D$17*$E$6/(6*8*'Steel Eurocode 3'!$X$8*'Steel Eurocode 3'!$E$10)*100*1000*X85 -> 0.1318083563 | U85: =D$18*E$7/(6*8*'Steel Eurocode 3'!X$8*'Steel Eurocode 3'!E$10)*100*1000*Y85 -> 0.0958643427 | V85: =D$14*B85*(8^3-2*8*B85^2+B85^3)/24/('Steel Eurocode 3'!E$10*'Steel Eurocode 3'!X$8)*100*1000 -> 0.8680879559 | X85: 8.795904 | Y85: 9.595904 | Z85: 4.480869041e-07 | AA85: 1.563653718e-06 | AB85: 3.035073811e-06 | AC85: 4.598607711e-06 | AE85: 0.03880232397 | AF85: 0.05438378784 | AG85: =C$17*$E$6/(6*8*'Steel Eurocode 3'!$X$8*'Steel Eurocode 3'!$E$10)*100*1000*AK85 -> 0.04584638479 | AH85: =C$18*E$7/(6*8*'Steel Eurocode 3'!X$8*'Steel Eurocode 3'!E$10)*100*1000*Y85 -> 0.0333441192 | AI85: =C$14*B85*(8^3-2*8*B85^2+B85^3)/24/('Steel Eurocode 3'!E$10*'Steel Eurocode 3'!X$8)*100*1000 -> 0.2844324888 | AK85: 8.795904 | AL85: 9.595904 | AM85: 1.558563145e-07 | AN85: 5.438795541e-07 | AO85: 1.055677847e-06 | AP85: 1.599515726e-06
A86: 7 | B86: 0.192 | C86: -48.12568474 | D86: 246.501216 | E86: -1.635871128 | F86: -1.635871128 | G86: -0.5479925557 | H86: 33.2109375 | I86: 22.9921875 | J86: 15.328125 | K86: 10.21875 | L86: ='Graph Properties'!C$3*8/2-B86*C$3 -> 164.751216 | M86: 6.3765 | N86: 4.4145 | O86: 2.943 | P86: 1.962 | Q86: =C$3*8/2*'Graph Properties'!B86-'Graph Properties'!C$3*B86^2/2 -> 32.42968474 | R86: 0.1337977997 | S86: 0.1875754556 | T86: =D$17*$E$6/(6*8*'Steel Eurocode 3'!$X$8*'Steel Eurocode 3'!$E$10)*100*1000*X86 -> 0.1581376192 | U86: =D$18*E$7/(6*8*'Steel Eurocode 3'!X$8*'Steel Eurocode 3'!E$10)*100*1000*Y86 -> 0.1150156057 | V86: =D$14*B86*(8^3-2*8*B86^2+B86^3)/24/('Steel Eurocode 3'!E$10*'Steel Eurocode 3'!X$8)*100*1000 -> 1.041344648 | X86: 10.55292211 | Y86: 11.51292211 | Z86: 5.36951273e-07 | AA86: 1.87492927e-06 | AB86: 3.640039229e-06 | AC86: 5.515793785e-06 | AE86: 0.04653836511 | AF86: 0.06524363673 | AG86: =C$17*$E$6/(6*8*'Steel Eurocode 3'!$X$8*'Steel Eurocode 3'!$E$10)*100*1000*AK86 -> 0.05500438929 | AH86: =C$18*E$7/(6*8*'Steel Eurocode 3'!X$8*'Steel Eurocode 3'!E$10)*100*1000*Y86 -> 0.04000542807 | AI86: =C$14*B86*(8^3-2*8*B86^2+B86^3)/24/('Steel Eurocode 3'!E$10*'Steel Eurocode 3'!X$8)*100*1000 -> 0.3412007365 | AK86: 10.55292211 | AL86: 11.51292211 | AM86: 1.867656602e-07 | AN86: 6.521493112e-07 | AO86: 1.266100601e-06 | AP86: 1.918536969e-06
A87: 8 | B87: 0.224 | C87: -55.99157222 | D87: 245.116752 | E87: -1.907781911 | F87: -1.907781911 | G87: -0.6390792103 | H87: 33.2109375 | I87: 22.9921875 | J87: 15.328125 | K87: 10.21875 | L87: ='Graph Properties'!C$3*8/2-B87*C$3 -> 163.366752 | M87: 7.43925 | N87: 5.15025 | O87: 3.4335 | P87: 2.289 | Q87: =C$3*8/2*'Graph Properties'!B87-'Graph Properties'!C$3*B87^2/2 -> 37.67957222 | R87: 0.1560006172 | S87: 0.2187710053 | T87: =D$17*$E$6/(6*8*'Steel Eurocode 3'!$X$8*'Steel Eurocode 3'!$E$10)*100*1000*X87 -> 0.1844492049 | U87: =D$18*E$7/(6*8*'Steel Eurocode 3'!X$8*'Steel Eurocode 3'!E$10)*100*1000*Y87 -> 0.1341550839 | V87: =D$14*B87*(8^3-2*8*B87^2+B87^3)/24/('Steel Eurocode 3'!E$10*'Steel Eurocode 3'!X$8)*100*1000 -> 1.214406 | X87: 12.30876058 | Y87: 13.42876058 | Z87: 6.254191737e-07 | AA87: 2.185425346e-06 | AB87: 4.243901088e-06 | AC87: 6.431611141e-06 | AE87: 0.05426108426 | AF87: 0.0760942627 | AG87: =C$17*$E$6/(6*8*'Steel Eurocode 3'!$X$8*'Steel Eurocode 3'!$E$10)*100*1000*AK87 -> 0.06415624518 | AH87: =C$18*E$7/(6*8*'Steel Eurocode 3'!X$8*'Steel Eurocode 3'!E$10)*100*1000*Y87 -> 0.04666263787 | AI87: =C$14*B87*(8^3-2*8*B87^2+B87^3)/24/('Steel Eurocode 3'!E$10*'Steel Eurocode 3'!X$8)*100*1000 -> 0.3979049803 | AK87: 12.30876058 | AL87: 13.42876058 | AM87: 2.175371039e-07 | AN87: 7.601479465e-07 | AO87: 1.476139509e-06 | AP87: 2.237082136e-06
A88: 9 | B88: 0.256 | C88: -63.81315686 | D88: 243.732288 | E88: -2.179355736 | F88: -2.179355736 | G88: -0.7300532406 | H88: 33.2109375 | I88: 22.9921875 | J88: 15.328125 | K88: 10.21875 | L88: ='Graph Properties'!C$3*8/2-B88*C$3 -> 161.982288 | M88: 8.502 | N88: 5.886 | O88: 3.924 | P88: 2.616 | Q88: =C$3*8/2*'Graph Properties'!B88-'Graph Properties'!C$3*B88^2/2 -> 42.88515686 | R88: 0.1781587506 | S88: 0.2499356197 | T88: =D$17*$E$6/(6*8*'Steel Eurocode 3'!$X$8*'Steel Eurocode 3'!$E$10)*100*1000*X88 -> 0.2107401671 | U88: =D$18*E$7/(6*8*'Steel Eurocode 3'!X$8*'Steel Eurocode 3'!E$10)*100*1000*Y88 -> 0.1532808131 | V88: =D$14*B88*(8^3-2*8*B88^2+B88^3)/24/('Steel Eurocode 3'!E$10*'Steel Eurocode 3'!X$8)*100*1000 -> 1.387240386 | X88: 14.06322278 | Y88: 15.34322278 | Z88: 7.134332927e-07 | AA88: 2.495020799e-06 | AB88: 4.846484228e-06 | AC88: 7.345840425e-06 | AE88: 0.06196826108 | AF88: 0.0869341286 | AG88: =C$17*$E$6/(6*8*'Steel Eurocode 3'!$X$8*'Steel Eurocode 3'!$E$10)*100*1000*AK88 -> 0.0733009277 | AH88: =C$18*E$7/(6*8*'Steel Eurocode 3'!X$8*'Steel Eurocode 3'!E$10)*100*1000*Y88 -> 0.05331506541 | AI88: =C$14*B88*(8^3-2*8*B88^2+B88^3)/24/('Steel Eurocode 3'!E$10*'Steel Eurocode 3'!X$8)*100*1000 -> 0.4545348578 | AK88: 14.06322278 | AL88: 15.34322278 | AM88: 2.481507105e-07 | AN88: 8.678333214e-07 | AO88: 1.685733644e-06 | AP88: 2.55507493e-06
A89: 10 | B89: 0.288 | C89: -71.59043866 | D89: 242.347824 | E89: -2.450545532 | F89: -2.450545532 | G89: -0.8208989061 | H89: 33.2109375 | I89: 22.9921875 | J89: 15.328125 | K89: 10.21875 | L89: ='Graph Properties'!C$3*8/2-B89*C$3 -> 160.597824 | M89: 9.56475 | N89: 6.62175 | O89: 4.4145 | P89: 2.943 | Q89: =C$3*8/2*'Graph Properties'!B89-'Graph Properties'!C$3*B89^2/2 -> 48.04643866 | R89: 0.2002658164 | S89: 0.2810648797 | T89: =D$17*$E$6/(6*8*'Steel Eurocode 3'!$X$8*'Steel Eurocode 3'!$E$10)*100*1000*X89 -> 0.2370075597 | U89: =D$18*E$7/(6*8*'Steel Eurocode 3'!X$8*'Steel Eurocode 3'!E$10)*100*1000*Y89 -> 0.1723908291 | V89: =D$14*B89*(8^3-2*8*B89^2+B89^3)/24/('Steel Eurocode 3'!E$10*'Steel Eurocode 3'!X$8)*100*1000 -> 1.559816447 | X89: 15.81611213 | Y89: 17.25611213 | Z89: 8.009388304e-07 | AA89: 2.803596994e-06 | AB89: 5.447615998e-06 | AC89: 8.258264795e-06 | AE89: 0.06965767526 | AF89: 0.09776169727 | AG89: =C$17*$E$6/(6*8*'Steel Eurocode 3'!$X$8*'Steel Eurocode 3'!$E$10)*100*1000*AK89 -> 0.08243741206 | AH89: =C$18*E$7/(6*8*'Steel Eurocode 3'!X$8*'Steel Eurocode 3'!E$10)*100*1000*Y89 -> 0.05996202752 | AI89: =C$14*B89*(8^3-2*8*B89^2+B89^3)/24/('Steel Eurocode 3'!E$10*'Steel Eurocode 3'!X$8)*100*1000 -> 0.5110800939 | AK89: 15.81611213 | AL89: 17.25611213 | AM89: 2.785874193e-07 | AN89: 9.751641718e-07 | AO89: 1.894822956e-06 | AP89: 2.872439929e-06
A90: 11 | B90: 0.32 | C90: -79.3234176 | D90: 240.96336 | E90: -2.721304491 | F90: -2.721304491 | G90: -0.9116005537 | H90: 33.2109375 | I90: 22.9921875 | J90: 15.328125 | K90: 10.21875 | L90: ='Graph Properties'!C$3*8/2-B90*C$3 -> 159.21336 | M90: 10.6275 | N90: 7.3575 | O90: 4.905 | P90: 3.27 | Q90: =C$3*8/2*'Graph Properties'!B90-'Graph Properties'!C$3*B90^2/2 -> 53.1634176 | R90: 0.222315431 | S90: 0.3121543658 | T90: =D$17*$E$6/(6*8*'Steel Eurocode 3'!$X$8*'Steel Eurocode 3'!$E$10)*100*1000*X90 -> 0.2632484363 | U90: =D$18*E$7/(6*8*'Steel Eurocode 3'!X$8*'Steel Eurocode 3'!E$10)*100*1000*Y90 -> 0.1914831679 | V90: =D$14*B90*(8^3-2*8*B90^2+B90^3)/24/('Steel Eurocode 3'!E$10*'Steel Eurocode 3'!X$8)*100*1000 -> 1.73210309 | X90: 17.567232 | Y90: 19.167232 | Z90: 8.878835015e-07 | AA90: 3.111037812e-06 | AB90: 6.047126267e-06 | AC90: 9.168669925e-06 | AE90: 0.07732710644 | AF90: 0.1085754316 | AG90: =C$17*$E$6/(6*8*'Steel Eurocode 3'!$X$8*'Steel Eurocode 3'!$E$10)*100*1000*AK90 -> 0.09156467351 | AH90: =C$18*E$7/(6*8*'Steel Eurocode 3'!X$8*'Steel Eurocode 3'!E$10)*100*1000*Y90 -> 0.06660284102 | AI90: =C$14*B90*(8^3-2*8*B90^2+B90^3)/24/('Steel Eurocode 3'!E$10*'Steel Eurocode 3'!X$8)*100*1000 -> 0.5675305012 | AK90: 17.567232 | AL90: 19.167232 | AM90: 3.08829044e-07 | AN90: 1.082100108e-06 | AO90: 2.103348267e-06 | AP90: 3.189102582e-06
A91: 12 | B91: 0.352 | C91: -87.0120937 | D91: 239.578896 | E91: -2.991586075 | F91: -2.991586075 | G91: -1.002142618 | H91: 33.2109375 | I91: 22.9921875 | J91: 15.328125 | K91: 10.21875 | L91: ='Graph Properties'!C$3*8/2-B91*C$3 -> 157.828896 | M91: 11.69025 | N91: 8.09325 | O91: 5.3955 | P91: 3.597 | Q91: =C$3*8/2*'Graph Properties'!B91-'Graph Properties'!C$3*B91^2/2 -> 58.2360937 | R91: 0.2443012111 | S91: 0.3431996587 | T91: =D$17*$E$6/(6*8*'Steel Eurocode 3'!$X$8*'Steel Eurocode 3'!$E$10)*100*1000*X91 -> 0.2894598509 | U91: =D$18*E$7/(6*8*'Steel Eurocode 3'!X$8*'Steel Eurocode 3'!E$10)*100*1000*Y91 -> 0.2105558653 | V91: =D$14*B91*(8^3-2*8*B91^2+B91^3)/24/('Steel Eurocode 3'!E$10*'Steel Eurocode 3'!X$8)*100*1000 -> 1.904069489 | X91: 19.31638579 | Y91: 21.07638579 | Z91: 9.742175346e-07 | AA91: 3.417229646e-06 | AB91: 6.644847414e-06 | AC91: 1.0076844e-05 | AE91: 0.08497433431 | AF91: 0.1193737943 | AG91: =C$17*$E$6/(6*8*'Steel Eurocode 3'!$X$8*'Steel Eurocode 3'!$E$10)*100*1000*AK91 -> 0.1006816873 | AH91: =C$18*E$7/(6*8*'Steel Eurocode 3'!X$8*'Steel Eurocode 3'!E$10)*100*1000*Y91 -> 0.07323682273 | AI91: =C$14*B91*(8^3-2*8*B91^2+B91^3)/24/('Steel Eurocode 3'!E$10*'Steel Eurocode 3'!X$8)*100*1000 -> 0.6238759795 | AK91: 19.31638579 | AL91: 21.07638579 | AM91: 3.388582729e-07 | AN91: 1.188601616e-06 | AO91: 2.311251274e-06 | AP91: 3.504989218e-06
A92: 13 | B92: 0.384 | C92: -94.65646694 | D92: 238.194432 | E92: -3.261344014 | F92: -3.261344014 | G92: -1.092509621 | H92: 33.2109375 | I92: 22.9921875 | J92: 15.328125 | K92: 10.21875 | L92: ='Graph Properties'!C$3*8/2-B92*C$3 -> 156.444432 | M92: 12.753 | N92: 8.829 | O92: 5.886 | P92: 3.924 | Q92: =C$3*8/2*'Graph Properties'!B92-'Graph Properties'!C$3*B92^2/2 -> 63.26446694 | R92: 0.2662167732 | S92: 0.3741963393 | T92: =D$17*$E$6/(6*8*'Steel Eurocode 3'!$X$8*'Steel Eurocode 3'!$E$10)*100*1000*X92 -> 0.3156388571 | U92: =D$18*E$7/(6*8*'Steel Eurocode 3'!X$8*'Steel Eurocode 3'!E$10)*100*1000*Y92 -> 0.2296069572 | V92: =D$14*B92*(8^3-2*8*B92^2+B92^3)/24/('Steel Eurocode 3'!E$10*'Steel Eurocode 3'!X$8)*100*1000 -> 2.075685087 | X92: 21.0633769 | Y92: 22.9833769 | Z92: 1.059893673e-06 | AA92: 3.722061405e-06 | AB92: 7.240614333e-06 | AC92: 1.098257773e-05 | AE92: 0.09259713852 | AF92: 0.1301552484 | AG92: =C$17*$E$6/(6*8*'Steel Eurocode 3'!$X$8*'Steel Eurocode 3'!$E$10)*100*1000*AK92 -> 0.1097874286 | AH92: =C$18*E$7/(6*8*'Steel Eurocode 3'!X$8*'Steel Eurocode 3'!E$10)*100*1000*Y92 -> 0.07986328947 | AI92: =C$14*B92*(8^3-2*8*B92^2+B92^3)/24/('Steel Eurocode 3'!E$10*'Steel Eurocode 3'!X$8)*100*1000 -> 0.680106516 | AK92: 21.0633769 | AL92: 22.9833769 | AM92: 3.686586687e-07 | AN92: 1.294630054e-06 | AO92: 2.518474551e-06 | AP92: 3.820027035e-06
A93: 14 | B93: 0.416 | C93: -102.2565373 | D93: 236.809968 | E93: -3.530532301 | F93: -3.530532301 | G93: -1.182686172 | H93: 33.2109375 | I93: 22.9921875 | J93: 15.328125 | K93: 10.21875 | L93: ='Graph Properties'!C$3*8/2-B93*C$3 -> 155.059968 | M93: 13.81575 | N93: 9.56475 | O93: 6.3765 | P93: 4.251 | Q93: =C$3*8/2*'Graph Properties'!B93-'Graph Properties'!C$3*B93^2/2 -> 68.24853734 | R93: 0.2880557339 | S93: 0.405139988 | T93: =D$17*$E$6/(6*8*'Steel Eurocode 3'!$X$8*'Steel Eurocode 3'!$E$10)*100*1000*X93 -> 0.3417825089 | U93: =D$18*E$7/(6*8*'Steel Eurocode 3'!X$8*'Steel Eurocode 3'!E$10)*100*1000*Y93 -> 0.2486344794 | V93: =D$14*B93*(8^3-2*8*B93^2+B93^3)/24/('Steel Eurocode 3'!E$10*'Steel Eurocode 3'!X$8)*100*1000 -> 2.246919591 | X93: 22.8080087 | Y93: 24.8880087 | Z93: 1.144867172e-06 | AA93: 4.025424511e-06 | AB93: 7.834264434e-06 | AC93: 1.188566431e-05 | AE93: 0.1001932988 | AF93: 0.1409182567 | AG93: =C$17*$E$6/(6*8*'Steel Eurocode 3'!$X$8*'Steel Eurocode 3'!$E$10)*100*1000*AK93 -> 0.1188808727 | AH93: =C$18*E$7/(6*8*'Steel Eurocode 3'!X$8*'Steel Eurocode 3'!E$10)*100*1000*Y93 -> 0.08648155806 | AI93: =C$14*B93*(8^3-2*8*B93^2+B93^3)/24/('Steel Eurocode 3'!E$10*'Steel Eurocode 3'!X$8)*100*1000 -> 0.7362121857 | AK93: 22.8080087 | AL93: 24.8880087 | AM93: 3.982146686e-07 | AN93: 1.400147656e-06 | AO93: 2.724961542e-06 | AP93: 4.134144109e-06
A94: 15 | B94: 0.448 | C94: -109.8123049 | D94: 235.425504 | E94: -3.799105199 | F94: -3.799105199 | G94: -1.272656967 | H94: 33.2109375 | I94: 22.9921875 | J94: 15.328125 | K94: 10.21875 | L94: ='Graph Properties'!C$3*8/2-B94*C$3 -> 153.675504 | M94: 14.8785 | N94: 10.3005 | O94: 6.867 | P94: 4.578 | Q94: =C$3*8/2*'Graph Properties'!B94-'Graph Properties'!C$3*B94^2/2 -> 73.1883049 | R94: 0.3098117097 | S94: 0.4360261856 | T94: =D$17*$E$6/(6*8*'Steel Eurocode 3'!$X$8*'Steel Eurocode 3'!$E$10)*100*1000*X94 -> 0.3678878599 | U94: =D$18*E$7/(6*8*'Steel Eurocode 3'!X$8*'Steel Eurocode 3'!E$10)*100*1000*Y94 -> 0.2676364678 | V94: =D$14*B94*(8^3-2*8*B94^2+B94^3)/24/('Steel Eurocode 3'!E$10*'Steel Eurocode 3'!X$8)*100*1000 -> 2.417742976 | X94: 24.55008461 | Y94: 26.79008461 | Z94: 1.229095805e-06 | AA94: 4.327212901e-06 | AB94: 8.425637638e-06 | AC94: 1.278589949e-05 | AE94: 0.1077605947 | AF94: 0.151661282 | AG94: =C$17*$E$6/(6*8*'Steel Eurocode 3'!$X$8*'Steel Eurocode 3'!$E$10)*100*1000*AK94 -> 0.1279609947 | AH94: =C$18*E$7/(6*8*'Steel Eurocode 3'!X$8*'Steel Eurocode 3'!E$10)*100*1000*Y94 -> 0.09309094532 | AI94: =C$14*B94*(8^3-2*8*B94^2+B94^3)/24/('Steel Eurocode 3'!E$10*'Steel Eurocode 3'!X$8)*100*1000 -> 0.7921831506 | AK94: 24.55008461 | AL94: 26.79008461 | AM94: 4.275115842e-07 | AN94: 1.505117531e-06 | AO94: 2.93065657e-06 | AP94: 4.447269389e-06
A95: 16 | B95: 0.48 | C95: -117.3237696 | D95: 234.04104 | E95: -4.067017236 | F95: -4.067017236 | G95: -1.362406792 | H95: 33.2109375 | I95: 22.9921875 | J95: 15.328125 | K95: 10.21875 | L95: ='Graph Properties'!C$3*8/2-B95*C$3 -> 152.29104 | M95: 15.94125 | N95: 11.03625 | O95: 7.3575 | P95: 4.905 | Q95: =C$3*8/2*'Graph Properties'!B95-'Graph Properties'!C$3*B95^2/2 -> 78.0837696 | R95: 0.3314783171 | S95: 0.4668505129 | T95: =D$17*$E$6/(6*8*'Steel Eurocode 3'!$X$8*'Steel Eurocode 3'!$E$10)*100*1000*X95 -> 0.393951964 | U95: =D$18*E$7/(6*8*'Steel Eurocode 3'!X$8*'Steel Eurocode 3'!E$10)*100*1000*Y95 -> 0.2866109582 | V95: =D$14*B95*(8^3-2*8*B95^2+B95^3)/24/('Steel Eurocode 3'!E$10*'Steel Eurocode 3'!X$8)*100*1000 -> 2.588125484 | X95: 26.289408 | Y95: 28.689408 | Z95: 1.312539855e-06 | AA95: 4.627323026e-06 | AB95: 9.014576382e-06 | AC95: 1.368308151e-05 | AE95: 0.1152968059 | AF95: 0.1623827871 | AG95: =C$17*$E$6/(6*8*'Steel Eurocode 3'!$X$8*'Steel Eurocode 3'!$E$10)*100*1000*AK95 -> 0.1370267701 | AH95: =C$18*E$7/(6*8*'Steel Eurocode 3'!X$8*'Steel Eurocode 3'!E$10)*100*1000*Y95 -> 0.09969076808 | AI95: =C$14*B95*(8^3-2*8*B95^2+B95^3)/24/('Steel Eurocode 3'!E$10*'Steel Eurocode 3'!X$8)*100*1000 -> 0.8480096606 | AK95: 26.289408 | AL95: 28.689408 | AM95: 4.565356017e-07 | AN95: 1.609503661e-06 | AO95: 3.135504829e-06 | AP95: 4.7593327e-06
A96: 17 | B96: 0.512 | C96: -124.7909315 | D96: 232.656576 | E96: -4.334223209 | F96: -4.334223209 | G96: -1.451920517 | H96: 33.2109375 | I96: 22.9921875 | J96: 15.328125 | K96: 10.21875 | L96: ='Graph Properties'!C$3*8/2-B96*C$3 -> 150.906576 | M96: 17.004 | N96: 11.772 | O96: 7.848 | P96: 5.232 | Q96: =C$3*8/2*'Graph Properties'!B96-'Graph Properties'!C$3*B96^2/2 -> 82.93493146 | R96: 0.3530491727 | S96: 0.4976085504 | T96: =D$17*$E$6/(6*8*'Steel Eurocode 3'!$X$8*'Steel Eurocode 3'!$E$10)*100*1000*X96 -> 0.4199718749 | U96: =D$18*E$7/(6*8*'Steel Eurocode 3'!X$8*'Steel Eurocode 3'!E$10)*100*1000*Y96 -> 0.3055559865 | V96: =D$14*B96*(8^3-2*8*B96^2+B96^3)/24/('Steel Eurocode 3'!E$10*'Steel Eurocode 3'!X$8)*100*1000 -> 2.758037625 | X96: 28.02578227 | Y96: 30.58578227 | Z96: 1.395162122e-06 | AA96: 4.925653849e-06 | AB96: 9.600925618e-06 | AC96: 1.457701112e-05 | AE96: 0.1227997122 | AF96: 0.1730812349 | AG96: =C$17*$E$6/(6*8*'Steel Eurocode 3'!$X$8*'Steel Eurocode 3'!$E$10)*100*1000*AK96 -> 0.1460771739 | AH96: =C$18*E$7/(6*8*'Steel Eurocode 3'!X$8*'Steel Eurocode 3'!E$10)*100*1000*Y96 -> 0.1062803431 | AI96: =C$14*B96*(8^3-2*8*B96^2+B96^3)/24/('Steel Eurocode 3'!E$10*'Steel Eurocode 3'!X$8)*100*1000 -> 0.9036820526 | AK96: 28.02578227 | AL96: 30.58578227 | AM96: 4.852737816e-07 | AN96: 1.713270904e-06 | AO96: 3.339452389e-06 | AP96: 5.070264738e-06
A97: 18 | B97: 0.544 | C97: -132.2137905 | D97: 231.272112 | E97: -4.60067818 | F97: -4.60067818 | G97: -1.541183102 | H97: 33.2109375 | I97: 22.9921875 | J97: 15.328125 | K97: 10.21875 | L97: ='Graph Properties'!C$3*8/2-B97*C$3 -> 149.522112 | M97: 18.06675 | N97: 12.50775 | O97: 8.3385 | P97: 5.559 | Q97: =C$3*8/2*'Graph Properties'!B97-'Graph Properties'!C$3*B97^2/2 -> 87.74179046 | R97: 0.374517893 | S97: 0.5282958789 | T97: =D$17*$E$6/(6*8*'Steel Eurocode 3'!$X$8*'Steel Eurocode 3'!$E$10)*100*1000*X97 -> 0.4459446465 | U97: =D$18*E$7/(6*8*'Steel Eurocode 3'!X$8*'Steel Eurocode 3'!E$10)*100*1000*Y97 -> 0.3244695886 | V97: =D$14*B97*(8^3-2*8*B97^2+B97^3)/24/('Steel Eurocode 3'!E$10*'Steel Eurocode 3'!X$8)*100*1000 -> 2.927450173 | X97: 29.75901082 | Y97: 32.47901082 | Z97: 1.47692792e-06 | AA97: 5.222106849e-06 | AB97: 1.018453281e-05 | AC97: 1.54674916e-05 | AE97: 0.1302670932 | AF97: 0.1837550883 | AG97: =C$17*$E$6/(6*8*'Steel Eurocode 3'!$X$8*'Steel Eurocode 3'!$E$10)*100*1000*AK97 -> 0.1551111814 | AH97: =C$18*E$7/(6*8*'Steel Eurocode 3'!X$8*'Steel Eurocode 3'!E$10)*100*1000*Y97 -> 0.1128589874 | AI97: =C$14*B97*(8^3-2*8*B97^2+B97^3)/24/('Steel Eurocode 3'!E$10*'Steel Eurocode 3'!X$8)*100*1000 -> 0.9591907513 | AK97: 29.75901082 | AL97: 32.47901082 | AM97: 5.13714059e-07 | AN97: 1.816384991e-06 | AO97: 3.542446195e-06 | AP97: 5.379997078e-06
A98: 19 | B98: 0.576 | C98: -139.5923466 | D98: 229.887648 | E98: -4.866337478 | F98: -4.866337478 | G98: -1.630179593 | H98: 33.2109375 | I98: 22.9921875 | J98: 15.328125 | K98: 10.21875 | L98: ='Graph Properties'!C$3*8/2-B98*C$3 -> 148.137648 | M98: 19.1295 | N98: 13.2435 | O98: 8.829 | P98: 5.886 | Q98: =C$3*8/2*'Graph Properties'!B98-'Graph Properties'!C$3*B98^2/2 -> 92.50434662 | R98: 0.3958780946 | S98: 0.5589080791 | T98: =D$17*$E$6/(6*8*'Steel Eurocode 3'!$X$8*'Steel Eurocode 3'!$E$10)*100*1000*X98 -> 0.4718673325 | U98: =D$18*E$7/(6*8*'Steel Eurocode 3'!X$8*'Steel Eurocode 3'!E$10)*100*1000*Y98 -> 0.3433498004 | V98: =D$14*B98*(8^3-2*8*B98^2+B98^3)/24/('Steel Eurocode 3'!E$10*'Steel Eurocode 3'!X$8)*100*1000 -> 3.096334172 | X98: 31.48889702 | Y98: 34.36889702 | Z98: 1.557805075e-06 | AA98: 5.516586021e-06 | AB98: 1.076524794e-05 | AC98: 1.635432873e-05 | AE98: 0.1376967285 | AF98: 0.1944028101 | AG98: =C$17*$E$6/(6*8*'Steel Eurocode 3'!$X$8*'Steel Eurocode 3'!$E$10)*100*1000*AK98 -> 0.1641277678 | AH98: =C$18*E$7/(6*8*'Steel Eurocode 3'!X$8*'Steel Eurocode 3'!E$10)*100*1000*Y98 -> 0.1194260175 | AI98: =C$14*B98*(8^3-2*8*B98^2+B98^3)/24/('Steel Eurocode 3'!E$10*'Steel Eurocode 3'!X$8)*100*1000 -> 1.014526269 | AK98: 31.48889702 | AL98: 34.36889702 | AM98: 5.418452435e-07 | AN98: 1.918812529e-06 | AO98: 3.744434065e-06 | AP98: 5.688462166e-06
A99: 20 | B99: 0.608 | C99: -146.9265999 | D99: 228.503184 | E99: -5.131156701 | F99: -5.131156701 | G99: -1.718895124 | H99: 33.2109375 | I99: 22.9921875 | J99: 15.328125 | K99: 10.21875 | L99: ='Graph Properties'!C$3*8/2-B99*C$3 -> 146.753184 | M99: 20.19225 | N99: 13.97925 | O99: 9.3195 | P99: 6.213 | Q99: =C$3*8/2*'Graph Properties'!B99-'Graph Properties'!C$3*B99^2/2 -> 97.22259994 | R99: 0.417123394 | S99: 0.5894407315 | T99: =D$17*$E$6/(6*8*'Steel Eurocode 3'!$X$8*'Steel Eurocode 3'!$E$10)*100*1000*X99 -> 0.4977369867 | U99: =D$18*E$7/(6*8*'Steel Eurocode 3'!X$8*'Steel Eurocode 3'!E$10)*100*1000*Y99 -> 0.3621946575 | V99: =D$14*B99*(8^3-2*8*B99^2+B99^3)/24/('Steel Eurocode 3'!E$10*'Steel Eurocode 3'!X$8)*100*1000 -> 3.264660931 | X99: 33.21524429 | Y99: 36.25524429 | Z99: 1.637763929e-06 | AA99: 5.808997869e-06 | AB99: 1.134292349e-05 | AC99: 1.723733081e-05 | AE99: 0.1450863979 | AF99: 0.2050228631 | AG99: =C$17*$E$6/(6*8*'Steel Eurocode 3'!$X$8*'Steel Eurocode 3'!$E$10)*100*1000*AK99 -> 0.1731259084 | AH99: =C$18*E$7/(6*8*'Steel Eurocode 3'!X$8*'Steel Eurocode 3'!E$10)*100*1000*Y99 -> 0.1259807505 | AI99: =C$14*B99*(8^3-2*8*B99^2+B99^3)/24/('Steel Eurocode 3'!E$10*'Steel Eurocode 3'!X$8)*100*1000 -> 1.069679204 | AK99: 33.21524429 | AL99: 36.25524429 | AM99: 5.696570189e-07 | AN99: 2.020520998e-06 | AO99: 3.945364693e-06 | AP99: 5.995593324e-06
A100: 21 | B100: 0.64 | C100: -154.2165504 | D100: 227.11872 | E100: -5.395091711 | F100: -5.395091711 | G100: -1.807314917 | H100: 33.2109375 | I100: 22.9921875 | J100: 15.328125 | K100: 10.21875 | L100: ='Graph Properties'!C$3*8/2-B100*C$3 -> 145.36872 | M100: 21.255 | N100: 14.715 | O100: 9.81 | P100: 6.54 | Q100: =C$3*8/2*'Graph Properties'!B100-'Graph Properties'!C$3*B100^2/2 -> 101.8965504 | R100: 0.4382474078 | S100: 0.6198894171 | T100: =D$17*$E$6/(6*8*'Steel Eurocode 3'!$X$8*'Steel Eurocode 3'!$E$10)*100*1000*X100 -> 0.523550663 | U100: =D$18*E$7/(6*8*'Steel Eurocode 3'!X$8*'Steel Eurocode 3'!E$10)*100*1000*Y100 -> 0.3810021961 | V100: =D$14*B100*(8^3-2*8*B100^2+B100^3)/24/('Steel Eurocode 3'!E$10*'Steel Eurocode 3'!X$8)*100*1000 -> 3.432402027 | X100: 34.937856 | Y100: 38.137856 | Z100: 1.716777339e-06 | AA100: 6.099251416e-06 | AB100: 1.191741448e-05 | AC100: 1.811630865e-05 | AE100: 0.152433881 | AF100: 0.2156137103 | AG100: =C$17*$E$6/(6*8*'Steel Eurocode 3'!$X$8*'Steel Eurocode 3'!$E$10)*100*1000*AK100 -> 0.1821045784 | AH100: =C$18*E$7/(6*8*'Steel Eurocode 3'!X$8*'Steel Eurocode 3'!E$10)*100*1000*Y100 -> 0.132522503 | AI100: =C$14*B100*(8^3-2*8*B100^2+B100^3)/24/('Steel Eurocode 3'!E$10*'Steel Eurocode 3'!X$8)*100*1000 -> 1.124640245 | AK100: 34.937856 | AL100: 38.137856 | AM100: 5.971399438e-07 | AN100: 2.121478754e-06 | AO100: 4.145187646e-06 | AP100: 6.301324749e-06
A101: 22 | B101: 0.672 | C101: -161.462198 | D101: 225.734256 | E101: -5.658098638 | F101: -5.658098638 | G101: -1.895424281 | H101: 33.2109375 | I101: 22.9921875 | J101: 15.328125 | K101: 10.21875 | L101: ='Graph Properties'!C$3*8/2-B101*C$3 -> 143.984256 | M101: 22.31775 | N101: 15.45075 | O101: 10.3005 | P101: 6.867 | Q101: =C$3*8/2*'Graph Properties'!B101-'Graph Properties'!C$3*B101^2/2 -> 106.526198 | R101: 0.4592437525 | S101: 0.6502497163 | T101: =D$17*$E$6/(6*8*'Steel Eurocode 3'!$X$8*'Steel Eurocode 3'!$E$10)*100*1000*X101 -> 0.5493054151 | U101: =D$18*E$7/(6*8*'Steel Eurocode 3'!X$8*'Steel Eurocode 3'!E$10)*100*1000*Y101 -> 0.3997704518 | V101: =D$14*B101*(8^3-2*8*B101^2+B101^3)/24/('Steel Eurocode 3'!E$10*'Steel Eurocode 3'!X$8)*100*1000 -> 3.599529302 | X101: 36.65653555 | Y101: 40.01653555 | Z101: 1.794820672e-06 | AA101: 6.387258197e-06 | AB101: 1.248857843e-05 | AC101: 1.899107559e-05 | AE101: 0.1597369574 | AF101: 0.2261738144 | AG101: =C$17*$E$6/(6*8*'Steel Eurocode 3'!$X$8*'Steel Eurocode 3'!$E$10)*100*1000*AK101 -> 0.1910627531 | AH101: =C$18*E$7/(6*8*'Steel Eurocode 3'!X$8*'Steel Eurocode 3'!E$10)*100*1000*Y101 -> 0.1390505919 | AI101: =C$14*B101*(8^3-2*8*B101^2+B101^3)/24/('Steel Eurocode 3'!E$10*'Steel Eurocode 3'!X$8)*100*1000 -> 1.179400165 | AK101: 36.65653555 | AL101: 40.01653555 | AM101: 6.242854512e-07 | AN101: 2.221655025e-06 | AO101: 4.343853367e-06 | AP101: 6.605591511e-06
A102: 23 | B102: 0.704 | C102: -168.6635428 | D102: 224.349792 | E102: -5.920133879 | F102: -5.920133879 | G102: -1.983208612 | H102: 33.2109375 | I102: 22.9921875 | J102: 15.328125 | K102: 10.21875 | L102: ='Graph Properties'!C$3*8/2-B102*C$3 -> 142.599792 | M102: 23.3805 | N102: 16.1865 | O102: 10.791 | P102: 7.194 | Q102: =C$3*8/2*'Graph Properties'!B102-'Graph Properties'!C$3*B102^2/2 -> 111.1115428 | R102: 0.4801060446 | S102: 0.6805172099 | T102: =D$17*$E$6/(6*8*'Steel Eurocode 3'!$X$8*'Steel Eurocode 3'!$E$10)*100*1000*X102 -> 0.5749982967 | U102: =D$18*E$7/(6*8*'Steel Eurocode 3'!X$8*'Steel Eurocode 3'!E$10)*100*1000*Y102 -> 0.4184974607 | V102: =D$14*B102*(8^3-2*8*B102^2+B102^3)/24/('Steel Eurocode 3'!E$10*'Steel Eurocode 3'!X$8)*100*1000 -> 3.766014868 | X102: 38.37108634 | Y102: 41.89108634 | Z102: 1.871871814e-06 | AA102: 6.672932261e-06 | AB102: 1.305627537e-05 | AC102: 1.986144747e-05 | AE102: 0.1669934068 | AF102: 0.2367016382 | AG102: =C$17*$E$6/(6*8*'Steel Eurocode 3'!$X$8*'Steel Eurocode 3'!$E$10)*100*1000*AK102 -> 0.1999994076 | AH102: =C$18*E$7/(6*8*'Steel Eurocode 3'!X$8*'Steel Eurocode 3'!E$10)*100*1000*Y102 -> 0.1455643341 | AI102: =C$14*B102*(8^3-2*8*B102^2+B102^3)/24/('Steel Eurocode 3'!E$10*'Steel Eurocode 3'!X$8)*100*1000 -> 1.233949826 | AK102: 38.37108634 | AL102: 41.89108634 | AM102: 6.510858484e-07 | AN102: 2.321019917e-06 | AO102: 4.541313172e-06 | AP102: 6.908329555e-06
A103: 24 | B103: 0.736 | C103: -175.8205847 | D103: 222.965328 | E103: -6.1811541 | F103: -6.1811541 | G103: -2.070653394 | H103: 33.2109375 | I103: 22.9921875 | J103: 15.328125 | K103: 10.21875 | L103: ='Graph Properties'!C$3*8/2-B103*C$3 -> 141.215328 | M103: 24.44325 | N103: 16.92225 | O103: 11.2815 | P103: 7.521 | Q103: =C$3*8/2*'Graph Properties'!B103-'Graph Properties'!C$3*B103^2/2 -> 115.6525847 | R103: 0.5008279008 | S103: 0.7106874786 | T103: =D$17*$E$6/(6*8*'Steel Eurocode 3'!$X$8*'Steel Eurocode 3'!$E$10)*100*1000*X103 -> 0.6006263618 | U103: =D$18*E$7/(6*8*'Steel Eurocode 3'!X$8*'Steel Eurocode 3'!E$10)*100*1000*Y103 -> 0.4371812584 | V103: =D$14*B103*(8^3-2*8*B103^2+B103^3)/24/('Steel Eurocode 3'!E$10*'Steel Eurocode 3'!X$8)*100*1000 -> 3.9318311 | X103: 40.08131174 | Y103: 43.76131174 | Z103: 1.947911162e-06 | AA103: 6.95619017e-06 | AB103: 1.362036785e-05 | AC103: 2.072724264e-05 | AE103: 0.174201009 | AF103: 0.2471956447 | AG103: =C$17*$E$6/(6*8*'Steel Eurocode 3'!$X$8*'Steel Eurocode 3'!$E$10)*100*1000*AK103 -> 0.2089135171 | AH103: =C$18*E$7/(6*8*'Steel Eurocode 3'!X$8*'Steel Eurocode 3'!E$10)*100*1000*Y103 -> 0.1520630464 | AI103: =C$14*B103*(8^3-2*8*B103^2+B103^3)/24/('Steel Eurocode 3'!E$10*'Steel Eurocode 3'!X$8)*100*1000 -> 1.288280177 | AK103: 40.08131174 | AL103: 43.76131174 | AM103: 6.775343173e-07 | AN103: 2.419544407e-06 | AO103: 4.737519253e-06 | AP103: 7.2094757e-06
A104: 25 | B104: 0.768 | C104: -182.9333238 | D104: 221.580864 | E104: -6.44111623 | F104: -6.44111623 | G104: -2.157744198 | H104: 33.2109375 | I104: 22.9921875 | J104: 15.328125 | K104: 10.21875 | L104: ='Graph Properties'!C$3*8/2-B104*C$3 -> 139.830864 | M104: 25.506 | N104: 17.658 | O104: 11.772 | P104: 7.848 | Q104: =C$3*8/2*'Graph Properties'!B104-'Graph Properties'!C$3*B104^2/2 -> 120.1493238 | R104: 0.5214029375 | S104: 0.7407561031 | T104: =D$17*$E$6/(6*8*'Steel Eurocode 3'!$X$8*'Steel Eurocode 3'!$E$10)*100*1000*X104 -> 0.626186664 | U104: =D$18*E$7/(6*8*'Steel Eurocode 3'!X$8*'Steel Eurocode 3'!E$10)*100*1000*Y104 -> 0.4558198809 | V104: =D$14*B104*(8^3-2*8*B104^2+B104^3)/24/('Steel Eurocode 3'!E$10*'Steel Eurocode 3'!X$8)*100*1000 -> 4.096950644 | X104: 41.78701517 | Y104: 45.62701517 | Z104: 2.022921628e-06 | AA104: 7.236951004e-06 | AB104: 1.418072094e-05 | AC104: 2.158828197e-05 | AE104: 0.1813575435 | AF104: 0.2576542967 | AG104: =C$17*$E$6/(6*8*'Steel Eurocode 3'!$X$8*'Steel Eurocode 3'!$E$10)*100*1000*AK104 -> 0.217804057 | AH104: =C$18*E$7/(6*8*'Steel Eurocode 3'!X$8*'Steel Eurocode 3'!E$10)*100*1000*Y104 -> 0.1585460455 | AI104: =C$14*B104*(8^3-2*8*B104^2+B104^3)/24/('Steel Eurocode 3'!E$10*'Steel Eurocode 3'!X$8)*100*1000 -> 1.342382256 | AK104: 41.78701517 | AL104: 45.62701517 | AM104: 7.036249142e-07 | AN104: 2.517200349e-06 | AO104: 4.932424674e-06 | AP104: 7.508967641e-06
A105: 26 | B105: 0.8 | C105: -190.00176 | D105: 220.1964 | E105: -6.699977466 | F105: -6.699977466 | G105: -2.244466683 | H105: 33.2109375 | I105: 22.9921875 | J105: 15.328125 | K105: 10.21875 | L105: ='Graph Properties'!C$3*8/2-B105*C$3 -> 138.4464 | M105: 26.56875 | N105: 18.39375 | O105: 12.2625 | P105: 8.175 | Q105: =C$3*8/2*'Graph Properties'!B105-'Graph Properties'!C$3*B105^2/2 -> 124.60176 | R105: 0.5418247714 | S105: 0.770718664 | T105: =D$17*$E$6/(6*8*'Steel Eurocode 3'!$X$8*'Steel Eurocode 3'!$E$10)*100*1000*X105 -> 0.6516762572 | U105: =D$18*E$7/(6*8*'Steel Eurocode 3'!X$8*'Steel Eurocode 3'!E$10)*100*1000*Y105 -> 0.4744113641 | V105: =D$14*B105*(8^3-2*8*B105^2+B105^3)/24/('Steel Eurocode 3'!E$10*'Steel Eurocode 3'!X$8)*100*1000 -> 4.26134641 | X105: 43.488 | Y105: 47.488 | Z105: 2.096888639e-06 | AA105: 7.515136352e-06 | AB105: 1.473720221e-05 | AC105: 2.244438885e-05 | AE105: 0.18846079 | AF105: 0.268076057 | AG105: =C$17*$E$6/(6*8*'Steel Eurocode 3'!$X$8*'Steel Eurocode 3'!$E$10)*100*1000*AK105 -> 0.2266700025 | AH105: =C$18*E$7/(6*8*'Steel Eurocode 3'!X$8*'Steel Eurocode 3'!E$10)*100*1000*Y105 -> 0.1650126484 | AI105: =C$14*B105*(8^3-2*8*B105^2+B105^3)/24/('Steel Eurocode 3'!E$10*'Steel Eurocode 3'!X$8)*100*1000 -> 1.396247185 | AK105: 43.488 | AL105: 47.488 | AM105: 7.2935257e-07 | AN105: 2.61396047e-06 | AO105: 5.125983376e-06 | AP105: 7.806743947e-06
A106: 27 | B106: 0.832 | C106: -197.0258934 | D106: 218.811936 | E106: -6.957695275 | F106: -6.957695275 | G106: -2.330806595 | H106: 33.2109375 | I106: 22.9921875 | J106: 15.328125 | K106: 10.21875 | L106: ='Graph Properties'!C$3*8/2-B106*C$3 -> 137.061936 | M106: 27.6315 | N106: 19.1295 | O106: 12.753 | P106: 8.502 | Q106: =C$3*8/2*'Graph Properties'!B106-'Graph Properties'!C$3*B106^2/2 -> 129.0098934 | R106: 0.5620870188 | S106: 0.8005707421 | T106: =D$17*$E$6/(6*8*'Steel Eurocode 3'!$X$8*'Steel Eurocode 3'!$E$10)*100*1000*X106 -> 0.6770921951 | U106: =D$18*E$7/(6*8*'Steel Eurocode 3'!X$8*'Steel Eurocode 3'!E$10)*100*1000*Y106 -> 0.4929537438 | V106: =D$14*B106*(8^3-2*8*B106^2+B106^3)/24/('Steel Eurocode 3'!E$10*'Steel Eurocode 3'!X$8)*100*1000 -> 4.424991575 | X106: 45.18406963 | Y106: 49.34406963 | Z106: 2.169800133e-06 | AA106: 7.790670322e-06 | AB106: 1.528968175e-05 | AC106: 2.329538917e-05 | AE106: 0.1955085283 | AF106: 0.2784593885 | AG106: =C$17*$E$6/(6*8*'Steel Eurocode 3'!$X$8*'Steel Eurocode 3'!$E$10)*100*1000*AK106 -> 0.2355103287 | AH106: =C$18*E$7/(6*8*'Steel Eurocode 3'!X$8*'Steel Eurocode 3'!E$10)*100*1000*Y106 -> 0.1714621717 | AI106: =C$14*B106*(8^3-2*8*B106^2+B106^3)/24/('Steel Eurocode 3'!E$10*'Steel Eurocode 3'!X$8)*100*1000 -> 1.449866178 | AK106: 45.18406963 | AL106: 49.34406963 | AM106: 7.547130899e-07 | AN106: 2.709798373e-06 | AO106: 5.318150174e-06 | AP106: 8.10274406e-06
A107: 28 | B107: 0.864 | C107: -204.0057239 | D107: 217.427472 | E107: -7.214227387 | F107: -7.214227387 | G107: -2.416749768 | H107: 33.2109375 | I107: 22.9921875 | J107: 15.328125 | K107: 10.21875 | L107: ='Graph Properties'!C$3*8/2-B107*C$3 -> 135.677472 | M107: 28.69425 | N107: 19.86525 | O107: 13.2435 | P107: 8.829 | Q107: =C$3*8/2*'Graph Properties'!B107-'Graph Properties'!C$3*B107^2/2 -> 133.3737239 | R107: 0.5821832965 | S107: 0.8303079179 | T107: =D$17*$E$6/(6*8*'Steel Eurocode 3'!$X$8*'Steel Eurocode 3'!$E$10)*100*1000*X107 -> 0.7024315316 | U107: =D$18*E$7/(6*8*'Steel Eurocode 3'!X$8*'Steel Eurocode 3'!E$10)*100*1000*Y107 -> 0.5114450558 | V107: =D$14*B107*(8^3-2*8*B107^2+B107^3)/24/('Steel Eurocode 3'!E$10*'Steel Eurocode 3'!X$8)*100*1000 -> 4.587859585 | X107: 46.87502746 | Y107: 51.19502746 | Z107: 2.241646567e-06 | AA107: 8.063479532e-06 | AB107: 1.583803218e-05 | AC107: 2.414111136e-05 | AE107: 0.2024985379 | AF107: 0.2888027541 | AG107: =C$17*$E$6/(6*8*'Steel Eurocode 3'!$X$8*'Steel Eurocode 3'!$E$10)*100*1000*AK107 -> 0.244324011 | AH107: =C$18*E$7/(6*8*'Steel Eurocode 3'!X$8*'Steel Eurocode 3'!E$10)*100*1000*Y107 -> 0.1778939324 | AI107: =C$14*B107*(8^3-2*8*B107^2+B107^3)/24/('Steel Eurocode 3'!E$10*'Steel Eurocode 3'!X$8)*100*1000 -> 1.503230533 | AK107: 46.87502746 | AL107: 51.19502746 | AM107: 7.797031537e-07 | AN107: 2.804688533e-06 | AO107: 5.508880757e-06 | AP107: 8.396908298e-06
A108: 29 | B108: 0.896 | C108: -210.9412516 | D108: 216.043008 | E108: -7.469531801 | F108: -7.469531801 | G108: -2.502282122 | H108: 33.2109375 | I108: 22.9921875 | J108: 15.328125 | K108: 10.21875 | L108: ='Graph Properties'!C$3*8/2-B108*C$3 -> 134.293008 | M108: 29.757 | N108: 20.601 | O108: 13.734 | P108: 9.156 | Q108: =C$3*8/2*'Graph Properties'!B108-'Graph Properties'!C$3*B108^2/2 -> 137.6932516 | R108: 0.6021072209 | S108: 0.8599257723 | T108: =D$17*$E$6/(6*8*'Steel Eurocode 3'!$X$8*'Steel Eurocode 3'!$E$10)*100*1000*X108 -> 0.7276913205 | U108: =D$18*E$7/(6*8*'Steel Eurocode 3'!X$8*'Steel Eurocode 3'!E$10)*100*1000*Y108 -> 0.5298833361 | V108: =D$14*B108*(8^3-2*8*B108^2+B108^3)/24/('Steel Eurocode 3'!E$10*'Steel Eurocode 3'!X$8)*100*1000 -> 4.749924151 | X108: 48.56067686 | Y108: 53.04067686 | Z108: 2.312420907e-06 | AA108: 8.333493116e-06 | AB108: 1.63821286e-05 | AC108: 2.498138632e-05 | AE108: 0.2094285986 | AF108: 0.2991046165 | AG108: =C$17*$E$6/(6*8*'Steel Eurocode 3'!$X$8*'Steel Eurocode 3'!$E$10)*100*1000*AK108 -> 0.2531100245 | AH108: =C$18*E$7/(6*8*'Steel Eurocode 3'!X$8*'Steel Eurocode 3'!E$10)*100*1000*Y108 -> 0.1843072473 | AI108: =C$14*B108*(8^3-2*8*B108^2+B108^3)/24/('Steel Eurocode 3'!E$10*'Steel Eurocode 3'!X$8)*100*1000 -> 1.556331635 | AK108: 48.56067686 | AL108: 53.04067686 | AM108: 8.043203156e-07 | AN108: 2.898606301e-06 | AO108: 5.698131687e-06 | AP108: 8.689177852e-06
A109: 30 | B109: 0.928 | C109: -217.8324764 | D109: 214.658544 | E109: -7.723566782 | F109: -7.723566782 | G109: -2.587389667 | H109: 33.2109375 | I109: 22.9921875 | J109: 15.328125 | K109: 10.21875 | L109: ='Graph Properties'!C$3*8/2-B109*C$3 -> 132.908544 | M109: 30.81975 | N109: 21.33675 | O109: 14.2245 | P109: 9.483 | Q109: =C$3*8/2*'Graph Properties'!B109-'Graph Properties'!C$3*B109^2/2 -> 141.9684764 | R109: 0.6218524085 | S109: 0.8894198859 | T109: =D$17*$E$6/(6*8*'Steel Eurocode 3'!$X$8*'Steel Eurocode 3'!$E$10)*100*1000*X109 -> 0.7528686155 | U109: =D$18*E$7/(6*8*'Steel Eurocode 3'!X$8*'Steel Eurocode 3'!E$10)*100*1000*Y109 -> 0.5482666204 | V109: =D$14*B109*(8^3-2*8*B109^2+B109^3)/24/('Steel Eurocode 3'!E$10*'Steel Eurocode 3'!X$8)*100*1000 -> 4.911159251 | X109: 50.24082125 | Y109: 54.88082125 | Z109: 2.382118637e-06 | AA109: 8.600642723e-06 | AB109: 1.692184866e-05 | AC109: 2.581604752e-05 | AE109: 0.2162964899 | AF109: 0.3093634386 | AG109: =C$17*$E$6/(6*8*'Steel Eurocode 3'!$X$8*'Steel Eurocode 3'!$E$10)*100*1000*AK109 -> 0.2618673445 | AH109: =C$18*E$7/(6*8*'Steel Eurocode 3'!X$8*'Steel Eurocode 3'!E$10)*100*1000*Y109 -> 0.1907014332 | AI109: =C$14*B109*(8^3-2*8*B109^2+B109^3)/24/('Steel Eurocode 3'!E$10*'Steel Eurocode 3'!X$8)*100*1000 -> 1.60916096 | AK109: 50.24082125 | AL109: 54.88082125 | AM109: 8.285630043e-07 | AN109: 2.991527903e-06 | AO109: 5.885860404e-06 | AP109: 8.97949479e-06
A110: 31 | B110: 0.96 | C110: -224.6793984 | D110: 213.27408 | E110: -7.976290862 | F110: -7.976290862 | G110: -2.672058497 | H110: 33.2109375 | I110: 22.9921875 | J110: 15.328125 | K110: 10.21875 | L110: ='Graph Properties'!C$3*8/2-B110*C$3 -> 131.52408 | M110: 31.8825 | N110: 22.0725 | O110: 14.715 | P110: 9.81 | Q110: =C$3*8/2*'Graph Properties'!B110-'Graph Properties'!C$3*B110^2/2 -> 146.1993984 | R110: 0.641412476 | S110: 0.9187858394 | T110: =D$17*$E$6/(6*8*'Steel Eurocode 3'!$X$8*'Steel Eurocode 3'!$E$10)*100*1000*X110 -> 0.7779604704 | U110: =D$18*E$7/(6*8*'Steel Eurocode 3'!X$8*'Steel Eurocode 3'!E$10)*100*1000*Y110 -> 0.5665929447 | V110: =D$14*B110*(8^3-2*8*B110^2+B110^3)/24/('Steel Eurocode 3'!E$10*'Steel Eurocode 3'!X$8)*100*1000 -> 5.071539131 | X110: 51.915264 | Y110: 56.715264 | Z110: 2.450737753e-06 | AA110: 8.864862514e-06 | AB110: 1.74570725e-05 | AC110: 2.66449309e-05 | AE110: 0.2230999917 | AF110: 0.3195776833 | AG110: =C$17*$E$6/(6*8*'Steel Eurocode 3'!$X$8*'Steel Eurocode 3'!$E$10)*100*1000*AK110 -> 0.2705949462 | AH110: =C$18*E$7/(6*8*'Steel Eurocode 3'!X$8*'Steel Eurocode 3'!E$10)*100*1000*Y110 -> 0.1970758069 | AI110: =C$14*B110*(8^3-2*8*B110^2+B110^3)/24/('Steel Eurocode 3'!E$10*'Steel Eurocode 3'!X$8)*100*1000 -> 1.661710069 | AK110: 51.915264 | AL110: 56.715264 | AM110: 8.524305229e-07 | AN110: 3.083430439e-06 | AO110: 6.072025219e-06 | AP110: 9.267802052e-06
A111: 32 | B111: 0.992 | C111: -231.4820175 | D111: 211.889616 | E111: -8.22766284 | F111: -8.22766284 | G111: -2.756274797 | H111: 33.2109375 | I111: 22.9921875 | J111: 15.328125 | K111: 10.21875 | L111: ='Graph Properties'!C$3*8/2-B111*C$3 -> 130.139616 | M111: 32.94525 | N111: 22.80825 | O111: 15.2055 | P111: 10.137 | Q111: =C$3*8/2*'Graph Properties'!B111-'Graph Properties'!C$3*B111^2/2 -> 150.3860175 | R111: 0.6607810399 | S111: 0.9480192134 | T111: =D$17*$E$6/(6*8*'Steel Eurocode 3'!$X$8*'Steel Eurocode 3'!$E$10)*100*1000*X111 -> 0.802963939 | U111: =D$18*E$7/(6*8*'Steel Eurocode 3'!X$8*'Steel Eurocode 3'!E$10)*100*1000*Y111 -> 0.5848603448 | V111: =D$14*B111*(8^3-2*8*B111^2+B111^3)/24/('Steel Eurocode 3'!E$10*'Steel Eurocode 3'!X$8)*100*1000 -> 5.231038303 | X111: 53.58380851 | Y111: 58.54380851 | Z111: 2.518278766e-06 | AA111: 9.126089165e-06 | AB111: 1.798768279e-05 | AC111: 2.746787493e-05 | AE111: 0.2298368834 | AF111: 0.3297458134 | AG111: =C$17*$E$6/(6*8*'Steel Eurocode 3'!$X$8*'Steel Eurocode 3'!$E$10)*100*1000*AK111 -> 0.2792918049 | AH111: =C$18*E$7/(6*8*'Steel Eurocode 3'!X$8*'Steel Eurocode 3'!E$10)*100*1000*Y111 -> 0.2034296852 | AI111: =C$14*B111*(8^3-2*8*B111^2+B111^3)/24/('Steel Eurocode 3'!E$10*'Steel Eurocode 3'!X$8)*100*1000 -> 1.71397061 | AK111: 53.58380851 | AL111: 58.54380851 | AM111: 8.759230491e-07 | AN111: 3.174291883e-06 | AO111: 6.256585319e-06 | AP111: 9.554043453e-06
A112: 33 | B112: 1.024 | C112: -238.2285618 | D112: 209.524152 | E112: -8.477641786 | F112: -8.477641786 | G112: -2.840024839 | H112: 32.2299375 | I112: 22.9921875 | J112: 15.328125 | K112: 10.21875 | L112: ='Graph Properties'!C$3*8/2-B112*C$3 -> 128.755152 | M112: 33.996228 | N112: 23.544 | O112: 15.696 | P112: 10.464 | Q112: =C$3*8/2*'Graph Properties'!B112-'Graph Properties'!C$3*B112^2/2 -> 154.5283338 | R112: 0.67995172 | S112: 0.9771155887 | T112: =D$17*$E$6/(6*8*'Steel Eurocode 3'!$X$8*'Steel Eurocode 3'!$E$10)*100*1000*X112 -> 0.8278760751 | U112: =D$18*E$7/(6*8*'Steel Eurocode 3'!X$8*'Steel Eurocode 3'!E$10)*100*1000*Y112 -> 0.6030668566 | V112: =D$14*B112*(8^3-2*8*B112^2+B112^3)/24/('Steel Eurocode 3'!E$10*'Steel Eurocode 3'!X$8)*100*1000 -> 5.389631546 | X112: 55.24625818 | Y112: 60.36625818 | Z112: 2.584744667e-06 | AA112: 9.384261867e-06 | AB112: 1.85135647e-05 | AC112: 2.828472059e-05 | AE112: 0.2365049461 | AF112: 0.3398662917 | AG112: =C$17*$E$6/(6*8*'Steel Eurocode 3'!$X$8*'Steel Eurocode 3'!$E$10)*100*1000*AK112 -> 0.2879568957 | AH112: =C$18*E$7/(6*8*'Steel Eurocode 3'!X$8*'Steel Eurocode 3'!E$10)*100*1000*Y112 -> 0.2097623849 | AI112: =C$14*B112*(8^3-2*8*B112^2+B112^3)/24/('Steel Eurocode 3'!E$10*'Steel Eurocode 3'!X$8)*100*1000 -> 1.76593432 | AK112: 55.24625818 | AL112: 60.36625818 | AM112: 8.990416234e-07 | AN112: 3.264091084e-06 | AO112: 6.439500766e-06 | AP112: 9.838163683e-06
A113: 34 | B113: 1.056 | C113: -244.8902553 | D113: 206.831688 | E113: -8.726187121 | F113: -8.726187121 | G113: -2.923295011 | H113: 30.9219375 | I113: 22.9921875 | J113: 15.328125 | K113: 10.21875 | L113: ='Graph Properties'!C$3*8/2-B113*C$3 -> 127.370688 | M113: 35.006658 | N113: 24.27975 | O113: 16.1865 | P113: 10.791 | Q113: =C$3*8/2*'Graph Properties'!B113-'Graph Properties'!C$3*B113^2/2 -> 158.6263473 | R113: 0.6989182212 | S113: 1.006070546 | T113: =D$17*$E$6/(6*8*'Steel Eurocode 3'!$X$8*'Steel Eurocode 3'!$E$10)*100*1000*X113 -> 0.8526939324 | U113: =D$18*E$7/(6*8*'Steel Eurocode 3'!X$8*'Steel Eurocode 3'!E$10)*100*1000*Y113 -> 0.6212105159 | V113: =D$14*B113*(8^3-2*8*B113^2+B113^3)/24/('Steel Eurocode 3'!E$10*'Steel Eurocode 3'!X$8)*100*1000 -> 5.547293905 | X113: 56.90241638 | Y113: 62.18241638 | Z113: 2.650140113e-06 | AA113: 9.639322325e-06 | AB113: 1.903460592e-05 | AC113: 2.909531138e-05 | AE113: 0.24310199 | AF113: 0.3499375812 | AG113: =C$17*$E$6/(6*8*'Steel Eurocode 3'!$X$8*'Steel Eurocode 3'!$E$10)*100*1000*AK113 -> 0.2965891939 | AH113: =C$18*E$7/(6*8*'Steel Eurocode 3'!X$8*'Steel Eurocode 3'!E$10)*100*1000*Y113 -> 0.2160732229 | AI113: =C$14*B113*(8^3-2*8*B113^2+B113^3)/24/('Steel Eurocode 3'!E$10*'Steel Eurocode 3'!X$8)*100*1000 -> 1.817593023 | AK113: 56.90241638 | AL113: 62.18241638 | AM113: 9.217878653e-07 | AN113: 3.352807765e-06 | AO113: 6.620732495e-06 | AP113: 1.012010831e-05
A114: 35 | B114: 1.088 | C114: -251.4657899 | D114: 204.139224 | E114: -8.973258758 | F114: -8.973258758 | G114: -3.006071868 | H114: 29.6139375 | I114: 22.9921875 | J114: 15.328125 | K114: 10.21875 | L114: ='Graph Properties'!C$3*8/2-B114*C$3 -> 125.986224 | M114: 35.975232 | N114: 25.0155 | O114: 16.677 | P114: 11.118 | Q114: =C$3*8/2*'Graph Properties'!B114-'Graph Properties'!C$3*B114^2/2 -> 162.6800579 | R114: 0.7176744743 | S114: 1.034879666 | T114: =D$17*$E$6/(6*8*'Steel Eurocode 3'!$X$8*'Steel Eurocode 3'!$E$10)*100*1000*X114 -> 0.8774145649 | U114: =D$18*E$7/(6*8*'Steel Eurocode 3'!X$8*'Steel Eurocode 3'!E$10)*100*1000*Y114 -> 0.6392893586 | V114: =D$14*B114*(8^3-2*8*B114^2+B114^3)/24/('Steel Eurocode 3'!E$10*'Steel Eurocode 3'!X$8)*100*1000 -> 5.704000695 | X114: 58.55208653 | Y114: 63.99208653 | Z114: 2.714470013e-06 | AA114: 9.891214755e-06 | AB114: 1.955069666e-05 | AC114: 2.989949332e-05 | AE114: 0.2496259041 | AF114: 0.3599581446 | AG114: =C$17*$E$6/(6*8*'Steel Eurocode 3'!$X$8*'Steel Eurocode 3'!$E$10)*100*1000*AK114 -> 0.3051876748 | AH114: =C$18*E$7/(6*8*'Steel Eurocode 3'!X$8*'Steel Eurocode 3'!E$10)*100*1000*Y114 -> 0.222361516 | AI114: =C$14*B114*(8^3-2*8*B114^2+B114^3)/24/('Steel Eurocode 3'!E$10*'Steel Eurocode 3'!X$8)*100*1000 -> 1.868938629 | AK114: 58.55208653 | AL114: 63.99208653 | AM114: 9.441634826e-07 | AN114: 3.440422524e-06 | AO114: 6.800242317e-06 | AP114: 1.039982376e-05
A115: 36 | B115: 1.12 | C115: -257.9551656 | D115: 201.44676 | E115: -9.218817131 | F115: -9.218817131 | G115: -3.088342141 | H115: 28.3059375 | I115: 22.9921875 | J115: 15.328125 | K115: 10.21875 | L115: ='Graph Properties'!C$3*8/2-B115*C$3 -> 124.60176 | M115: 36.90195 | N115: 25.75125 | O115: 17.1675 | P115: 11.445 | Q115: =C$3*8/2*'Graph Properties'!B115-'Graph Properties'!C$3*B115^2/2 -> 166.6894656 | R115: 0.7362146616 | S115: 1.063538529 | T115: =D$17*$E$6/(6*8*'Steel Eurocode 3'!$X$8*'Steel Eurocode 3'!$E$10)*100*1000*X115 -> 0.9020350263 | U115: =D$18*E$7/(6*8*'Steel Eurocode 3'!X$8*'Steel Eurocode 3'!E$10)*100*1000*Y115 -> 0.6573014205 | V115: =D$14*B115*(8^3-2*8*B115^2+B115^3)/24/('Steel Eurocode 3'!E$10*'Steel Eurocode 3'!X$8)*100*1000 -> 5.859727494 | X115: 60.195072 | Y115: 65.795072 | Z115: 2.777739277e-06 | AA115: 1.013988589e-05 | AB115: 2.006172964e-05 | AC115: 3.069711493e-05 | AE115: 0.2560746649 | AF115: 0.3699264448 | AG115: =C$17*$E$6/(6*8*'Steel Eurocode 3'!$X$8*'Steel Eurocode 3'!$E$10)*100*1000*AK115 -> 0.3137513135 | AH115: =C$18*E$7/(6*8*'Steel Eurocode 3'!X$8*'Steel Eurocode 3'!E$10)*100*1000*Y115 -> 0.228626581 | AI115: =C$14*B115*(8^3-2*8*B115^2+B115^3)/24/('Steel Eurocode 3'!E$10*'Steel Eurocode 3'!X$8)*100*1000 -> 1.919963137 | AK115: 60.195072 | AL115: 65.795072 | AM115: 9.661701832e-07 | AN115: 3.526916832e-06 | AO115: 6.977992917e-06 | AP115: 1.067725737e-05
A116: 37 | B116: 1.152 | C116: -264.3583825 | D116: 198.754296 | E116: -9.462823189 | F116: -9.462823189 | G116: -3.170092734 | H116: 26.9979375 | I116: 22.9921875 | J116: 15.328125 | K116: 10.21875 | L116: ='Graph Properties'!C$3*8/2-B116*C$3 -> 123.217296 | M116: 37.786812 | N116: 26.487 | O116: 17.658 | P116: 11.772 | Q116: =C$3*8/2*'Graph Properties'!B116-'Graph Properties'!C$3*B116^2/2 -> 170.6545705 | R116: 0.7545332166 | S116: 1.092042716 | T116: =D$17*$E$6/(6*8*'Steel Eurocode 3'!$X$8*'Steel Eurocode 3'!$E$10)*100*1000*X116 -> 0.9265523703 | U116: =D$18*E$7/(6*8*'Steel Eurocode 3'!X$8*'Steel Eurocode 3'!E$10)*100*1000*Y116 -> 0.6752447376 | V116: =D$14*B116*(8^3-2*8*B116^2+B116^3)/24/('Steel Eurocode 3'!E$10*'Steel Eurocode 3'!X$8)*100*1000 -> 6.014450149 | X116: 61.83117619 | Y116: 67.59117619 | Z116: 2.839952816e-06 | AA116: 1.038528498e-05 | AB116: 2.056760008e-05 | AC116: 3.148802724e-05 | AE116: 0.2624463362 | AF116: 0.3798409447 | AG116: =C$17*$E$6/(6*8*'Steel Eurocode 3'!$X$8*'Steel Eurocode 3'!$E$10)*100*1000*AK116 -> 0.3222790853 | AH116: =C$18*E$7/(6*8*'Steel Eurocode 3'!X$8*'Steel Eurocode 3'!E$10)*100*1000*Y116 -> 0.2348677348 | AI116: =C$14*B116*(8^3-2*8*B116^2+B116^3)/24/('Steel Eurocode 3'!E$10*'Steel Eurocode 3'!X$8)*100*1000 -> 1.970658633 | AK116: 61.83117619 | AL116: 67.59117619 | AM116: 9.87809675e-07 | AN116: 3.612273037e-06 | AO116: 7.153947853e-06 | AP116: 1.09523573e-05
A117: 38 | B117: 1.184 | C117: -270.6754405 | D117: 196.061832 | E117: -9.705238402 | F117: -9.705238402 | G117: -3.251310727 | H117: 25.6899375 | I117: 22.9921875 | J117: 15.328125 | K117: 10.21875 | L117: ='Graph Properties'!C$3*8/2-B117*C$3 -> 121.832832 | M117: 38.629818 | N117: 27.22275 | O117: 18.1485 | P117: 12.099 | Q117: =C$3*8/2*'Graph Properties'!B117-'Graph Properties'!C$3*B117^2/2 -> 174.5753725 | R117: 0.7726248245 | S117: 1.120387808 | T117: =D$17*$E$6/(6*8*'Steel Eurocode 3'!$X$8*'Steel Eurocode 3'!$E$10)*100*1000*X117 -> 0.9509636507 | U117: =D$18*E$7/(6*8*'Steel Eurocode 3'!X$8*'Steel Eurocode 3'!E$10)*100*1000*Y117 -> 0.6931173456 | V117: =D$14*B117*(8^3-2*8*B117^2+B117^3)/24/('Steel Eurocode 3'!E$10*'Steel Eurocode 3'!X$8)*100*1000 -> 6.168144773 | X117: 63.4602025 | Y117: 69.3802025 | Z117: 2.90111554e-06 | AA117: 1.062736378e-05 | AB117: 2.106820573e-05 | AC117: 3.227208381e-05 | AE117: 0.2687390694 | AF117: 0.3897001071 | AG117: =C$17*$E$6/(6*8*'Steel Eurocode 3'!$X$8*'Steel Eurocode 3'!$E$10)*100*1000*AK117 -> 0.3307699655 | AH117: =C$18*E$7/(6*8*'Steel Eurocode 3'!X$8*'Steel Eurocode 3'!E$10)*100*1000*Y117 -> 0.2410842941 | AI117: =C$14*B117*(8^3-2*8*B117^2+B117^3)/24/('Steel Eurocode 3'!E$10*'Steel Eurocode 3'!X$8)*100*1000 -> 2.021017291 | AK117: 63.4602025 | AL117: 69.3802025 | AM117: 1.009083666e-06 | AN117: 3.69647436e-06 | AO117: 7.32807156e-06 | AP117: 1.122507263e-05
A118: 39 | B118: 1.216 | C118: -276.9063397 | D118: 193.369368 | E118: -9.946024757 | F118: -9.946024757 | G118: -3.331983375 | H118: 24.3819375 | I118: 22.9921875 | J118: 15.328125 | K118: 10.21875 | L118: ='Graph Properties'!C$3*8/2-B118*C$3 -> 120.448368 | M118: 39.430968 | N118: 27.9585 | O118: 18.639 | P118: 12.426 | Q118: =C$3*8/2*'Graph Properties'!B118-'Graph Properties'!C$3*B118^2/2 -> 178.4518717 | R118: 0.7904844216 | S118: 1.148569385 | T118: =D$17*$E$6/(6*8*'Steel Eurocode 3'!$X$8*'Steel Eurocode 3'!$E$10)*100*1000*X118 -> 0.9752659214 | U118: =D$18*E$7/(6*8*'Steel Eurocode 3'!X$8*'Steel Eurocode 3'!E$10)*100*1000*Y118 -> 0.7109172804 | V118: =D$14*B118*(8^3-2*8*B118^2+B118^3)/24/('Steel Eurocode 3'!E$10*'Steel Eurocode 3'!X$8)*100*1000 -> 6.320787748 | X118: 65.0819543 | Y118: 71.1619543 | Z118: 2.96123236e-06 | AA118: 1.086607658e-05 | AB118: 2.156344687e-05 | AC118: 3.304914072e-05 | AE118: 0.2749511032 | AF118: 0.3995023948 | AG118: =C$17*$E$6/(6*8*'Steel Eurocode 3'!$X$8*'Steel Eurocode 3'!$E$10)*100*1000*AK118 -> 0.3392229292 | AH118: =C$18*E$7/(6*8*'Steel Eurocode 3'!X$8*'Steel Eurocode 3'!E$10)*100*1000*Y118 -> 0.2472755758 | AI118: =C$14*B118*(8^3-2*8*B118^2+B118^3)/24/('Steel Eurocode 3'!E$10*'Steel Eurocode 3'!X$8)*100*1000 -> 2.071031372 | AK118: 65.0819543 | AL118: 71.1619543 | AM118: 1.029993864e-06 | AN118: 3.779504896e-06 | AO118: 7.500329345e-06 | AP118: 1.149535329e-05
A119: 40 | B119: 1.248 | C119: -283.0510801 | D119: 190.676904 | E119: -10.18514476 | F119: -10.18514476 | G119: -3.412098107 | H119: 23.0739375 | I119: 22.9921875 | J119: 15.328125 | K119: 10.21875 | L119: ='Graph Properties'!C$3*8/2-B119*C$3 -> 119.063904 | M119: 40.190262 | N119: 28.69425 | O119: 19.1295 | P119: 12.753 | Q119: =C$3*8/2*'Graph Properties'!B119-'Graph Properties'!C$3*B119^2/2 -> 182.2840681 | R119: 0.8081071958 | S119: 1.176583028 | T119: =D$17*$E$6/(6*8*'Steel Eurocode 3'!$X$8*'Steel Eurocode 3'!$E$10)*100*1000*X119 -> 0.9994562362 | U119: =D$18*E$7/(6*8*'Steel Eurocode 3'!X$8*'Steel Eurocode 3'!E$10)*100*1000*Y119 -> 0.7286425779 | V119: =D$14*B119*(8^3-2*8*B119^2+B119^3)/24/('Steel Eurocode 3'!E$10*'Steel Eurocode 3'!X$8)*100*1000 -> 6.47235572 | X119: 66.69623501 | Y119: 72.93623501 | Z119: 3.020308186e-06 | AA119: 1.110138014e-05 | AB119: 2.205322625e-05 | AC119: 3.381905653e-05 | AE119: 0.2810807638 | AF119: 0.4092462707 | AG119: =C$17*$E$6/(6*8*'Steel Eurocode 3'!$X$8*'Steel Eurocode 3'!$E$10)*100*1000*AK119 -> 0.3476369517 | AH119: =C$18*E$7/(6*8*'Steel Eurocode 3'!X$8*'Steel Eurocode 3'!E$10)*100*1000*Y119 -> 0.2534408967 | AI119: =C$14*B119*(8^3-2*8*B119^2+B119^3)/24/('Steel Eurocode 3'!E$10*'Steel Eurocode 3'!X$8)*100*1000 -> 2.120693224 | AK119: 66.69623501 | AL119: 72.93623501 | AM119: 1.050541978e-06 | AN119: 3.861349615e-06 | AO119: 7.670687392e-06 | AP119: 1.17631501e-05
A120: 41 | B120: 1.28 | C120: -289.1096616 | D120: 187.98444 | E120: -10.42256143 | F120: -10.42256143 | G120: -3.491642527 | H120: 21.7659375 | I120: 22.9921875 | J120: 15.328125 | K120: 10.21875 | L120: ='Graph Properties'!C$3*8/2-B120*C$3 -> 117.67944 | M120: 40.9077 | N120: 29.43 | O120: 19.62 | P120: 13.08 | Q120: =C$3*8/2*'Graph Properties'!B120-'Graph Properties'!C$3*B120^2/2 -> 186.0719616 | R120: 0.8254885864 | S120: 1.204424318 | T120: =D$17*$E$6/(6*8*'Steel Eurocode 3'!$X$8*'Steel Eurocode 3'!$E$10)*100*1000*X120 -> 1.023531649 | U120: =D$18*E$7/(6*8*'Steel Eurocode 3'!X$8*'Steel Eurocode 3'!E$10)*100*1000*Y120 -> 0.746291274 | V120: =D$14*B120*(8^3-2*8*B120^2+B120^3)/24/('Steel Eurocode 3'!E$10*'Steel Eurocode 3'!X$8)*100*1000 -> 6.622825604 | X120: 68.302848 | Y120: 74.702848 | Z120: 3.078347928e-06 | AA120: 1.133323379e-05 | AB120: 2.253744918e-05 | AC120: 3.458169236e-05 | AE120: 0.2871264648 | AF120: 0.4189301976 | AG120: =C$17*$E$6/(6*8*'Steel Eurocode 3'!$X$8*'Steel Eurocode 3'!$E$10)*100*1000*AK120 -> 0.3560110083 | AH120: =C$18*E$7/(6*8*'Steel Eurocode 3'!X$8*'Steel Eurocode 3'!E$10)*100*1000*Y120 -> 0.2595795736 | AI120: =C$14*B120*(8^3-2*8*B120^2+B120^3)/24/('Steel Eurocode 3'!E$10*'Steel Eurocode 3'!X$8)*100*1000 -> 2.169995283 | AK120: 68.302848 | AL120: 74.702848 | AM120: 1.070729714e-06 | AN120: 3.941994362e-06 | AO120: 7.839112757e-06 | AP120: 1.202841473e-05
A121: 42 | B121: 1.312 | C121: -295.0820843 | D121: 185.291976 | E121: -10.65823832 | F121: -10.65823832 | G121: -3.570604416 | H121: 20.4579375 | I121: 22.9921875 | J121: 15.328125 | K121: 10.21875 | L121: ='Graph Properties'!C$3*8/2-B121*C$3 -> 116.294976 | M121: 41.583282 | N121: 30.16575 | O121: 20.1105 | P121: 13.407 | Q121: =C$3*8/2*'Graph Properties'!B121-'Graph Properties'!C$3*B121^2/2 -> 189.8155523 | R121: 0.8426242841 | S121: 1.232088836 | T121: =D$17*$E$6/(6*8*'Steel Eurocode 3'!$X$8*'Steel Eurocode 3'!$E$10)*100*1000*X121 -> 1.047489213 | U121: =D$18*E$7/(6*8*'Steel Eurocode 3'!X$8*'Steel Eurocode 3'!E$10)*100*1000*Y121 -> 0.7638614045 | V121: =D$14*B121*(8^3-2*8*B121^2+B121^3)/24/('Steel Eurocode 3'!E$10*'Steel Eurocode 3'!X$8)*100*1000 -> 6.772174581 | X121: 69.90159667 | Y121: 76.46159667 | Z121: 3.135356496e-06 | AA121: 1.156159934e-05 | AB121: 2.301602344e-05 | AC121: 3.53369118e-05 | AE121: 0.2930867075 | AF121: 0.4285526385 | AG121: =C$17*$E$6/(6*8*'Steel Eurocode 3'!$X$8*'Steel Eurocode 3'!$E$10)*100*1000*AK121 -> 0.3643440741 | AH121: =C$18*E$7/(6*8*'Steel Eurocode 3'!X$8*'Steel Eurocode 3'!E$10)*100*1000*Y121 -> 0.2656909233 | AI121: =C$14*B121*(8^3-2*8*B121^2+B121^3)/24/('Steel Eurocode 3'!E$10*'Steel Eurocode 3'!X$8)*100*1000 -> 2.218930072 | AK121: 69.90159667 | AL121: 76.46159667 | AM121: 1.090558781e-06 | AN121: 4.021425857e-06 | AO121: 8.005573372e-06 | AP121: 1.229109976e-05
A122: 43 | B122: 1.344 | C122: -300.9683481 | D122: 182.599512 | E122: -10.89213948 | F122: -10.89213948 | G122: -3.648971726 | H122: 19.1499375 | I122: 22.9921875 | J122: 15.328125 | K122: 10.21875 | L122: ='Graph Properties'!C$3*8/2-B122*C$3 -> 114.910512 | M122: 42.217008 | N122: 30.9015 | O122: 20.601 | P122: 13.734 | Q122: =C$3*8/2*'Graph Properties'!B122-'Graph Properties'!C$3*B122^2/2 -> 193.5148401 | R122: 0.859510231 | S122: 1.259572161 | T122: =D$17*$E$6/(6*8*'Steel Eurocode 3'!$X$8*'Steel Eurocode 3'!$E$10)*100*1000*X122 -> 1.071325982 | U122: =D$18*E$7/(6*8*'Steel Eurocode 3'!X$8*'Steel Eurocode 3'!E$10)*100*1000*Y122 -> 0.7813510053 | V122: =D$14*B122*(8^3-2*8*B122^2+B122^3)/24/('Steel Eurocode 3'!E$10*'Steel Eurocode 3'!X$8)*100*1000 -> 6.920380098 | X122: 71.49228442 | Y122: 78.21228442 | Z122: 3.191338802e-06 | AA122: 1.178644111e-05 | AB122: 2.348885937e-05 | AC122: 3.608458098e-05 | AE122: 0.2989600803 | AF122: 0.438112056 | AG122: =C$17*$E$6/(6*8*'Steel Eurocode 3'!$X$8*'Steel Eurocode 3'!$E$10)*100*1000*AK122 -> 0.3726351243 | AH122: =C$18*E$7/(6*8*'Steel Eurocode 3'!X$8*'Steel Eurocode 3'!E$10)*100*1000*Y122 -> 0.2717742627 | AI122: =C$14*B122*(8^3-2*8*B122^2+B122^3)/24/('Steel Eurocode 3'!E$10*'Steel Eurocode 3'!X$8)*100*1000 -> 2.267490202 | AK122: 71.49228442 | AL122: 78.21228442 | AM122: 1.110030888e-06 | AN122: 4.099631691e-06 | AO122: 8.170038042e-06 | AP122: 1.25511586e-05
A123: 44 | B123: 1.376 | C123: -306.768453 | D123: 179.907048 | E123: -11.12422949 | F123: -11.12422949 | G123: -3.726732587 | H123: 17.8419375 | I123: 22.9921875 | J123: 15.328125 | K123: 10.21875 | L123: ='Graph Properties'!C$3*8/2-B123*C$3 -> 113.526048 | M123: 42.808878 | N123: 31.63725 | O123: 21.0915 | P123: 14.061 | Q123: =C$3*8/2*'Graph Properties'!B123-'Graph Properties'!C$3*B123^2/2 -> 197.169825 | R123: 0.8761426205 | S123: 1.286869875 | T123: =D$17*$E$6/(6*8*'Steel Eurocode 3'!$X$8*'Steel Eurocode 3'!$E$10)*100*1000*X123 -> 1.095039011 | U123: =D$18*E$7/(6*8*'Steel Eurocode 3'!X$8*'Steel Eurocode 3'!E$10)*100*1000*Y123 -> 0.7987581121 | V123: =D$14*B123*(8^3-2*8*B123^2+B123^3)/24/('Steel Eurocode 3'!E$10*'Steel Eurocode 3'!X$8)*100*1000 -> 7.06741987 | X123: 73.07471462 | Y123: 79.95471462 | Z123: 3.246299755e-06 | AA123: 1.200772596e-05 | AB123: 2.395586979e-05 | AC123: 3.682456855e-05 | AE123: 0.3047452593 | AF123: 0.4476069132 | AG123: =C$17*$E$6/(6*8*'Steel Eurocode 3'!$X$8*'Steel Eurocode 3'!$E$10)*100*1000*AK123 -> 0.3808831344 | AH123: =C$18*E$7/(6*8*'Steel Eurocode 3'!X$8*'Steel Eurocode 3'!E$10)*100*1000*Y123 -> 0.2778289086 | AI123: =C$14*B123*(8^3-2*8*B123^2+B123^3)/24/('Steel Eurocode 3'!E$10*'Steel Eurocode 3'!X$8)*100*1000 -> 2.315668372 | AK123: 73.07471462 | AL123: 79.95471462 | AM123: 1.129147741e-06 | AN123: 4.176600334e-06 | AO123: 8.33247645e-06 | AP123: 1.280854558e-05
A124: 45 | B124: 1.408 | C124: -312.4823991 | D124: 177.214584 | E124: -11.35447345 | F124: -11.35447345 | G124: -3.803875303 | H124: 16.5339375 | I124: 22.9921875 | J124: 15.328125 | K124: 10.21875 | L124: ='Graph Properties'!C$3*8/2-B124*C$3 -> 112.141584 | M124: 43.358892 | N124: 32.373 | O124: 21.582 | P124: 14.388 | Q124: =C$3*8/2*'Graph Properties'!B124-'Graph Properties'!C$3*B124^2/2 -> 200.7805071 | R124: 0.8925178975 | S124: 1.313977559 | T124: =D$17*$E$6/(6*8*'Steel Eurocode 3'!$X$8*'Steel Eurocode 3'!$E$10)*100*1000*X124 -> 1.118625353 | U124: =D$18*E$7/(6*8*'Steel Eurocode 3'!X$8*'Steel Eurocode 3'!E$10)*100*1000*Y124 -> 0.816080761 | V124: =D$14*B124*(8^3-2*8*B124^2+B124^3)/24/('Steel Eurocode 3'!E$10*'Steel Eurocode 3'!X$8)*100*1000 -> 7.21327188 | X124: 74.64869069 | Y124: 81.68869069 | Z124: 3.300244265e-06 | AA124: 1.222542324e-05 | AB124: 2.441697005e-05 | AC124: 3.755674564e-05 | AE124: 0.3104410078 | AF124: 0.4570356728 | AG124: =C$17*$E$6/(6*8*'Steel Eurocode 3'!$X$8*'Steel Eurocode 3'!$E$10)*100*1000*AK124 -> 0.3890870793 | AH124: =C$18*E$7/(6*8*'Steel Eurocode 3'!X$8*'Steel Eurocode 3'!E$10)*100*1000*Y124 -> 0.2838541777 | AI124: =C$14*B124*(8^3-2*8*B124^2+B124^3)/24/('Steel Eurocode 3'!E$10*'Steel Eurocode 3'!X$8)*100*1000 -> 2.363457366 | AK124: 74.64869069 | AL124: 81.68869069 | AM124: 1.147911049e-06 | AN124: 4.252321127e-06 | AO124: 8.492859149e-06 | AP124: 1.306321588e-05
A125: 46 | B125: 1.44 | C125: -318.1101864 | D125: 174.52212 | E125: -11.58283698 | F125: -11.58283698 | G125: -3.880388353 | H125: 15.2259375 | I125: 22.9921875 | J125: 15.328125 | K125: 10.21875 | L125: ='Graph Properties'!C$3*8/2-B125*C$3 -> 110.75712 | M125: 43.86705 | N125: 33.10875 | O125: 22.0725 | P125: 14.715 | Q125: =C$3*8/2*'Graph Properties'!B125-'Graph Properties'!C$3*B125^2/2 -> 204.3468864 | R125: 0.9086327585 | S125: 1.340890793 | T125: =D$17*$E$6/(6*8*'Steel Eurocode 3'!$X$8*'Steel Eurocode 3'!$E$10)*100*1000*X125 -> 1.142082062 | U125: =D$18*E$7/(6*8*'Steel Eurocode 3'!X$8*'Steel Eurocode 3'!E$10)*100*1000*Y125 -> 0.8333169877 | V125: =D$14*B125*(8^3-2*8*B125^2+B125^3)/24/('Steel Eurocode 3'!E$10*'Steel Eurocode 3'!X$8)*100*1000 -> 7.357914376 | X125: 76.214016 | Y125: 83.414016 | Z125: 3.353177244e-06 | AA125: 1.243950483e-05 | AB125: 2.487207801e-05 | AC125: 3.828098594e-05 | AE125: 0.3160461769 | AF125: 0.4663967976 | AG125: =C$17*$E$6/(6*8*'Steel Eurocode 3'!$X$8*'Steel Eurocode 3'!$E$10)*100*1000*AK125 -> 0.3972459345 | AH125: =C$18*E$7/(6*8*'Steel Eurocode 3'!X$8*'Steel Eurocode 3'!E$10)*100*1000*Y125 -> 0.289849387 | AI125: =C$14*B125*(8^3-2*8*B125^2+B125^3)/24/('Steel Eurocode 3'!E$10*'Steel Eurocode 3'!X$8)*100*1000 -> 2.410850058 | AK125: 76.214016 | AL125: 83.414016 | AM125: 1.16632252e-06 | AN125: 4.326784288e-06 | AO125: 8.651157568e-06 | AP125: 1.331512554e-05
A126: 47 | B126: 1.472 | C126: -323.6518148 | D126: 171.829656 | E126: -11.8092862 | F126: -11.8092862 | G126: -3.956260391 | H126: 13.9179375 | I126: 22.9921875 | J126: 15.328125 | K126: 10.21875 | L126: ='Graph Properties'!C$3*8/2-B126*C$3 -> 109.372656 | M126: 44.333352 | N126: 33.8445 | O126: 22.563 | P126: 15.042 | Q126: =C$3*8/2*'Graph Properties'!B126-'Graph Properties'!C$3*B126^2/2 -> 207.8689628 | R126: 0.924484151 | S126: 1.367605158 | T126: =D$17*$E$6/(6*8*'Steel Eurocode 3'!$X$8*'Steel Eurocode 3'!$E$10)*100*1000*X126 -> 1.165406191 | U126: =D$18*E$7/(6*8*'Steel Eurocode 3'!X$8*'Steel Eurocode 3'!E$10)*100*1000*Y126 -> 0.8504648282 | V126: =D$14*B126*(8^3-2*8*B126^2+B126^3)/24/('Steel Eurocode 3'!E$10*'Steel Eurocode 3'!X$8)*100*1000 -> 7.501325873 | X126: 77.77049395 | Y126: 85.13049395 | Z126: 3.405103601e-06 | AA126: 1.264994511e-05 | AB126: 2.532111404e-05 | AC126: 3.899716562e-05 | AE126: 0.3215597047 | AF126: 0.4756887506 | AG126: =C$17*$E$6/(6*8*'Steel Eurocode 3'!$X$8*'Steel Eurocode 3'!$E$10)*100*1000*AK126 -> 0.405358675 | AH126: =C$18*E$7/(6*8*'Steel Eurocode 3'!X$8*'Steel Eurocode 3'!E$10)*100*1000*Y126 -> 0.2958138533 | AI126: =C$14*B126*(8^3-2*8*B126^2+B126^3)/24/('Steel Eurocode 3'!E$10*'Steel Eurocode 3'!X$8)*100*1000 -> 2.457839408 | AK126: 77.77049395 | AL126: 85.13049395 | AM126: 1.184383861e-06 | AN126: 4.399980908e-06 | AO126: 8.807344013e-06 | AP126: 1.356423152e-05
A127: 48 | B127: 1.504 | C127: -329.1072844 | D127: 169.137192 | E127: -12.03378777 | F127: -12.03378777 | G127: -4.031480246 | H127: 12.6099375 | I127: 22.9921875 | J127: 15.328125 | K127: 10.21875 | L127: ='Graph Properties'!C$3*8/2-B127*C$3 -> 107.988192 | M127: 44.757798 | N127: 34.58025 | O127: 23.0535 | P127: 15.369 | Q127: =C$3*8/2*'Graph Properties'!B127-'Graph Properties'!C$3*B127^2/2 -> 211.3467364 | R127: 0.9400692742 | S127: 1.394116234 | T127: =D$17*$E$6/(6*8*'Steel Eurocode 3'!$X$8*'Steel Eurocode 3'!$E$10)*100*1000*X127 -> 1.188594794 | U127: =D$18*E$7/(6*8*'Steel Eurocode 3'!X$8*'Steel Eurocode 3'!E$10)*100*1000*Y127 -> 0.8675223182 | V127: =D$14*B127*(8^3-2*8*B127^2+B127^3)/24/('Steel Eurocode 3'!E$10*'Steel Eurocode 3'!X$8)*100*1000 -> 7.643485153 | X127: 79.31792794 | Y127: 86.83792794 | Z127: 3.456028247e-06 | AA127: 1.285672099e-05 | AB127: 2.576400102e-05 | AC127: 3.970516337e-05 | AE127: 0.3269806171 | AF127: 0.4849099945 | AG127: =C$17*$E$6/(6*8*'Steel Eurocode 3'!$X$8*'Steel Eurocode 3'!$E$10)*100*1000*AK127 -> 0.4134242762 | AH127: =C$18*E$7/(6*8*'Steel Eurocode 3'!X$8*'Steel Eurocode 3'!E$10)*100*1000*Y127 -> 0.3017468933 | AI127: =C$14*B127*(8^3-2*8*B127^2+B127^3)/24/('Steel Eurocode 3'!E$10*'Steel Eurocode 3'!X$8)*100*1000 -> 2.504418464 | AK127: 79.31792794 | AL127: 86.83792794 | AM127: 1.202096781e-06 | AN127: 4.471902953e-06 | AO127: 8.96139166e-06 | AP127: 1.381049161e-05
A128: 49 | B128: 1.536 | C128: -334.4765951 | D128: 166.444728 | E128: -12.25630887 | F128: -12.25630887 | G128: -4.10603692 | H128: 11.3019375 | I128: 22.9921875 | J128: 15.328125 | K128: 10.21875 | L128: ='Graph Properties'!C$3*8/2-B128*C$3 -> 106.603728 | M128: 45.140388 | N128: 35.316 | O128: 23.544 | P128: 15.696 | Q128: =C$3*8/2*'Graph Properties'!B128-'Graph Properties'!C$3*B128^2/2 -> 214.7802071 | R128: 0.9553855788 | S128: 1.420419603 | T128: =D$17*$E$6/(6*8*'Steel Eurocode 3'!$X$8*'Steel Eurocode 3'!$E$10)*100*1000*X128 -> 1.211644926 | U128: =D$18*E$7/(6*8*'Steel Eurocode 3'!X$8*'Steel Eurocode 3'!E$10)*100*1000*Y128 -> 0.8844874936 | V128: =D$14*B128*(8^3-2*8*B128^2+B128^3)/24/('Steel Eurocode 3'!E$10*'Steel Eurocode 3'!X$8)*100*1000 -> 7.784371267 | X128: 80.85612134 | Y128: 88.53612134 | Z128: 3.505956092e-06 | AA128: 1.305981188e-05 | AB128: 2.620066437e-05 | AC128: 4.04048604e-05 | AE128: 0.3323080274 | AF128: 0.4940589922 | AG128: =C$17*$E$6/(6*8*'Steel Eurocode 3'!$X$8*'Steel Eurocode 3'!$E$10)*100*1000*AK128 -> 0.4214417133 | AH128: =C$18*E$7/(6*8*'Steel Eurocode 3'!X$8*'Steel Eurocode 3'!E$10)*100*1000*Y128 -> 0.3076478239 | AI128: =C$14*B128*(8^3-2*8*B128^2+B128^3)/24/('Steel Eurocode 3'!E$10*'Steel Eurocode 3'!X$8)*100*1000 -> 2.550580363 | AK128: 80.85612134 | AL128: 88.53612134 | AM128: 1.219462988e-06 | AN128: 4.542543262e-06 | AO128: 9.113274564e-06 | AP128: 1.405386449e-05
A129: 50 | B129: 1.568 | C129: -339.759747 | D129: 163.752264 | E129: -12.47681717 | F129: -12.47681717 | G129: -4.179919592 | H129: 9.9939375 | I129: 22.9921875 | J129: 15.328125 | K129: 10.21875 | L129: ='Graph Properties'!C$3*8/2-B129*C$3 -> 105.219264 | M129: 45.481122 | N129: 36.05175 | O129: 24.0345 | P129: 16.023 | Q129: =C$3*8/2*'Graph Properties'!B129-'Graph Properties'!C$3*B129^2/2 -> 218.169375 | R129: 0.9704307666 | S129: 1.446510844 | T129: =D$17*$E$6/(6*8*'Steel Eurocode 3'!$X$8*'Steel Eurocode 3'!$E$10)*100*1000*X129 -> 1.234553639 | U129: =D$18*E$7/(6*8*'Steel Eurocode 3'!X$8*'Steel Eurocode 3'!E$10)*100*1000*Y129 -> 0.9013583903 | V129: =D$14*B129*(8^3-2*8*B129^2+B129^3)/24/('Steel Eurocode 3'!E$10*'Steel Eurocode 3'!X$8)*100*1000 -> 7.92396353 | X129: 82.38487757 | Y129: 90.22487757 | Z129: 3.554892046e-06 | AA129: 1.325919971e-05 | AB129: 2.6631032e-05 | AC129: 4.109614044e-05 | AE129: 0.3375411362 | AF129: 0.5031342067 | AG129: =C$17*$E$6/(6*8*'Steel Eurocode 3'!$X$8*'Steel Eurocode 3'!$E$10)*100*1000*AK129 -> 0.4294099615 | AH129: =C$18*E$7/(6*8*'Steel Eurocode 3'!X$8*'Steel Eurocode 3'!E$10)*100*1000*Y129 -> 0.3135159619 | AI129: =C$14*B129*(8^3-2*8*B129^2+B129^3)/24/('Steel Eurocode 3'!E$10*'Steel Eurocode 3'!X$8)*100*1000 -> 2.596318326 | AK129: 82.38487757 | AL129: 90.22487757 | AM129: 1.23648419e-06 | AN129: 4.611895552e-06 | AO129: 9.262967651e-06 | AP129: 1.429430972e-05
A130: 51 | B130: 1.6 | C130: -344.95674 | D130: 161.0598 | E130: -12.69528089 | F130: -12.69528089 | G130: -4.253117616 | H130: 8.6859375 | I130: 22.9921875 | J130: 15.328125 | K130: 10.21875 | L130: ='Graph Properties'!C$3*8/2-B130*C$3 -> 103.8348 | M130: 45.78 | N130: 36.7875 | O130: 24.525 | P130: 16.35 | Q130: =C$3*8/2*'Graph Properties'!B130-'Graph Properties'!C$3*B130^2/2 -> 221.51424 | R130: 0.985202791 | S130: 1.472385539 | T130: =D$17*$E$6/(6*8*'Steel Eurocode 3'!$X$8*'Steel Eurocode 3'!$E$10)*100*1000*X130 -> 1.257317988 | U130: =D$18*E$7/(6*8*'Steel Eurocode 3'!X$8*'Steel Eurocode 3'!E$10)*100*1000*Y130 -> 0.9181330442 | V130: =D$14*B130*(8^3-2*8*B130^2+B130^3)/24/('Steel Eurocode 3'!E$10*'Steel Eurocode 3'!X$8)*100*1000 -> 8.062241526 | X130: 83.904 | Y130: 91.904 | Z130: 3.60284102e-06 | AA130: 1.345486893e-05 | AB130: 2.705503433e-05 | AC130: 4.177888972e-05 | AE130: 0.3426792316 | AF130: 0.5121341006 | AG130: =C$17*$E$6/(6*8*'Steel Eurocode 3'!$X$8*'Steel Eurocode 3'!$E$10)*100*1000*AK130 -> 0.437327996 | AH130: =C$18*E$7/(6*8*'Steel Eurocode 3'!X$8*'Steel Eurocode 3'!E$10)*100*1000*Y130 -> 0.3193506241 | AI130: =C$14*B130*(8^3-2*8*B130^2+B130^3)/24/('Steel Eurocode 3'!E$10*'Steel Eurocode 3'!X$8)*100*1000 -> 2.641625664 | AK130: 83.904 | AL130: 91.904 | AM130: 1.253162094e-06 | AN130: 4.67995441e-06 | AO130: 9.410446724e-06 | AP130: 1.453178773e-05
A131: 52 | B131: 1.632 | C131: -350.0675742 | D131: 158.367336 | E131: -12.91166875 | F131: -12.91166875 | G131: -4.32562052 | H131: 7.3779375 | I131: 22.9921875 | J131: 15.328125 | K131: 10.21875 | L131: ='Graph Properties'!C$3*8/2-B131*C$3 -> 102.450336 | M131: 46.037022 | N131: 37.52325 | O131: 25.0155 | P131: 16.677 | Q131: =C$3*8/2*'Graph Properties'!B131-'Graph Properties'!C$3*B131^2/2 -> 224.8148022 | R131: 0.9996998568 | S131: 1.498039268 | T131: =D$17*$E$6/(6*8*'Steel Eurocode 3'!$X$8*'Steel Eurocode 3'!$E$10)*100*1000*X131 -> 1.279935027 | U131: =D$18*E$7/(6*8*'Steel Eurocode 3'!X$8*'Steel Eurocode 3'!E$10)*100*1000*Y131 -> 0.9348094911 | V131: =D$14*B131*(8^3-2*8*B131^2+B131^3)/24/('Steel Eurocode 3'!E$10*'Steel Eurocode 3'!X$8)*100*1000 -> 8.199185103 | X131: 85.41329203 | Y131: 93.57329203 | Z131: 3.649807924e-06 | AA131: 1.364680649e-05 | AB131: 2.747260432e-05 | AC131: 4.2452997e-05 | AE131: 0.3477216893 | AF131: 0.5210571369 | AG131: =C$17*$E$6/(6*8*'Steel Eurocode 3'!$X$8*'Steel Eurocode 3'!$E$10)*100*1000*AK131 -> 0.4451947921 | AH131: =C$18*E$7/(6*8*'Steel Eurocode 3'!X$8*'Steel Eurocode 3'!E$10)*100*1000*Y131 -> 0.3251511273 | AI131: =C$14*B131*(8^3-2*8*B131^2+B131^3)/24/('Steel Eurocode 3'!E$10*'Steel Eurocode 3'!X$8)*100*1000 -> 2.686495774 | AK131: 85.41329203 | AL131: 93.57329203 | AM131: 1.269498408e-06 | AN131: 4.746715301e-06 | AO131: 9.555688458e-06 | AP131: 1.476625983e-05
A132: 53 | B132: 1.664 | C132: -355.0922495 | D132: 155.674872 | E132: -13.12594999 | F132: -13.12594999 | G132: -4.397418007 | H132: 6.0699375 | I132: 22.9921875 | J132: 15.328125 | K132: 10.21875 | L132: ='Graph Properties'!C$3*8/2-B132*C$3 -> 101.065872 | M132: 46.252188 | N132: 38.259 | O132: 25.506 | P132: 17.004 | Q132: =C$3*8/2*'Graph Properties'!B132-'Graph Properties'!C$3*B132^2/2 -> 228.0710615 | R132: 1.01392042 | S132: 1.523467613 | T132: =D$17*$E$6/(6*8*'Steel Eurocode 3'!$X$8*'Steel Eurocode 3'!$E$10)*100*1000*X132 -> 1.302401809 | U132: =D$18*E$7/(6*8*'Steel Eurocode 3'!X$8*'Steel Eurocode 3'!E$10)*100*1000*Y132 -> 0.9513857669 | V132: =D$14*B132*(8^3-2*8*B132^2+B132^3)/24/('Steel Eurocode 3'!E$10*'Steel Eurocode 3'!X$8)*100*1000 -> 8.33477438 | X132: 86.91255706 | Y132: 95.23255706 | Z132: 3.695797668e-06 | AA132: 1.383500187e-05 | AB132: 2.788367741e-05 | AC132: 4.311835354e-05 | AE132: 0.3526679722 | AF132: 0.5299017783 | AG132: =C$17*$E$6/(6*8*'Steel Eurocode 3'!$X$8*'Steel Eurocode 3'!$E$10)*100*1000*AK132 -> 0.453009325 | AH132: =C$18*E$7/(6*8*'Steel Eurocode 3'!X$8*'Steel Eurocode 3'!E$10)*100*1000*Y132 -> 0.3309167885 | AI132: =C$14*B132*(8^3-2*8*B132^2+B132^3)/24/('Steel Eurocode 3'!E$10*'Steel Eurocode 3'!X$8)*100*1000 -> 2.730922143 | AK132: 86.91255706 | AL132: 95.23255706 | AM132: 1.285494841e-06 | AN132: 4.812174563e-06 | AO132: 9.698670404e-06 | AP132: 1.499768819e-05
A133: 54 | B133: 1.696 | C133: -360.030766 | D133: 152.982408 | E133: -13.33809438 | F133: -13.33809438 | G133: -4.468499955 | H133: 4.7619375 | I133: 22.9921875 | J133: 15.328125 | K133: 10.21875 | L133: ='Graph Properties'!C$3*8/2-B133*C$3 -> 99.681408 | M133: 46.425498 | N133: 38.99475 | O133: 25.9965 | P133: 17.331 | Q133: =C$3*8/2*'Graph Properties'!B133-'Graph Properties'!C$3*B133^2/2 -> 231.283018 | R133: 1.027863189 | S133: 1.548666153 | T133: =D$17*$E$6/(6*8*'Steel Eurocode 3'!$X$8*'Steel Eurocode 3'!$E$10)*100*1000*X133 -> 1.324715389 | U133: =D$18*E$7/(6*8*'Steel Eurocode 3'!X$8*'Steel Eurocode 3'!E$10)*100*1000*Y133 -> 0.9678599074 | V133: =D$14*B133*(8^3-2*8*B133^2+B133^3)/24/('Steel Eurocode 3'!E$10*'Steel Eurocode 3'!X$8)*100*1000 -> 8.46898974 | X133: 88.40159846 | Y133: 96.88159846 | Z133: 3.740815164e-06 | AA133: 1.401944705e-05 | AB133: 2.828819159e-05 | AC133: 4.377485312e-05 | AE133: 0.3575176308 | AF133: 0.5386664879 | AG133: =C$17*$E$6/(6*8*'Steel Eurocode 3'!$X$8*'Steel Eurocode 3'!$E$10)*100*1000*AK133 -> 0.4607705699 | AH133: =C$18*E$7/(6*8*'Steel Eurocode 3'!X$8*'Steel Eurocode 3'!E$10)*100*1000*Y133 -> 0.3366469243 | AI133: =C$14*B133*(8^3-2*8*B133^2+B133^3)/24/('Steel Eurocode 3'!E$10*'Steel Eurocode 3'!X$8)*100*1000 -> 2.774898342 | AK133: 88.40159846 | AL133: 96.88159846 | AM133: 1.3011531e-06 | AN133: 4.876329409e-06 | AO133: 9.839370988e-06 | AP133: 1.522603587e-05
A134: 55 | B134: 1.728 | C134: -364.8831236 | D134: 150.289944 | E134: -13.54807219 | F134: -13.54807219 | G134: -4.538856417 | H134: 3.4539375 | I134: 22.9921875 | J134: 15.328125 | K134: 10.21875 | L134: ='Graph Properties'!C$3*8/2-B134*C$3 -> 98.296944 | M134: 46.556952 | N134: 39.7305 | O134: 26.487 | P134: 17.658 | Q134: =C$3*8/2*'Graph Properties'!B134-'Graph Properties'!C$3*B134^2/2 -> 234.4506716 | R134: 1.041527121 | S134: 1.573630469 | T134: =D$17*$E$6/(6*8*'Steel Eurocode 3'!$X$8*'Steel Eurocode 3'!$E$10)*100*1000*X134 -> 1.346872819 | U134: =D$18*E$7/(6*8*'Steel Eurocode 3'!X$8*'Steel Eurocode 3'!E$10)*100*1000*Y134 -> 0.9842299485 | V134: =D$14*B134*(8^3-2*8*B134^2+B134^3)/24/('Steel Eurocode 3'!E$10*'Steel Eurocode 3'!X$8)*100*1000 -> 8.601811833 | X134: 89.88021965 | Y134: 98.52021965 | Z134: 3.78486532e-06 | AA134: 1.420013653e-05 | AB134: 2.868608734e-05 | AC134: 4.442239202e-05 | AE134: 0.3622703031 | AF134: 0.5473497283 | AG134: =C$17*$E$6/(6*8*'Steel Eurocode 3'!$X$8*'Steel Eurocode 3'!$E$10)*100*1000*AK134 -> 0.4684775021 | AH134: =C$18*E$7/(6*8*'Steel Eurocode 3'!X$8*'Steel Eurocode 3'!E$10)*100*1000*Y134 -> 0.3423408516 | AI134: =C$14*B134*(8^3-2*8*B134^2+B134^3)/24/('Steel Eurocode 3'!E$10*'Steel Eurocode 3'!X$8)*100*1000 -> 2.818418032 | AK134: 89.88021965 | AL134: 98.52021965 | AM134: 1.316474894e-06 | AN134: 4.939177925e-06 | AO134: 9.977769508e-06 | AP134: 1.545126679e-05
A135: 56 | B135: 1.76 | C135: -369.6493224 | D135: 147.59748 | E135: -13.75585423 | F135: -13.75585423 | G135: -4.60847762 | H135: 2.1459375 | I135: 22.9921875 | J135: 15.328125 | K135: 10.21875 | L135: ='Graph Properties'!C$3*8/2-B135*C$3 -> 96.91248 | M135: 46.64655 | N135: 40.46625 | O135: 26.9775 | P135: 17.985 | Q135: =C$3*8/2*'Graph Properties'!B135-'Graph Properties'!C$3*B135^2/2 -> 237.5740224 | R135: 1.054911429 | S135: 1.598356142 | T135: =D$17*$E$6/(6*8*'Steel Eurocode 3'!$X$8*'Steel Eurocode 3'!$E$10)*100*1000*X135 -> 1.368871153 | U135: =D$18*E$7/(6*8*'Steel Eurocode 3'!X$8*'Steel Eurocode 3'!E$10)*100*1000*Y135 -> 1.000493926 | V135: =D$14*B135*(8^3-2*8*B135^2+B135^3)/24/('Steel Eurocode 3'!E$10*'Steel Eurocode 3'!X$8)*100*1000 -> 8.733221577 | X135: 91.348224 | Y135: 100.148224 | Z135: 3.827953048e-06 | AA135: 1.437706733e-05 | AB135: 2.907730765e-05 | AC135: 4.506086907e-05 | AE135: 0.3669257143 | AF135: 0.5559499625 | AG135: =C$17*$E$6/(6*8*'Steel Eurocode 3'!$X$8*'Steel Eurocode 3'!$E$10)*100*1000*AK135 -> 0.4761290968 | AH135: =C$18*E$7/(6*8*'Steel Eurocode 3'!X$8*'Steel Eurocode 3'!E$10)*100*1000*Y135 -> 0.3479978873 | AI135: =C$14*B135*(8^3-2*8*B135^2+B135^3)/24/('Steel Eurocode 3'!E$10*'Steel Eurocode 3'!X$8)*100*1000 -> 2.86147496 | AK135: 91.348224 | AL135: 100.148224 | AM135: 1.33146193e-06 | AN135: 5.000719073e-06 | AO135: 1.011384614e-05 | AP135: 1.567334576e-05
A136: 57 | B136: 1.792 | C136: -374.3293623 | D136: 144.905016 | E136: -13.9614118 | F136: -13.9614118 | G136: -4.677353969 | H136: 0.8379375 | I136: 22.9921875 | J136: 15.328125 | K136: 10.21875 | L136: ='Graph Properties'!C$3*8/2-B136*C$3 -> 95.528016 | M136: 46.694292 | N136: 41.202 | O136: 27.468 | P136: 18.312 | Q136: =C$3*8/2*'Graph Properties'!B136-'Graph Properties'!C$3*B136^2/2 -> 240.6530703 | R136: 1.068015572 | S136: 1.622838753 | T136: =D$17*$E$6/(6*8*'Steel Eurocode 3'!$X$8*'Steel Eurocode 3'!$E$10)*100*1000*X136 -> 1.390707447 | U136: =D$18*E$7/(6*8*'Steel Eurocode 3'!X$8*'Steel Eurocode 3'!E$10)*100*1000*Y136 -> 1.016649876 | V136: =D$14*B136*(8^3-2*8*B136^2+B136^3)/24/('Steel Eurocode 3'!E$10*'Steel Eurocode 3'!X$8)*100*1000 -> 8.863200156 | X136: 92.80541491 | Y136: 101.7654149 | Z136: 3.870083258e-06 | AA136: 1.455023898e-05 | AB136: 2.946179805e-05 | AC136: 4.569018558e-05 | AE136: 0.3714836773 | AF136: 0.5644656532 | AG136: =C$17*$E$6/(6*8*'Steel Eurocode 3'!$X$8*'Steel Eurocode 3'!$E$10)*100*1000*AK136 -> 0.4837243292 | AH136: =C$18*E$7/(6*8*'Steel Eurocode 3'!X$8*'Steel Eurocode 3'!E$10)*100*1000*Y136 -> 0.3536173481 | AI136: =C$14*B136*(8^3-2*8*B136^2+B136^3)/24/('Steel Eurocode 3'!E$10*'Steel Eurocode 3'!X$8)*100*1000 -> 2.904062961 | AK136: 92.80541491 | AL136: 101.7654149 | AM136: 1.346115916e-06 | AN136: 5.060952689e-06 | AO136: 1.024758193e-05 | AP136: 1.589223846e-05
A137: 58 | B137: 1.824 | C137: -378.9232434 | D137: 142.212552 | E137: -14.16471676 | F137: -14.16471676 | G137: -4.745476039 | H137: -0.4700625 | I137: 22.9921875 | J137: 15.328125 | K137: 10.21875 | L137: ='Graph Properties'!C$3*8/2-B137*C$3 -> 94.143552 | M137: 46.700178 | N137: 41.93775 | O137: 27.9585 | P137: 18.639 | Q137: =C$3*8/2*'Graph Properties'!B137-'Graph Properties'!C$3*B137^2/2 -> 243.6878154 | R137: 1.080839266 | S137: 1.647073882 | T137: =D$17*$E$6/(6*8*'Steel Eurocode 3'!$X$8*'Steel Eurocode 3'!$E$10)*100*1000*X137 -> 1.412378752 | U137: =D$18*E$7/(6*8*'Steel Eurocode 3'!X$8*'Steel Eurocode 3'!E$10)*100*1000*Y137 -> 1.032695834 | V137: =D$14*B137*(8^3-2*8*B137^2+B137^3)/24/('Steel Eurocode 3'!E$10*'Steel Eurocode 3'!X$8)*100*1000 -> 8.991729022 | X137: 94.25159578 | Y137: 103.3715958 | Z137: 3.91126086e-06 | AA137: 1.471965352e-05 | AB137: 2.983950657e-05 | AC137: 4.631024539e-05 | AE137: 0.3759440924 | AF137: 0.5728952634 | AG137: =C$17*$E$6/(6*8*'Steel Eurocode 3'!$X$8*'Steel Eurocode 3'!$E$10)*100*1000*AK137 -> 0.4912621746 | AH137: =C$18*E$7/(6*8*'Steel Eurocode 3'!X$8*'Steel Eurocode 3'!E$10)*100*1000*Y137 -> 0.3591985509 | AI137: =C$14*B137*(8^3-2*8*B137^2+B137^3)/24/('Steel Eurocode 3'!E$10*'Steel Eurocode 3'!X$8)*100*1000 -> 2.946175957 | AK137: 94.25159578 | AL137: 103.3715958 | AM137: 1.36043856e-06 | AN137: 5.119879484e-06 | AO137: 1.037895881e-05 | AP137: 1.610791144e-05
A138: 59 | B138: 1.856 | C138: -383.4309657 | D138: 139.520088 | E138: -14.36574144 | F138: -14.36574144 | G138: -4.812834583 | H138: -1.7780625 | I138: 22.9921875 | J138: 15.328125 | K138: 10.21875 | L138: ='Graph Properties'!C$3*8/2-B138*C$3 -> 92.759088 | M138: 46.664208 | N138: 42.6735 | O138: 28.449 | P138: 18.966 | Q138: =C$3*8/2*'Graph Properties'!B138-'Graph Properties'!C$3*B138^2/2 -> 246.6782577 | R138: 1.093382473 | S138: 1.671057111 | T138: =D$17*$E$6/(6*8*'Steel Eurocode 3'!$X$8*'Steel Eurocode 3'!$E$10)*100*1000*X138 -> 1.433882124 | U138: =D$18*E$7/(6*8*'Steel Eurocode 3'!X$8*'Steel Eurocode 3'!E$10)*100*1000*Y138 -> 1.048629836 | V138: =D$14*B138*(8^3-2*8*B138^2+B138^3)/24/('Steel Eurocode 3'!E$10*'Steel Eurocode 3'!X$8)*100*1000 -> 9.118789893 | X138: 95.68656998 | Y138: 104.96657 | Z138: 3.951490765e-06 | AA138: 1.48853155e-05 | AB138: 3.021038374e-05 | AC138: 4.692095485e-05 | AE138: 0.3803069472 | AF138: 0.5812372559 | AG138: =C$17*$E$6/(6*8*'Steel Eurocode 3'!$X$8*'Steel Eurocode 3'!$E$10)*100*1000*AK138 -> 0.4987416082 | AH138: =C$18*E$7/(6*8*'Steel Eurocode 3'!X$8*'Steel Eurocode 3'!E$10)*100*1000*Y138 -> 0.3647408125 | AI138: =C$14*B138*(8^3-2*8*B138^2+B138^3)/24/('Steel Eurocode 3'!E$10*'Steel Eurocode 3'!X$8)*100*1000 -> 2.98780796 | AK138: 95.68656998 | AL138: 104.96657 | AM138: 1.37443157e-06 | AN138: 5.177501042e-06 | AO138: 1.050795956e-05 | AP138: 1.632033212e-05
A139: 60 | B139: 1.888 | C139: -387.8525291 | D139: 136.827624 | E139: -14.56445872 | F139: -14.56445872 | G139: -4.87942053 | H139: -3.0860625 | I139: 22.9921875 | J139: 15.328125 | K139: 10.21875 | L139: ='Graph Properties'!C$3*8/2-B139*C$3 -> 91.374624 | M139: 46.586382 | N139: 43.40925 | O139: 28.9395 | P139: 19.293 | Q139: =C$3*8/2*'Graph Properties'!B139-'Graph Properties'!C$3*B139^2/2 -> 249.6243971 | R139: 1.105645411 | S139: 1.694784019 | T139: =D$17*$E$6/(6*8*'Steel Eurocode 3'!$X$8*'Steel Eurocode 3'!$E$10)*100*1000*X139 -> 1.455214615 | U139: =D$18*E$7/(6*8*'Steel Eurocode 3'!X$8*'Steel Eurocode 3'!E$10)*100*1000*Y139 -> 1.064449918 | V139: =D$14*B139*(8^3-2*8*B139^2+B139^3)/24/('Steel Eurocode 3'!E$10*'Steel Eurocode 3'!X$8)*100*1000 -> 9.244364754 | X139: 97.11014093 | Y139: 106.5501409 | Z139: 3.990777882e-06 | AA139: 1.504723199e-05 | AB139: 3.057438262e-05 | AC139: 4.752222281e-05 | AE139: 0.3845723169 | AF139: 0.5894900936 | AG139: =C$17*$E$6/(6*8*'Steel Eurocode 3'!$X$8*'Steel Eurocode 3'!$E$10)*100*1000*AK139 -> 0.5061616052 | AH139: =C$18*E$7/(6*8*'Steel Eurocode 3'!X$8*'Steel Eurocode 3'!E$10)*100*1000*Y139 -> 0.3702434497 | AI139: =C$14*B139*(8^3-2*8*B139^2+B139^3)/24/('Steel Eurocode 3'!E$10*'Steel Eurocode 3'!X$8)*100*1000 -> 3.028953065 | AK139: 97.11014093 | AL139: 106.5501409 | AM139: 1.388096655e-06 | AN139: 5.233819824e-06 | AO139: 1.063456787e-05 | AP139: 1.652946881e-05
A140: 61 | B140: 1.92 | C140: -392.1879336 | D140: 134.13516 | E140: -14.76084199 | F140: -14.76084199 | G140: -4.945224981 | H140: -4.3940625 | I140: 22.9921875 | J140: 15.328125 | K140: 10.21875 | L140: ='Graph Properties'!C$3*8/2-B140*C$3 -> 89.99016 | M140: 46.4667 | N140: 44.145 | O140: 29.43 | P140: 19.62 | Q140: =C$3*8/2*'Graph Properties'!B140-'Graph Properties'!C$3*B140^2/2 -> 252.5262336 | R140: 1.117628547 | S140: 1.718250188 | T140: =D$17*$E$6/(6*8*'Steel Eurocode 3'!$X$8*'Steel Eurocode 3'!$E$10)*100*1000*X140 -> 1.47637328 | U140: =D$18*E$7/(6*8*'Steel Eurocode 3'!X$8*'Steel Eurocode 3'!E$10)*100*1000*Y140 -> 1.080154116 | V140: =D$14*B140*(8^3-2*8*B140^2+B140^3)/24/('Steel Eurocode 3'!E$10*'Steel Eurocode 3'!X$8)*100*1000 -> 9.368435856 | X140: 98.522112 | Y140: 108.122112 | Z140: 4.029127123e-06 | AA140: 1.520541259e-05 | AB140: 3.093145879e-05 | AC140: 4.811396067e-05 | AE140: 0.3887403642 | AF140: 0.5976522392 | AG140: =C$17*$E$6/(6*8*'Steel Eurocode 3'!$X$8*'Steel Eurocode 3'!$E$10)*100*1000*AK140 -> 0.5135211409 | AH140: =C$18*E$7/(6*8*'Steel Eurocode 3'!X$8*'Steel Eurocode 3'!E$10)*100*1000*Y140 -> 0.3757057793 | AI140: =C$14*B140*(8^3-2*8*B140^2+B140^3)/24/('Steel Eurocode 3'!E$10*'Steel Eurocode 3'!X$8)*100*1000 -> 3.069605457 | AK140: 98.522112 | AL140: 108.122112 | AM140: 1.401435521e-06 | AN140: 5.288839163e-06 | AO140: 1.075876828e-05 | AP140: 1.673529067e-05
A141: 62 | B141: 1.952 | C141: -396.4371793 | D141: 131.442696 | E141: -14.95486515 | F141: -14.95486515 | G141: -5.010239213 | H141: -5.7020625 | I141: 22.9921875 | J141: 15.328125 | K141: 10.21875 | L141: ='Graph Properties'!C$3*8/2-B141*C$3 -> 88.605696 | M141: 46.305162 | N141: 44.88075 | O141: 29.9205 | P141: 19.947 | Q141: =C$3*8/2*'Graph Properties'!B141-'Graph Properties'!C$3*B141^2/2 -> 255.3837673 | R141: 1.129332599 | S141: 1.741451197 | T141: =D$17*$E$6/(6*8*'Steel Eurocode 3'!$X$8*'Steel Eurocode 3'!$E$10)*100*1000*X141 -> 1.497355172 | U141: =D$18*E$7/(6*8*'Steel Eurocode 3'!X$8*'Steel Eurocode 3'!E$10)*100*1000*Y141 -> 1.095740465 | V141: =D$14*B141*(8^3-2*8*B141^2+B141^3)/24/('Steel Eurocode 3'!E$10*'Steel Eurocode 3'!X$8)*100*1000 -> 9.490985719 | X141: 99.92228659 | Y141: 109.6822866 | Z141: 4.066543398e-06 | AA141: 1.535986939e-05 | AB141: 3.128157033e-05 | AC141: 4.869608231e-05 | AE141: 0.3928113389 | AF141: 0.6057221556 | AG141: =C$17*$E$6/(6*8*'Steel Eurocode 3'!$X$8*'Steel Eurocode 3'!$E$10)*100*1000*AK141 -> 0.5208191904 | AH141: =C$18*E$7/(6*8*'Steel Eurocode 3'!X$8*'Steel Eurocode 3'!E$10)*100*1000*Y141 -> 0.3811271182 | AI141: =C$14*B141*(8^3-2*8*B141^2+B141^3)/24/('Steel Eurocode 3'!E$10*'Steel Eurocode 3'!X$8)*100*1000 -> 3.10975941 | AK141: 99.92228659 | AL141: 109.6822866 | AM141: 1.414449877e-06 | AN141: 5.342563267e-06 | AO141: 1.08805462e-05 | AP141: 1.693776776e-05
A142: 63 | B142: 1.984 | C142: -400.6002661 | D142: 128.750232 | E142: -15.14650264 | F142: -15.14650264 | G142: -5.074454679 | H142: -7.0100625 | I142: 22.9921875 | J142: 15.328125 | K142: 10.21875 | L142: ='Graph Properties'!C$3*8/2-B142*C$3 -> 87.221232 | M142: 46.101768 | N142: 45.6165 | O142: 30.411 | P142: 20.274 | Q142: =C$3*8/2*'Graph Properties'!B142-'Graph Properties'!C$3*B142^2/2 -> 258.1969981 | R142: 1.140758539 | S142: 1.764382629 | T142: =D$17*$E$6/(6*8*'Steel Eurocode 3'!$X$8*'Steel Eurocode 3'!$E$10)*100*1000*X142 -> 1.518157346 | U142: =D$18*E$7/(6*8*'Steel Eurocode 3'!X$8*'Steel Eurocode 3'!E$10)*100*1000*Y142 -> 1.111207002 | V142: =D$14*B142*(8^3-2*8*B142^2+B142^3)/24/('Steel Eurocode 3'!E$10*'Steel Eurocode 3'!X$8)*100*1000 -> 9.611997129 | X142: 101.3104681 | Y142: 111.2304681 | Z142: 4.103031616e-06 | AA142: 1.5510617e-05 | AB142: 3.162467784e-05 | AC142: 4.926850413e-05 | AE142: 0.3967855787 | AF142: 0.6136983057 | AG142: =C$17*$E$6/(6*8*'Steel Eurocode 3'!$X$8*'Steel Eurocode 3'!$E$10)*100*1000*AK142 -> 0.528054729 | AH142: =C$18*E$7/(6*8*'Steel Eurocode 3'!X$8*'Steel Eurocode 3'!E$10)*100*1000*Y142 -> 0.3865067832 | AI142: =C$14*B142*(8^3-2*8*B142^2+B142^3)/24/('Steel Eurocode 3'!E$10*'Steel Eurocode 3'!X$8)*100*1000 -> 3.149409282 | AK142: 101.3104681 | AL142: 111.2304681 | AM142: 1.427141432e-06 | AN142: 5.394997219e-06 | AO142: 1.099988794e-05 | AP142: 1.7136871e-05
A143: 64 | B143: 2.016 | C143: -404.6824261 | D143: 126.711768 | E143: -15.3357294 | F143: -15.3357294 | G143: -5.137863005 | H143: -7.6640625 | I143: 22.9921875 | J143: 15.328125 | K143: 10.21875 | L143: ='Graph Properties'!C$3*8/2-B143*C$3 -> 85.836768 | M143: 45.86175 | N143: 46.35225 | O143: 30.9015 | P143: 20.601 | Q143: =C$3*8/2*'Graph Properties'!B143-'Graph Properties'!C$3*B143^2/2 -> 260.9659261 | R143: 1.151907586 | S143: 1.787040063 | T143: =D$17*$E$6/(6*8*'Steel Eurocode 3'!$X$8*'Steel Eurocode 3'!$E$10)*100*1000*X143 -> 1.538776855 | U143: =D$18*E$7/(6*8*'Steel Eurocode 3'!X$8*'Steel Eurocode 3'!E$10)*100*1000*Y143 -> 1.126551762 | V143: =D$14*B143*(8^3-2*8*B143^2+B143^3)/24/('Steel Eurocode 3'!E$10*'Steel Eurocode 3'!X$8)*100*1000 -> 9.731453138 | X143: 102.6864599 | Y143: 112.7664599 | Z143: 4.138596689e-06 | AA143: 1.565767255e-05 | AB143: 3.196074443e-05 | AC143: 4.983114506e-05 | AE143: 0.4006635083 | AF143: 0.6215791524 | AG143: =C$17*$E$6/(6*8*'Steel Eurocode 3'!$X$8*'Steel Eurocode 3'!$E$10)*100*1000*AK143 -> 0.535226732 | AH143: =C$18*E$7/(6*8*'Steel Eurocode 3'!X$8*'Steel Eurocode 3'!E$10)*100*1000*Y143 -> 0.3918440911 | AI143: =C$14*B143*(8^3-2*8*B143^2+B143^3)/24/('Steel Eurocode 3'!E$10*'Steel Eurocode 3'!X$8)*100*1000 -> 3.188549521 | AK143: 102.6864599 | AL143: 112.7664599 | AM143: 1.439511892e-06 | AN143: 5.446146975e-06 | AO143: 1.111678067e-05 | AP143: 1.73325722e-05
A144: 65 | B144: 2.048 | C144: -408.7150513 | D144: 125.327304 | E144: -15.52252084 | F144: -15.52252084 | G144: -5.200455975 | H144: -7.6640625 | I144: 22.9921875 | J144: 15.328125 | K144: 10.21875 | L144: ='Graph Properties'!C$3*8/2-B144*C$3 -> 84.452304 | M144: =IF(B144>D$4, IF(B144<(D$4+E$4),G$4*B144-C$4/2*(B144-D$4)^2,-(8-B144)*H$4),G$4*B144) -> 45.6165 | N144: =IF(B144>D$5, IF(B144<(D$5+E$5),G$5*B144-C$5/2*(B144-D$5)^2,-(8-B144)*H$5),G$5*B144) -> 47.088 | O144: 31.392 | P144: 20.928 | Q144: =C$3*8/2*'Graph Properties'!B144-'Graph Properties'!C$3*B144^2/2 -> 263.6905513 | R144: 1.162781164 | S144: 1.80941908 | T144: =D$17*$E$6/(6*8*'Steel Eurocode 3'!$X$8*'Steel Eurocode 3'!$E$10)*100*1000*X144 -> 1.559210752 | U144: =D$18*E$7/(6*8*'Steel Eurocode 3'!X$8*'Steel Eurocode 3'!E$10)*100*1000*Y144 -> 1.141772781 | V144: =D$14*B144*(8^3-2*8*B144^2+B144^3)/24/('Steel Eurocode 3'!E$10*'Steel Eurocode 3'!X$8)*100*1000 -> 9.849337065 | X144: =IF(B144<D$6,B144*(8^2-B144^2-E$6^2),8/E$6*(B144-D$6)^3+(8^2-E$6^2)*B144-B144^3) -> 104.0500654 | Y144: =IF(B144<D$7,B144*(8^2-B144^2-E$7^2),8/E$7*(B144-D$7)^3+(8^2-E$7^2)*B144-B144^3) -> 114.2900654 | Z144: =IF(B144<D$4,B144*D$15/(24*K$2*K$3)*((D$4^2)*(2*K$2-D$4)^2-2*(D$4*B144^2)*(2*K$2-D$4)+K$2*B144^3),D$15/(24*K$2*K$3)*(D$4^2*(K$2-B144))*(4*B144*K$2-2*B144^2-D$4^2)) -> 4.173243526e-06 | AA144: =IF(B144<I$4,B144*D$15/(24*K$2*K$3)*((I$4^2)*(2*K$2-I$4)^2-2*(I$4*B144^2)*(2*K$2-I$4)+K$2*B144^3),D$15/(24*K$2*K$3)*(I$4^2*(K$2-B144))*(4*B144*K$2-2*B144^2-I$4^2)) -> 1.580105516e-05 | AB144: =IF(B144<D$5,B144*D$16/(24*K$2*K$3)*((D$5^2)*(2*K$2-D$5)^2-2*(D$5*B144^2)*(2*K$2-D$5)+K$2*B144^3),D$16/(24*K$2*K$3)*(D$5^2*(K$2-B144))*(4*B144*K$2-2*B144^2-D$5^2)) -> 3.228973573e-05 | AC144: =IF(B144<I$5,B144*D$16/(24*K$2*K$3)*((I$5^2)*(2*K$2-I$5)^2-2*(I$5*B144^2)*(2*K$2-I$5)+K$2*B144^3),D$16/(24*K$2*K$3)*(I$5^2*(K$2-B144))*(4*B144*K$2-2*B144^2-I$5^2)) -> 5.038392654e-05 | AE144: 0.4044456222 | AF144: 0.6293631584 | AG144: =C$17*$E$6/(6*8*'Steel Eurocode 3'!$X$8*'Steel Eurocode 3'!$E$10)*100*1000*AK144 -> 0.5423341746 | AH144: =C$18*E$7/(6*8*'Steel Eurocode 3'!X$8*'Steel Eurocode 3'!E$10)*100*1000*Y144 -> 0.3971383587 | AI144: =C$14*B144*(8^3-2*8*B144^2+B144^3)/24/('Steel Eurocode 3'!E$10*'Steel Eurocode 3'!X$8)*100*1000 -> 3.227174661 | AK144: =IF(B144<D$6,B144*(8^2-B144^2-E$6^2),8/E$6*(B144-D$6)^3+(8^2-E$6^2)*B144-B144^3) -> 104.0500654 | AL144: =IF(B144<D$7,B144*(8^2-B144^2-E$7^2),8/E$7*(B144-D$7)^3+(8^2-E$7^2)*B144-B144^3) -> 114.2900654 | AM144: =IF(B144<D$4,B144*C$15/(24*K$2*K$3)*((D$4^2)*(2*K$2-D$4)^2-2*(D$4*B144^2)*(2*K$2-D$4)+K$2*B144^3),C$15/(24*K$2*K$3)*(D$4^2*(K$2-B144))*(4*B144*K$2-2*B144^2-D$4^2)) -> 1.451562966e-06 | AN144: =IF(B144<I$4,B144*C$15/(24*K$2*K$3)*((I$4^2)*(2*K$2-I$4)^2-2*(I$4*B144^2)*(2*K$2-I$4)+K$2*B144^3),C$15/(24*K$2*K$3)*(I$4^2*(K$2-B144))*(4*B144*K$2-2*B144^2-I$4^2)) -> 5.496019188e-06 | AO144: =IF(B144<D$5,B144*C$16/(24*K$2*K$3)*((D$5^2)*(2*K$2-D$5)^2-2*(D$5*B144^2)*(2*K$2-D$5)+K$2*B144^3),C$16/(24*K$2*K$3)*(D$5^2*(K$2-B144))*(4*B144*K$2-2*B144^2-D$5^2)) -> 1.123121243e-05 | AP144: =IF(B144<I$5,B144*C$16/(24*K$2*K$3)*((I$5^2)*(2*K$2-I$5)^2-2*(I$5*B144^2)*(2*K$2-I$5)+K$2*B144^3),C$16/(24*K$2*K$3)*(I$5^2*(K$2-B144))*(4*B144*K$2-2*B144^2-I$5^2)) -> 1.752484401e-05
A145: 66 | B145: =B144+8/250 -> 2.08 | C145: -412.7033736 | D145: 123.94284 | E145: -15.70685269 | F145: -15.70685269 | G145: -5.262225478 | H145: -7.6640625 | I145: 22.9921875 | J145: 15.328125 | K145: 10.21875 | L145: ='Graph Properties'!C$3*8/2-B145*C$3 -> 83.06784 | M145: 45.37125 | N145: 47.82375 | O145: 31.8825 | P145: 21.255 | Q145: =C$3*8/2*'Graph Properties'!B145-'Graph Properties'!C$3*B145^2/2 -> 266.3708736 | R145: 1.173380744 | S145: 1.831515261 | T145: =D$17*$E$6/(6*8*'Steel Eurocode 3'!$X$8*'Steel Eurocode 3'!$E$10)*100*1000*X145 -> 1.579456092 | U145: =D$18*E$7/(6*8*'Steel Eurocode 3'!X$8*'Steel Eurocode 3'!E$10)*100*1000*Y145 -> 1.156868096 | V145: =D$14*B145*(8^3-2*8*B145^2+B145^3)/24/('Steel Eurocode 3'!E$10*'Steel Eurocode 3'!X$8)*100*1000 -> 9.965632497 | X145: 105.401088 | Y145: 115.801088 | Z145: 4.206977038e-06 | AA145: 1.594078448e-05 | AB145: 3.261161989e-05 | AC145: 5.09267725e-05 | AE145: 0.4081324327 | AF145: 0.6370487866 | AG145: =C$17*$E$6/(6*8*'Steel Eurocode 3'!$X$8*'Steel Eurocode 3'!$E$10)*100*1000*AK145 -> 0.549376032 | AH145: =C$18*E$7/(6*8*'Steel Eurocode 3'!X$8*'Steel Eurocode 3'!E$10)*100*1000*Y145 -> 0.4023889028 | AI145: =C$14*B145*(8^3-2*8*B145^2+B145^3)/24/('Steel Eurocode 3'!E$10*'Steel Eurocode 3'!X$8)*100*1000 -> 3.265279324 | AK145: 105.401088 | AL145: 115.801088 | AM145: 1.463296361e-06 | AN145: 5.544620688e-06 | AO145: 1.134317213e-05 | AP145: 1.771366e-05
A146: 67 | B146: 2.112 | C146: =-SUM(M146:Q146) -> -416.6473931 | D146: =H146+I146+J146+K146+L146 -> 122.558376 | E146: =IF(E$10=2,G146,F146) -> -15.88870094 | F146: =-SUM(R146:V146) -> -15.88870094 | G146: =-SUM(AE146:AI146) -> -5.323163491 | H146: =IF(B146>D$4, IF(B146<(D$4+E$4),G$4-C$4*(B146-D$4),H$4),G$4) -> -7.6640625 | I146: =IF(B146>D$5, IF(B146<(D$5+E$5),G$5-C$5*(B146-D$5),H$5),G$5) -> 22.9921875 | J146: =IF(B146>D$6,-H$6,G$6) -> 15.328125 | K146: =IF(B146>D$7,-H$7,G$7) -> 10.21875 | L146: ='Graph Properties'!C$3*8/2-B146*C$3 -> 81.683376 | M146: 45.126 | N146: 48.5595 | O146: =IF(B146<D$6,G$6*B146,G$6*B146-C$6*(B146-D$6)) -> 32.373 | P146: =IF(B146<D$7,G$7*B146,G$7*B146-C$7*(B146-D$7)) -> 21.582 | Q146: =C$3*8/2*'Graph Properties'!B146-'Graph Properties'!C$3*B146^2/2 -> 269.0068931 | R146: =(AA146-Z146)*1000*100 -> 1.1837078 | S146: =(AC146-AB146)*1000*100 -> 1.853324187 | T146: =D$17*$E$6/(6*8*'Steel Eurocode 3'!$X$8*'Steel Eurocode 3'!$E$10)*100*1000*X146 -> 1.599509928 | U146: =D$18*E$7/(6*8*'Steel Eurocode 3'!X$8*'Steel Eurocode 3'!E$10)*100*1000*Y146 -> 1.171835741 | V146: =D$14*B146*(8^3-2*8*B146^2+B146^3)/24/('Steel Eurocode 3'!E$10*'Steel Eurocode 3'!X$8)*100*1000 -> 10.08032329 | X146: 106.7393311 | Y146: 117.2993311 | Z146: 4.239802136e-06 | AA146: 1.607688013e-05 | AB146: 3.292636755e-05 | AC146: 5.145960942e-05 | AE146: =(AN146-AM146)*1000*100 -> 0.411724452 | AF146: =(AP146-AO146)*1000*100 -> 0.6446344999 | AG146: =C$17*$E$6/(6*8*'Steel Eurocode 3'!$X$8*'Steel Eurocode 3'!$E$10)*100*1000*AK146 -> 0.5563512795 | AH146: =C$18*E$7/(6*8*'Steel Eurocode 3'!X$8*'Steel Eurocode 3'!E$10)*100*1000*Y146 -> 0.4075950403 | AI146: =C$14*B146*(8^3-2*8*B146^2+B146^3)/24/('Steel Eurocode 3'!E$10*'Steel Eurocode 3'!X$8)*100*1000 -> 3.30285822 | AK146: 106.7393311 | AL146: 117.2993311 | AM146: 1.474713786e-06 | AN146: 5.591958307e-06 | AO146: 1.145264958e-05 | AP146: 1.789899458e-05
A147: 68 | B147: 2.144 | C147: -420.5471097 | D147: 121.173912 | E147: -16.06804187 | F147: -16.06804187 | G147: -5.383262079 | H147: -7.6640625 | I147: 22.9921875 | J147: 15.328125 | K147: 10.21875 | L147: ='Graph Properties'!C$3*8/2-B147*C$3 -> 80.298912 | M147: 44.88075 | N147: 49.29525 | O147: 32.8635 | P147: 21.909 | Q147: =C$3*8/2*'Graph Properties'!B147-'Graph Properties'!C$3*B147^2/2 -> 271.5986097 | R147: 1.193763804 | S147: 1.874841438 | T147: =D$17*$E$6/(6*8*'Steel Eurocode 3'!$X$8*'Steel Eurocode 3'!$E$10)*100*1000*X147 -> 1.619369315 | U147: =D$18*E$7/(6*8*'Steel Eurocode 3'!X$8*'Steel Eurocode 3'!E$10)*100*1000*Y147 -> 1.186673753 | V147: =D$14*B147*(8^3-2*8*B147^2+B147^3)/24/('Steel Eurocode 3'!E$10*'Steel Eurocode 3'!X$8)*100*1000 -> 10.19339356 | X147: 108.064598 | Y147: 118.784598 | Z147: 4.271723729e-06 | AA147: 1.620936177e-05 | AB147: 3.323395189e-05 | AC147: 5.198236627e-05 | AE147: 0.4152221926 | AF147: 0.6521187611 | AG147: =C$17*$E$6/(6*8*'Steel Eurocode 3'!$X$8*'Steel Eurocode 3'!$E$10)*100*1000*AK147 -> 0.5632588922 | AH147: =C$18*E$7/(6*8*'Steel Eurocode 3'!X$8*'Steel Eurocode 3'!E$10)*100*1000*Y147 -> 0.412756088 | AI147: =C$14*B147*(8^3-2*8*B147^2+B147^3)/24/('Steel Eurocode 3'!E$10*'Steel Eurocode 3'!X$8)*100*1000 -> 3.339906145 | AK147: 108.064598 | AL147: 118.784598 | AM147: 1.485816949e-06 | AN147: 5.638038876e-06 | AO147: 1.155963544e-05 | AP147: 1.808082305e-05
A148: 69 | B148: 2.176 | C148: -424.4025234 | D148: 119.789448 | E148: -16.24485199 | F148: -16.24485199 | G148: -5.442513393 | H148: -7.6640625 | I148: 22.9921875 | J148: 15.328125 | K148: 10.21875 | L148: ='Graph Properties'!C$3*8/2-B148*C$3 -> 78.914448 | M148: 44.6355 | N148: 50.031 | O148: 33.354 | P148: 22.236 | Q148: =C$3*8/2*'Graph Properties'!B148-'Graph Properties'!C$3*B148^2/2 -> 274.1460234 | R148: 1.20355023 | S148: 1.896062595 | T148: =D$17*$E$6/(6*8*'Steel Eurocode 3'!$X$8*'Steel Eurocode 3'!$E$10)*100*1000*X148 -> 1.639031305 | U148: =D$18*E$7/(6*8*'Steel Eurocode 3'!X$8*'Steel Eurocode 3'!E$10)*100*1000*Y148 -> 1.201380168 | V148: =D$14*B148*(8^3-2*8*B148^2+B148^3)/24/('Steel Eurocode 3'!E$10*'Steel Eurocode 3'!X$8)*100*1000 -> 10.30482769 | X148: 109.3766922 | Y148: 120.2566922 | Z148: 4.302746729e-06 | AA148: 1.633824903e-05 | AB148: 3.353434859e-05 | AC148: 5.249497454e-05 | AE148: 0.418626167 | AF148: 0.659500033 | AG148: =C$17*$E$6/(6*8*'Steel Eurocode 3'!$X$8*'Steel Eurocode 3'!$E$10)*100*1000*AK148 -> 0.5700978454 | AH148: =C$18*E$7/(6*8*'Steel Eurocode 3'!X$8*'Steel Eurocode 3'!E$10)*100*1000*Y148 -> 0.4178713626 | AI148: =C$14*B148*(8^3-2*8*B148^2+B148^3)/24/('Steel Eurocode 3'!E$10*'Steel Eurocode 3'!X$8)*100*1000 -> 3.376417985 | AK148: 109.3766922 | AL148: 120.2566922 | AM148: 1.496607558e-06 | AN148: 5.682869227e-06 | AO148: 1.166412125e-05 | AP148: 1.825912158e-05
A149: 70 | B149: 2.208 | C149: -428.2136343 | D149: 118.404984 | E149: -16.41910811 | F149: -16.41910811 | G149: -5.500909671 | H149: -7.6640625 | I149: 22.9921875 | J149: 15.328125 | K149: 10.21875 | L149: ='Graph Properties'!C$3*8/2-B149*C$3 -> 77.529984 | M149: 44.39025 | N149: 50.76675 | O149: 33.8445 | P149: 22.563 | Q149: =C$3*8/2*'Graph Properties'!B149-'Graph Properties'!C$3*B149^2/2 -> 276.6491343 | R149: 1.213068551 | S149: 1.916983238 | T149: =D$17*$E$6/(6*8*'Steel Eurocode 3'!$X$8*'Steel Eurocode 3'!$E$10)*100*1000*X149 -> 1.658492954 | U149: =D$18*E$7/(6*8*'Steel Eurocode 3'!X$8*'Steel Eurocode 3'!E$10)*100*1000*Y149 -> 1.215953021 | V149: =D$14*B149*(8^3-2*8*B149^2+B149^3)/24/('Steel Eurocode 3'!E$10*'Steel Eurocode 3'!X$8)*100*1000 -> 10.41461034 | X149: 110.6754171 | Y149: 121.7154171 | Z149: 4.332876045e-06 | AA149: 1.646356156e-05 | AB149: 3.382753585e-05 | AC149: 5.299736823e-05 | AE149: 0.4219368873 | AF149: 0.6667767786 | AG149: =C$17*$E$6/(6*8*'Steel Eurocode 3'!$X$8*'Steel Eurocode 3'!$E$10)*100*1000*AK149 -> 0.5768671143 | AH149: =C$18*E$7/(6*8*'Steel Eurocode 3'!X$8*'Steel Eurocode 3'!E$10)*100*1000*Y149 -> 0.4229401811 | AI149: =C$14*B149*(8^3-2*8*B149^2+B149^3)/24/('Steel Eurocode 3'!E$10*'Steel Eurocode 3'!X$8)*100*1000 -> 3.41238871 | AK149: 110.6754171 | AL149: 121.7154171 | AM149: 1.50708732e-06 | AN149: 5.726456193e-06 | AO149: 1.176609942e-05 | AP149: 1.843386721e-05
A150: 71 | B150: 2.24 | C150: -431.9804424 | D150: 117.02052 | E150: -16.59078729 | F150: -16.59078729 | G150: -5.558443241 | H150: -7.6640625 | I150: 22.9921875 | J150: 15.328125 | K150: 10.21875 | L150: ='Graph Properties'!C$3*8/2-B150*C$3 -> 76.14552 | M150: 44.145 | N150: 51.5025 | O150: 34.335 | P150: 22.89 | Q150: =C$3*8/2*'Graph Properties'!B150-'Graph Properties'!C$3*B150^2/2 -> 279.1079424 | R150: 1.22232024 | S150: 1.937598949 | T150: =D$17*$E$6/(6*8*'Steel Eurocode 3'!$X$8*'Steel Eurocode 3'!$E$10)*100*1000*X150 -> 1.677751313 | U150: =D$18*E$7/(6*8*'Steel Eurocode 3'!X$8*'Steel Eurocode 3'!E$10)*100*1000*Y150 -> 1.230390348 | V150: =D$14*B150*(8^3-2*8*B150^2+B150^3)/24/('Steel Eurocode 3'!E$10*'Steel Eurocode 3'!X$8)*100*1000 -> 10.52272644 | X150: 111.960576 | Y150: 123.160576 | Z150: 4.362116587e-06 | AA150: 1.658531899e-05 | AB150: 3.411349438e-05 | AC150: 5.348948387e-05 | AE150: 0.4251548661 | AF150: 0.6739474606 | AG150: =C$17*$E$6/(6*8*'Steel Eurocode 3'!$X$8*'Steel Eurocode 3'!$E$10)*100*1000*AK150 -> 0.5835656743 | AH150: =C$18*E$7/(6*8*'Steel Eurocode 3'!X$8*'Steel Eurocode 3'!E$10)*100*1000*Y150 -> 0.4279618603 | AI150: =C$14*B150*(8^3-2*8*B150^2+B150^3)/24/('Steel Eurocode 3'!E$10*'Steel Eurocode 3'!X$8)*100*1000 -> 3.44781338 | AK150: 111.960576 | AL150: 123.160576 | AM150: 1.517257943e-06 | AN150: 5.768806605e-06 | AO150: 1.186556326e-05 | AP150: 1.860503787e-05
A151: 72 | B151: 2.272 | C151: -435.7029476 | D151: 115.636056 | E151: -16.75986686 | F151: -16.75986686 | G151: -5.615106517 | H151: -7.6640625 | I151: 22.9921875 | J151: 15.328125 | K151: 10.21875 | L151: ='Graph Properties'!C$3*8/2-B151*C$3 -> 74.761056 | M151: 43.89975 | N151: 52.23825 | O151: 34.8255 | P151: 23.217 | Q151: =C$3*8/2*'Graph Properties'!B151-'Graph Properties'!C$3*B151^2/2 -> 281.5224476 | R151: 1.23130677 | S151: 1.957905308 | T151: =D$17*$E$6/(6*8*'Steel Eurocode 3'!$X$8*'Steel Eurocode 3'!$E$10)*100*1000*X151 -> 1.696803439 | U151: =D$18*E$7/(6*8*'Steel Eurocode 3'!X$8*'Steel Eurocode 3'!E$10)*100*1000*Y151 -> 1.244690186 | V151: =D$14*B151*(8^3-2*8*B151^2+B151^3)/24/('Steel Eurocode 3'!E$10*'Steel Eurocode 3'!X$8)*100*1000 -> 10.62916116 | X151: 113.2319724 | Y151: 124.5919724 | Z151: 4.390473267e-06 | AA151: 1.670354097e-05 | AB151: 3.439220741e-05 | AC151: 5.397126048e-05 | AE151: 0.4282806158 | AF151: 0.6810105419 | AG151: =C$17*$E$6/(6*8*'Steel Eurocode 3'!$X$8*'Steel Eurocode 3'!$E$10)*100*1000*AK151 -> 0.5901925004 | AH151: =C$18*E$7/(6*8*'Steel Eurocode 3'!X$8*'Steel Eurocode 3'!E$10)*100*1000*Y151 -> 0.4329357169 | AI151: =C$14*B151*(8^3-2*8*B151^2+B151^3)/24/('Steel Eurocode 3'!E$10*'Steel Eurocode 3'!X$8)*100*1000 -> 3.482687142 | AK151: 113.2319724 | AL151: 124.5919724 | AM151: 1.527121136e-06 | AN151: 5.809927294e-06 | AO151: 1.196250692e-05 | AP151: 1.877261234e-05
A152: 73 | B152: 2.304 | C152: -439.38115 | D152: 114.251592 | E152: -16.92632442 | F152: -16.92632442 | G152: -5.670891999 | H152: -7.6640625 | I152: 22.9921875 | J152: 15.328125 | K152: 10.21875 | L152: ='Graph Properties'!C$3*8/2-B152*C$3 -> 73.376592 | M152: 43.6545 | N152: 52.974 | O152: 35.316 | P152: 23.544 | Q152: =C$3*8/2*'Graph Properties'!B152-'Graph Properties'!C$3*B152^2/2 -> 283.89265 | R152: 1.240029615 | S152: 1.977897895 | T152: =D$17*$E$6/(6*8*'Steel Eurocode 3'!$X$8*'Steel Eurocode 3'!$E$10)*100*1000*X152 -> 1.715646383 | U152: =D$18*E$7/(6*8*'Steel Eurocode 3'!X$8*'Steel Eurocode 3'!E$10)*100*1000*Y152 -> 1.25885057 | V152: =D$14*B152*(8^3-2*8*B152^2+B152^3)/24/('Steel Eurocode 3'!E$10*'Steel Eurocode 3'!X$8)*100*1000 -> 10.73389996 | X152: 114.4894095 | Y152: 126.0094095 | Z152: 4.417950994e-06 | AA152: 1.681824714e-05 | AB152: 3.466366067e-05 | AC152: 5.444263963e-05 | AE152: 0.4313146487 | AF152: 0.6879644854 | AG152: =C$17*$E$6/(6*8*'Steel Eurocode 3'!$X$8*'Steel Eurocode 3'!$E$10)*100*1000*AK152 -> 0.5967465679 | AH152: =C$18*E$7/(6*8*'Steel Eurocode 3'!X$8*'Steel Eurocode 3'!E$10)*100*1000*Y152 -> 0.4378610678 | AI152: =C$14*B152*(8^3-2*8*B152^2+B152^3)/24/('Steel Eurocode 3'!E$10*'Steel Eurocode 3'!X$8)*100*1000 -> 3.51700523 | AK152: 114.4894095 | AL152: 126.0094095 | AM152: 1.536678607e-06 | AN152: 5.849825093e-06 | AO152: 1.205692545e-05 | AP152: 1.89365703e-05
A153: 74 | B153: 2.336 | C153: -443.0150495 | D153: 112.867128 | E153: -17.09013784 | F153: -17.09013784 | G153: -5.725792278 | H153: -7.6640625 | I153: 22.9921875 | J153: 15.328125 | K153: 10.21875 | L153: ='Graph Properties'!C$3*8/2-B153*C$3 -> 71.992128 | M153: 43.40925 | N153: 53.70975 | O153: 35.8065 | P153: 23.871 | Q153: =C$3*8/2*'Graph Properties'!B153-'Graph Properties'!C$3*B153^2/2 -> 286.2185495 | R153: 1.248490247 | S153: 1.997572292 | T153: =D$17*$E$6/(6*8*'Steel Eurocode 3'!$X$8*'Steel Eurocode 3'!$E$10)*100*1000*X153 -> 1.7342772 | U153: =D$18*E$7/(6*8*'Steel Eurocode 3'!X$8*'Steel Eurocode 3'!E$10)*100*1000*Y153 -> 1.272869536 | V153: =D$14*B153*(8^3-2*8*B153^2+B153^3)/24/('Steel Eurocode 3'!E$10*'Steel Eurocode 3'!X$8)*100*1000 -> 10.83692857 | X153: 115.7326909 | Y153: 127.4126909 | Z153: 4.444554679e-06 | AA153: 1.692945715e-05 | AB153: 3.492784243e-05 | AC153: 5.490356535e-05 | AE153: 0.4342574771 | AF153: 0.6948077538 | AG153: =C$17*$E$6/(6*8*'Steel Eurocode 3'!$X$8*'Steel Eurocode 3'!$E$10)*100*1000*AK153 -> 0.6032268521 | AH153: =C$18*E$7/(6*8*'Steel Eurocode 3'!X$8*'Steel Eurocode 3'!E$10)*100*1000*Y153 -> 0.4427372298 | AI153: =C$14*B153*(8^3-2*8*B153^2+B153^3)/24/('Steel Eurocode 3'!E$10*'Steel Eurocode 3'!X$8)*100*1000 -> 3.550762965 | AK153: 115.7326909 | AL153: 127.4126909 | AM153: 1.545932062e-06 | AN153: 5.888506833e-06 | AO153: 1.214881476e-05 | AP153: 1.90968923e-05
A154: 75 | B154: 2.368 | C154: -446.6046462 | D154: 111.482664 | E154: -17.25128525 | F154: -17.25128525 | G154: -5.779800028 | H154: -7.6640625 | I154: 22.9921875 | J154: 15.328125 | K154: 10.21875 | L154: ='Graph Properties'!C$3*8/2-B154*C$3 -> 70.607664 | M154: 43.164 | N154: 54.4455 | O154: 36.297 | P154: 24.198 | Q154: =C$3*8/2*'Graph Properties'!B154-'Graph Properties'!C$3*B154^2/2 -> 288.5001462 | R154: 1.256690139 | S154: 2.016924079 | T154: =D$17*$E$6/(6*8*'Steel Eurocode 3'!$X$8*'Steel Eurocode 3'!$E$10)*100*1000*X154 -> 1.752692944 | U154: =D$18*E$7/(6*8*'Steel Eurocode 3'!X$8*'Steel Eurocode 3'!E$10)*100*1000*Y154 -> 1.286745119 | V154: =D$14*B154*(8^3-2*8*B154^2+B154^3)/24/('Steel Eurocode 3'!E$10*'Steel Eurocode 3'!X$8)*100*1000 -> 10.93823297 | X154: 116.96162 | Y154: 128.80162 | Z154: 4.470289232e-06 | AA154: 1.703719062e-05 | AB154: 3.518474345e-05 | AC154: 5.535398424e-05 | AE154: 0.4371096135 | AF154: 0.7015388101 | AG154: =C$17*$E$6/(6*8*'Steel Eurocode 3'!$X$8*'Steel Eurocode 3'!$E$10)*100*1000*AK154 -> 0.6096323282 | AH154: =C$18*E$7/(6*8*'Steel Eurocode 3'!X$8*'Steel Eurocode 3'!E$10)*100*1000*Y154 -> 0.4475635198 | AI154: =C$14*B154*(8^3-2*8*B154^2+B154^3)/24/('Steel Eurocode 3'!E$10*'Steel Eurocode 3'!X$8)*100*1000 -> 3.583955756 | AK154: 116.96162 | AL154: 128.80162 | AM154: 1.554883211e-06 | AN154: 5.925979347e-06 | AO154: 1.223817164e-05 | AP154: 1.925355974e-05
A155: 76 | B155: 2.4 | C155: -450.14994 | D155: 110.0982 | E155: -17.40974504 | F155: -17.40974504 | G155: -5.832908014 | H155: -7.6640625 | I155: 22.9921875 | J155: 15.328125 | K155: 10.21875 | L155: ='Graph Properties'!C$3*8/2-B155*C$3 -> 69.2232 | M155: 42.91875 | N155: 55.18125 | O155: 36.7875 | P155: 24.525 | Q155: =C$3*8/2*'Graph Properties'!B155-'Graph Properties'!C$3*B155^2/2 -> 290.73744 | R155: 1.264630765 | S155: 2.035948837 | T155: =D$17*$E$6/(6*8*'Steel Eurocode 3'!$X$8*'Steel Eurocode 3'!$E$10)*100*1000*X155 -> 1.770890668 | U155: =D$18*E$7/(6*8*'Steel Eurocode 3'!X$8*'Steel Eurocode 3'!E$10)*100*1000*Y155 -> 1.300475357 | V155: =D$14*B155*(8^3-2*8*B155^2+B155^3)/24/('Steel Eurocode 3'!E$10*'Steel Eurocode 3'!X$8)*100*1000 -> 11.03779942 | X155: 118.176 | Y155: 130.176 | Z155: 4.495159564e-06 | AA155: 1.714146721e-05 | AB155: 3.543435702e-05 | AC155: 5.579384538e-05 | AE155: 0.4398715703 | AF155: 0.7081561171 | AG155: =C$17*$E$6/(6*8*'Steel Eurocode 3'!$X$8*'Steel Eurocode 3'!$E$10)*100*1000*AK155 -> 0.6159619715 | AH155: =C$18*E$7/(6*8*'Steel Eurocode 3'!X$8*'Steel Eurocode 3'!E$10)*100*1000*Y155 -> 0.4523392544 | AI155: =C$14*B155*(8^3-2*8*B155^2+B155^3)/24/('Steel Eurocode 3'!E$10*'Steel Eurocode 3'!X$8)*100*1000 -> 3.616579101 | AK155: 118.176 | AL155: 130.176 | AM155: 1.563533761e-06 | AN155: 5.962249465e-06 | AO155: 1.232499375e-05 | AP155: 1.940655492e-05
A156: 77 | B156: 2.432 | C156: -453.650931 | D156: 108.713736 | E156: -17.56549589 | F156: -17.56549589 | G156: -5.885109088 | H156: -7.6640625 | I156: 22.9921875 | J156: 15.328125 | K156: 10.21875 | L156: ='Graph Properties'!C$3*8/2-B156*C$3 -> 67.838736 | M156: 42.6735 | N156: 55.917 | O156: 37.278 | P156: 24.852 | Q156: =C$3*8/2*'Graph Properties'!B156-'Graph Properties'!C$3*B156^2/2 -> 292.930431 | R156: 1.272313597 | S156: 2.054642146 | T156: =D$17*$E$6/(6*8*'Steel Eurocode 3'!$X$8*'Steel Eurocode 3'!$E$10)*100*1000*X156 -> 1.788867427 | U156: =D$18*E$7/(6*8*'Steel Eurocode 3'!X$8*'Steel Eurocode 3'!E$10)*100*1000*Y156 -> 1.314058283 | V156: =D$14*B156*(8^3-2*8*B156^2+B156^3)/24/('Steel Eurocode 3'!E$10*'Steel Eurocode 3'!X$8)*100*1000 -> 11.13561443 | X156: 119.3756344 | Y156: 131.5356344 | Z156: 4.519170585e-06 | AA156: 1.724230656e-05 | AB156: 3.567667892e-05 | AC156: 5.622310038e-05 | AE156: 0.4425438599 | AF156: 0.7146581376 | AG156: =C$17*$E$6/(6*8*'Steel Eurocode 3'!$X$8*'Steel Eurocode 3'!$E$10)*100*1000*AK156 -> 0.6222147571 | AH156: =C$18*E$7/(6*8*'Steel Eurocode 3'!X$8*'Steel Eurocode 3'!E$10)*100*1000*Y156 -> 0.4570637507 | AI156: =C$14*B156*(8^3-2*8*B156^2+B156^3)/24/('Steel Eurocode 3'!E$10*'Steel Eurocode 3'!X$8)*100*1000 -> 3.648628582 | AK156: 119.3756344 | AL156: 131.5356344 | AM156: 1.571885421e-06 | AN156: 5.99732402e-06 | AO156: 1.240927963e-05 | AP156: 1.9555861e-05
A157: 78 | B157: 2.464 | C157: -457.1076191 | D157: 107.329272 | E157: -17.71851671 | F157: -17.71851671 | G157: -5.936396187 | H157: -7.6640625 | I157: 22.9921875 | J157: 15.328125 | K157: 10.21875 | L157: ='Graph Properties'!C$3*8/2-B157*C$3 -> 66.454272 | M157: 42.42825 | N157: 56.65275 | O157: 37.7685 | P157: 25.179 | Q157: =C$3*8/2*'Graph Properties'!B157-'Graph Properties'!C$3*B157^2/2 -> 295.0791191 | R157: 1.279740109 | S157: 2.072999587 | T157: =D$17*$E$6/(6*8*'Steel Eurocode 3'!$X$8*'Steel Eurocode 3'!$E$10)*100*1000*X157 -> 1.806620273 | U157: =D$18*E$7/(6*8*'Steel Eurocode 3'!X$8*'Steel Eurocode 3'!E$10)*100*1000*Y157 -> 1.327491935 | V157: =D$14*B157*(8^3-2*8*B157^2+B157^3)/24/('Steel Eurocode 3'!E$10*'Steel Eurocode 3'!X$8)*100*1000 -> 11.23166481 | X157: 120.5603267 | Y157: 132.8803267 | Z157: 4.542327204e-06 | AA157: 1.73397283e-05 | AB157: 3.591170748e-05 | AC157: 5.664170335e-05 | AE157: 0.4451269946 | AF157: 0.7210433345 | AG157: =C$17*$E$6/(6*8*'Steel Eurocode 3'!$X$8*'Steel Eurocode 3'!$E$10)*100*1000*AK157 -> 0.6283896602 | AH157: =C$18*E$7/(6*8*'Steel Eurocode 3'!X$8*'Steel Eurocode 3'!E$10)*100*1000*Y157 -> 0.4617363254 | AI157: =C$14*B157*(8^3-2*8*B157^2+B157^3)/24/('Steel Eurocode 3'!E$10*'Steel Eurocode 3'!X$8)*100*1000 -> 3.680099872 | AK157: 120.5603267 | AL157: 132.8803267 | AM157: 1.579939897e-06 | AN157: 6.031209843e-06 | AO157: 1.249102869e-05 | AP157: 1.970146203e-05
A158: 79 | B158: 2.496 | C158: -460.5200044 | D158: 105.944808 | E158: -17.86878673 | F158: -17.86878673 | G158: -5.986762338 | H158: -7.6640625 | I158: 22.9921875 | J158: 15.328125 | K158: 10.21875 | L158: ='Graph Properties'!C$3*8/2-B158*C$3 -> 65.069808 | M158: 42.183 | N158: 57.3885 | O158: 38.259 | P158: 25.506 | Q158: =C$3*8/2*'Graph Properties'!B158-'Graph Properties'!C$3*B158^2/2 -> 297.1835044 | R158: 1.286911774 | S158: 2.091016741 | T158: =D$17*$E$6/(6*8*'Steel Eurocode 3'!$X$8*'Steel Eurocode 3'!$E$10)*100*1000*X158 -> 1.824146262 | U158: =D$18*E$7/(6*8*'Steel Eurocode 3'!X$8*'Steel Eurocode 3'!E$10)*100*1000*Y158 -> 1.340774349 | V158: =D$14*B158*(8^3-2*8*B158^2+B158^3)/24/('Steel Eurocode 3'!E$10*'Steel Eurocode 3'!X$8)*100*1000 -> 11.3259376 | X158: 121.7298801 | Y158: 134.2098801 | Z158: 4.564634334e-06 | AA158: 1.743375208e-05 | AB158: 3.613944351e-05 | AC158: 5.704961092e-05 | AE158: 0.4476214868 | AF158: 0.7273101706 | AG158: =C$17*$E$6/(6*8*'Steel Eurocode 3'!$X$8*'Steel Eurocode 3'!$E$10)*100*1000*AK158 -> 0.6344856562 | AH158: =C$18*E$7/(6*8*'Steel Eurocode 3'!X$8*'Steel Eurocode 3'!E$10)*100*1000*Y158 -> 0.4663562952 | AI158: =C$14*B158*(8^3-2*8*B158^2+B158^3)/24/('Steel Eurocode 3'!E$10*'Steel Eurocode 3'!X$8)*100*1000 -> 3.710988729 | AK158: 121.7298801 | AL158: 134.2098801 | AM158: 1.587698899e-06 | AN158: 6.063913766e-06 | AO158: 1.257024122e-05 | AP158: 1.984334293e-05
A159: 80 | B159: 2.528 | C159: -463.8880868 | D159: 104.560344 | E159: -18.01628539 | F159: -18.01628539 | G159: -6.036200654 | H159: -7.6640625 | I159: 22.9921875 | J159: 15.328125 | K159: 10.21875 | L159: ='Graph Properties'!C$3*8/2-B159*C$3 -> 63.685344 | M159: 41.93775 | N159: 58.12425 | O159: 38.7495 | P159: 25.833 | Q159: =C$3*8/2*'Graph Properties'!B159-'Graph Properties'!C$3*B159^2/2 -> 299.2435868 | R159: 1.293830066 | S159: 2.108689188 | T159: =D$17*$E$6/(6*8*'Steel Eurocode 3'!$X$8*'Steel Eurocode 3'!$E$10)*100*1000*X159 -> 1.841442446 | U159: =D$18*E$7/(6*8*'Steel Eurocode 3'!X$8*'Steel Eurocode 3'!E$10)*100*1000*Y159 -> 1.353903559 | V159: =D$14*B159*(8^3-2*8*B159^2+B159^3)/24/('Steel Eurocode 3'!E$10*'Steel Eurocode 3'!X$8)*100*1000 -> 11.41842013 | X159: 122.884098 | Y159: 135.524098 | Z159: 4.586096883e-06 | AA159: 1.752439754e-05 | AB159: 3.635989036e-05 | AC159: 5.744678224e-05 | AE159: 0.4500278489 | AF159: 0.7334571088 | AG159: =C$17*$E$6/(6*8*'Steel Eurocode 3'!$X$8*'Steel Eurocode 3'!$E$10)*100*1000*AK159 -> 0.6405017203 | AH159: =C$18*E$7/(6*8*'Steel Eurocode 3'!X$8*'Steel Eurocode 3'!E$10)*100*1000*Y159 -> 0.4709229771 | AI159: =C$14*B159*(8^3-2*8*B159^2+B159^3)/24/('Steel Eurocode 3'!E$10*'Steel Eurocode 3'!X$8)*100*1000 -> 3.741290999 | AK159: 122.884098 | AL159: 135.524098 | AM159: 1.595164133e-06 | AN159: 6.095442622e-06 | AO159: 1.264691839e-05 | AP159: 1.998148948e-05
A160: 81 | B160: 2.56 | C160: -467.2118664 | D160: 103.17588 | E160: -18.16099243 | F160: -18.16099243 | G160: -6.084704337 | H160: -7.6640625 | I160: 22.9921875 | J160: 15.328125 | K160: 10.21875 | L160: ='Graph Properties'!C$3*8/2-B160*C$3 -> 62.30088 | M160: 41.6925 | N160: 58.86 | O160: 39.24 | P160: 26.16 | Q160: =C$3*8/2*'Graph Properties'!B160-'Graph Properties'!C$3*B160^2/2 -> 301.2593664 | R160: 1.300496456 | S160: 2.126012509 | T160: =D$17*$E$6/(6*8*'Steel Eurocode 3'!$X$8*'Steel Eurocode 3'!$E$10)*100*1000*X160 -> 1.858505879 | U160: =D$18*E$7/(6*8*'Steel Eurocode 3'!X$8*'Steel Eurocode 3'!E$10)*100*1000*Y160 -> 1.366877603 | V160: =D$14*B160*(8^3-2*8*B160^2+B160^3)/24/('Steel Eurocode 3'!E$10*'Steel Eurocode 3'!X$8)*100*1000 -> 11.50909999 | X160: 124.022784 | Y160: 136.822784 | Z160: 4.606719762e-06 | AA160: 1.761168432e-05 | AB160: 3.657305388e-05 | AC160: 5.783317897e-05 | AE160: 0.4523465933 | AF160: 0.739482612 | AG160: =C$17*$E$6/(6*8*'Steel Eurocode 3'!$X$8*'Steel Eurocode 3'!$E$10)*100*1000*AK160 -> 0.6464368276 | AH160: =C$18*E$7/(6*8*'Steel Eurocode 3'!X$8*'Steel Eurocode 3'!E$10)*100*1000*Y160 -> 0.4754356879 | AI160: =C$14*B160*(8^3-2*8*B160^2+B160^3)/24/('Steel Eurocode 3'!E$10*'Steel Eurocode 3'!X$8)*100*1000 -> 3.771002616 | AK160: 124.022784 | AL160: 136.822784 | AM160: 1.602337309e-06 | AN160: 6.125803241e-06 | AO160: 1.272106222e-05 | AP160: 2.011588834e-05
A161: 82 | B161: 2.592 | C161: -470.4913431 | D161: 101.791416 | E161: -18.30288786 | F161: -18.30288786 | G161: -6.132266675 | H161: -7.6640625 | I161: 22.9921875 | J161: 15.328125 | K161: 10.21875 | L161: ='Graph Properties'!C$3*8/2-B161*C$3 -> 60.916416 | M161: 41.44725 | N161: 59.59575 | O161: 39.7305 | P161: 26.487 | Q161: =C$3*8/2*'Graph Properties'!B161-'Graph Properties'!C$3*B161^2/2 -> 303.2308431 | R161: 1.306912418 | S161: 2.142982286 | T161: =D$17*$E$6/(6*8*'Steel Eurocode 3'!$X$8*'Steel Eurocode 3'!$E$10)*100*1000*X161 -> 1.875333616 | U161: =D$18*E$7/(6*8*'Steel Eurocode 3'!X$8*'Steel Eurocode 3'!E$10)*100*1000*Y161 -> 1.379694515 | V161: =D$14*B161*(8^3-2*8*B161^2+B161^3)/24/('Steel Eurocode 3'!E$10*'Steel Eurocode 3'!X$8)*100*1000 -> 11.59796502 | X161: 125.1457413 | Y161: 138.1057413 | Z161: 4.626507882e-06 | AA161: 1.769563206e-05 | AB161: 3.677894243e-05 | AC161: 5.820876529e-05 | AE161: 0.4545782323 | AF161: 0.7453851429 | AG161: =C$17*$E$6/(6*8*'Steel Eurocode 3'!$X$8*'Steel Eurocode 3'!$E$10)*100*1000*AK161 -> 0.6522899535 | AH161: =C$18*E$7/(6*8*'Steel Eurocode 3'!X$8*'Steel Eurocode 3'!E$10)*100*1000*Y161 -> 0.4798937443 | AI161: =C$14*B161*(8^3-2*8*B161^2+B161^3)/24/('Steel Eurocode 3'!E$10*'Steel Eurocode 3'!X$8)*100*1000 -> 3.800119602 | AK161: 125.1457413 | AL161: 138.1057413 | AM161: 1.609220133e-06 | AN161: 6.155002456e-06 | AO161: 1.279267563e-05 | AP161: 2.024652706e-05
A162: 83 | B162: 2.624 | C162: -473.726517 | D162: 100.406952 | E162: -18.44195194 | F162: -18.44195194 | G162: -6.178881043 | H162: -7.6640625 | I162: 22.9921875 | J162: 15.328125 | K162: 10.21875 | L162: ='Graph Properties'!C$3*8/2-B162*C$3 -> 59.531952 | M162: 41.202 | N162: 60.3315 | O162: 40.221 | P162: 26.814 | Q162: =C$3*8/2*'Graph Properties'!B162-'Graph Properties'!C$3*B162^2/2 -> 305.158017 | R162: 1.313079426 | S162: 2.159594098 | T162: =D$17*$E$6/(6*8*'Steel Eurocode 3'!$X$8*'Steel Eurocode 3'!$E$10)*100*1000*X162 -> 1.89192271 | U162: =D$18*E$7/(6*8*'Steel Eurocode 3'!X$8*'Steel Eurocode 3'!E$10)*100*1000*Y162 -> 1.392352332 | V162: =D$14*B162*(8^3-2*8*B162^2+B162^3)/24/('Steel Eurocode 3'!E$10*'Steel Eurocode 3'!X$8)*100*1000 -> 11.68500337 | X162: 126.2527734 | Y162: 139.3727734 | Z162: 4.645466153e-06 | AA162: 1.777626041e-05 | AB162: 3.69775669e-05 | AC162: 5.857350788e-05 | AE162: 0.4567232785 | AF162: 0.7511631644 | AG162: =C$17*$E$6/(6*8*'Steel Eurocode 3'!$X$8*'Steel Eurocode 3'!$E$10)*100*1000*AK162 -> 0.6580600731 | AH162: =C$18*E$7/(6*8*'Steel Eurocode 3'!X$8*'Steel Eurocode 3'!E$10)*100*1000*Y162 -> 0.4842964632 | AI162: =C$14*B162*(8^3-2*8*B162^2+B162^3)/24/('Steel Eurocode 3'!E$10*'Steel Eurocode 3'!X$8)*100*1000 -> 3.828638064 | AK162: 126.2527734 | AL162: 139.3727734 | AM162: 1.615814314e-06 | AN162: 6.183047099e-06 | AO162: 1.28617624e-05 | AP162: 2.037339404e-05
A163: 84 | B163: 2.656 | C163: -476.9173881 | D163: 99.022488 | E163: -18.5781652 | F163: -18.5781652 | G163: -6.224540906 | H163: -7.6640625 | I163: 22.9921875 | J163: 15.328125 | K163: 10.21875 | L163: ='Graph Properties'!C$3*8/2-B163*C$3 -> 58.147488 | M163: 40.95675 | N163: 61.06725 | O163: 40.7115 | P163: 27.141 | Q163: =C$3*8/2*'Graph Properties'!B163-'Graph Properties'!C$3*B163^2/2 -> 307.0408881 | R163: 1.318998952 | S163: 2.175843526 | T163: =D$17*$E$6/(6*8*'Steel Eurocode 3'!$X$8*'Steel Eurocode 3'!$E$10)*100*1000*X163 -> 1.908270215 | U163: =D$18*E$7/(6*8*'Steel Eurocode 3'!X$8*'Steel Eurocode 3'!E$10)*100*1000*Y163 -> 1.404849089 | V163: =D$14*B163*(8^3-2*8*B163^2+B163^3)/24/('Steel Eurocode 3'!E$10*'Steel Eurocode 3'!X$8)*100*1000 -> 11.77020342 | X163: 127.3436836 | Y163: 140.6236836 | Z163: 4.663599485e-06 | AA163: 1.7853589e-05 | AB163: 3.716894069e-05 | AC163: 5.892737594e-05 | AE163: 0.458782244 | AF163: 0.7568151394 | AG163: =C$17*$E$6/(6*8*'Steel Eurocode 3'!$X$8*'Steel Eurocode 3'!$E$10)*100*1000*AK163 -> 0.6637461616 | AH163: =C$18*E$7/(6*8*'Steel Eurocode 3'!X$8*'Steel Eurocode 3'!E$10)*100*1000*Y163 -> 0.4886431615 | AI163: =C$14*B163*(8^3-2*8*B163^2+B163^3)/24/('Steel Eurocode 3'!E$10*'Steel Eurocode 3'!X$8)*100*1000 -> 3.856554199 | AK163: 127.3436836 | AL163: 140.6236836 | AM163: 1.62212156e-06 | AN163: 6.209944e-06 | AO163: 1.292832719e-05 | AP163: 2.049647859e-05
A164: 85 | B164: 2.688 | C164: -480.0639563 | D164: 97.638024 | E164: -18.71150844 | F164: -18.71150844 | G164: -6.269239813 | H164: -7.6640625 | I164: 22.9921875 | J164: 15.328125 | K164: 10.21875 | L164: ='Graph Properties'!C$3*8/2-B164*C$3 -> 56.763024 | M164: 40.7115 | N164: 61.803 | O164: 41.202 | P164: 27.468 | Q164: =C$3*8/2*'Graph Properties'!B164-'Graph Properties'!C$3*B164^2/2 -> 308.8794563 | R164: 1.324672469 | S164: 2.191726151 | T164: =D$17*$E$6/(6*8*'Steel Eurocode 3'!$X$8*'Steel Eurocode 3'!$E$10)*100*1000*X164 -> 1.924373184 | U164: =D$18*E$7/(6*8*'Steel Eurocode 3'!X$8*'Steel Eurocode 3'!E$10)*100*1000*Y164 -> 1.417182823 | V164: =D$14*B164*(8^3-2*8*B164^2+B164^3)/24/('Steel Eurocode 3'!E$10*'Steel Eurocode 3'!X$8)*100*1000 -> 11.85355382 | X164: 128.4182753 | Y164: 141.8582753 | Z164: 4.680912789e-06 | AA164: 1.792763748e-05 | AB164: 3.735307969e-05 | AC164: 5.92703412e-05 | AE164: 0.4607556414 | AF164: 0.7623395306 | AG164: =C$17*$E$6/(6*8*'Steel Eurocode 3'!$X$8*'Steel Eurocode 3'!$E$10)*100*1000*AK164 -> 0.6693471944 | AH164: =C$18*E$7/(6*8*'Steel Eurocode 3'!X$8*'Steel Eurocode 3'!E$10)*100*1000*Y164 -> 0.4929331559 | AI164: =C$14*B164*(8^3-2*8*B164^2+B164^3)/24/('Steel Eurocode 3'!E$10*'Steel Eurocode 3'!X$8)*100*1000 -> 3.883864291 | AK164: 128.4182753 | AL164: 141.8582753 | AM164: 1.628143579e-06 | AN164: 6.235699993e-06 | AO164: 1.299237554e-05 | AP164: 2.061577085e-05
A165: 86 | B165: 2.72 | C165: -483.1662216 | D165: 96.25356 | E165: -18.84196274 | F165: -18.84196274 | G165: -6.312971404 | H165: -7.6640625 | I165: 22.9921875 | J165: 15.328125 | K165: 10.21875 | L165: ='Graph Properties'!C$3*8/2-B165*C$3 -> 55.37856 | M165: 40.46625 | N165: 62.53875 | O165: 41.6925 | P165: 27.795 | Q165: =C$3*8/2*'Graph Properties'!B165-'Graph Properties'!C$3*B165^2/2 -> 310.6737216 | R165: 1.330101451 | S165: 2.207237553 | T165: =D$17*$E$6/(6*8*'Steel Eurocode 3'!$X$8*'Steel Eurocode 3'!$E$10)*100*1000*X165 -> 1.940228672 | U165: =D$18*E$7/(6*8*'Steel Eurocode 3'!X$8*'Steel Eurocode 3'!E$10)*100*1000*Y165 -> 1.429351569 | V165: =D$14*B165*(8^3-2*8*B165^2+B165^3)/24/('Steel Eurocode 3'!E$10*'Steel Eurocode 3'!X$8)*100*1000 -> 11.9350435 | X165: 129.476352 | Y165: 143.076352 | Z165: 4.697410975e-06 | AA165: 1.799842549e-05 | AB165: 3.753000234e-05 | AC165: 5.960237787e-05 | AE165: 0.462643983 | AF165: 0.7677348011 | AG165: =C$17*$E$6/(6*8*'Steel Eurocode 3'!$X$8*'Steel Eurocode 3'!$E$10)*100*1000*AK165 -> 0.6748621466 | AH165: =C$18*E$7/(6*8*'Steel Eurocode 3'!X$8*'Steel Eurocode 3'!E$10)*100*1000*Y165 -> 0.4971657632 | AI165: =C$14*B165*(8^3-2*8*B165^2+B165^3)/24/('Steel Eurocode 3'!E$10*'Steel Eurocode 3'!X$8)*100*1000 -> 3.91056471 | AK165: 129.476352 | AL165: 143.076352 | AM165: 1.633882078e-06 | AN165: 6.260321908e-06 | AO165: 1.305391386e-05 | AP165: 2.073126187e-05
A166: 87 | B166: 2.752 | C166: -486.2241841 | D166: 94.869096 | E166: -18.96950942 | F166: -18.96950942 | G166: -6.355729404 | H166: -7.6640625 | I166: 22.9921875 | J166: 15.328125 | K166: 10.21875 | L166: ='Graph Properties'!C$3*8/2-B166*C$3 -> 53.994096 | M166: 40.221 | N166: 63.2745 | O166: 42.183 | P166: 28.122 | Q166: =C$3*8/2*'Graph Properties'!B166-'Graph Properties'!C$3*B166^2/2 -> 312.4236841 | R166: 1.335287371 | S166: 2.222373314 | T166: =D$17*$E$6/(6*8*'Steel Eurocode 3'!$X$8*'Steel Eurocode 3'!$E$10)*100*1000*X166 -> 1.955833731 | U166: =D$18*E$7/(6*8*'Steel Eurocode 3'!X$8*'Steel Eurocode 3'!E$10)*100*1000*Y166 -> 1.441353363 | V166: =D$14*B166*(8^3-2*8*B166^2+B166^3)/24/('Steel Eurocode 3'!E$10*'Steel Eurocode 3'!X$8)*100*1000 -> 12.01466164 | X166: 130.517717 | Y166: 144.277717 | Z166: 4.713098953e-06 | AA166: 1.806597266e-05 | AB166: 3.769972957e-05 | AC166: 5.992346271e-05 | AE166: 0.4644477812 | AF166: 0.7729994136 | AG166: =C$17*$E$6/(6*8*'Steel Eurocode 3'!$X$8*'Steel Eurocode 3'!$E$10)*100*1000*AK166 -> 0.6802899935 | AH166: =C$18*E$7/(6*8*'Steel Eurocode 3'!X$8*'Steel Eurocode 3'!E$10)*100*1000*Y166 -> 0.5013403003 | AI166: =C$14*B166*(8^3-2*8*B166^2+B166^3)/24/('Steel Eurocode 3'!E$10*'Steel Eurocode 3'!X$8)*100*1000 -> 3.936651915 | AK166: 130.517717 | AL166: 144.277717 | AM166: 1.639338766e-06 | AN166: 6.283816578e-06 | AO166: 1.311294942e-05 | AP166: 2.084294355e-05
A167: 88 | B167: 2.784 | C167: -489.2378437 | D167: 93.484632 | E167: -19.0941301 | F167: -19.0941301 | G167: -6.397507625 | H167: -7.6640625 | I167: 22.9921875 | J167: 15.328125 | K167: 10.21875 | L167: ='Graph Properties'!C$3*8/2-B167*C$3 -> 52.609632 | M167: 39.97575 | N167: 64.01025 | O167: 42.6735 | P167: 28.449 | Q167: =C$3*8/2*'Graph Properties'!B167-'Graph Properties'!C$3*B167^2/2 -> 314.1293437 | R167: 1.340231701 | S167: 2.237129014 | T167: =D$17*$E$6/(6*8*'Steel Eurocode 3'!$X$8*'Steel Eurocode 3'!$E$10)*100*1000*X167 -> 1.971185417 | U167: =D$18*E$7/(6*8*'Steel Eurocode 3'!X$8*'Steel Eurocode 3'!E$10)*100*1000*Y167 -> 1.453186242 | V167: =D$14*B167*(8^3-2*8*B167^2+B167^3)/24/('Steel Eurocode 3'!E$10*'Steel Eurocode 3'!X$8)*100*1000 -> 12.09239772 | X167: 131.5421737 | Y167: 145.4621737 | Z167: 4.727981634e-06 | AA167: 1.813029865e-05 | AB167: 3.786228484e-05 | AC167: 6.023357498e-05 | AE167: 0.4661675483 | AF167: 0.7781318309 | AG167: =C$17*$E$6/(6*8*'Steel Eurocode 3'!$X$8*'Steel Eurocode 3'!$E$10)*100*1000*AK167 -> 0.6856297103 | AH167: =C$18*E$7/(6*8*'Steel Eurocode 3'!X$8*'Steel Eurocode 3'!E$10)*100*1000*Y167 -> 0.5054560841 | AI167: =C$14*B167*(8^3-2*8*B167^2+B167^3)/24/('Steel Eurocode 3'!E$10*'Steel Eurocode 3'!X$8)*100*1000 -> 3.962122451 | AK167: 131.5421737 | AL167: 145.4621737 | AM167: 1.644515351e-06 | AN167: 6.306190834e-06 | AO167: 1.316949038e-05 | AP167: 2.095080869e-05
A168: 89 | B168: 2.816 | C168: -492.2072005 | D168: 92.100168 | E168: -19.21580662 | F168: -19.21580662 | G168: -6.438299969 | H168: -7.6640625 | I168: 22.9921875 | J168: 15.328125 | K168: 10.21875 | L168: ='Graph Properties'!C$3*8/2-B168*C$3 -> 51.225168 | M168: 39.7305 | N168: 64.746 | O168: 43.164 | P168: 28.776 | Q168: =C$3*8/2*'Graph Properties'!B168-'Graph Properties'!C$3*B168^2/2 -> 315.7907005 | R168: 1.344935916 | S168: 2.251500233 | T168: =D$17*$E$6/(6*8*'Steel Eurocode 3'!$X$8*'Steel Eurocode 3'!$E$10)*100*1000*X168 -> 1.986280783 | U168: =D$18*E$7/(6*8*'Steel Eurocode 3'!X$8*'Steel Eurocode 3'!E$10)*100*1000*Y168 -> 1.46484824 | V168: =D$14*B168*(8^3-2*8*B168^2+B168^3)/24/('Steel Eurocode 3'!E$10*'Steel Eurocode 3'!X$8)*100*1000 -> 12.16824145 | X168: 132.5495255 | Y168: 146.6295255 | Z168: 4.742063928e-06 | AA168: 1.819142309e-05 | AB168: 3.801769411e-05 | AC168: 6.053269645e-05 | AE168: 0.4678037968 | AF168: 0.7831305159 | AG168: =C$17*$E$6/(6*8*'Steel Eurocode 3'!$X$8*'Steel Eurocode 3'!$E$10)*100*1000*AK168 -> 0.6908802722 | AH168: =C$18*E$7/(6*8*'Steel Eurocode 3'!X$8*'Steel Eurocode 3'!E$10)*100*1000*Y168 -> 0.5095124312 | AI168: =C$14*B168*(8^3-2*8*B168^2+B168^3)/24/('Steel Eurocode 3'!E$10*'Steel Eurocode 3'!X$8)*100*1000 -> 3.986972953 | AK168: 132.5495255 | AL168: 146.6295255 | AM168: 1.64941354e-06 | AN168: 6.327451509e-06 | AO168: 1.322354578e-05 | AP168: 2.105485094e-05
A169: 90 | B169: 2.848 | C169: -495.1322545 | D169: 90.715704 | E169: -19.33452114 | F169: -19.33452114 | G169: -6.478100423 | H169: -7.6640625 | I169: 22.9921875 | J169: 15.328125 | K169: 10.21875 | L169: ='Graph Properties'!C$3*8/2-B169*C$3 -> 49.840704 | M169: 39.48525 | N169: 65.48175 | O169: 43.6545 | P169: 29.103 | Q169: =C$3*8/2*'Graph Properties'!B169-'Graph Properties'!C$3*B169^2/2 -> 317.4077545 | R169: 1.349401487 | S169: 2.265482553 | T169: =D$17*$E$6/(6*8*'Steel Eurocode 3'!$X$8*'Steel Eurocode 3'!$E$10)*100*1000*X169 -> 2.001116882 | U169: =D$18*E$7/(6*8*'Steel Eurocode 3'!X$8*'Steel Eurocode 3'!E$10)*100*1000*Y169 -> 1.476337393 | V169: =D$14*B169*(8^3-2*8*B169^2+B169^3)/24/('Steel Eurocode 3'!E$10*'Steel Eurocode 3'!X$8)*100*1000 -> 12.24218283 | X169: 133.5395758 | Y169: 147.7795758 | Z169: 4.755350745e-06 | AA169: 1.824936562e-05 | AB169: 3.816598587e-05 | AC169: 6.08208114e-05 | AE169: 0.4693570391 | AF169: 0.7879939314 | AG169: =C$17*$E$6/(6*8*'Steel Eurocode 3'!$X$8*'Steel Eurocode 3'!$E$10)*100*1000*AK169 -> 0.6960406545 | AH169: =C$18*E$7/(6*8*'Steel Eurocode 3'!X$8*'Steel Eurocode 3'!E$10)*100*1000*Y169 -> 0.5135086586 | AI169: =C$14*B169*(8^3-2*8*B169^2+B169^3)/24/('Steel Eurocode 3'!E$10*'Steel Eurocode 3'!X$8)*100*1000 -> 4.01120014 | AK169: 133.5395758 | AL169: 147.7795758 | AM169: 1.654035042e-06 | AN169: 6.347605433e-06 | AO169: 1.327512552e-05 | AP169: 2.115506483e-05
A170: 91 | B170: 2.88 | C170: -498.0130056 | D170: 89.33124 | E170: -19.45025605 | F170: -19.45025605 | G170: -6.516903064 | H170: -7.6640625 | I170: 22.9921875 | J170: 15.328125 | K170: 10.21875 | L170: ='Graph Properties'!C$3*8/2-B170*C$3 -> 48.45624 | M170: 39.24 | N170: 66.2175 | O170: 44.145 | P170: 29.43 | Q170: =C$3*8/2*'Graph Properties'!B170-'Graph Properties'!C$3*B170^2/2 -> 318.9805056 | R170: 1.353629889 | S170: 2.279071554 | T170: =D$17*$E$6/(6*8*'Steel Eurocode 3'!$X$8*'Steel Eurocode 3'!$E$10)*100*1000*X170 -> 2.015690768 | U170: =D$18*E$7/(6*8*'Steel Eurocode 3'!X$8*'Steel Eurocode 3'!E$10)*100*1000*Y170 -> 1.487651739 | V170: =D$14*B170*(8^3-2*8*B170^2+B170^3)/24/('Steel Eurocode 3'!E$10*'Steel Eurocode 3'!X$8)*100*1000 -> 12.3142121 | X170: 134.512128 | Y170: 148.912128 | Z170: 4.767846996e-06 | AA170: 1.830414589e-05 | AB170: 3.830719109e-05 | AC170: 6.109790663e-05 | AE170: 0.4708277875 | AF170: 0.7927205404 | AG170: =C$17*$E$6/(6*8*'Steel Eurocode 3'!$X$8*'Steel Eurocode 3'!$E$10)*100*1000*AK170 -> 0.7011098324 | AH170: =C$18*E$7/(6*8*'Steel Eurocode 3'!X$8*'Steel Eurocode 3'!E$10)*100*1000*Y170 -> 0.5174440831 | AI170: =C$14*B170*(8^3-2*8*B170^2+B170^3)/24/('Steel Eurocode 3'!E$10*'Steel Eurocode 3'!X$8)*100*1000 -> 4.034800821 | AK170: 134.512128 | AL170: 148.912128 | AM170: 1.658381564e-06 | AN170: 6.366659439e-06 | AO170: 1.332424038e-05 | AP170: 2.125144578e-05
A171: 92 | B171: 2.912 | C171: -500.8494539 | D171: 87.946776 | E171: -19.56299403 | F171: -19.56299403 | G171: -6.554702053 | H171: -7.6640625 | I171: 22.9921875 | J171: 15.328125 | K171: 10.21875 | L171: ='Graph Properties'!C$3*8/2-B171*C$3 -> 47.071776 | M171: 38.99475 | N171: 66.95325 | O171: 44.6355 | P171: 29.757 | Q171: =C$3*8/2*'Graph Properties'!B171-'Graph Properties'!C$3*B171^2/2 -> 320.5089539 | R171: 1.357622594 | S171: 2.292262816 | T171: =D$17*$E$6/(6*8*'Steel Eurocode 3'!$X$8*'Steel Eurocode 3'!$E$10)*100*1000*X171 -> 2.029999496 | U171: =D$18*E$7/(6*8*'Steel Eurocode 3'!X$8*'Steel Eurocode 3'!E$10)*100*1000*Y171 -> 1.498789312 | V171: =D$14*B171*(8^3-2*8*B171^2+B171^3)/24/('Steel Eurocode 3'!E$10*'Steel Eurocode 3'!X$8)*100*1000 -> 12.38431981 | X171: 135.4669855 | Y171: 150.0269855 | Z171: 4.779557592e-06 | AA171: 1.835578353e-05 | AB171: 3.84413433e-05 | AC171: 6.136397147e-05 | AE171: 0.4722165544 | AF171: 0.7973088056 | AG171: =C$17*$E$6/(6*8*'Steel Eurocode 3'!$X$8*'Steel Eurocode 3'!$E$10)*100*1000*AK171 -> 0.7060867811 | AH171: =C$18*E$7/(6*8*'Steel Eurocode 3'!X$8*'Steel Eurocode 3'!E$10)*100*1000*Y171 -> 0.5213180214 | AI171: =C$14*B171*(8^3-2*8*B171^2+B171^3)/24/('Steel Eurocode 3'!E$10*'Steel Eurocode 3'!X$8)*100*1000 -> 4.057771891 | AK171: 135.4669855 | AL171: 150.0269855 | AM171: 1.662454814e-06 | AN171: 6.384620359e-06 | AO171: 1.337090202e-05 | AP171: 2.134399007e-05
A172: 93 | B172: 2.944 | C172: -503.6415993 | D172: 86.562312 | E172: -19.672718 | F172: -19.672718 | G172: -6.591491642 | H172: -7.6640625 | I172: 22.9921875 | J172: 15.328125 | K172: 10.21875 | L172: ='Graph Properties'!C$3*8/2-B172*C$3 -> 45.687312 | M172: 38.7495 | N172: 67.689 | O172: 45.126 | P172: 30.084 | Q172: =C$3*8/2*'Graph Properties'!B172-'Graph Properties'!C$3*B172^2/2 -> 321.9930993 | R172: 1.361381075 | S172: 2.305051921 | T172: =D$17*$E$6/(6*8*'Steel Eurocode 3'!$X$8*'Steel Eurocode 3'!$E$10)*100*1000*X172 -> 2.044040118 | U172: =D$18*E$7/(6*8*'Steel Eurocode 3'!X$8*'Steel Eurocode 3'!E$10)*100*1000*Y172 -> 1.509748148 | V172: =D$14*B172*(8^3-2*8*B172^2+B172^3)/24/('Steel Eurocode 3'!E$10*'Steel Eurocode 3'!X$8)*100*1000 -> 12.45249674 | X172: 136.4039516 | Y172: 151.1239516 | Z172: 4.790487441e-06 | AA172: 1.840429819e-05 | AB172: 3.856847852e-05 | AC172: 6.161899773e-05 | AE172: 0.4735238522 | AF172: 0.8017571899 | AG172: =C$17*$E$6/(6*8*'Steel Eurocode 3'!$X$8*'Steel Eurocode 3'!$E$10)*100*1000*AK172 -> 0.7109704759 | AH172: =C$18*E$7/(6*8*'Steel Eurocode 3'!X$8*'Steel Eurocode 3'!E$10)*100*1000*Y172 -> 0.5251297905 | AI172: =C$14*B172*(8^3-2*8*B172^2+B172^3)/24/('Steel Eurocode 3'!E$10*'Steel Eurocode 3'!X$8)*100*1000 -> 4.080110334 | AK172: 136.4039516 | AL172: 151.1239516 | AM172: 1.666256501e-06 | AN172: 6.401495023e-06 | AO172: 1.341512296e-05 | AP172: 2.143269486e-05
A173: 94 | B173: 2.976 | C173: -506.3894418 | D173: 85.177848 | E173: -19.77941117 | F173: -19.77941117 | G173: -6.627266168 | H173: -7.6640625 | I173: 22.9921875 | J173: 15.328125 | K173: 10.21875 | L173: ='Graph Properties'!C$3*8/2-B173*C$3 -> 44.302848 | M173: 38.50425 | N173: 68.42475 | O173: 45.6165 | P173: 30.411 | Q173: =C$3*8/2*'Graph Properties'!B173-'Graph Properties'!C$3*B173^2/2 -> 323.4329418 | R173: 1.364906806 | S173: 2.317434449 | T173: =D$17*$E$6/(6*8*'Steel Eurocode 3'!$X$8*'Steel Eurocode 3'!$E$10)*100*1000*X173 -> 2.057809689 | U173: =D$18*E$7/(6*8*'Steel Eurocode 3'!X$8*'Steel Eurocode 3'!E$10)*100*1000*Y173 -> 1.520526283 | V173: =D$14*B173*(8^3-2*8*B173^2+B173^3)/24/('Steel Eurocode 3'!E$10*'Steel Eurocode 3'!X$8)*100*1000 -> 12.51873395 | X173: 137.3228298 | Y173: 152.2028298 | Z173: 4.800641456e-06 | AA173: 1.844970951e-05 | AB173: 3.868863528e-05 | AC173: 6.186297977e-05 | AE173: 0.4747501933 | AF173: 0.8060641561 | AG173: =C$17*$E$6/(6*8*'Steel Eurocode 3'!$X$8*'Steel Eurocode 3'!$E$10)*100*1000*AK173 -> 0.7157598919 | AH173: =C$18*E$7/(6*8*'Steel Eurocode 3'!X$8*'Steel Eurocode 3'!E$10)*100*1000*Y173 -> 0.528878707 | AI173: =C$14*B173*(8^3-2*8*B173^2+B173^3)/24/('Steel Eurocode 3'!E$10*'Steel Eurocode 3'!X$8)*100*1000 -> 4.10181322 | AK173: 137.3228298 | AL173: 152.2028298 | AM173: 1.669788332e-06 | AN173: 6.417290265e-06 | AO173: 1.345691662e-05 | AP173: 2.151755818e-05
A174: 95 | B174: 3.008 | C174: -509.0916735 | D174: 83.466384 | E174: -19.88305702 | F174: -19.88305702 | G174: -6.662020056 | H174: -7.6640625 | I174: 22.6651875 | J174: 15.328125 | K174: 10.21875 | L174: ='Graph Properties'!C$3*8/2-B174*C$3 -> 42.918384 | M174: 38.259 | N174: 69.159192 | O174: 46.107 | P174: 30.738 | Q174: =C$3*8/2*'Graph Properties'!B174-'Graph Properties'!C$3*B174^2/2 -> 324.8284815 | R174: 1.368201259 | S174: 2.329405981 | T174: =D$17*$E$6/(6*8*'Steel Eurocode 3'!$X$8*'Steel Eurocode 3'!$E$10)*100*1000*X174 -> 2.071305263 | U174: =D$18*E$7/(6*8*'Steel Eurocode 3'!X$8*'Steel Eurocode 3'!E$10)*100*1000*Y174 -> 1.531121753 | V174: =D$14*B174*(8^3-2*8*B174^2+B174^3)/24/('Steel Eurocode 3'!E$10*'Steel Eurocode 3'!X$8)*100*1000 -> 12.58302276 | X174: 138.2234235 | Y174: 153.2634235 | Z174: 4.810024545e-06 | AA174: 1.849203713e-05 | AB174: 3.880185463e-05 | AC174: 6.209591444e-05 | AE174: 0.4758960901 | AF174: 0.8102281671 | AG174: =C$17*$E$6/(6*8*'Steel Eurocode 3'!$X$8*'Steel Eurocode 3'!$E$10)*100*1000*AK174 -> 0.7204540045 | AH174: =C$18*E$7/(6*8*'Steel Eurocode 3'!X$8*'Steel Eurocode 3'!E$10)*100*1000*Y174 -> 0.532564088 | AI174: =C$14*B174*(8^3-2*8*B174^2+B174^3)/24/('Steel Eurocode 3'!E$10*'Steel Eurocode 3'!X$8)*100*1000 -> 4.122877707 | AK174: 138.2234235 | AL174: 153.2634235 | AM174: 1.673052016e-06 | AN174: 6.432012916e-06 | AO174: 1.349629726e-05 | AP174: 2.159857893e-05
A175: 96 | B175: 3.04 | C175: -511.7195184 | D175: 80.77392 | E175: -19.98363929 | F175: -19.98363929 | G175: -6.695747829 | H175: -7.6640625 | I175: 21.3571875 | J175: 15.328125 | K175: 10.21875 | L175: ='Graph Properties'!C$3*8/2-B175*C$3 -> 41.53392 | M175: 38.01375 | N175: 69.86355 | O175: 46.5975 | P175: 31.065 | Q175: =C$3*8/2*'Graph Properties'!B175-'Graph Properties'!C$3*B175^2/2 -> 326.1797184 | R175: 1.371265908 | S175: 2.340962122 | T175: =D$17*$E$6/(6*8*'Steel Eurocode 3'!$X$8*'Steel Eurocode 3'!$E$10)*100*1000*X175 -> 2.084523893 | U175: =D$18*E$7/(6*8*'Steel Eurocode 3'!X$8*'Steel Eurocode 3'!E$10)*100*1000*Y175 -> 1.541532594 | V175: =D$14*B175*(8^3-2*8*B175^2+B175^3)/24/('Steel Eurocode 3'!E$10*'Steel Eurocode 3'!X$8)*100*1000 -> 12.64535477 | X175: 139.105536 | Y175: 154.305536 | Z175: 4.81864162e-06 | AA175: 1.85313007e-05 | AB175: 3.890817988e-05 | AC175: 6.231780111e-05 | AE175: 0.4769620549 | AF175: 0.8142476947 | AG175: =C$17*$E$6/(6*8*'Steel Eurocode 3'!$X$8*'Steel Eurocode 3'!$E$10)*100*1000*AK175 -> 0.7250517888 | AH175: =C$18*E$7/(6*8*'Steel Eurocode 3'!X$8*'Steel Eurocode 3'!E$10)*100*1000*Y175 -> 0.53618525 | AI175: =C$14*B175*(8^3-2*8*B175^2+B175^3)/24/('Steel Eurocode 3'!E$10*'Steel Eurocode 3'!X$8)*100*1000 -> 4.14330104 | AK175: 139.105536 | AL175: 154.305536 | AM175: 1.676049259e-06 | AN175: 6.445669808e-06 | AO175: 1.353327996e-05 | AP175: 2.167575691e-05
A176: 97 | B176: 3.072 | C176: -514.2612044 | D176: 78.081456 | E176: -20.08114219 | F176: -20.08114219 | G176: -6.728444152 | H176: -7.6640625 | I176: 20.0491875 | J176: 15.328125 | K176: 10.21875 | L176: ='Graph Properties'!C$3*8/2-B176*C$3 -> 40.149456 | M176: 37.7685 | N176: 70.526052 | O176: 47.088 | P176: 31.392 | Q176: =C$3*8/2*'Graph Properties'!B176-'Graph Properties'!C$3*B176^2/2 -> 327.4866524 | R176: 1.374102225 | S176: 2.352098646 | T176: =D$17*$E$6/(6*8*'Steel Eurocode 3'!$X$8*'Steel Eurocode 3'!$E$10)*100*1000*X176 -> 2.097462633 | U176: =D$18*E$7/(6*8*'Steel Eurocode 3'!X$8*'Steel Eurocode 3'!E$10)*100*1000*Y176 -> 1.551756842 | V176: =D$14*B176*(8^3-2*8*B176^2+B176^3)/24/('Steel Eurocode 3'!E$10*'Steel Eurocode 3'!X$8)*100*1000 -> 12.70572185 | X176: 139.9689708 | Y176: 155.3289708 | Z176: 4.826497591e-06 | AA176: 1.856751984e-05 | AB176: 3.90076552e-05 | AC176: 6.252864166e-05 | AE176: 0.4779486001 | AF176: 0.8181212683 | AG176: =C$17*$E$6/(6*8*'Steel Eurocode 3'!$X$8*'Steel Eurocode 3'!$E$10)*100*1000*AK176 -> 0.7295522202 | AH176: =C$18*E$7/(6*8*'Steel Eurocode 3'!X$8*'Steel Eurocode 3'!E$10)*100*1000*Y176 -> 0.5397415101 | AI176: =C$14*B176*(8^3-2*8*B176^2+B176^3)/24/('Steel Eurocode 3'!E$10*'Steel Eurocode 3'!X$8)*100*1000 -> 4.163080553 | AK176: 139.9689708 | AL176: 155.3289708 | AM176: 1.678781771e-06 | AN176: 6.458267772e-06 | AO176: 1.356788007e-05 | AP176: 2.174909275e-05
A177: 98 | B177: 3.104 | C177: -516.7167316 | D177: 75.388992 | E177: -20.17555043 | F177: -20.17555043 | G177: -6.760103866 | H177: -7.6640625 | I177: 18.7411875 | J177: 15.328125 | K177: 10.21875 | L177: ='Graph Properties'!C$3*8/2-B177*C$3 -> 38.764992 | M177: 37.52325 | N177: 71.146698 | O177: 47.5785 | P177: 31.719 | Q177: =C$3*8/2*'Graph Properties'!B177-'Graph Properties'!C$3*B177^2/2 -> 328.7492836 | R177: 1.376711685 | S177: 2.362811574 | T177: =D$17*$E$6/(6*8*'Steel Eurocode 3'!$X$8*'Steel Eurocode 3'!$E$10)*100*1000*X177 -> 2.110118537 | U177: =D$18*E$7/(6*8*'Steel Eurocode 3'!X$8*'Steel Eurocode 3'!E$10)*100*1000*Y177 -> 1.561792532 | V177: =D$14*B177*(8^3-2*8*B177^2+B177^3)/24/('Steel Eurocode 3'!E$10*'Steel Eurocode 3'!X$8)*100*1000 -> 12.76411611 | X177: 140.8135311 | Y177: 156.3335311 | Z177: 4.833597368e-06 | AA177: 1.860071422e-05 | AB177: 3.910032477e-05 | AC177: 6.272844051e-05 | AE177: 0.4788562382 | AF177: 0.8218475038 | AG177: =C$17*$E$6/(6*8*'Steel Eurocode 3'!$X$8*'Steel Eurocode 3'!$E$10)*100*1000*AK177 -> 0.7339542737 | AH177: =C$18*E$7/(6*8*'Steel Eurocode 3'!X$8*'Steel Eurocode 3'!E$10)*100*1000*Y177 -> 0.543232185 | AI177: =C$14*B177*(8^3-2*8*B177^2+B177^3)/24/('Steel Eurocode 3'!E$10*'Steel Eurocode 3'!X$8)*100*1000 -> 4.182213666 | AK177: 140.8135311 | AL177: 156.3335311 | AM177: 1.681251258e-06 | AN177: 6.46981364e-06 | AO177: 1.360011296e-05 | AP177: 2.1818588e-05
A178: 99 | B178: 3.136 | C178: -519.0860999 | D178: 72.696528 | E178: -20.26684924 | F178: -20.26684924 | G178: -6.790721988 | H178: -7.6640625 | I178: 17.4331875 | J178: 15.328125 | K178: 10.21875 | L178: ='Graph Properties'!C$3*8/2-B178*C$3 -> 37.380528 | M178: 37.278 | N178: 71.725488 | O178: 48.069 | P178: 32.046 | Q178: =C$3*8/2*'Graph Properties'!B178-'Graph Properties'!C$3*B178^2/2 -> 329.9676119 | R178: 1.379095759 | S178: 2.373097176 | T178: =D$17*$E$6/(6*8*'Steel Eurocode 3'!$X$8*'Steel Eurocode 3'!$E$10)*100*1000*X178 -> 2.122488658 | U178: =D$18*E$7/(6*8*'Steel Eurocode 3'!X$8*'Steel Eurocode 3'!E$10)*100*1000*Y178 -> 1.571637701 | V178: =D$14*B178*(8^3-2*8*B178^2+B178^3)/24/('Steel Eurocode 3'!E$10*'Steel Eurocode 3'!X$8)*100*1000 -> 12.82052995 | X178: 141.6390205 | Y178: 157.3190205 | Z178: 4.839945862e-06 | AA178: 1.863090345e-05 | AB178: 3.918623279e-05 | AC178: 6.291720455e-05 | AE178: 0.4796854814 | AF178: 0.8254251047 | AG178: =C$17*$E$6/(6*8*'Steel Eurocode 3'!$X$8*'Steel Eurocode 3'!$E$10)*100*1000*AK178 -> 0.7382569247 | AH178: =C$18*E$7/(6*8*'Steel Eurocode 3'!X$8*'Steel Eurocode 3'!E$10)*100*1000*Y178 -> 0.5466565916 | AI178: =C$14*B178*(8^3-2*8*B178^2+B178^3)/24/('Steel Eurocode 3'!E$10*'Steel Eurocode 3'!X$8)*100*1000 -> 4.200697885 | AK178: 141.6390205 | AL178: 157.3190205 | AM178: 1.68345943e-06 | AN178: 6.480314245e-06 | AO178: 1.362999402e-05 | AP178: 2.188424506e-05
A179: 100 | B179: 3.168 | C179: -521.3693094 | D179: 70.004064 | E179: -20.35502436 | F179: -20.35502436 | G179: -6.820293707 | H179: -7.6640625 | I179: 16.1251875 | J179: 15.328125 | K179: 10.21875 | L179: ='Graph Properties'!C$3*8/2-B179*C$3 -> 35.996064 | M179: 37.03275 | N179: 72.262422 | O179: 48.5595 | P179: 32.373 | Q179: =C$3*8/2*'Graph Properties'!B179-'Graph Properties'!C$3*B179^2/2 -> 331.1416374 | R179: 1.381255922 | S179: 2.382951977 | T179: =D$17*$E$6/(6*8*'Steel Eurocode 3'!$X$8*'Steel Eurocode 3'!$E$10)*100*1000*X179 -> 2.134570052 | U179: =D$18*E$7/(6*8*'Steel Eurocode 3'!X$8*'Steel Eurocode 3'!E$10)*100*1000*Y179 -> 1.581290384 | V179: =D$14*B179*(8^3-2*8*B179^2+B179^3)/24/('Steel Eurocode 3'!E$10*'Steel Eurocode 3'!X$8)*100*1000 -> 12.87495603 | X179: 142.4452424 | Y179: 158.2852424 | Z179: 4.845547982e-06 | AA179: 1.86581072e-05 | AB179: 3.926542346e-05 | AC179: 6.309494323e-05 | AE179: 0.4804368423 | AF179: 0.8288528616 | AG179: =C$17*$E$6/(6*8*'Steel Eurocode 3'!$X$8*'Steel Eurocode 3'!$E$10)*100*1000*AK179 -> 0.7424591484 | AH179: =C$18*E$7/(6*8*'Steel Eurocode 3'!X$8*'Steel Eurocode 3'!E$10)*100*1000*Y179 -> 0.5500140465 | AI179: =C$14*B179*(8^3-2*8*B179^2+B179^3)/24/('Steel Eurocode 3'!E$10*'Steel Eurocode 3'!X$8)*100*1000 -> 4.218530808 | AK179: 142.4452424 | AL179: 158.2852424 | AM179: 1.685407994e-06 | AN179: 6.489776417e-06 | AO179: 1.365753859e-05 | AP179: 2.194606721e-05
A180: 101 | B180: 3.2 | C180: -523.56636 | D180: 67.3116 | E180: -20.44006206 | F180: -20.44006206 | G180: -6.848814389 | H180: -7.6640625 | I180: 14.8171875 | J180: 15.328125 | K180: 10.21875 | L180: ='Graph Properties'!C$3*8/2-B180*C$3 -> 34.6116 | M180: 36.7875 | N180: 72.7575 | O180: 49.05 | P180: 32.7 | Q180: =C$3*8/2*'Graph Properties'!B180-'Graph Properties'!C$3*B180^2/2 -> 332.27136 | R180: 1.383193645 | S180: 2.392372752 | T180: =D$17*$E$6/(6*8*'Steel Eurocode 3'!$X$8*'Steel Eurocode 3'!$E$10)*100*1000*X180 -> 2.14635977 | U180: =D$18*E$7/(6*8*'Steel Eurocode 3'!X$8*'Steel Eurocode 3'!E$10)*100*1000*Y180 -> 1.590748617 | V180: =D$14*B180*(8^3-2*8*B180^2+B180^3)/24/('Steel Eurocode 3'!E$10*'Steel Eurocode 3'!X$8)*100*1000 -> 12.92738727 | X180: 143.232 | Y180: 159.232 | Z180: 4.85040864e-06 | AA180: 1.868234509e-05 | AB180: 3.933794096e-05 | AC180: 6.326166847e-05 | AE180: 0.4811108331 | AF180: 0.8321296528 | AG180: =C$17*$E$6/(6*8*'Steel Eurocode 3'!$X$8*'Steel Eurocode 3'!$E$10)*100*1000*AK180 -> 0.7465599199 | AH180: =C$18*E$7/(6*8*'Steel Eurocode 3'!X$8*'Steel Eurocode 3'!E$10)*100*1000*Y180 -> 0.5533038668 | AI180: =C$14*B180*(8^3-2*8*B180^2+B180^3)/24/('Steel Eurocode 3'!E$10*'Steel Eurocode 3'!X$8)*100*1000 -> 4.235710116 | AK180: 143.232 | AL180: 159.232 | AM180: 1.687098657e-06 | AN180: 6.498206989e-06 | AO180: 1.368276207e-05 | AP180: 2.20040586e-05
A181: 102 | B181: 3.232 | C181: -525.6772518 | D181: 64.619136 | E181: -20.52194912 | F181: -20.52194912 | G181: -6.876279573 | H181: -7.6640625 | I181: 13.5091875 | J181: 15.328125 | K181: 10.21875 | L181: ='Graph Properties'!C$3*8/2-B181*C$3 -> 33.227136 | M181: 36.54225 | N181: 73.210722 | O181: 49.5405 | P181: 33.027 | Q181: =C$3*8/2*'Graph Properties'!B181-'Graph Properties'!C$3*B181^2/2 -> 333.3567798 | R181: 1.384910403 | S181: 2.401356526 | T181: =D$17*$E$6/(6*8*'Steel Eurocode 3'!$X$8*'Steel Eurocode 3'!$E$10)*100*1000*X181 -> 2.157854867 | U181: =D$18*E$7/(6*8*'Steel Eurocode 3'!X$8*'Steel Eurocode 3'!E$10)*100*1000*Y181 -> 1.600010436 | V181: =D$14*B181*(8^3-2*8*B181^2+B181^3)/24/('Steel Eurocode 3'!E$10*'Steel Eurocode 3'!X$8)*100*1000 -> 12.97781688 | X181: 143.9990968 | Y181: 160.1590968 | Z181: 4.854532745e-06 | AA181: 1.870363678e-05 | AB181: 3.940382948e-05 | AC181: 6.341739475e-05 | AE181: 0.4817079663 | AF181: 0.8352544439 | AG181: =C$17*$E$6/(6*8*'Steel Eurocode 3'!$X$8*'Steel Eurocode 3'!$E$10)*100*1000*AK181 -> 0.7505582147 | AH181: =C$18*E$7/(6*8*'Steel Eurocode 3'!X$8*'Steel Eurocode 3'!E$10)*100*1000*Y181 -> 0.5565253691 | AI181: =C$14*B181*(8^3-2*8*B181^2+B181^3)/24/('Steel Eurocode 3'!E$10*'Steel Eurocode 3'!X$8)*100*1000 -> 4.252233579 | AK181: 143.9990968 | AL181: 160.1590968 | AM181: 1.688533129e-06 | AN181: 6.505612792e-06 | AO181: 1.370567982e-05 | AP181: 2.205822426e-05
A182: 103 | B182: 3.264 | C182: -527.7019847 | D182: 61.926672 | E182: -20.60067284 | F182: -20.60067284 | G182: -6.902684976 | H182: -7.6640625 | I182: 12.2011875 | J182: 15.328125 | K182: 10.21875 | L182: ='Graph Properties'!C$3*8/2-B182*C$3 -> 31.842672 | M182: 36.297 | N182: 73.622088 | O182: 50.031 | P182: 33.354 | Q182: =C$3*8/2*'Graph Properties'!B182-'Graph Properties'!C$3*B182^2/2 -> 334.3978967 | R182: 1.386407668 | S182: 2.409900578 | T182: =D$17*$E$6/(6*8*'Steel Eurocode 3'!$X$8*'Steel Eurocode 3'!$E$10)*100*1000*X182 -> 2.169052397 | U182: =D$18*E$7/(6*8*'Steel Eurocode 3'!X$8*'Steel Eurocode 3'!E$10)*100*1000*Y182 -> 1.609073877 | V182: =D$14*B182*(8^3-2*8*B182^2+B182^3)/24/('Steel Eurocode 3'!E$10*'Steel Eurocode 3'!X$8)*100*1000 -> 13.02623832 | X182: 144.7463363 | Y182: 161.0663363 | Z182: 4.857925208e-06 | AA182: 1.872200189e-05 | AB182: 3.946313323e-05 | AC182: 6.356213901e-05 | AE182: 0.4822287542 | AF182: 0.8382262881 | AG182: =C$17*$E$6/(6*8*'Steel Eurocode 3'!$X$8*'Steel Eurocode 3'!$E$10)*100*1000*AK182 -> 0.7544530078 | AH182: =C$18*E$7/(6*8*'Steel Eurocode 3'!X$8*'Steel Eurocode 3'!E$10)*100*1000*Y182 -> 0.5596778704 | AI182: =C$14*B182*(8^3-2*8*B182^2+B182^3)/24/('Steel Eurocode 3'!E$10*'Steel Eurocode 3'!X$8)*100*1000 -> 4.268099055 | AK182: 144.7463363 | AL182: 161.0663363 | AM182: 1.689713116e-06 | AN182: 6.512000658e-06 | AO182: 1.372630721e-05 | AP182: 2.210857009e-05
A183: 104 | B183: 3.296 | C183: -529.6405588 | D183: 59.234208 | E183: -20.67622104 | F183: -20.67622104 | G183: -6.928026487 | H183: -7.6640625 | I183: 10.8931875 | J183: 15.328125 | K183: 10.21875 | L183: ='Graph Properties'!C$3*8/2-B183*C$3 -> 30.458208 | M183: 36.05175 | N183: 73.991598 | O183: 50.5215 | P183: 33.681 | Q183: =C$3*8/2*'Graph Properties'!B183-'Graph Properties'!C$3*B183^2/2 -> 335.3947108 | R183: 1.387686914 | S183: 2.418002437 | T183: =D$17*$E$6/(6*8*'Steel Eurocode 3'!$X$8*'Steel Eurocode 3'!$E$10)*100*1000*X183 -> 2.179949414 | U183: =D$18*E$7/(6*8*'Steel Eurocode 3'!X$8*'Steel Eurocode 3'!E$10)*100*1000*Y183 -> 1.617936976 | V183: =D$14*B183*(8^3-2*8*B183^2+B183^3)/24/('Steel Eurocode 3'!E$10*'Steel Eurocode 3'!X$8)*100*1000 -> 13.0726453 | X183: 145.4735217 | Y183: 161.9535217 | Z183: 4.86059094e-06 | AA183: 1.873746008e-05 | AB183: 3.951589639e-05 | AC183: 6.369592076e-05 | AE183: 0.4826737093 | AF183: 0.841044326 | AG183: =C$17*$E$6/(6*8*'Steel Eurocode 3'!$X$8*'Steel Eurocode 3'!$E$10)*100*1000*AK183 -> 0.7582432745 | AH183: =C$18*E$7/(6*8*'Steel Eurocode 3'!X$8*'Steel Eurocode 3'!E$10)*100*1000*Y183 -> 0.5627606874 | AI183: =C$14*B183*(8^3-2*8*B183^2+B183^3)/24/('Steel Eurocode 3'!E$10*'Steel Eurocode 3'!X$8)*100*1000 -> 4.28330449 | AK183: 145.4735217 | AL183: 161.9535217 | AM183: 1.690640327e-06 | AN183: 6.51737742e-06 | AO183: 1.374465961e-05 | AP183: 2.215510287e-05
A184: 105 | B184: 3.328 | C184: -531.492974 | D184: 56.541744 | E184: -20.74858207 | F184: -20.74858207 | G184: -6.95230017 | H184: -7.6640625 | I184: 9.5851875 | J184: 15.328125 | K184: 10.21875 | L184: ='Graph Properties'!C$3*8/2-B184*C$3 -> 29.073744 | M184: 35.8065 | N184: 74.319252 | O184: 51.012 | P184: 34.008 | Q184: =C$3*8/2*'Graph Properties'!B184-'Graph Properties'!C$3*B184^2/2 -> 336.347222 | R184: 1.388749614 | S184: 2.425659883 | T184: =D$17*$E$6/(6*8*'Steel Eurocode 3'!$X$8*'Steel Eurocode 3'!$E$10)*100*1000*X184 -> 2.190542971 | U184: =D$18*E$7/(6*8*'Steel Eurocode 3'!X$8*'Steel Eurocode 3'!E$10)*100*1000*Y184 -> 1.626597769 | V184: =D$14*B184*(8^3-2*8*B184^2+B184^3)/24/('Steel Eurocode 3'!E$10*'Steel Eurocode 3'!X$8)*100*1000 -> 13.11703183 | X184: 146.1804564 | Y184: 162.8204564 | Z184: 4.86253485e-06 | AA184: 1.875003099e-05 | AB184: 3.956216316e-05 | AC184: 6.381876199e-05 | AE184: 0.4830433438 | AF184: 0.8437077854 | AG184: =C$17*$E$6/(6*8*'Steel Eurocode 3'!$X$8*'Steel Eurocode 3'!$E$10)*100*1000*AK184 -> 0.76192799 | AH184: =C$18*E$7/(6*8*'Steel Eurocode 3'!X$8*'Steel Eurocode 3'!E$10)*100*1000*Y184 -> 0.565773137 | AI184: =C$14*B184*(8^3-2*8*B184^2+B184^3)/24/('Steel Eurocode 3'!E$10*'Steel Eurocode 3'!X$8)*100*1000 -> 4.297847914 | AK184: 146.1804564 | AL184: 162.8204564 | AM184: 1.69131647e-06 | AN184: 6.521749908e-06 | AO184: 1.37607524e-05 | AP184: 2.219783026e-05
A185: 106 | B185: 3.36 | C185: -533.2592304 | D185: 53.84928 | E185: -20.81774478 | F185: -20.81774478 | G185: -6.975502267 | H185: -7.6640625 | I185: 8.2771875 | J185: 15.328125 | K185: 10.21875 | L185: ='Graph Properties'!C$3*8/2-B185*C$3 -> 27.68928 | M185: 35.56125 | N185: 74.60505 | O185: 51.5025 | P185: 34.335 | Q185: =C$3*8/2*'Graph Properties'!B185-'Graph Properties'!C$3*B185^2/2 -> 337.2554304 | R185: 1.38959724 | S185: 2.432870948 | T185: =D$17*$E$6/(6*8*'Steel Eurocode 3'!$X$8*'Steel Eurocode 3'!$E$10)*100*1000*X185 -> 2.200830123 | U185: =D$18*E$7/(6*8*'Steel Eurocode 3'!X$8*'Steel Eurocode 3'!E$10)*100*1000*Y185 -> 1.635054291 | V185: =D$14*B185*(8^3-2*8*B185^2+B185^3)/24/('Steel Eurocode 3'!E$10*'Steel Eurocode 3'!X$8)*100*1000 -> 13.15939217 | X185: 146.866944 | Y185: 163.666944 | Z185: 4.863761849e-06 | AA185: 1.875973425e-05 | AB185: 3.960197773e-05 | AC185: 6.393068722e-05 | AE185: 0.4833381703 | AF185: 0.846215982 | AG185: =C$17*$E$6/(6*8*'Steel Eurocode 3'!$X$8*'Steel Eurocode 3'!$E$10)*100*1000*AK185 -> 0.7655061296 | AH185: =C$18*E$7/(6*8*'Steel Eurocode 3'!X$8*'Steel Eurocode 3'!E$10)*100*1000*Y185 -> 0.5687145359 | AI185: =C$14*B185*(8^3-2*8*B185^2+B185^3)/24/('Steel Eurocode 3'!E$10*'Steel Eurocode 3'!X$8)*100*1000 -> 4.311727449 | AK185: 146.866944 | AL185: 163.666944 | AM185: 1.691743252e-06 | AN185: 6.525124955e-06 | AO185: 1.377460095e-05 | AP185: 2.223676077e-05
A186: 107 | B186: 3.392 | C186: -534.9393279 | D186: 51.156816 | E186: -20.88369853 | F186: -20.88369853 | G186: -6.99762919 | H186: -7.6640625 | I186: 6.9691875 | J186: 15.328125 | K186: 10.21875 | L186: ='Graph Properties'!C$3*8/2-B186*C$3 -> 26.304816 | M186: 35.316 | N186: 74.848992 | O186: 51.993 | P186: 34.662 | Q186: =C$3*8/2*'Graph Properties'!B186-'Graph Properties'!C$3*B186^2/2 -> 338.1193359 | R186: 1.390231265 | S186: 2.439633916 | T186: =D$17*$E$6/(6*8*'Steel Eurocode 3'!$X$8*'Steel Eurocode 3'!$E$10)*100*1000*X186 -> 2.210807922 | U186: =D$18*E$7/(6*8*'Steel Eurocode 3'!X$8*'Steel Eurocode 3'!E$10)*100*1000*Y186 -> 1.643304578 | V186: =D$14*B186*(8^3-2*8*B186^2+B186^3)/24/('Steel Eurocode 3'!E$10*'Steel Eurocode 3'!X$8)*100*1000 -> 13.19972085 | X186: 147.5327877 | Y186: 164.4927877 | Z186: 4.864276848e-06 | AA186: 1.87665895e-05 | AB186: 3.96353843e-05 | AC186: 6.403172346e-05 | AE186: 0.483558701 | AF186: 0.8485683185 | AG186: =C$17*$E$6/(6*8*'Steel Eurocode 3'!$X$8*'Steel Eurocode 3'!$E$10)*100*1000*AK186 -> 0.7689766685 | AH186: =C$18*E$7/(6*8*'Steel Eurocode 3'!X$8*'Steel Eurocode 3'!E$10)*100*1000*Y186 -> 0.571584201 | AI186: =C$14*B186*(8^3-2*8*B186^2+B186^3)/24/('Steel Eurocode 3'!E$10*'Steel Eurocode 3'!X$8)*100*1000 -> 4.324941301 | AK186: 147.5327877 | AL186: 164.4927877 | AM186: 1.691922382e-06 | AN186: 6.527509392e-06 | AO186: 1.378622063e-05 | AP186: 2.227190381e-05
A187: 108 | B187: 3.424 | C187: -536.5332666 | D187: 48.464352 | E187: -20.94643324 | F187: -20.94643324 | G187: -7.018677531 | H187: -7.6640625 | I187: 5.6611875 | J187: 15.328125 | K187: 10.21875 | L187: ='Graph Properties'!C$3*8/2-B187*C$3 -> 24.920352 | M187: 35.07075 | N187: 75.051078 | O187: 52.4835 | P187: 34.989 | Q187: =C$3*8/2*'Graph Properties'!B187-'Graph Properties'!C$3*B187^2/2 -> 338.9389386 | R187: 1.390653164 | S187: 2.44594732 | T187: =D$17*$E$6/(6*8*'Steel Eurocode 3'!$X$8*'Steel Eurocode 3'!$E$10)*100*1000*X187 -> 2.220473423 | U187: =D$18*E$7/(6*8*'Steel Eurocode 3'!X$8*'Steel Eurocode 3'!E$10)*100*1000*Y187 -> 1.651346666 | V187: =D$14*B187*(8^3-2*8*B187^2+B187^3)/24/('Steel Eurocode 3'!E$10*'Steel Eurocode 3'!X$8)*100*1000 -> 13.23801266 | X187: 148.177791 | Y187: 165.297791 | Z187: 4.864084756e-06 | AA187: 1.87706164e-05 | AB187: 3.966242705e-05 | AC187: 6.412190026e-05 | AE187: 0.4837054484 | AF187: 0.8507642854 | AG187: =C$17*$E$6/(6*8*'Steel Eurocode 3'!$X$8*'Steel Eurocode 3'!$E$10)*100*1000*AK187 -> 0.7723385819 | AH187: =C$18*E$7/(6*8*'Steel Eurocode 3'!X$8*'Steel Eurocode 3'!E$10)*100*1000*Y187 -> 0.5743814492 | AI187: =C$14*B187*(8^3-2*8*B187^2+B187^3)/24/('Steel Eurocode 3'!E$10*'Steel Eurocode 3'!X$8)*100*1000 -> 4.337487766 | AK187: 148.177791 | AL187: 165.297791 | AM187: 1.691855567e-06 | AN187: 6.528910051e-06 | AO187: 1.37956268e-05 | AP187: 2.230326965e-05
A188: 109 | B188: 3.456 | C188: -538.0410465 | D188: 45.771888 | E188: -21.0059393 | F188: -21.0059393 | G188: -7.038644053 | H188: -7.6640625 | I188: 4.3531875 | J188: 15.328125 | K188: 10.21875 | L188: ='Graph Properties'!C$3*8/2-B188*C$3 -> 23.535888 | M188: 34.8255 | N188: 75.211308 | O188: 52.974 | P188: 35.316 | Q188: =C$3*8/2*'Graph Properties'!B188-'Graph Properties'!C$3*B188^2/2 -> 339.7142385 | R188: 1.390864409 | S188: 2.451809949 | T188: =D$17*$E$6/(6*8*'Steel Eurocode 3'!$X$8*'Steel Eurocode 3'!$E$10)*100*1000*X188 -> 2.22982368 | U188: =D$18*E$7/(6*8*'Steel Eurocode 3'!X$8*'Steel Eurocode 3'!E$10)*100*1000*Y188 -> 1.659178592 | V188: =D$14*B188*(8^3-2*8*B188^2+B188^3)/24/('Steel Eurocode 3'!E$10*'Steel Eurocode 3'!X$8)*100*1000 -> 13.27426267 | X188: 148.8017572 | Y188: 166.0817572 | Z188: 4.863190484e-06 | AA188: 1.877183457e-05 | AB188: 3.968315018e-05 | AC188: 6.420124967e-05 | AE188: 0.4837789249 | AF188: 0.8528034604 | AG188: =C$17*$E$6/(6*8*'Steel Eurocode 3'!$X$8*'Steel Eurocode 3'!$E$10)*100*1000*AK188 -> 0.7755908451 | AH188: =C$18*E$7/(6*8*'Steel Eurocode 3'!X$8*'Steel Eurocode 3'!E$10)*100*1000*Y188 -> 0.5771055972 | AI188: =C$14*B188*(8^3-2*8*B188^2+B188^3)/24/('Steel Eurocode 3'!E$10*'Steel Eurocode 3'!X$8)*100*1000 -> 4.349365226 | AK188: 148.8017572 | AL188: 166.0817572 | AM188: 1.691544516e-06 | AN188: 6.529333765e-06 | AO188: 1.380283485e-05 | AP188: 2.233086945e-05
A189: 110 | B189: 3.488 | C189: -539.4626675 | D189: 43.079424 | E189: -21.06220765 | F189: -21.06220765 | G189: -7.057525696 | H189: -7.6640625 | I189: 3.0451875 | J189: 15.328125 | K189: 10.21875 | L189: ='Graph Properties'!C$3*8/2-B189*C$3 -> 22.151424 | M189: 34.58025 | N189: 75.329682 | O189: 53.4645 | P189: 35.643 | Q189: =C$3*8/2*'Graph Properties'!B189-'Graph Properties'!C$3*B189^2/2 -> 340.4452355 | R189: 1.390866473 | S189: 2.457220838 | T189: =D$17*$E$6/(6*8*'Steel Eurocode 3'!$X$8*'Steel Eurocode 3'!$E$10)*100*1000*X189 -> 2.238855746 | U189: =D$18*E$7/(6*8*'Steel Eurocode 3'!X$8*'Steel Eurocode 3'!E$10)*100*1000*Y189 -> 1.66679839 | V189: =D$14*B189*(8^3-2*8*B189^2+B189^3)/24/('Steel Eurocode 3'!E$10*'Steel Eurocode 3'!X$8)*100*1000 -> 13.3084662 | X189: 149.4044897 | Y189: 166.8444897 | Z189: 4.861598943e-06 | AA189: 1.877026367e-05 | AB189: 3.969759789e-05 | AC189: 6.426980627e-05 | AE189: 0.4837796427 | AF189: 0.8546855088 | AG189: =C$17*$E$6/(6*8*'Steel Eurocode 3'!$X$8*'Steel Eurocode 3'!$E$10)*100*1000*AK189 -> 0.7787324333 | AH189: =C$18*E$7/(6*8*'Steel Eurocode 3'!X$8*'Steel Eurocode 3'!E$10)*100*1000*Y189 -> 0.5797559619 | AI189: =C$14*B189*(8^3-2*8*B189^2+B189^3)/24/('Steel Eurocode 3'!E$10*'Steel Eurocode 3'!X$8)*100*1000 -> 4.36057215 | AK189: 149.4044897 | AL189: 166.8444897 | AM189: 1.690990937e-06 | AN189: 6.528787364e-06 | AO189: 1.380786014e-05 | AP189: 2.235471522e-05
A190: 111 | B190: 3.52 | C190: -540.7981296 | D190: 40.38696 | E190: -21.11522973 | F190: -21.11522973 | G190: -7.075319574 | H190: -7.6640625 | I190: 1.7371875 | J190: 15.328125 | K190: 10.21875 | L190: ='Graph Properties'!C$3*8/2-B190*C$3 -> 20.76696 | M190: 34.335 | N190: 75.4062 | O190: 53.955 | P190: 35.97 | Q190: =C$3*8/2*'Graph Properties'!B190-'Graph Properties'!C$3*B190^2/2 -> 341.1319296 | R190: 1.390660829 | S190: 2.462179277 | T190: =D$17*$E$6/(6*8*'Steel Eurocode 3'!$X$8*'Steel Eurocode 3'!$E$10)*100*1000*X190 -> 2.247566675 | U190: =D$18*E$7/(6*8*'Steel Eurocode 3'!X$8*'Steel Eurocode 3'!E$10)*100*1000*Y190 -> 1.674204098 | V190: =D$14*B190*(8^3-2*8*B190^2+B190^3)/24/('Steel Eurocode 3'!E$10*'Steel Eurocode 3'!X$8)*100*1000 -> 13.34061885 | X190: 149.985792 | Y190: 167.585792 | Z190: 4.859315042e-06 | AA190: 1.876592333e-05 | AB190: 3.970581436e-05 | AC190: 6.432760713e-05 | AE190: 0.4837081144 | AF190: 0.8564101832 | AG190: =C$17*$E$6/(6*8*'Steel Eurocode 3'!$X$8*'Steel Eurocode 3'!$E$10)*100*1000*AK190 -> 0.7817623217 | AH190: =C$18*E$7/(6*8*'Steel Eurocode 3'!X$8*'Steel Eurocode 3'!E$10)*100*1000*Y190 -> 0.58233186 | AI190: =C$14*B190*(8^3-2*8*B190^2+B190^3)/24/('Steel Eurocode 3'!E$10*'Steel Eurocode 3'!X$8)*100*1000 -> 4.371107095 | AK190: 149.985792 | AL190: 167.585792 | AM190: 1.690196536e-06 | AN190: 6.52727768e-06 | AO190: 1.381071804e-05 | AP190: 2.237481987e-05
A191: 112 | B191: 3.552 | C191: -542.0474329 | D191: 37.694496 | E191: -21.16499752 | F191: -21.16499752 | G191: -7.092022976 | H191: -7.6640625 | I191: 0.4291875 | J191: 15.328125 | K191: 10.21875 | L191: ='Graph Properties'!C$3*8/2-B191*C$3 -> 19.382496 | M191: 34.08975 | N191: 75.440862 | O191: 54.4455 | P191: 36.297 | Q191: =C$3*8/2*'Graph Properties'!B191-'Graph Properties'!C$3*B191^2/2 -> 341.7743209 | R191: 1.39024895 | S191: 2.466684806 | T191: =D$17*$E$6/(6*8*'Steel Eurocode 3'!$X$8*'Steel Eurocode 3'!$E$10)*100*1000*X191 -> 2.255953521 | U191: =D$18*E$7/(6*8*'Steel Eurocode 3'!X$8*'Steel Eurocode 3'!E$10)*100*1000*Y191 -> 1.681393749 | V191: =D$14*B191*(8^3-2*8*B191^2+B191^3)/24/('Steel Eurocode 3'!E$10*'Steel Eurocode 3'!X$8)*100*1000 -> 13.37071649 | X191: 150.5454674 | Y191: 168.3054674 | Z191: 4.856343692e-06 | AA191: 1.87588332e-05 | AB191: 3.970784379e-05 | AC191: 6.437469185e-05 | AE191: 0.4835648523 | AF191: 0.8579773238 | AG191: =C$17*$E$6/(6*8*'Steel Eurocode 3'!$X$8*'Steel Eurocode 3'!$E$10)*100*1000*AK191 -> 0.7846794856 | AH191: =C$18*E$7/(6*8*'Steel Eurocode 3'!X$8*'Steel Eurocode 3'!E$10)*100*1000*Y191 -> 0.5848326085 | AI191: =C$14*B191*(8^3-2*8*B191^2+B191^3)/24/('Steel Eurocode 3'!E$10*'Steel Eurocode 3'!X$8)*100*1000 -> 4.380968706 | AK191: 150.5454674 | AL191: 168.3054674 | AM191: 1.689163023e-06 | AN191: 6.524811546e-06 | AO191: 1.381142393e-05 | AP191: 2.239119717e-05
A192: 113 | B192: 3.584 | C192: -543.2105773 | D192: 35.002032 | E192: -21.21150349 | F192: -21.21150349 | G192: -7.107633367 | H192: -7.6640625 | I192: -0.8788125 | J192: 15.328125 | K192: 10.21875 | L192: ='Graph Properties'!C$3*8/2-B192*C$3 -> 17.998032 | M192: 33.8445 | N192: 75.433668 | O192: 54.936 | P192: 36.624 | Q192: =C$3*8/2*'Graph Properties'!B192-'Graph Properties'!C$3*B192^2/2 -> 342.3724093 | R192: 1.38963231 | S192: 2.470737217 | T192: =D$17*$E$6/(6*8*'Steel Eurocode 3'!$X$8*'Steel Eurocode 3'!$E$10)*100*1000*X192 -> 2.264013338 | U192: =D$18*E$7/(6*8*'Steel Eurocode 3'!X$8*'Steel Eurocode 3'!E$10)*100*1000*Y192 -> 1.688365382 | V192: =D$14*B192*(8^3-2*8*B192^2+B192^3)/24/('Steel Eurocode 3'!E$10*'Steel Eurocode 3'!X$8)*100*1000 -> 13.39875524 | X192: 151.0833193 | Y192: 169.0033193 | Z192: 4.852689804e-06 | AA192: 1.874901291e-05 | AB192: 3.970373038e-05 | AC192: 6.441110255e-05 | AE192: 0.4833503688 | AF192: 0.8593868582 | AG192: =C$17*$E$6/(6*8*'Steel Eurocode 3'!$X$8*'Steel Eurocode 3'!$E$10)*100*1000*AK192 -> 0.7874829002 | AH192: =C$18*E$7/(6*8*'Steel Eurocode 3'!X$8*'Steel Eurocode 3'!E$10)*100*1000*Y192 -> 0.587257524 | AI192: =C$14*B192*(8^3-2*8*B192^2+B192^3)/24/('Steel Eurocode 3'!E$10*'Steel Eurocode 3'!X$8)*100*1000 -> 4.390155715 | AK192: 151.0833193 | AL192: 169.0033193 | AM192: 1.687892106e-06 | AN192: 6.521395794e-06 | AO192: 1.380999317e-05 | AP192: 2.240386176e-05
A193: 114 | B193: 3.616 | C193: -544.2875629 | D193: 32.309568 | E193: -21.25474065 | F193: -21.25474065 | G193: -7.122148384 | H193: -7.6640625 | I193: -2.1868125 | J193: 15.328125 | K193: 10.21875 | L193: ='Graph Properties'!C$3*8/2-B193*C$3 -> 16.613568 | M193: 33.59925 | N193: 75.384618 | O193: 55.4265 | P193: 36.951 | Q193: =C$3*8/2*'Graph Properties'!B193-'Graph Properties'!C$3*B193^2/2 -> 342.9261949 | R193: 1.388812382 | S193: 2.474336554 | T193: =D$17*$E$6/(6*8*'Steel Eurocode 3'!$X$8*'Steel Eurocode 3'!$E$10)*100*1000*X193 -> 2.271743179 | U193: =D$18*E$7/(6*8*'Steel Eurocode 3'!X$8*'Steel Eurocode 3'!E$10)*100*1000*Y193 -> 1.69511703 | V193: =D$14*B193*(8^3-2*8*B193^2+B193^3)/24/('Steel Eurocode 3'!E$10*'Steel Eurocode 3'!X$8)*100*1000 -> 13.42473151 | X193: 151.5991511 | Y193: 169.6791511 | Z193: 4.848358288e-06 | AA193: 1.87364821e-05 | AB193: 3.969351831e-05 | AC193: 6.443688385e-05 | AE193: 0.4830651762 | AF193: 0.8606388015 | AG193: =C$17*$E$6/(6*8*'Steel Eurocode 3'!$X$8*'Steel Eurocode 3'!$E$10)*100*1000*AK193 -> 0.7901715407 | AH193: =C$18*E$7/(6*8*'Steel Eurocode 3'!X$8*'Steel Eurocode 3'!E$10)*100*1000*Y193 -> 0.5896059236 | AI193: =C$14*B193*(8^3-2*8*B193^2+B193^3)/24/('Steel Eurocode 3'!E$10*'Steel Eurocode 3'!X$8)*100*1000 -> 4.398666942 | AK193: 151.5991511 | AL193: 169.6791511 | AM193: 1.686385491e-06 | AN193: 6.517037253e-06 | AO193: 1.380644115e-05 | AP193: 2.241282917e-05
A194: 115 | B194: 3.648 | C194: -545.2783897 | D194: 29.617104 | E194: -21.29470253 | F194: -21.29470253 | G194: -7.135565842 | H194: -7.6640625 | I194: -3.4948125 | J194: 15.328125 | K194: 10.21875 | L194: ='Graph Properties'!C$3*8/2-B194*C$3 -> 15.229104 | M194: 33.354 | N194: 75.293712 | O194: 55.917 | P194: 37.278 | Q194: =C$3*8/2*'Graph Properties'!B194-'Graph Properties'!C$3*B194^2/2 -> 343.4356777 | R194: 1.387790638 | S194: 2.477483111 | T194: =D$17*$E$6/(6*8*'Steel Eurocode 3'!$X$8*'Steel Eurocode 3'!$E$10)*100*1000*X194 -> 2.279140099 | U194: =D$18*E$7/(6*8*'Steel Eurocode 3'!X$8*'Steel Eurocode 3'!E$10)*100*1000*Y194 -> 1.701646731 | V194: =D$14*B194*(8^3-2*8*B194^2+B194^3)/24/('Steel Eurocode 3'!E$10*'Steel Eurocode 3'!X$8)*100*1000 -> 13.44864195 | X194: 152.0927662 | Y194: 170.3327662 | Z194: 4.843354053e-06 | AA194: 1.872126043e-05 | AB194: 3.967725178e-05 | AC194: 6.445208289e-05 | AE194: 0.482709787 | AF194: 0.861733256 | AG194: =C$17*$E$6/(6*8*'Steel Eurocode 3'!$X$8*'Steel Eurocode 3'!$E$10)*100*1000*AK194 -> 0.7927443823 | AH194: =C$18*E$7/(6*8*'Steel Eurocode 3'!X$8*'Steel Eurocode 3'!E$10)*100*1000*Y194 -> 0.5918771238 | AI194: =C$14*B194*(8^3-2*8*B194^2+B194^3)/24/('Steel Eurocode 3'!E$10*'Steel Eurocode 3'!X$8)*100*1000 -> 4.406501293 | AK194: 152.0927662 | AL194: 170.3327662 | AM194: 1.684644888e-06 | AN194: 6.511742758e-06 | AO194: 1.380078323e-05 | AP194: 2.241811579e-05
A195: 116 | B195: 3.68 | C195: -546.1830576 | D195: 26.92464 | E195: -21.33138315 | F195: -21.33138315 | G195: -7.147883731 | H195: -7.6640625 | I195: -4.8028125 | J195: 15.328125 | K195: 10.21875 | L195: ='Graph Properties'!C$3*8/2-B195*C$3 -> 13.84464 | M195: 33.10875 | N195: 75.16095 | O195: 56.4075 | P195: 37.605 | Q195: =C$3*8/2*'Graph Properties'!B195-'Graph Properties'!C$3*B195^2/2 -> 343.9008576 | R195: 1.386568551 | S195: 2.480177434 | T195: =D$17*$E$6/(6*8*'Steel Eurocode 3'!$X$8*'Steel Eurocode 3'!$E$10)*100*1000*X195 -> 2.286201151 | U195: =D$18*E$7/(6*8*'Steel Eurocode 3'!X$8*'Steel Eurocode 3'!E$10)*100*1000*Y195 -> 1.70795252 | V195: =D$14*B195*(8^3-2*8*B195^2+B195^3)/24/('Steel Eurocode 3'!E$10*'Steel Eurocode 3'!X$8)*100*1000 -> 13.47048349 | X195: 152.563968 | Y195: 170.963968 | Z195: 4.837682012e-06 | AA195: 1.870336753e-05 | AB195: 3.965497498e-05 | AC195: 6.445674932e-05 | AE195: 0.4822847135 | AF195: 0.8626704117 | AG195: =C$17*$E$6/(6*8*'Steel Eurocode 3'!$X$8*'Steel Eurocode 3'!$E$10)*100*1000*AK195 -> 0.7952004003 | AH195: =C$18*E$7/(6*8*'Steel Eurocode 3'!X$8*'Steel Eurocode 3'!E$10)*100*1000*Y195 -> 0.5940704417 | AI195: =C$14*B195*(8^3-2*8*B195^2+B195^3)/24/('Steel Eurocode 3'!E$10*'Steel Eurocode 3'!X$8)*100*1000 -> 4.413657763 | AK195: 152.563968 | AL195: 170.963968 | AM195: 1.682672004e-06 | AN195: 6.505519139e-06 | AO195: 1.379303478e-05 | AP195: 2.241973889e-05
A196: 117 | B196: 3.712 | C196: -547.0015667 | D196: 24.232176 | E196: -21.36477708 | F196: -21.36477708 | G196: -7.159100212 | H196: -7.6640625 | I196: -6.1108125 | J196: 15.328125 | K196: 10.21875 | L196: ='Graph Properties'!C$3*8/2-B196*C$3 -> 12.460176 | M196: 32.8635 | N196: 74.986332 | O196: 56.898 | P196: 37.932 | Q196: =C$3*8/2*'Graph Properties'!B196-'Graph Properties'!C$3*B196^2/2 -> 344.3217347 | R196: 1.385147596 | S196: 2.48242032 | T196: =D$17*$E$6/(6*8*'Steel Eurocode 3'!$X$8*'Steel Eurocode 3'!$E$10)*100*1000*X196 -> 2.292923389 | U196: =D$18*E$7/(6*8*'Steel Eurocode 3'!X$8*'Steel Eurocode 3'!E$10)*100*1000*Y196 -> 1.714032433 | V196: =D$14*B196*(8^3-2*8*B196^2+B196^3)/24/('Steel Eurocode 3'!E$10*'Steel Eurocode 3'!X$8)*100*1000 -> 13.49025334 | X196: 153.0125599 | Y196: 171.5725599 | Z196: 4.831347073e-06 | AA196: 1.868282303e-05 | AB196: 3.962673211e-05 | AC196: 6.445093531e-05 | AE196: 0.4817904682 | AF196: 0.863450546 | AG196: =C$17*$E$6/(6*8*'Steel Eurocode 3'!$X$8*'Steel Eurocode 3'!$E$10)*100*1000*AK196 -> 0.7975385699 | AH196: =C$18*E$7/(6*8*'Steel Eurocode 3'!X$8*'Steel Eurocode 3'!E$10)*100*1000*Y196 -> 0.596185194 | AI196: =C$14*B196*(8^3-2*8*B196^2+B196^3)/24/('Steel Eurocode 3'!E$10*'Steel Eurocode 3'!X$8)*100*1000 -> 4.420135434 | AK196: 153.0125599 | AL196: 171.5725599 | AM196: 1.680468547e-06 | AN196: 6.498373229e-06 | AO196: 1.378321117e-05 | AP196: 2.241771663e-05
A197: 118 | B197: 3.744 | C197: -547.7339169 | D197: 21.539712 | E197: -21.3948794 | F197: -21.3948794 | G197: -7.169213625 | H197: -7.6640625 | I197: -7.4188125 | J197: 15.328125 | K197: 10.21875 | L197: ='Graph Properties'!C$3*8/2-B197*C$3 -> 11.075712 | M197: 32.61825 | N197: 74.769858 | O197: 57.3885 | P197: 38.259 | Q197: =C$3*8/2*'Graph Properties'!B197-'Graph Properties'!C$3*B197^2/2 -> 344.6983089 | R197: 1.383529245 | S197: 2.484212818 | T197: =D$17*$E$6/(6*8*'Steel Eurocode 3'!$X$8*'Steel Eurocode 3'!$E$10)*100*1000*X197 -> 2.299303866 | U197: =D$18*E$7/(6*8*'Steel Eurocode 3'!X$8*'Steel Eurocode 3'!E$10)*100*1000*Y197 -> 1.719884505 | V197: =D$14*B197*(8^3-2*8*B197^2+B197^3)/24/('Steel Eurocode 3'!E$10*'Steel Eurocode 3'!X$8)*100*1000 -> 13.50794896 | X197: 153.4383452 | Y197: 172.1583452 | Z197: 4.824354147e-06 | AA197: 1.865964659e-05 | AB197: 3.959256736e-05 | AC197: 6.443469554e-05 | AE197: 0.4812275633 | AF197: 0.8640740237 | AG197: =C$17*$E$6/(6*8*'Steel Eurocode 3'!$X$8*'Steel Eurocode 3'!$E$10)*100*1000*AK197 -> 0.7997578664 | AH197: =C$18*E$7/(6*8*'Steel Eurocode 3'!X$8*'Steel Eurocode 3'!E$10)*100*1000*Y197 -> 0.5982206975 | AI197: =C$14*B197*(8^3-2*8*B197^2+B197^3)/24/('Steel Eurocode 3'!E$10*'Steel Eurocode 3'!X$8)*100*1000 -> 4.425933474 | AK197: 153.4383452 | AL197: 172.1583452 | AM197: 1.678036225e-06 | AN197: 6.490311858e-06 | AO197: 1.377132778e-05 | AP197: 2.241206801e-05
A198: 119 | B198: 3.776 | C198: -548.3801082 | D198: 18.847248 | E198: -21.42168569 | F198: -21.42168569 | G198: -7.178222484 | H198: -7.6640625 | I198: -8.7268125 | J198: 15.328125 | K198: 10.21875 | L198: ='Graph Properties'!C$3*8/2-B198*C$3 -> 9.691248 | M198: 32.373 | N198: 74.511528 | O198: 57.879 | P198: 38.586 | Q198: =C$3*8/2*'Graph Properties'!B198-'Graph Properties'!C$3*B198^2/2 -> 345.0305802 | R198: 1.38171497 | S198: 2.485556229 | T198: =D$17*$E$6/(6*8*'Steel Eurocode 3'!$X$8*'Steel Eurocode 3'!$E$10)*100*1000*X198 -> 2.305339637 | U198: =D$18*E$7/(6*8*'Steel Eurocode 3'!X$8*'Steel Eurocode 3'!E$10)*100*1000*Y198 -> 1.725506774 | V198: =D$14*B198*(8^3-2*8*B198^2+B198^3)/24/('Steel Eurocode 3'!E$10*'Steel Eurocode 3'!X$8)*100*1000 -> 13.52356808 | X198: 153.8411274 | Y198: 172.7211274 | Z198: 4.816708144e-06 | AA198: 1.863385785e-05 | AB198: 3.955252491e-05 | AC198: 6.44080872e-05 | AE198: 0.4805965114 | AF198: 0.8645412971 | AG198: =C$17*$E$6/(6*8*'Steel Eurocode 3'!$X$8*'Steel Eurocode 3'!$E$10)*100*1000*AK198 -> 0.8018572649 | AH198: =C$18*E$7/(6*8*'Steel Eurocode 3'!X$8*'Steel Eurocode 3'!E$10)*100*1000*Y198 -> 0.6001762691 | AI198: =C$14*B198*(8^3-2*8*B198^2+B198^3)/24/('Steel Eurocode 3'!E$10*'Steel Eurocode 3'!X$8)*100*1000 -> 4.431051141 | AK198: 153.8411274 | AL198: 172.7211274 | AM198: 1.675376746e-06 | AN198: 6.48134186e-06 | AO198: 1.375739997e-05 | AP198: 2.240281294e-05
A199: 120 | B199: 3.808 | C199: -548.9401407 | D199: 16.154784 | E199: -21.44519208 | F199: -21.44519208 | G199: -7.186125476 | H199: -7.6640625 | I199: -10.0348125 | J199: 15.328125 | K199: 10.21875 | L199: ='Graph Properties'!C$3*8/2-B199*C$3 -> 8.306784 | M199: 32.12775 | N199: 74.211342 | O199: 58.3695 | P199: 38.913 | Q199: =C$3*8/2*'Graph Properties'!B199-'Graph Properties'!C$3*B199^2/2 -> 345.3185487 | R199: 1.379706246 | S199: 2.486452104 | T199: =D$17*$E$6/(6*8*'Steel Eurocode 3'!$X$8*'Steel Eurocode 3'!$E$10)*100*1000*X199 -> 2.311027755 | U199: =D$18*E$7/(6*8*'Steel Eurocode 3'!X$8*'Steel Eurocode 3'!E$10)*100*1000*Y199 -> 1.730897273 | V199: =D$14*B199*(8^3-2*8*B199^2+B199^3)/24/('Steel Eurocode 3'!E$10*'Steel Eurocode 3'!X$8)*100*1000 -> 13.5371087 | X199: 154.2207099 | Y199: 173.2607099 | Z199: 4.808413976e-06 | AA199: 1.860547644e-05 | AB199: 3.950664898e-05 | AC199: 6.437117002e-05 | AE199: 0.4798978247 | AF199: 0.8648529058 | AG199: =C$17*$E$6/(6*8*'Steel Eurocode 3'!$X$8*'Steel Eurocode 3'!$E$10)*100*1000*AK199 -> 0.8038357408 | AH199: =C$18*E$7/(6*8*'Steel Eurocode 3'!X$8*'Steel Eurocode 3'!E$10)*100*1000*Y199 -> 0.6020512255 | AI199: =C$14*B199*(8^3-2*8*B199^2+B199^3)/24/('Steel Eurocode 3'!E$10*'Steel Eurocode 3'!X$8)*100*1000 -> 4.435487779 | AK199: 154.2207099 | AL199: 173.2607099 | AM199: 1.672491818e-06 | AN199: 6.471470065e-06 | AO199: 1.374144312e-05 | AP199: 2.238997218e-05
A200: 121 | B200: 3.84 | C200: -549.4140144 | D200: 13.46232 | E200: -21.46539519 | F200: -21.46539519 | G200: -7.192921464 | H200: -7.6640625 | I200: -11.3428125 | J200: 15.328125 | K200: 10.21875 | L200: ='Graph Properties'!C$3*8/2-B200*C$3 -> 6.92232 | M200: 31.8825 | N200: 73.8693 | O200: 58.86 | P200: 39.24 | Q200: =C$3*8/2*'Graph Properties'!B200-'Graph Properties'!C$3*B200^2/2 -> 345.5622144 | R200: 1.377504545 | S200: 2.486902247 | T200: =D$17*$E$6/(6*8*'Steel Eurocode 3'!$X$8*'Steel Eurocode 3'!$E$10)*100*1000*X200 -> 2.316365274 | U200: =D$18*E$7/(6*8*'Steel Eurocode 3'!X$8*'Steel Eurocode 3'!E$10)*100*1000*Y200 -> 1.736054041 | V200: =D$14*B200*(8^3-2*8*B200^2+B200^3)/24/('Steel Eurocode 3'!E$10*'Steel Eurocode 3'!X$8)*100*1000 -> 13.54856908 | X200: 154.576896 | Y200: 173.776896 | Z200: 4.799476552e-06 | AA200: 1.8574522e-05 | AB200: 3.945498374e-05 | AC200: 6.43240062e-05 | AE200: 0.4791320157 | AF200: 0.8650094771 | AG200: =C$17*$E$6/(6*8*'Steel Eurocode 3'!$X$8*'Steel Eurocode 3'!$E$10)*100*1000*AK200 -> 0.8056922692 | AH200: =C$18*E$7/(6*8*'Steel Eurocode 3'!X$8*'Steel Eurocode 3'!E$10)*100*1000*Y200 -> 0.6038448837 | AI200: =C$14*B200*(8^3-2*8*B200^2+B200^3)/24/('Steel Eurocode 3'!E$10*'Steel Eurocode 3'!X$8)*100*1000 -> 4.439242819 | AK200: 154.576896 | AL200: 173.776896 | AM200: 1.669383148e-06 | AN200: 6.460703305e-06 | AO200: 1.37234726e-05 | AP200: 2.237356738e-05
A201: 122 | B201: 3.872 | C201: -549.8017292 | D201: 10.769856 | E201: -21.48229217 | F201: -21.48229217 | G201: -7.198609488 | H201: -7.6640625 | I201: -12.6508125 | J201: 15.328125 | K201: 10.21875 | L201: ='Graph Properties'!C$3*8/2-B201*C$3 -> 5.537856 | M201: 31.63725 | N201: 73.485402 | O201: 59.3505 | P201: 39.567 | Q201: =C$3*8/2*'Graph Properties'!B201-'Graph Properties'!C$3*B201^2/2 -> 345.7615772 | R201: 1.375111341 | S201: 2.486908711 | T201: =D$17*$E$6/(6*8*'Steel Eurocode 3'!$X$8*'Steel Eurocode 3'!$E$10)*100*1000*X201 -> 2.321349248 | U201: =D$18*E$7/(6*8*'Steel Eurocode 3'!X$8*'Steel Eurocode 3'!E$10)*100*1000*Y201 -> 1.740975111 | V201: =D$14*B201*(8^3-2*8*B201^2+B201^3)/24/('Steel Eurocode 3'!E$10*'Steel Eurocode 3'!X$8)*100*1000 -> 13.55794776 | X201: 154.9094892 | Y201: 174.2694892 | Z201: 4.789900782e-06 | AA201: 1.854101419e-05 | AB201: 3.939757339e-05 | AC201: 6.42666605e-05 | AE201: 0.4782995967 | AF201: 0.8650117255 | AG201: =C$17*$E$6/(6*8*'Steel Eurocode 3'!$X$8*'Steel Eurocode 3'!$E$10)*100*1000*AK201 -> 0.8074258254 | AH201: =C$18*E$7/(6*8*'Steel Eurocode 3'!X$8*'Steel Eurocode 3'!E$10)*100*1000*Y201 -> 0.6055565603 | AI201: =C$14*B201*(8^3-2*8*B201^2+B201^3)/24/('Steel Eurocode 3'!E$10*'Steel Eurocode 3'!X$8)*100*1000 -> 4.44231578 | AK201: 154.9094892 | AL201: 174.2694892 | AM201: 1.666052446e-06 | AN201: 6.449048413e-06 | AO201: 1.370350379e-05 | AP201: 2.235362104e-05
A202: 123 | B202: 3.904 | C202: -550.1032852 | D202: 8.077392 | E202: -21.49588069 | F202: -21.49588069 | G202: -7.203188759 | H202: -7.6640625 | I202: -13.9588125 | J202: 15.328125 | K202: 10.21875 | L202: ='Graph Properties'!C$3*8/2-B202*C$3 -> 4.153392 | M202: 31.392 | N202: 73.059648 | O202: 59.841 | P202: 39.894 | Q202: =C$3*8/2*'Graph Properties'!B202-'Graph Properties'!C$3*B202^2/2 -> 345.9166372 | R202: 1.372528105 | S202: 2.486473803 | T202: =D$17*$E$6/(6*8*'Steel Eurocode 3'!$X$8*'Steel Eurocode 3'!$E$10)*100*1000*X202 -> 2.325976731 | U202: =D$18*E$7/(6*8*'Steel Eurocode 3'!X$8*'Steel Eurocode 3'!E$10)*100*1000*Y202 -> 1.74565852 | V202: =D$14*B202*(8^3-2*8*B202^2+B202^3)/24/('Steel Eurocode 3'!E$10*'Steel Eurocode 3'!X$8)*100*1000 -> 13.56524353 | X202: 155.2182927 | Y202: 174.7382927 | Z202: 4.779691578e-06 | AA202: 1.850497263e-05 | AB202: 3.933446213e-05 | AC202: 6.419920015e-05 | AE202: 0.4774010801 | AF202: 0.8648604531 | AG202: =C$17*$E$6/(6*8*'Steel Eurocode 3'!$X$8*'Steel Eurocode 3'!$E$10)*100*1000*AK202 -> 0.8090353845 | AH202: =C$18*E$7/(6*8*'Steel Eurocode 3'!X$8*'Steel Eurocode 3'!E$10)*100*1000*Y202 -> 0.6071855723 | AI202: =C$14*B202*(8^3-2*8*B202^2+B202^3)/24/('Steel Eurocode 3'!E$10*'Steel Eurocode 3'!X$8)*100*1000 -> 4.444706269 | AK202: 155.2182927 | AL202: 174.7382927 | AM202: 1.662501418e-06 | AN202: 6.43651222e-06 | AO202: 1.368155204e-05 | AP202: 2.233015658e-05
A203: 124 | B203: 3.936 | C203: -550.3186823 | D203: 5.384928 | E203: -21.50615894 | F203: -21.50615894 | G203: -7.206658666 | H203: -7.6640625 | I203: -15.2668125 | J203: 15.328125 | K203: 10.21875 | L203: ='Graph Properties'!C$3*8/2-B203*C$3 -> 2.768928 | M203: 31.14675 | N203: 72.592038 | O203: 60.3315 | P203: 40.221 | Q203: =C$3*8/2*'Graph Properties'!B203-'Graph Properties'!C$3*B203^2/2 -> 346.0273943 | R203: 1.369756313 | S203: 2.48560008 | T203: =D$17*$E$6/(6*8*'Steel Eurocode 3'!$X$8*'Steel Eurocode 3'!$E$10)*100*1000*X203 -> 2.330244776 | U203: =D$18*E$7/(6*8*'Steel Eurocode 3'!X$8*'Steel Eurocode 3'!E$10)*100*1000*Y203 -> 1.750102305 | V203: =D$14*B203*(8^3-2*8*B203^2+B203^3)/24/('Steel Eurocode 3'!E$10*'Steel Eurocode 3'!X$8)*100*1000 -> 13.57045547 | X203: 155.5031101 | Y203: 175.1831101 | Z203: 4.768853848e-06 | AA203: 1.846641698e-05 | AB203: 3.926569414e-05 | AC203: 6.412169494e-05 | AE203: 0.4764369784 | AF203: 0.8645565494 | AG203: =C$17*$E$6/(6*8*'Steel Eurocode 3'!$X$8*'Steel Eurocode 3'!$E$10)*100*1000*AK203 -> 0.8105199219 | AH203: =C$18*E$7/(6*8*'Steel Eurocode 3'!X$8*'Steel Eurocode 3'!E$10)*100*1000*Y203 -> 0.6087312364 | AI203: =C$14*B203*(8^3-2*8*B203^2+B203^3)/24/('Steel Eurocode 3'!E$10*'Steel Eurocode 3'!X$8)*100*1000 -> 4.44641398 | AK203: 155.5031101 | AL203: 175.1831101 | AM203: 1.658731773e-06 | AN203: 6.423101557e-06 | AO203: 1.365763274e-05 | AP203: 2.230319824e-05
A204: 125 | B204: 3.968 | C204: -550.4479206 | D204: 2.692464 | E204: -21.51312562 | F204: -21.51312562 | G204: -7.209018771 | H204: -7.6640625 | I204: -16.5748125 | J204: 15.328125 | K204: 10.21875 | L204: ='Graph Properties'!C$3*8/2-B204*C$3 -> 1.384464 | M204: 30.9015 | N204: 72.082572 | O204: 60.822 | P204: 40.548 | Q204: =C$3*8/2*'Graph Properties'!B204-'Graph Properties'!C$3*B204^2/2 -> 346.0938486 | R204: 1.366797436 | S204: 2.48429035 | T204: =D$17*$E$6/(6*8*'Steel Eurocode 3'!$X$8*'Steel Eurocode 3'!$E$10)*100*1000*X204 -> 2.334150437 | U204: =D$18*E$7/(6*8*'Steel Eurocode 3'!X$8*'Steel Eurocode 3'!E$10)*100*1000*Y204 -> 1.7543045 | V204: =D$14*B204*(8^3-2*8*B204^2+B204^3)/24/('Steel Eurocode 3'!E$10*'Steel Eurocode 3'!X$8)*100*1000 -> 13.57358289 | X204: 155.7637448 | Y204: 175.6037448 | Z204: 4.757392504e-06 | AA204: 1.842536687e-05 | AB204: 3.919131363e-05 | AC204: 6.403421713e-05 | AE204: 0.4754078039 | AF204: 0.8641009914 | AG204: =C$17*$E$6/(6*8*'Steel Eurocode 3'!$X$8*'Steel Eurocode 3'!$E$10)*100*1000*AK204 -> 0.8118784128 | AH204: =C$18*E$7/(6*8*'Steel Eurocode 3'!X$8*'Steel Eurocode 3'!E$10)*100*1000*Y204 -> 0.6101928695 | AI204: =C$14*B204*(8^3-2*8*B204^2+B204^3)/24/('Steel Eurocode 3'!E$10*'Steel Eurocode 3'!X$8)*100*1000 -> 4.447438694 | AK204: 155.7637448 | AL204: 175.6037448 | AM204: 1.654745219e-06 | AN204: 6.408823257e-06 | AO204: 1.363176126e-05 | AP204: 2.227277117e-05
A205: 126 | B205: 4 | C205: -550.491 | D205: 0 | E205: -21.51677995 | F205: -21.51677995 | G205: -7.210268813 | H205: -7.6640625 | I205: -17.8828125 | J205: 15.328125 | K205: 10.21875 | L205: ='Graph Properties'!C$3*8/2-B205*C$3 -> 0 | M205: 30.65625 | N205: 71.53125 | O205: 61.3125 | P205: 40.875 | Q205: =C$3*8/2*'Graph Properties'!B205-'Graph Properties'!C$3*B205^2/2 -> 346.116 | R205: 1.363652948 | S205: 2.482547675 | T205: =D$17*$E$6/(6*8*'Steel Eurocode 3'!$X$8*'Steel Eurocode 3'!$E$10)*100*1000*X205 -> 2.337690768 | U205: =D$18*E$7/(6*8*'Steel Eurocode 3'!X$8*'Steel Eurocode 3'!E$10)*100*1000*Y205 -> 1.758263142 | V205: =D$14*B205*(8^3-2*8*B205^2+B205^3)/24/('Steel Eurocode 3'!E$10*'Steel Eurocode 3'!X$8)*100*1000 -> 13.57462541 | X205: 156 | Y205: 176 | Z205: 4.745312457e-06 | AA205: 1.838184194e-05 | AB205: 3.911136477e-05 | AC205: 6.393684152e-05 | AE205: 0.4743140689 | AF205: 0.8634948434 | AG205: =C$17*$E$6/(6*8*'Steel Eurocode 3'!$X$8*'Steel Eurocode 3'!$E$10)*100*1000*AK205 -> 0.8131098324 | AH205: =C$18*E$7/(6*8*'Steel Eurocode 3'!X$8*'Steel Eurocode 3'!E$10)*100*1000*Y205 -> 0.6115697885 | AI205: =C$14*B205*(8^3-2*8*B205^2+B205^3)/24/('Steel Eurocode 3'!E$10*'Steel Eurocode 3'!X$8)*100*1000 -> 4.44778028 | AK205: 156 | AL205: 176 | AM205: 1.650543463e-06 | AN205: 6.393684152e-06 | AO205: 1.360395296e-05 | AP205: 2.22389014e-05
A206: 127 | B206: 4.032 | C206: -550.4688486 | D206: -1.384464 | E206: -21.51712166 | F206: -21.51712166 | G206: -7.210408699 | H206: -7.6640625 | I206: -17.8828125 | J206: 15.328125 | K206: 10.21875 | L206: ='Graph Properties'!C$3*8/2-B206*C$3 -> -1.384464 | M206: 30.411 | N206: 70.959 | O206: 61.803 | P206: 41.202 | Q206: =C$3*8/2*'Graph Properties'!B206-'Graph Properties'!C$3*B206^2/2 -> 346.0938486 | R206: 1.360324322 | S206: 2.480375354 | T206: =D$17*$E$6/(6*8*'Steel Eurocode 3'!$X$8*'Steel Eurocode 3'!$E$10)*100*1000*X206 -> 2.340862823 | U206: =D$18*E$7/(6*8*'Steel Eurocode 3'!X$8*'Steel Eurocode 3'!E$10)*100*1000*Y206 -> 1.761976266 | V206: =D$14*B206*(8^3-2*8*B206^2+B206^3)/24/('Steel Eurocode 3'!E$10*'Steel Eurocode 3'!X$8)*100*1000 -> 13.57358289 | X206: 156.2116792 | Y206: 176.3716792 | Z206: 4.732618615e-06 | AA206: 1.833586183e-05 | AB206: 3.902589178e-05 | AC206: 6.382964532e-05 | AE206: 0.4731562859 | AF206: 0.8627392536 | AG206: =C$17*$E$6/(6*8*'Steel Eurocode 3'!$X$8*'Steel Eurocode 3'!$E$10)*100*1000*AK206 -> 0.8142131559 | AH206: =C$18*E$7/(6*8*'Steel Eurocode 3'!X$8*'Steel Eurocode 3'!E$10)*100*1000*Y206 -> 0.61286131 | AI206: =C$14*B206*(8^3-2*8*B206^2+B206^3)/24/('Steel Eurocode 3'!E$10*'Steel Eurocode 3'!X$8)*100*1000 -> 4.447438694 | AK206: 156.2116792 | AL206: 176.3716792 | AM206: 1.646128214e-06 | AN206: 6.377691073e-06 | AO206: 1.357422323e-05 | AP206: 2.220161576e-05
A207: 128 | B207: 4.064 | C207: -550.4023943 | D207: -2.768928 | E207: -21.51415088 | F207: -21.51415088 | G207: -7.20943847 | H207: -7.6640625 | I207: -17.8828125 | J207: 15.328125 | K207: 10.21875 | L207: ='Graph Properties'!C$3*8/2-B207*C$3 -> -2.768928 | M207: 30.16575 | N207: 70.38675 | O207: 62.2935 | P207: 41.529 | Q207: =C$3*8/2*'Graph Properties'!B207-'Graph Properties'!C$3*B207^2/2 -> 346.0273943 | R207: 1.356813031 | S207: 2.477776815 | T207: =D$17*$E$6/(6*8*'Steel Eurocode 3'!$X$8*'Steel Eurocode 3'!$E$10)*100*1000*X207 -> 2.343663656 | U207: =D$18*E$7/(6*8*'Steel Eurocode 3'!X$8*'Steel Eurocode 3'!E$10)*100*1000*Y207 -> 1.765441909 | V207: =D$14*B207*(8^3-2*8*B207^2+B207^3)/24/('Steel Eurocode 3'!E$10*'Steel Eurocode 3'!X$8)*100*1000 -> 13.57045547 | X207: 156.3985859 | Y207: 176.7185859 | Z207: 4.71931589e-06 | AA207: 1.82874462e-05 | AB207: 3.893493883e-05 | AC207: 6.371270698e-05 | AE207: 0.4719349672 | AF207: 0.8618354139 | AG207: =C$17*$E$6/(6*8*'Steel Eurocode 3'!$X$8*'Steel Eurocode 3'!$E$10)*100*1000*AK207 -> 0.8151873585 | AH207: =C$18*E$7/(6*8*'Steel Eurocode 3'!X$8*'Steel Eurocode 3'!E$10)*100*1000*Y207 -> 0.614066751 | AI207: =C$14*B207*(8^3-2*8*B207^2+B207^3)/24/('Steel Eurocode 3'!E$10*'Steel Eurocode 3'!X$8)*100*1000 -> 4.44641398 | AK207: 156.3985859 | AL207: 176.7185859 | AM207: 1.641501179e-06 | AN207: 6.360850851e-06 | AO207: 1.354258742e-05 | AP207: 2.216094156e-05
A208: 129 | B208: 4.096 | C208: -550.2916372 | D208: -4.153392 | E208: -21.507868 | F208: -21.507868 | G208: -7.207358258 | H208: -7.6640625 | I208: -17.8828125 | J208: 15.328125 | K208: 10.21875 | L208: ='Graph Properties'!C$3*8/2-B208*C$3 -> -4.153392 | M208: =IF(B208>D$4, IF(B208<(D$4+E$4),G$4*B208-C$4/2*(B208-D$4)^2,-(8-B208)*H$4),G$4*B208) -> 29.9205 | N208: =IF(B208>D$5, IF(B208<(D$5+E$5),G$5*B208-C$5/2*(B208-D$5)^2,-(8-B208)*H$5),G$5*B208) -> 69.8145 | O208: 62.784 | P208: 41.856 | Q208: =C$3*8/2*'Graph Properties'!B208-'Graph Properties'!C$3*B208^2/2 -> 345.9166372 | R208: 1.353120548 | S208: 2.474755495 | T208: =D$17*$E$6/(6*8*'Steel Eurocode 3'!$X$8*'Steel Eurocode 3'!$E$10)*100*1000*X208 -> 2.34609032 | U208: =D$18*E$7/(6*8*'Steel Eurocode 3'!X$8*'Steel Eurocode 3'!E$10)*100*1000*Y208 -> 1.768658106 | V208: =D$14*B208*(8^3-2*8*B208^2+B208^3)/24/('Steel Eurocode 3'!E$10*'Steel Eurocode 3'!X$8)*100*1000 -> 13.56524353 | X208: =IF(B208<D$6,B208*(8^2-B208^2-E$6^2),8/E$6*(B208-D$6)^3+(8^2-E$6^2)*B208-B208^3) -> 156.5605233 | Y208: =IF(B208<D$7,B208*(8^2-B208^2-E$7^2),8/E$7*(B208-D$7)^3+(8^2-E$7^2)*B208-B208^3) -> 177.0405233 | Z208: =IF(B208<D$4,B208*D$15/(24*K$2*K$3)*((D$4^2)*(2*K$2-D$4)^2-2*(D$4*B208^2)*(2*K$2-D$4)+K$2*B208^3),D$15/(24*K$2*K$3)*(D$4^2*(K$2-B208))*(4*B208*K$2-2*B208^2-D$4^2)) -> 4.705409192e-06 | AA208: =IF(B208<I$4,B208*D$15/(24*K$2*K$3)*((I$4^2)*(2*K$2-I$4)^2-2*(I$4*B208^2)*(2*K$2-I$4)+K$2*B208^3),D$15/(24*K$2*K$3)*(I$4^2*(K$2-B208))*(4*B208*K$2-2*B208^2-I$4^2)) -> 1.823661467e-05 | AB208: =IF(B208<D$5,B208*D$16/(24*K$2*K$3)*((D$5^2)*(2*K$2-D$5)^2-2*(D$5*B208^2)*(2*K$2-D$5)+K$2*B208^3),D$16/(24*K$2*K$3)*(D$5^2*(K$2-B208))*(4*B208*K$2-2*B208^2-D$5^2)) -> 3.883855013e-05 | AC208: =IF(B208<I$5,B208*D$16/(24*K$2*K$3)*((I$5^2)*(2*K$2-I$5)^2-2*(I$5*B208^2)*(2*K$2-I$5)+K$2*B208^3),D$16/(24*K$2*K$3)*(I$5^2*(K$2-B208))*(4*B208*K$2-2*B208^2-I$5^2)) -> 6.358610508e-05 | AE208: 0.4706506253 | AF208: 0.8607845199 | AG208: =C$17*$E$6/(6*8*'Steel Eurocode 3'!$X$8*'Steel Eurocode 3'!$E$10)*100*1000*AK208 -> 0.8160314156 | AH208: =C$18*E$7/(6*8*'Steel Eurocode 3'!X$8*'Steel Eurocode 3'!E$10)*100*1000*Y208 -> 0.6151854282 | AI208: =C$14*B208*(8^3-2*8*B208^2+B208^3)/24/('Steel Eurocode 3'!E$10*'Steel Eurocode 3'!X$8)*100*1000 -> 4.444706269 | AK208: =IF(B208<D$6,B208*(8^2-B208^2-E$6^2),8/E$6*(B208-D$6)^3+(8^2-E$6^2)*B208-B208^3) -> 156.5605233 | AL208: =IF(B208<D$7,B208*(8^2-B208^2-E$7^2),8/E$7*(B208-D$7)^3+(8^2-E$7^2)*B208-B208^3) -> 177.0405233 | AM208: =IF(B208<D$4,B208*C$15/(24*K$2*K$3)*((D$4^2)*(2*K$2-D$4)^2-2*(D$4*B208^2)*(2*K$2-D$4)+K$2*B208^3),C$15/(24*K$2*K$3)*(D$4^2*(K$2-B208))*(4*B208*K$2-2*B208^2-D$4^2)) -> 1.636664067e-06 | AN208: =IF(B208<I$4,B208*C$15/(24*K$2*K$3)*((I$4^2)*(2*K$2-I$4)^2-2*(I$4*B208^2)*(2*K$2-I$4)+K$2*B208^3),C$15/(24*K$2*K$3)*(I$4^2*(K$2-B208))*(4*B208*K$2-2*B208^2-I$4^2)) -> 6.34317032e-06 | AO208: =IF(B208<D$5,B208*C$16/(24*K$2*K$3)*((D$5^2)*(2*K$2-D$5)^2-2*(D$5*B208^2)*(2*K$2-D$5)+K$2*B208^3),C$16/(24*K$2*K$3)*(D$5^2*(K$2-B208))*(4*B208*K$2-2*B208^2-D$5^2)) -> 1.350906092e-05 | AP208: =IF(B208<I$5,B208*C$16/(24*K$2*K$3)*((I$5^2)*(2*K$2-I$5)^2-2*(I$5*B208^2)*(2*K$2-I$5)+K$2*B208^3),C$16/(24*K$2*K$3)*(I$5^2*(K$2-B208))*(4*B208*K$2-2*B208^2-I$5^2)) -> 2.211690612e-05
A209: 130 | B209: =B208+8/250 -> 4.128 | C209: -550.1365772 | D209: -5.537856 | E209: -21.4982737 | F209: -21.4982737 | G209: -7.204168281 | H209: -7.6640625 | I209: -17.8828125 | J209: 15.328125 | K209: 10.21875 | L209: ='Graph Properties'!C$3*8/2-B209*C$3 -> -5.537856 | M209: 29.67525 | N209: 69.24225 | O209: 63.2745 | P209: 42.183 | Q209: =C$3*8/2*'Graph Properties'!B209-'Graph Properties'!C$3*B209^2/2 -> 345.7615772 | R209: 1.349248346 | S209: 2.471314831 | T209: =D$17*$E$6/(6*8*'Steel Eurocode 3'!$X$8*'Steel Eurocode 3'!$E$10)*100*1000*X209 -> 2.348139869 | U209: =D$18*E$7/(6*8*'Steel Eurocode 3'!X$8*'Steel Eurocode 3'!E$10)*100*1000*Y209 -> 1.771622893 | V209: =D$14*B209*(8^3-2*8*B209^2+B209^3)/24/('Steel Eurocode 3'!E$10*'Steel Eurocode 3'!X$8)*100*1000 -> 13.55794776 | X209: 156.6972948 | Y209: 177.3372948 | Z209: 4.690903432e-06 | AA209: 1.818338689e-05 | AB209: 3.873676987e-05 | AC209: 6.344991818e-05 | AE209: 0.4693037725 | AF209: 0.8595877673 | AG209: =C$17*$E$6/(6*8*'Steel Eurocode 3'!$X$8*'Steel Eurocode 3'!$E$10)*100*1000*AK209 -> 0.8167443022 | AH209: =C$18*E$7/(6*8*'Steel Eurocode 3'!X$8*'Steel Eurocode 3'!E$10)*100*1000*Y209 -> 0.6162166585 | AI209: =C$14*B209*(8^3-2*8*B209^2+B209^3)/24/('Steel Eurocode 3'!E$10*'Steel Eurocode 3'!X$8)*100*1000 -> 4.44231578 | AK209: 156.6972948 | AL209: 177.3372948 | AM209: 1.631618585e-06 | AN209: 6.32465631e-06 | AO209: 1.347365908e-05 | AP209: 2.206953676e-05
A210: 131 | B210: 4.16 | C210: =-SUM(M210:Q210) -> -549.9372144 | D210: =H210+I210+J210+K210+L210 -> -6.92232 | E210: =IF(E$10=2,G210,F210) -> -21.48536891 | F210: =-SUM(R210:V210) -> -21.48536891 | G210: =-SUM(AE210:AI210) -> -7.199868844 | H210: =IF(B210>D$4, IF(B210<(D$4+E$4),G$4-C$4*(B210-D$4),H$4),G$4) -> -7.6640625 | I210: =IF(B210>D$5, IF(B210<(D$5+E$5),G$5-C$5*(B210-D$5),H$5),G$5) -> -17.8828125 | J210: =IF(B210>D$6,-H$6,G$6) -> 15.328125 | K210: =IF(B210>D$7,-H$7,G$7) -> 10.21875 | L210: ='Graph Properties'!C$3*8/2-B210*C$3 -> -6.92232 | M210: 29.43 | N210: 68.67 | O210: =IF(B210<D$6,G$6*B210,G$6*B210-C$6*(B210-D$6)) -> 63.765 | P210: =IF(B210<D$7,G$7*B210,G$7*B210-C$7*(B210-D$7)) -> 42.51 | Q210: =C$3*8/2*'Graph Properties'!B210-'Graph Properties'!C$3*B210^2/2 -> 345.5622144 | R210: =(AA210-Z210)*1000*100 -> 1.345197898 | S210: =(AC210-AB210)*1000*100 -> 2.46745826 | T210: =D$17*$E$6/(6*8*'Steel Eurocode 3'!$X$8*'Steel Eurocode 3'!$E$10)*100*1000*X210 -> 2.349809357 | U210: =D$18*E$7/(6*8*'Steel Eurocode 3'!X$8*'Steel Eurocode 3'!E$10)*100*1000*Y210 -> 1.774334306 | V210: =D$14*B210*(8^3-2*8*B210^2+B210^3)/24/('Steel Eurocode 3'!E$10*'Steel Eurocode 3'!X$8)*100*1000 -> 13.54856908 | X210: 156.808704 | Y210: 177.608704 | Z210: 4.675803519e-06 | AA210: 1.81277825e-05 | AB210: 3.862964223e-05 | AC210: 6.330422484e-05 | AE210: =(AN210-AM210)*1000*100 -> 0.4678949212 | AF210: =(AP210-AO210)*1000*100 -> 0.8582463514 | AG210: =C$17*$E$6/(6*8*'Steel Eurocode 3'!$X$8*'Steel Eurocode 3'!$E$10)*100*1000*AK210 -> 0.8173249937 | AH210: =C$18*E$7/(6*8*'Steel Eurocode 3'!X$8*'Steel Eurocode 3'!E$10)*100*1000*Y210 -> 0.6171597587 | AI210: =C$14*B210*(8^3-2*8*B210^2+B210^3)/24/('Steel Eurocode 3'!E$10*'Steel Eurocode 3'!X$8)*100*1000 -> 4.439242819 | AK210: 156.808704 | AL210: 177.608704 | AM210: 1.626366441e-06 | AN210: 6.305315653e-06 | AO210: 1.34363973e-05 | AP210: 2.201886081e-05
... 127 more rows

Sheet Section tables new (hidden)
H1: UB | I1: UC | J1: PFC
C4: Desig- | D4: Dimensions | I4: Area | J4: Weight | K4: ly | L4: Wel.y | M4: Wpl.y | N4: iy | O4: lz | P4: Wel.z | Q4: Wpl.z | R4: iz | S4: lt | T4: lw | U4: Avz
C5: nation | D5: h | E5: b | F5: tw | G5: tf | H5: r | I5: A | J5: G | K5: mm4 | L5: mm3 | M5: mm3 | N5: mm | O5: mm4 | P5: mm3 | Q5: mm3 | R5: mm | S5: mm4 | T5: mm6 | U5: mm2
B6: =C6 -> HD | C6: HD | D6: mm | E6: mm | F6: mm | G6: mm | H6: mm | I6: mm2 | J6: kg/m | K6: (x 104) | L6: (x 103) | M6: (x 103) | N6: (x 10 ) | O6: (x 104) | P6: (x 103) | Q6: (x 103) | R6: (x 10 ) | S6: (x 104) | T6: (x 109) | U6: (x 102)
B7: =COUNTA(C7:C48) -> 42 | C7: 260x54.1 | D7: 244 | E7: 260 | F7: 6.5 | G7: 9.5 | H7: 24 | I7: 6900 | J7: 54.1 | K7: 7981 | L7: 654.1 | M7: 714.5 | N7: 10.76 | O7: 2788 | P7: 214.5 | Q7: 327.7 | R7: 6.36 | S7: 30.31 | T7: 382.6 | U7: 24.75
C8: 260x68.2 | D8: 250 | E8: 260 | F8: 7.5 | G8: 12.5 | H8: 24 | I8: 8680 | J8: 68.2 | K8: 10450 | L8: 836.4 | M8: 919.8 | N8: 10.97 | O8: 3668 | P8: 282.1 | Q8: 430.2 | R8: 6.5 | S8: 52.37 | T8: 516.4 | U8: 28.76
C9: 260x93.0 | D9: 260 | E9: 260 | F9: 10 | G9: 17.5 | H9: 24 | I9: 11840 | J9: 93 | K9: 14920 | L9: 1148 | M9: 1283 | N9: 11.22 | O9: 5135 | P9: 395 | Q9: 602.2 | R9: 6.58 | S9: 123.8 | T9: 753.7 | U9: 37.59
C10: 260x114 | D10: 268 | E10: 262 | F10: 12.5 | G10: 21.5 | H10: 24 | I10: 14570 | J10: 114 | K10: 18910 | L10: 1411 | M10: 1600 | N10: 11.39 | O10: 6456 | P10: 492.8 | Q10: 752.5 | R10: 6.66 | S10: 222.4 | T10: 979 | U10: 46.08
C11: 260x142 | D11: 278 | E11: 265 | F11: 15.5 | G11: 26.5 | H11: 24 | I11: 18030 | J11: 142 | K11: 24330 | L11: 1750 | M11: 2015 | N11: 11.62 | O11: 8236 | P11: 621.6 | Q11: 950.5 | R11: 6.76 | S11: 406.8 | T11: 1300 | U11: 56.65
C12: 260x172 | D12: 290 | E12: 268 | F12: 18 | G12: 32.5 | H12: 24 | I12: 21960 | J12: 172 | K12: 31310 | L12: 2159 | M12: 2524 | N12: 11.94 | O12: 10450 | P12: 779.7 | Q12: 1192 | R12: 6.9 | S12: 719 | T12: 1728 | U12: 66.89
C13: 260x225 | D13: 309 | E13: 271 | F13: 24 | G13: 42 | H13: 24 | I13: 28660 | J13: 225 | K13: 43750 | L13: 2832 | M13: 3396 | N13: 12.36 | O13: 13970 | P13: 1031 | Q13: 1583 | R13: 6.98 | S13: 1545 | T13: 2483 | U13: 89.18
C14: 260x299 | D14: 335 | E14: 278 | F14: 31 | G14: 55 | H14: 24 | I14: 38050 | J14: 299 | K14: 64220 | L14: 3834 | M14: 4727 | N14: 12.99 | O14: 19770 | P14: 1423 | Q14: 2190 | R14: 7.21 | S14: 3437 | T14: 3860 | U14: 118.1
C15: 320x74.2 | D15: 301 | E15: 300 | F15: 8 | G15: 11 | H15: 27 | I15: 9460 | J15: 74.2 | K15: 16450 | L15: 1093 | M15: 1196 | N15: 13.19 | O15: 4959 | P15: 330.6 | Q15: 505.7 | R15: 7.24 | S15: 55.87 | T15: 1041 | U15: 35.4
C16: 320x97.6 | D16: 310 | E16: 300 | F16: 9 | G16: 15.5 | H16: 27 | I16: 12440 | J16: 97.6 | K16: 22930 | L16: 1479 | M16: 1628 | N16: 13.58 | O16: 6985 | P16: 465.7 | Q16: 709.7 | R16: 7.49 | S16: 108 | T16: 1512 | U16: 41.13
C17: 320x127 | D17: 320 | E17: 300 | F17: 11.5 | G17: 20.5 | H17: 27 | I17: 16130 | J17: 127 | K17: 30820 | L17: 1926 | M17: 2149 | N17: 13.82 | O17: 9239 | P17: 615.9 | Q17: 939.1 | R17: 7.57 | S17: 225.1 | T17: 2069 | U17: 51.77
C18: 320x158 | D18: 330 | E18: 303 | F18: 14.5 | G18: 25.5 | H18: 27 | I18: 20120 | J18: 158 | K18: 39640 | L18: 2403 | M18: 2718 | N18: 14.04 | O18: 11840 | P18: 781.7 | Q18: 1194 | R18: 7.67 | S18: 420.5 | T18: 2741 | U18: 64.18
C19: 320x198 | D19: 343 | E19: 306 | F19: 18 | G19: 32 | H19: 27 | I19: 25230 | J19: 198 | K19: 51900 | L19: 3026 | M19: 3479 | N19: 14.34 | O19: 15310 | P19: 1001 | Q19: 1530 | R19: 7.79 | S19: 805.3 | T19: 3695 | U19: 79.52
C20: 320x245 | D20: 359 | E20: 309 | F20: 21 | G20: 40 | H20: 27 | I20: 31200 | J20: 245 | K20: 68130 | L20: 3796 | M20: 4435 | N20: 14.78 | O20: 19710 | P20: 1276 | Q20: 1951 | R20: 7.95 | S20: 1501 | T20: 5004 | U20: 94.85
C21: 320x300 | D21: 375 | E21: 313 | F21: 27 | G21: 48 | H21: 27 | I21: 38210 | J21: 300 | K21: 86900 | L21: 4635 | M21: 5522 | N21: 15.08 | O21: 24600 | P21: 1572 | Q21: 2414 | R21: 8.02 | S21: 2650 | T21: 6558 | U21: 120.47
C22: 360x134 | D22: 356 | E22: 369 | F22: 11.2 | G22: 18 | H22: 15 | I22: 17060 | J22: 134 | K22: 41510 | L22: 2332 | M22: 2562 | N22: 15.6 | O22: 15080 | P22: 817.3 | Q22: 1237 | R22: 9.4 | S22: 168.8 | T22: 4305 | U22: 45.19
C23: 360x147 | D23: 360 | E23: 370 | F23: 12.3 | G23: 19.8 | H23: 15 | I23: 18790 | J23: 147 | K23: 46290 | L23: 2572 | M23: 2838 | N23: 15.7 | O23: 16720 | P23: 903.9 | Q23: 1369 | R23: 9.43 | S23: 223.7 | T23: 4836 | U23: 49.72
C24: 360x162 | D24: 364 | E24: 371 | F24: 13.3 | G24: 21.8 | H24: 15 | I24: 20630 | J24: 162 | K24: 51540 | L24: 2832 | M24: 3139 | N24: 15.81 | O24: 18560 | P24: 1001 | Q24: 1516 | R24: 9.49 | S24: 295.5 | T24: 5432 | U24: 53.98
C25: 360x179 | D25: 368 | E25: 373 | F25: 15 | G25: 23.9 | H25: 15 | I25: 22830 | J25: 179 | K25: 57440 | L25: 3122 | M25: 3482 | N25: 15.86 | O25: 20680 | P25: 1109 | Q25: 1683 | R25: 9.52 | S25: 393.8 | T25: 6119 | U25: 60.72
C26: 360x196 | D26: 372 | E26: 374 | F26: 16.4 | G26: 26.2 | H26: 15 | I26: 25030 | J26: 196 | K26: 63630 | L26: 3421 | M26: 3837 | N26: 15.94 | O26: 22860 | P26: 1222 | Q26: 1856 | R26: 9.56 | S26: 517.1 | T26: 6829 | U26: 66.5
C27: 400x187 | D27: 368 | E27: 391 | F27: 15 | G27: 24 | H27: 15 | I27: 23760 | J27: 187 | K27: 60180 | L27: 3271 | M27: 3642 | N27: 15.91 | O27: 23920 | P27: 1224 | Q27: 1855 | R27: 10.03 | S27: 414.6 | T27: 7074 | U27: 60.73
C28: 400x216 | D28: 375 | E28: 394 | F28: 17.3 | G28: 27.7 | H28: 15 | I28: 27550 | J28: 216 | K28: 71140 | L28: 3794 | M28: 4262 | N28: 16.07 | O28: 28250 | P28: 1434 | Q28: 2176 | R28: 10.13 | S28: 637.3 | T28: 8515 | U28: 70.32
C29: 400x237 | D29: 380 | E29: 395 | F29: 18.9 | G29: 30.2 | H29: 15 | I29: 30090 | J29: 237 | K29: 78780 | L29: 4146 | M29: 4686 | N29: 16.18 | O29: 31040 | P29: 1572 | Q29: 2387 | R29: 10.16 | S29: 825.5 | T29: 9489 | U29: 77.1
C30: 400x262 | D30: 387 | E30: 398 | F30: 21.1 | G30: 33.3 | H30: 15 | I30: 33460 | J30: 262 | K30: 89410 | L30: 4620 | M30: 5260 | N30: 16.35 | O30: 35020 | P30: 1760 | Q30: 2676 | R30: 10.23 | S30: 1116 | T30: 10940 | U30: 86.55
C31: 400x287 | D31: 393 | E31: 399 | F31: 22.6 | G31: 36.6 | H31: 15 | I31: 36630 | J31: 287 | K31: 99710 | L31: 5074 | M31: 5813 | N31: 16.5 | O31: 38780 | P31: 1944 | Q31: 2957 | R31: 10.29 | S31: 1464 | T31: 12300 | U31: 93.46
C32: 400x314 | D32: 399 | E32: 401 | F32: 24.9 | G32: 39.6 | H32: 15 | I32: 39920 | J32: 314 | K32: 110200 | L32: 5525 | M32: 6374 | N32: 16.62 | O32: 42600 | P32: 2125 | Q32: 3236 | R32: 10.33 | S32: 1870 | T32: 13740 | U32: 103.3
C33: 400x347 | D33: 407 | E33: 404 | F33: 27.2 | G33: 43.7 | H33: 15 | I33: 44200 | J33: 347 | K33: 124900 | L33: 6140 | M33: 7139 | N33: 16.81 | O33: 48090 | P33: 2380 | Q33: 3629 | R33: 10.43 | S33: 2510 | T33: 15850 | U33: 113.9
C34: 400x382 | D34: 416 | E34: 406 | F34: 29.8 | G34: 48 | H34: 15 | I34: 48710 | J34: 382 | K34: 141300 | L34: 6794 | M34: 7965 | N34: 17.03 | O34: 53620 | P34: 2641 | Q34: 4031 | R34: 10.49 | S34: 3326 | T34: 18130 | U34: 126
C35: 400x421 | D35: 425 | E35: 409 | F35: 32.8 | G35: 52.6 | H35: 15 | I35: 53710 | J35: 421 | K35: 159600 | L35: 7510 | M35: 8880 | N35: 17.24 | O35: 60080 | P35: 2938 | Q35: 4489 | R35: 10.58 | S35: 4398 | T35: 20800 | U35: 139.9
C36: 400x463 | D36: 435 | E36: 412 | F36: 35.8 | G36: 57.4 | H36: 15 | I36: 58950 | J36: 463 | K36: 180200 | L36: 8283 | M36: 9878 | N36: 17.48 | O36: 67040 | P36: 3254 | Q36: 4978 | R36: 10.66 | S36: 5735 | T36: 23850 | U36: 154.3
C37: 400x509 | D37: 446 | E37: 416 | F37: 39.1 | G37: 62.7 | H37: 15 | I37: 64900 | J37: 509 | K37: 204500 | L37: 9172 | M37: 11030 | N37: 17.75 | O37: 75400 | P37: 3625 | Q37: 5552 | R37: 10.78 | S37: 7513 | T37: 27630 | U37: 170.6
C38: 400x551 | D38: 455 | E38: 418 | F38: 42 | G38: 67.6 | H38: 15 | I38: 70140 | J38: 551 | K38: 226100 | L38: 9939 | M38: 12050 | N38: 17.95 | O38: 82490 | P38: 3947 | Q38: 6051 | R38: 10.85 | S38: 9410 | T38: 30870 | U38: 184.9
C39: 400x592 | D39: 465 | E39: 421 | F39: 45 | G39: 72.3 | H39: 15 | I39: 75490 | J39: 592 | K39: 250200 | L39: 10760 | M39: 13140 | N39: 18.2 | O39: 90170 | P39: 4284 | Q39: 6574 | R39: 10.93 | S39: 11560 | T39: 34670 | U39: 200.3
C40: 400x634 | D40: 474 | E40: 424 | F40: 47.6 | G40: 77.1 | H40: 15 | I40: 80800 | J40: 634 | K40: 274200 | L40: 11570 | M40: 14220 | N40: 18.42 | O40: 98250 | P40: 4634 | Q40: 7117 | R40: 11.03 | S40: 14020 | T40: 38570 | U40: 214
C41: 400x677 | D41: 483 | E41: 428 | F41: 51.2 | G41: 81.5 | H41: 15 | I41: 86340 | J41: 677 | K41: 299500 | L41: 12400 | M41: 15350 | N41: 18.62 | O41: 106900 | P41: 4994 | Q41: 7680 | R41: 11.13 | S41: 16790 | T41: 42920 | U41: 231.9
C42: 400x744 | D42: 498 | E42: 432 | F42: 55.6 | G42: 88.9 | H42: 15 | I42: 94810 | J42: 744 | K42: 342100 | L42: 13740 | M42: 17170 | N42: 19 | O42: 119900 | P42: 5552 | Q42: 8549 | R42: 11.25 | S42: 21840 | T42: 49980 | U42: 256.1
C43: 400x818 | D43: 514 | E43: 437 | F43: 60.5 | G43: 97 | H43: 15 | I43: 104300 | J43: 818 | K43: 392200 | L43: 15260 | M43: 19260 | N43: 19.39 | O43: 135500 | P43: 6203 | Q43: 9561 | R43: 11.4 | S43: 28510 | T43: 58650 | U43: 283.3
C44: 400x900 | D44: 531 | E44: 442 | F44: 65.9 | G44: 106 | H44: 15 | I44: 114900 | J44: 900 | K44: 450200 | L44: 16960 | M44: 21620 | N44: 19.79 | O44: 153300 | P44: 6938 | Q44: 10710 | R44: 11.55 | S44: 37350 | T44: 68890 | U44: 313.8
C45: 400x990 | D45: 550 | E45: 448 | F45: 71.9 | G45: 115 | H45: 15 | I45: 126200 | J45: 990 | K45: 518900 | L45: 18870 | M45: 24280 | N45: 20.27 | O45: 173400 | P45: 7739 | Q45: 11960 | R45: 11.72 | S45: 48210 | T45: 81530 | U45: 349.2
C46: 400x1086 | D46: 569 | E46: 454 | F46: 78 | G46: 125 | H46: 15 | I46: 138600 | J46: 1086 | K46: 595700 | L46: 20940 | M46: 27210 | N46: 20.73 | O46: 196200 | P46: 8645 | Q46: 13380 | R46: 11.9 | S46: 62290 | T46: 96080 | U46: 385.8
C47: 400x1202 | D47: 580 | E47: 471 | F47: 95 | G47: 130 | H47: 15 | I47: 153000 | J47: 1202 | K47: 663600 | L47: 22880 | M47: 30020 | N47: 20.82 | O47: 228700 | P47: 9712 | Q47: 15150 | R47: 12.22 | S47: 79230 | T47: 114600 | U47: 469.6
C48: 400x1299 | D48: 600 | E48: 476 | F48: 100 | G48: 140 | H48: 15 | I48: 165000 | J48: 1299 | K48: 754600 | L48: 25150 | M48: 33250 | N48: 21.35 | O48: 254400 | P48: 10690 | Q48: 16670 | R48: 12.4 | S48: 98140 | T48: 133100 | U48: 505.2
C50: Desig- | D50: Dimensions | I50: Area | J50: Weight | K50: ly | L50: Wel.y | M50: Wpl.y | N50: iy | O50: lz | P50: Wel.z | Q50: Wpl.z | R50: iz | S50: lt | T50: lw | U50: Avz
C51: nation | D51: h | E51: b | F51: tw | G51: tf | H51: r | I51: A | J51: G | K51: mm4 | L51: mm3 | M51: mm3 | N51: mm | O51: mm4 | P51: mm3 | Q51: mm3 | R51: mm | S51: mm4 | T51: mm6 | U51: mm2
B52: =C52 -> HE | C52: HE | D52: mm | E52: mm | F52: mm | G52: mm | H52: mm | I52: mm2 | J52: kg/m | K52: (x 104) | L52: (x 103) | M52: (x 103) | N52: (x 10 ) | O52: (x 104) | P52: (x 103) | Q52: (x 103) | R52: (x 10 ) | S52: (x 104) | T52: (x 109) | U52: (x 102)
B53: =COUNTA(C53:C164) -> 112 | C53: 100 AA | D53: 91 | E53: 100 | F53: 4.2 | G53: 5.5 | H53: 12 | I53: 1560 | J53: 12.2 | K53: 236.5 | L53: 51.98 | M53: 58.36 | N53: 3.89 | O53: 92.06 | P53: 18.41 | Q53: 28.44 | R53: 2.43 | S53: 2.51 | T53: 1.68 | U53: 6.15
C54: 100 A | D54: 96 | E54: 100 | F54: 5 | G54: 8 | H54: 12 | I54: 2120 | J54: 16.7 | K54: 349.2 | L54: 72.76 | M54: 83.01 | N54: 4.06 | O54: 133.8 | P54: 26.76 | Q54: 41.14 | R54: 2.51 | S54: 5.24 | T54: 2.58 | U54: 7.56
C55: 100 B | D55: 100 | E55: 100 | F55: 6 | G55: 10 | H55: 12 | I55: 2600 | J55: 20.4 | K55: 449.5 | L55: 89.91 | M55: 104.2 | N55: 4.16 | O55: 167.3 | P55: 33.45 | Q55: 51.42 | R55: 2.53 | S55: 9.25 | T55: 3.38 | U55: 9.04
C56: 100 M | D56: 120 | E56: 106 | F56: 12 | G56: 20 | H56: 12 | I56: 5320 | J56: 41.8 | K56: 1143 | L56: 190.4 | M56: 235.8 | N56: 4.63 | O56: 399.2 | P56: 75.31 | Q56: 116.3 | R56: 2.74 | S56: 68.21 | T56: 9.93 | U56: 18.04
C57: 120 AA | D57: 109 | E57: 120 | F57: 4.2 | G57: 5.5 | H57: 12 | I57: 1860 | J57: 14.6 | K57: 413.4 | L57: 75.85 | M57: 84.12 | N57: 4.72 | O57: 158.8 | P57: 26.47 | Q57: 40.62 | R57: 2.93 | S57: 2.78 | T57: 4.24 | U57: 6.9
C58: 120 A | D58: 114 | E58: 120 | F58: 5 | G58: 8 | H58: 12 | I58: 2530 | J58: 19.9 | K58: 606.2 | L58: 106.3 | M58: 119.5 | N58: 4.89 | O58: 230.9 | P58: 38.48 | Q58: 58.85 | R58: 3.02 | S58: 5.99 | T58: 6.47 | U58: 8.46
C59: 120 B | D59: 120 | E59: 120 | F59: 6.5 | G59: 11 | H59: 12 | I59: 3400 | J59: 26.7 | K59: 864.4 | L59: 144.1 | M59: 165.2 | N59: 5.04 | O59: 317.5 | P59: 52.92 | Q59: 80.97 | R59: 3.06 | S59: 13.84 | T59: 9.41 | U59: 10.96
C60: 120 M | D60: 140 | E60: 126 | F60: 12.5 | G60: 21 | H60: 12 | I60: 6640 | J60: 52.1 | K60: 2018 | L60: 288.2 | M60: 350.6 | N60: 5.51 | O60: 702.8 | P60: 111.6 | Q60: 171.6 | R60: 3.25 | S60: 91.66 | T60: 24.79 | U60: 21.15
C61: 140 AA | D61: 128 | E61: 140 | F61: 4.3 | G61: 6 | H61: 12 | I61: 2300 | J61: 18.1 | K61: 719.5 | L61: 112.4 | M61: 123.8 | N61: 5.59 | O61: 274.8 | P61: 39.26 | Q61: 59.93 | R61: 3.45 | S61: 3.54 | T61: 10.21 | U61: 7.92
C62: 140 A | D62: 133 | E62: 140 | F62: 5.5 | G62: 8.5 | H62: 12 | I62: 3140 | J62: 24.7 | K62: 1033 | L62: 155.4 | M62: 173.5 | N62: 5.73 | O62: 389.3 | P62: 55.62 | Q62: 84.85 | R62: 3.52 | S62: 8.13 | T62: 15.06 | U62: 10.12
C63: 140 B | D63: 140 | E63: 140 | F63: 7 | G63: 12 | H63: 12 | I63: 4300 | J63: 33.7 | K63: 1509 | L63: 215.6 | M63: 245.4 | N63: 5.93 | O63: 549.7 | P63: 78.52 | Q63: 119.8 | R63: 3.58 | S63: 20.06 | T63: 22.48 | U63: 13.08
C64: 140 M | D64: 160 | E64: 146 | F64: 13 | G64: 22 | H64: 12 | I64: 8060 | J64: 63.2 | K64: 3291 | L64: 411.4 | M64: 493.8 | N64: 6.39 | O64: 1144 | P64: 156.8 | Q64: 240.5 | R64: 3.77 | S64: 120 | T64: 54.33 | U64: 24.46
C65: 160 AA | D65: 148 | E65: 160 | F65: 4.5 | G65: 7 | H65: 15 | I65: 3040 | J65: 23.8 | K65: 1283 | L65: 173.4 | M65: 190.4 | N65: 6.5 | O65: 478.7 | P65: 59.84 | Q65: 91.36 | R65: 3.97 | S65: 6.33 | T65: 23.75 | U65: 10.38
C66: 160 A | D66: 152 | E66: 160 | F66: 6 | G66: 9 | H66: 15 | I66: 3880 | J66: 30.4 | K66: 1673 | L66: 220.1 | M66: 245.1 | N66: 6.57 | O66: 615.6 | P66: 76.95 | Q66: 117.6 | R66: 3.98 | S66: 12.19 | T66: 31.41 | U66: 13.21
C67: 160 B | D67: 160 | E67: 160 | F67: 8 | G67: 13 | H67: 15 | I67: 5430 | J67: 42.6 | K67: 2492 | L67: 311.5 | M67: 354 | N67: 6.78 | O67: 889.2 | P67: 111.2 | Q67: 170 | R67: 4.05 | S67: 31.24 | T67: 47.94 | U67: 17.59
C68: 160 M | D68: 180 | E68: 166 | F68: 14 | G68: 23 | H68: 15 | I68: 9710 | J68: 76.2 | K68: 5098 | L68: 566.5 | M68: 674.6 | N68: 7.25 | O68: 1759 | P68: 211.9 | Q68: 325.5 | R68: 4.26 | S68: 162.4 | T68: 108.1 | U68: 30.81
C69: 180 AA | D69: 167 | E69: 180 | F69: 5 | G69: 7.5 | H69: 15 | I69: 3650 | J69: 28.7 | K69: 1967 | L69: 235.6 | M69: 258.2 | N69: 7.34 | O69: 730 | P69: 81.11 | Q69: 123.6 | R69: 4.47 | S69: 8.33 | T69: 46.36 | U69: 12.16
C70: 180 A | D70: 171 | E70: 180 | F70: 6 | G70: 9.5 | H70: 15 | I70: 4530 | J70: 35.5 | K70: 2510 | L70: 293.6 | M70: 324.9 | N70: 7.45 | O70: 924.6 | P70: 102.7 | Q70: 156.5 | R70: 4.52 | S70: 14.8 | T70: 60.21 | U70: 14.47
C71: 180 B | D71: 180 | E71: 180 | F71: 8.5 | G71: 14 | H71: 15 | I71: 6530 | J71: 51.2 | K71: 3831 | L71: 425.7 | M71: 481.4 | N71: 7.66 | O71: 1363 | P71: 151.4 | Q71: 231 | R71: 4.57 | S71: 42.16 | T71: 93.75 | U71: 20.24
C72: 180 M | D72: 200 | E72: 186 | F72: 14.5 | G72: 24 | H72: 15 | I72: 11330 | J72: 88.9 | K72: 7483 | L72: 748.3 | M72: 883.4 | N72: 8.13 | O72: 2580 | P72: 277.4 | Q72: 425.2 | R72: 4.77 | S72: 203.3 | T72: 199.3 | U72: 34.65
C73: 200 AA | D73: 186 | E73: 200 | F73: 5.5 | G73: 8 | H73: 18 | I73: 4410 | J73: 34.6 | K73: 2944 | L73: 316.6 | M73: 347.1 | N73: 8.17 | O73: 1068 | P73: 106.8 | Q73: 163.2 | R73: 4.92 | S73: 12.69 | T73: 84.49 | U73: 15.45
C74: 200 A | D74: 190 | E74: 200 | F74: 6.5 | G74: 10 | H74: 18 | I74: 5380 | J74: 42.3 | K74: 3692 | L74: 388.6 | M74: 429.5 | N74: 8.28 | O74: 1336 | P74: 133.6 | Q74: 203.8 | R74: 4.98 | S74: 20.98 | T74: 108 | U74: 18.08
C75: 200 B | D75: 200 | E75: 200 | F75: 9 | G75: 15 | H75: 18 | I75: 7810 | J75: 61.3 | K75: 5696 | L75: 569.6 | M75: 642.5 | N75: 8.54 | O75: 2003 | P75: 200.3 | Q75: 305.8 | R75: 5.07 | S75: 59.28 | T75: 171.1 | U75: 24.83
C76: 200 M | D76: 220 | E76: 206 | F76: 15 | G76: 25 | H76: 18 | I76: 13130 | J76: 103 | K76: 10640 | L76: 967.4 | M76: 1135 | N76: 9 | O76: 3651 | P76: 354.5 | Q76: 543.2 | R76: 5.27 | S76: 259.4 | T76: 346.3 | U76: 41.03
C77: 220 AA | D77: 205 | E77: 220 | F77: 6 | G77: 8.5 | H77: 18 | I77: 5150 | J77: 40.4 | K77: 4170 | L77: 406.9 | M77: 445.5 | N77: 9 | O77: 1510 | P77: 137.3 | Q77: 209.3 | R77: 5.42 | S77: 15.93 | T77: 145.6 | U77: 17.63
C78: 220 A | D78: 210 | E78: 220 | F78: 7 | G78: 11 | H78: 18 | I78: 6430 | J78: 50.5 | K78: 5410 | L78: 515.2 | M78: 568.5 | N78: 9.17 | O78: 1955 | P78: 177.7 | Q78: 270.6 | R78: 5.51 | S78: 28.46 | T78: 193.3 | U78: 20.67
C79: 220 B | D79: 220 | E79: 220 | F79: 9.5 | G79: 16 | H79: 18 | I79: 9100 | J79: 71.5 | K79: 8091 | L79: 735.5 | M79: 827 | N79: 9.43 | O79: 2843 | P79: 258.5 | Q79: 393.9 | R79: 5.59 | S79: 76.57 | T79: 295.4 | U79: 27.92
C80: 220 M | D80: 240 | E80: 226 | F80: 15.5 | G80: 26 | H80: 18 | I80: 14940 | J80: 117 | K80: 14600 | L80: 1217 | M80: 1419 | N80: 9.89 | O80: 5012 | P80: 443.5 | Q80: 678.6 | R80: 5.79 | S80: 315.3 | T80: 572.7 | U80: 45.31
C81: 240 AA | D81: 224 | E81: 240 | F81: 6.5 | G81: 9 | H81: 21 | I81: 6040 | J81: 47.4 | K81: 5835 | L81: 521 | M81: 570.6 | N81: 9.83 | O81: 2077 | P81: 173.1 | Q81: 264.4 | R81: 5.87 | S81: 22.98 | T81: 239.6 | U81: 21.54
C82: 240 A | D82: 230 | E82: 240 | F82: 7.5 | G82: 12 | H82: 21 | I82: 7680 | J82: 60.3 | K82: 7763 | L82: 675.1 | M82: 744.6 | N82: 10.05 | O82: 2769 | P82: 230.7 | Q82: 351.7 | R82: 6 | S82: 41.55 | T82: 328.5 | U82: 25.18
C83: 240 B | D83: 240 | E83: 240 | F83: 10 | G83: 17 | H83: 21 | I83: 10600 | J83: 83.2 | K83: 11260 | L83: 938.3 | M83: 1053 | N83: 10.31 | O83: 3923 | P83: 326.9 | Q83: 498.4 | R83: 6.08 | S83: 102.7 | T83: 486.9 | U83: 33.23
C84: 240 M | D84: 270 | E84: 248 | F84: 18 | G84: 32 | H84: 21 | I84: 19960 | J84: 157 | K84: 24290 | L84: 1799 | M84: 2117 | N84: 11.03 | O84: 8153 | P84: 657.5 | Q84: 1006 | R84: 6.39 | S84: 627.9 | T84: 1152 | U84: 60.07
C85: 260 AA | D85: 244 | E85: 260 | F85: 6.5 | G85: 9.5 | H85: 24 | I85: 6900 | J85: 54.1 | K85: 7981 | L85: 654.1 | M85: 714.5 | N85: 10.76 | O85: 2788 | P85: 214.5 | Q85: 327.7 | R85: 6.36 | S85: 30.31 | T85: 382.6 | U85: 24.75
C86: 260 A | D86: 250 | E86: 260 | F86: 7.5 | G86: 12.5 | H86: 24 | I86: 8680 | J86: 68.2 | K86: 10450 | L86: 836.4 | M86: 919.8 | N86: 10.97 | O86: 3668 | P86: 282.1 | Q86: 430.2 | R86: 6.5 | S86: 52.37 | T86: 516.4 | U86: 28.76
C87: 260 B | D87: 260 | E87: 260 | F87: 10 | G87: 17.5 | H87: 24 | I87: 11840 | J87: 93 | K87: 14920 | L87: 1148 | M87: 1283 | N87: 11.22 | O87: 5135 | P87: 395 | Q87: 602.2 | R87: 6.58 | S87: 123.8 | T87: 753.7 | U87: 37.59
C88: 260 M | D88: 290 | E88: 268 | F88: 18 | G88: 32.5 | H88: 24 | I88: 21960 | J88: 172 | K88: 31310 | L88: 2159 | M88: 2524 | N88: 11.94 | O88: 10450 | P88: 779.7 | Q88: 1192 | R88: 6.9 | S88: 719 | T88: 1728 | U88: 66.89
C89: 280 AA | D89: 264 | E89: 280 | F89: 7 | G89: 10 | H89: 24 | I89: 7800 | J89: 61.2 | K89: 10560 | L89: 799.8 | M89: 873.1 | N89: 11.63 | O89: 3664 | P89: 261.7 | Q89: 399.4 | R89: 6.85 | S89: 36.22 | T89: 590.1 | U89: 27.52
C90: 280 A | D90: 270 | E90: 280 | F90: 8 | G90: 13 | H90: 24 | I90: 9730 | J90: 76.4 | K90: 13670 | L90: 1013 | M90: 1112 | N90: 11.86 | O90: 4763 | P90: 340.2 | Q90: 518.1 | R90: 7 | S90: 62.1 | T90: 785.4 | U90: 31.74
C91: 280 B | D91: 280 | E91: 280 | F91: 10.5 | G91: 18 | H91: 24 | I91: 13140 | J91: 103 | K91: 19270 | L91: 1376 | M91: 1534 | N91: 12.11 | O91: 6595 | P91: 471 | Q91: 717.6 | R91: 7.09 | S91: 143.7 | T91: 1130 | U91: 41.09
C92: 280 M | D92: 310 | E92: 288 | F92: 18.5 | G92: 33 | H92: 24 | I92: 24020 | J92: 189 | K92: 39550 | L92: 2551 | M92: 2966 | N92: 12.83 | O92: 13160 | P92: 914.1 | Q92: 1397 | R92: 7.4 | S92: 807.3 | T92: 2520 | U92: 72.03
C93: 300 AA | D93: 283 | E93: 300 | F93: 7.5 | G93: 10.5 | H93: 27 | I93: 8890 | J93: 69.8 | K93: 13800 | L93: 975.6 | M93: 1065 | N93: 12.46 | O93: 4734 | P93: 315.6 | Q93: 482.3 | R93: 7.3 | S93: 49.35 | T93: 877.2 | U93: 32.37
C94: 300 A | D94: 290 | E94: 300 | F94: 8.5 | G94: 14 | H94: 27 | I94: 11250 | J94: 88.3 | K94: 18260 | L94: 1260 | M94: 1383 | N94: 12.74 | O94: 6310 | P94: 420.6 | Q94: 641.2 | R94: 7.49 | S94: 85.17 | T94: 1200 | U94: 37.28
C95: 300 B | D95: 300 | E95: 300 | F95: 11 | G95: 19 | H95: 27 | I95: 14910 | J95: 117 | K95: 25170 | L95: 1678 | M95: 1869 | N95: 12.99 | O95: 8563 | P95: 570.9 | Q95: 870.1 | R95: 7.58 | S95: 185 | T95: 1688 | U95: 47.43
C96: 300 M | D96: 340 | E96: 310 | F96: 21 | G96: 39 | H96: 27 | I96: 30310 | J96: 238 | K96: 59200 | L96: 3482 | M96: 4078 | N96: 13.98 | O96: 19400 | P96: 1252 | Q96: 1913 | R96: 8 | S96: 1408 | T96: 4386 | U96: 90.53
C97: 320 AA | D97: 301 | E97: 300 | F97: 8 | G97: 11 | H97: 27 | I97: 9460 | J97: 74.2 | K97: 16450 | L97: 1093 | M97: 1196 | N97: 13.19 | O97: 4959 | P97: 330.6 | Q97: 505.7 | R97: 7.24 | S97: 55.87 | T97: 1041 | U97: 35.4
C98: 320 A | D98: 310 | E98: 300 | F98: 9 | G98: 15.5 | H98: 27 | I98: 12440 | J98: 97.6 | K98: 22930 | L98: 1479 | M98: 1628 | N98: 13.58 | O98: 6985 | P98: 465.7 | Q98: 709.7 | R98: 7.49 | S98: 108 | T98: 1512 | U98: 41.13
C99: 320 B | D99: 320 | E99: 300 | F99: 11.5 | G99: 20.5 | H99: 27 | I99: 16130 | J99: 127 | K99: 30820 | L99: 1926 | M99: 2149 | N99: 13.82 | O99: 9239 | P99: 615.9 | Q99: 939.1 | R99: 7.57 | S99: 225.1 | T99: 2069 | U99: 51.77
C100: 320 M | D100: 359 | E100: 309 | F100: 21 | G100: 40 | H100: 27 | I100: 31200 | J100: 245 | K100: 68130 | L100: 3796 | M100: 4435 | N100: 14.78 | O100: 19710 | P100: 1276 | Q100: 1951 | R100: 7.95 | S100: 1501 | T100: 5004 | U100: 94.85
C101: 340 AA | D101: 320 | E101: 300 | F101: 8.5 | G101: 11.5 | H101: 27 | I101: 10050 | J101: 78.9 | K101: 19550 | L101: 1222 | M101: 1341 | N101: 13.95 | O101: 5185 | P101: 345.6 | Q101: 529.3 | R101: 7.18 | S101: 63.07 | T101: 1231 | U101: 38.69
C102: 340 A | D102: 330 | E102: 300 | F102: 9.5 | G102: 16.5 | H102: 27 | I102: 13350 | J102: 105 | K102: 27690 | L102: 1678 | M102: 1850 | N102: 14.4 | O102: 7436 | P102: 495.7 | Q102: 755.9 | R102: 7.46 | S102: 127.2 | T102: 1824 | U102: 44.95
C103: 340 B | D103: 340 | E103: 300 | F103: 12 | G103: 21.5 | H103: 27 | I103: 17090 | J103: 134 | K103: 36660 | L103: 2156 | M103: 2408 | N103: 14.65 | O103: 9690 | P103: 646 | Q103: 985.7 | R103: 7.53 | S103: 257.2 | T103: 2454 | U103: 56.09
C104: 340 M | D104: 377 | E104: 309 | F104: 21 | G104: 40 | H104: 27 | I104: 31580 | J104: 248 | K104: 76370 | L104: 4052 | M104: 4718 | N104: 15.55 | O104: 19710 | P104: 1276 | Q104: 1953 | R104: 7.9 | S104: 1506 | T104: 5584 | U104: 98.63
C105: 360 AA | D105: 339 | E105: 300 | F105: 9 | G105: 12 | H105: 27 | I105: 10660 | J105: 83.7 | K105: 23040 | L105: 1359 | M105: 1495 | N105: 14.7 | O105: 5410 | P105: 360.7 | Q105: 553 | R105: 7.12 | S105: 70.99 | T105: 1444 | U105: 42.17
C106: 360 A | D106: 350 | E106: 300 | F106: 10 | G106: 17.5 | H106: 27 | I106: 14280 | J106: 112 | K106: 33090 | L106: 1891 | M106: 2088 | N106: 15.22 | O106: 7887 | P106: 525.8 | Q106: 802.3 | R106: 7.43 | S106: 148.8 | T106: 2177 | U106: 48.96
C107: 360 B | D107: 360 | E107: 300 | F107: 12.5 | G107: 22.5 | H107: 27 | I107: 18060 | J107: 142 | K107: 43190 | L107: 2400 | M107: 2683 | N107: 15.46 | O107: 10140 | P107: 676.1 | Q107: 1032 | R107: 7.49 | S107: 292.5 | T107: 2883 | U107: 60.6
C108: 360 M | D108: 395 | E108: 308 | F108: 21 | G108: 40 | H108: 27 | I108: 31880 | J108: 250 | K108: 84870 | L108: 4297 | M108: 4989 | N108: 16.32 | O108: 19520 | P108: 1268 | Q108: 1942 | R108: 7.83 | S108: 1507 | T108: 6137 | U108: 102.4
C109: 400 AA | D109: 378 | E109: 300 | F109: 9.5 | G109: 13 | H109: 27 | I109: 11770 | J109: 92.4 | K109: 31250 | L109: 1654 | M109: 1824 | N109: 16.3 | O109: 5861 | P109: 390.8 | Q109: 599.7 | R109: 7.06 | S109: 84.69 | T109: 1948 | U109: 47.95
C110: 400 A | D110: 390 | E110: 300 | F110: 11 | G110: 19 | H110: 27 | I110: 15900 | J110: 125 | K110: 45070 | L110: 2311 | M110: 2562 | N110: 16.84 | O110: 8564 | P110: 570.9 | Q110: 872.9 | R110: 7.34 | S110: 189 | T110: 2942 | U110: 57.33
C111: 400 B | D111: 400 | E111: 300 | F111: 13.5 | G111: 24 | H111: 27 | I111: 19780 | J111: 155 | K111: 57680 | L111: 2884 | M111: 3232 | N111: 17.08 | O111: 10820 | P111: 721.3 | Q111: 1104 | R111: 7.4 | S111: 355.7 | T111: 3817 | U111: 69.98
C112: 400 M | D112: 432 | E112: 307 | F112: 21 | G112: 40 | H112: 27 | I112: 32580 | J112: 256 | K112: 104100 | L112: 4820 | M112: 5571 | N112: 17.88 | O112: 19340 | P112: 1260 | Q112: 1934 | R112: 7.7 | S112: 1515 | T112: 7410 | U112: 110.2
C113: 450 AA | D113: 425 | E113: 300 | F113: 10 | G113: 13.5 | H113: 27 | I113: 12710 | J113: 99.7 | K113: 41890 | L113: 1971 | M113: 2183 | N113: 18.16 | O113: 6088 | P113: 405.8 | Q113: 624.4 | R113: 6.92 | S113: 95.61 | T113: 2572 | U113: 54.7
C114: 450 A | D114: 440 | E114: 300 | F114: 11.5 | G114: 21 | H114: 27 | I114: 17800 | J114: 140 | K114: 63720 | L114: 2896 | M114: 3216 | N114: 18.92 | O114: 9465 | P114: 631 | Q114: 965.5 | R114: 7.29 | S114: 243.8 | T114: 4148 | U114: 65.78
C115: 450 B | D115: 450 | E115: 300 | F115: 14 | G115: 26 | H115: 27 | I115: 21800 | J115: 171 | K115: 79890 | L115: 3551 | M115: 3982 | N115: 19.14 | O115: 11720 | P115: 781.4 | Q115: 1198 | R115: 7.33 | S115: 440.5 | T115: 5258 | U115: 79.66
C116: 450 M | D116: 478 | E116: 307 | F116: 21 | G116: 40 | H116: 27 | I116: 33540 | J116: 263 | K116: 131500 | L116: 5501 | M116: 6331 | N116: 19.8 | O116: 19340 | P116: 1260 | Q116: 1939 | R116: 7.59 | S116: 1529 | T116: 9251 | U116: 119.8
C117: 500 AA | D117: 472 | E117: 300 | F117: 10.5 | G117: 14 | H117: 27 | I117: 13690 | J117: 107 | K117: 54640 | L117: 2315 | M117: 2576 | N117: 19.98 | O117: 6314 | P117: 420.9 | Q117: 649.3 | R117: 6.79 | S117: 107.7 | T117: 3304 | U117: 61.91
C118: 500 A | D118: 490 | E118: 300 | F118: 12 | G118: 23 | H118: 27 | I118: 19750 | J118: 155 | K118: 86970 | L118: 3550 | M118: 3949 | N118: 20.98 | O118: 10370 | P118: 691.1 | Q118: 1059 | R118: 7.24 | S118: 309.3 | T118: 5643 | U118: 74.72
C119: 500 B | D119: 500 | E119: 300 | F119: 14.5 | G119: 28 | H119: 27 | I119: 23860 | J119: 187 | K119: 107200 | L119: 4287 | M119: 4815 | N119: 21.19 | O119: 12620 | P119: 841.6 | Q119: 1292 | R119: 7.27 | S119: 538.4 | T119: 7018 | U119: 89.82
C120: 500 M | D120: 524 | E120: 306 | F120: 21 | G120: 40 | H120: 27 | I120: 34430 | J120: 270 | K120: 161900 | L120: 6180 | M120: 7094 | N120: 21.69 | O120: 19150 | P120: 1252 | Q120: 1932 | R120: 7.46 | S120: 1539 | T120: 11190 | U120: 129.5
C121: 550 AA | D121: 522 | E121: 300 | F121: 11.5 | G121: 15 | H121: 27 | I121: 15280 | J121: 120 | K121: 72870 | L121: 2792 | M121: 3128 | N121: 21.84 | O121: 6767 | P121: 451.1 | Q121: 698.6 | R121: 6.65 | S121: 133.7 | T121: 4338 | U121: 72.66
C122: 550 A | D122: 540 | E122: 300 | F122: 12.5 | G122: 24 | H122: 27 | I122: 21180 | J122: 166 | K122: 111900 | L122: 4146 | M122: 4622 | N122: 22.99 | O122: 10820 | P122: 721.3 | Q122: 1107 | R122: 7.15 | S122: 351.5 | T122: 7189 | U122: 83.72
C123: 550 B | D123: 550 | E123: 300 | F123: 15 | G123: 29 | H123: 27 | I123: 25410 | J123: 199 | K123: 136700 | L123: 4971 | M123: 5591 | N123: 23.2 | O123: 13080 | P123: 871.8 | Q123: 1341 | R123: 7.17 | S123: 600.3 | T123: 8856 | U123: 100.1
C124: 550 M | D124: 572 | E124: 306 | F124: 21 | G124: 40 | H124: 27 | I124: 35440 | J124: 278 | K124: 198000 | L124: 6923 | M124: 7933 | N124: 23.64 | O124: 19160 | P124: 1252 | Q124: 1937 | R124: 7.35 | S124: 1554 | T124: 13520 | U124: 139.6
C125: 600 AA | D125: 571 | E125: 300 | F125: 12 | G125: 15.5 | H125: 27 | I125: 16410 | J125: 129 | K125: 91900 | L125: 3218 | M125: 3623 | N125: 23.66 | O125: 6993 | P125: 466.2 | Q125: 724.5 | R125: 6.53 | S125: 149.8 | T125: 5381 | U125: 81.29
C126: 600 A | D126: 590 | E126: 300 | F126: 13 | G126: 25 | H126: 27 | I126: 22650 | J126: 178 | K126: 141200 | L126: 4787 | M126: 5350 | N126: 24.97 | O126: 11270 | P126: 751.4 | Q126: 1156 | R126: 7.05 | S126: 397.8 | T126: 8978 | U126: 93.21
C127: 600 B | D127: 600 | E127: 300 | F127: 15.5 | G127: 30 | H127: 27 | I127: 27000 | J127: 212 | K127: 171000 | L127: 5701 | M127: 6425 | N127: 25.17 | O127: 13530 | P127: 902 | Q127: 1391 | R127: 7.08 | S127: 667.2 | T127: 10970 | U127: 110.8
C128: 600 M | D128: 620 | E128: 305 | F128: 21 | G128: 40 | H128: 27 | I128: 36370 | J128: 285 | K128: 237400 | L128: 7660 | M128: 8772 | N128: 25.55 | O128: 18980 | P128: 1244 | Q128: 1930 | R128: 7.22 | S128: 1564 | T128: 15910 | U128: 149.7
C129: 600x337 | D129: 632 | E129: 310 | F129: 25.5 | G129: 46 | H129: 27 | I129: 42920 | J129: 337 | K129: 283200 | L129: 8961 | M129: 10380 | N129: 25.69 | O129: 22940 | P129: 1480 | Q129: 2310 | R129: 7.31 | S129: 2451 | T129: 19610 | U129: 180.5
C130: 600x399 | D130: 648 | E130: 315 | F130: 30 | G130: 54 | H130: 27 | I130: 50850 | J130: 399 | K130: 344600 | L130: 10640 | M130: 12460 | N130: 26.03 | O130: 28280 | P130: 1796 | Q130: 2814 | R130: 7.46 | S130: 3966 | T130: 24810 | U130: 213.6
C131: 650 AA | D131: 620 | E131: 300 | F131: 12.5 | G131: 16 | H131: 27 | I131: 17580 | J131: 138 | K131: 113900 | L131: 3676 | M131: 4160 | N131: 25.46 | O131: 7221 | P131: 481.4 | Q131: 750.7 | R131: 6.41 | S131: 167.5 | T131: 6567 | U131: 90.4
C132: 650 A | D132: 640 | E132: 300 | F132: 13.5 | G132: 26 | H132: 27 | I132: 24160 | J132: 190 | K132: 175200 | L132: 5474 | M132: 6136 | N132: 26.93 | O132: 11720 | P132: 781.6 | Q132: 1205 | R132: 6.97 | S132: 448.3 | T132: 11030 | U132: 103.2
C133: 650 B | D133: 650 | E133: 300 | F133: 16 | G133: 31 | H133: 27 | I133: 28630 | J133: 225 | K133: 210600 | L133: 6480 | M133: 7320 | N133: 27.12 | O133: 13980 | P133: 932.3 | Q133: 1441 | R133: 6.99 | S133: 739.2 | T133: 13360 | U133: 122
C134: 650 M | D134: 668 | E134: 305 | F134: 21 | G134: 40 | H134: 27 | I134: 37370 | J134: 293 | K134: 281700 | L134: 8433 | M134: 9657 | N134: 27.45 | O134: 18980 | P134: 1245 | Q134: 1936 | R134: 7.13 | S134: 1579 | T134: 18650 | U134: 159.7
C135: 650x343 | D135: 680 | E135: 309 | F135: 25 | G135: 46 | H135: 27 | I135: 43750 | J135: 343 | K135: 333700 | L135: 9815 | M135: 11350 | N135: 27.62 | O135: 22720 | P135: 1470 | Q135: 2300 | R135: 7.21 | S135: 2442 | T135: 22730 | U135: 189.6
C136: 650x407 | D136: 696 | E136: 314 | F136: 29.5 | G136: 54 | H136: 27 | I136: 51880 | J136: 407 | K136: 405400 | L136: 11650 | M136: 13620 | N136: 27.95 | O136: 28020 | P136: 1785 | Q136: 2803 | R136: 7.35 | S136: 3958 | T136: 28710 | U136: 224.8
C137: 700 AA | D137: 670 | E137: 300 | F137: 13 | G137: 17 | H137: 27 | I137: 19090 | J137: 150 | K137: 142700 | L137: 4260 | M137: 4840 | N137: 27.34 | O137: 7673 | P137: 511.5 | Q137: 799.7 | R137: 6.34 | S137: 195.2 | T137: 8155 | U137: 100.3
C138: 700 A | D138: 690 | E138: 300 | F138: 14.5 | G138: 27 | H138: 27 | I138: 26050 | J138: 204 | K138: 215300 | L138: 6241 | M138: 7032 | N138: 28.75 | O138: 12180 | P138: 811.9 | Q138: 1257 | R138: 6.84 | S138: 513.9 | T138: 13350 | U138: 117
C139: 700 B | D139: 700 | E139: 300 | F139: 17 | G139: 32 | H139: 27 | I139: 30640 | J139: 241 | K139: 256900 | L139: 7340 | M139: 8327 | N139: 28.96 | O139: 14440 | P139: 962.7 | Q139: 1495 | R139: 6.87 | S139: 830.9 | T139: 16060 | U139: 137.1
C140: 700 M | D140: 716 | E140: 304 | F140: 21 | G140: 40 | H140: 27 | I140: 38300 | J140: 301 | K140: 329300 | L140: 9198 | M140: 10540 | N140: 29.32 | O140: 18800 | P140: 1240 | Q140: 1929 | R140: 7.01 | S140: 1589 | T140: 21400 | U140: 169.8
C141: 700x352 | D141: 728 | E141: 308 | F141: 25 | G141: 46 | H141: 27 | I141: 44860 | J141: 352 | K141: 389700 | L141: 10710 | M141: 12390 | N141: 29.47 | O141: 22510 | P141: 1461 | Q141: 2293 | R141: 7.08 | S141: 2461 | T141: 26050 | U141: 201.6
C142: 700x418 | D142: 744 | E142: 313 | F142: 29.5 | G142: 54 | H142: 27 | I142: 53190 | J142: 418 | K142: 472500 | L142: 12700 | M142: 14840 | N142: 29.8 | O142: 27760 | P142: 1774 | Q142: 2797 | R142: 7.22 | S142: 3989 | T142: 32850 | U142: 239
C143: 800 AA | D143: 770 | E143: 300 | F143: 14 | G143: 18 | H143: 30 | I143: 21850 | J143: 172 | K143: 208900 | L143: 5426 | M143: 6225 | N143: 30.92 | O143: 8134 | P143: 542.2 | Q143: 856.6 | R143: 6.1 | S143: 256.8 | T143: 11450 | U143: 123.8
C144: 800 A | D144: 790 | E144: 300 | F144: 15 | G144: 28 | H144: 30 | I144: 28580 | J144: 224 | K144: 303400 | L144: 7682 | M144: 8699 | N144: 32.58 | O144: 12640 | P144: 842.6 | Q144: 1312 | R144: 6.65 | S144: 596.9 | T144: 18290 | U144: 138.8
C145: 800 B | D145: 800 | E145: 300 | F145: 17.5 | G145: 33 | H145: 30 | I145: 33420 | J145: 262 | K145: 359100 | L145: 8977 | M145: 10230 | N145: 32.78 | O145: 14900 | P145: 993.6 | Q145: 1553 | R145: 6.68 | S145: 946 | T145: 21840 | U145: 161.8
C146: 800 M | D146: 814 | E146: 303 | F146: 21 | G146: 40 | H146: 30 | I146: 40430 | J146: 317 | K146: 442600 | L146: 10870 | M146: 12490 | N146: 33.09 | O146: 18630 | P146: 1230 | Q146: 1930 | R146: 6.79 | S146: 1646 | T146: 27780 | U146: 194.3
C147: 800x373 | D147: 826 | E147: 308 | F147: 25 | G147: 46 | H147: 30 | I147: 47460 | J147: 373 | K147: 523900 | L147: 12690 | M147: 14700 | N147: 33.23 | O147: 22530 | P147: 1463 | Q147: 2311 | R147: 6.89 | S147: 2554 | T147: 34070 | U147: 230.3
C148: 800x444 | D148: 842 | E148: 313 | F148: 30 | G148: 54 | H148: 30 | I148: 56600 | J148: 444 | K148: 634500 | L148: 15070 | M148: 17640 | N148: 33.48 | O148: 27800 | P148: 1776 | Q148: 2827 | R148: 7.01 | S148: 4180 | T148: 42840 | U148: 276.5
C149: 900 AA | D149: 870 | E149: 300 | F149: 15 | G149: 20 | H149: 30 | I149: 25220 | J149: 198 | K149: 301100 | L149: 6923 | M149: 7999 | N149: 34.55 | O149: 9041 | P149: 602.8 | Q149: 957.7 | R149: 5.99 | S149: 334.9 | T149: 16260 | U149: 147.2
C150: 900 A | D150: 890 | E150: 300 | F150: 16 | G150: 30 | H150: 30 | I150: 32050 | J150: 252 | K150: 422100 | L150: 9485 | M150: 10810 | N150: 36.29 | O150: 13550 | P150: 903.2 | Q150: 1414 | R150: 6.5 | S150: 736.8 | T150: 24960 | U150: 163.3
C151: 900 B | D151: 900 | E151: 300 | F151: 18.5 | G151: 35 | H151: 30 | I151: 37130 | J151: 291 | K151: 494100 | L151: 10980 | M151: 12580 | N151: 36.48 | O151: 15820 | P151: 1050 | Q151: 1658 | R151: 6.53 | S151: 1137 | T151: 29460 | U151: 188.8
C152: 900 M | D152: 910 | E152: 302 | F152: 21 | G152: 40 | H152: 30 | I152: 42360 | J152: 333 | K152: 570400 | L152: 12540 | M152: 14440 | N152: 36.7 | O152: 18450 | P152: 1220 | Q152: 1929 | R152: 6.6 | S152: 1671 | T152: 34750 | U152: 214.4
C153: 900x391 | D153: 922 | E153: 307 | F153: 25 | G153: 46 | H153: 30 | I153: 49770 | J153: 391 | K153: 674300 | L153: 14630 | M153: 16990 | N153: 36.81 | O153: 22320 | P153: 1454 | Q153: 2312 | R153: 6.7 | S153: 2597 | T153: 42560 | U153: 254.3
C154: 900x466 | D154: 938 | E154: 312 | F154: 30 | G154: 54 | H154: 30 | I154: 59370 | J154: 466 | K154: 814900 | L154: 17380 | M154: 20380 | N154: 37.05 | O154: 27560 | P154: 1767 | Q154: 2832 | R154: 6.81 | S154: 4256 | T154: 53400 | U154: 305.3
C155: 1000 AA | D155: 970 | E155: 300 | F155: 16 | G155: 21 | H155: 30 | I155: 28220 | J155: 222 | K155: 406500 | L155: 8380 | M155: 9777 | N155: 37.95 | O155: 9501 | P155: 633.4 | Q155: 1016 | R155: 5.8 | S155: 403.4 | T155: 21280 | U155: 172.2
C156: 1000x249 | D156: 980 | E156: 300 | F156: 16.5 | G156: 26 | H156: 30 | I156: 31680 | J156: 249 | K156: 481100 | L156: 9818 | M156: 11350 | N156: 38.97 | O156: 11750 | P156: 784 | Q156: 1245 | R156: 6.09 | S156: 584.4 | T156: 26620 | U156: 180.7
C157: 1000 A | D157: 990 | E157: 300 | F157: 16.5 | G157: 31 | H157: 30 | I157: 34680 | J157: 272 | K157: 553800 | L157: 11190 | M157: 12820 | N157: 39.96 | O157: 14000 | P157: 933.6 | Q157: 1470 | R157: 6.35 | S157: 822.4 | T157: 32070 | U157: 184.6
C158: 1000 B | D158: 1000 | E158: 300 | F158: 19 | G158: 36 | H158: 30 | I158: 40000 | J158: 314 | K158: 644700 | L158: 12890 | M158: 14860 | N158: 40.15 | O158: 16280 | P158: 1085 | Q158: 1716 | R158: 6.38 | S158: 1254 | T158: 37640 | U158: 212.5
C159: 1000 M | D159: 1008 | E159: 302 | F159: 21 | G159: 40 | H159: 30 | I159: 44420 | J159: 349 | K159: 722300 | L159: 14330 | M159: 16570 | N159: 40.32 | O159: 18460 | P159: 1222 | Q159: 1940 | R159: 6.45 | S159: 1701 | T159: 43020 | U159: 235
C160: 1000x393 | D160: 1016 | E160: 303 | F160: 24.4 | G160: 43.9 | H160: 30 | I160: 50020 | J160: 393 | K160: 807700 | L160: 15900 | M160: 18540 | N160: 40.18 | O160: 20500 | P160: 1353 | Q160: 2168 | R160: 6.4 | S160: 2332 | T160: 48080 | U160: 271.3
C161: 1000x415 | D161: 1020 | E161: 304 | F161: 26 | G161: 46 | H161: 30 | I161: 52870 | J161: 415 | K161: 853100 | L161: 16728 | M161: 19571 | N161: 40.17 | O161: 21710 | P161: 1428 | Q161: 2298 | R161: 6.41 | S161: 2713 | T161: 51080 | U161: 288.6
C162: 1000x438 | D162: 1026 | E162: 305 | F162: 26.9 | G162: 49 | H162: 30 | I162: 55600 | J162: 438 | K162: 909200 | L162: 17720 | M162: 20750 | N162: 40.43 | O162: 23360 | P162: 1531 | Q162: 2463 | R162: 6.48 | S162: 3190 | T162: 55290 | U162: 299.9
C163: 1000x494 | D163: 1036 | E163: 309 | F163: 31 | G163: 54 | H163: 30 | I163: 62910 | J163: 494 | K163: 1028000 | L163: 19845 | M163: 23413 | N163: 40.42 | O163: 26820 | P163: 1736 | Q163: 2818 | R163: 6.53 | S163: 4433 | T163: 64010 | U163: 344.5
C164: 1000x584 | D164: 1056 | E164: 314 | F164: 36 | G164: 64 | H164: 30 | I164: 74370 | J164: 584 | K164: 1246100 | L164: 23600 | M164: 28039 | N164: 40.93 | O164: 33430 | P164: 2130 | Q164: 3475 | R164: 6.7 | S164: 7230 | T164: 81240 | U164: 403.2
C166: Desig- | D166: Dimensions | I166: Area | J166: Weight | K166: ly | L166: Wel.y | M166: Wpl.y | N166: iy | O166: lz | P166: Wel.z | Q166: Wpl.z | R166: iz | S166: lt | T166: lw | U166: Avz
C167: nation | D167: h | E167: b | F167: tw | G167: tf | H167: r | I167: A | J167: G | K167: mm4 | L167: mm3 | M167: mm3 | N167: mm | O167: mm4 | P167: mm3 | Q167: mm3 | R167: mm | S167: mm4 | T167: mm6 | U167: mm2
B168: =C168 -> HL | C168: HL | D168: mm | E168: mm | F168: mm | G168: mm | H168: mm | I168: mm2 | J168: kg/m | K168: (x 104) | L168: (x 103) | M168: (x 103) | N168: (x 10 ) | O168: (x 104) | P168: (x 103) | Q168: (x 103) | R168: (x 10 ) | S168: (x 104) | T168: (x 109) | U168: (x 102)
B169: =COUNTA(C169:C201) -> 33 | C169: 920x344 | D169: 927 | E169: 418 | F169: 19.3 | G169: 32 | H169: 19 | I169: 43720 | J169: 344 | K169: 645000 | L169: 13920 | M169: 15700 | N169: 38.41 | O169: 39010 | P169: 1867 | Q169: 2880 | R169: 9.45 | S169: 1159 | T169: 78120 | U169: 188
C170: 920x368 | D170: 931 | E170: 419 | F170: 20.3 | G170: 34.3 | H170: 19 | I170: 46560 | J170: 368 | K170: 692200 | L170: 14870 | M170: 16790 | N170: 38.56 | O170: 42120 | P170: 2010 | Q170: 3104 | R170: 9.51 | S170: 1408 | T170: 84670 | U170: 198.2
C171: 920x390 | D171: 936 | E171: 420 | F171: 21.3 | G171: 36.6 | H171: 19 | I171: 49430 | J171: 390 | K171: 741700 | L171: 15850 | M171: 17920 | N171: 38.74 | O171: 45270 | P171: 2156 | Q171: 3331 | R171: 9.57 | S171: 1691 | T171: 91550 | U171: 208.6
C172: 920x420 | D172: 943 | E172: 422 | F172: 22.5 | G172: 39.9 | H172: 19 | I172: 53410 | J172: 420 | K172: 813300 | L172: 17250 | M172: 19530 | N172: 39.02 | O172: 50070 | P172: 2373 | Q172: 3667 | R172: 9.68 | S172: 2151 | T172: 102100 | U172: 221.5
C173: 920x449 | D173: 948 | E173: 423 | F173: 24 | G173: 42.7 | H173: 19 | I173: 57140 | J173: 449 | K173: 874700 | L173: 18450 | M173: 20950 | N173: 39.13 | O173: 53970 | P173: 2552 | Q173: 3949 | R173: 9.72 | S173: 2627 | T173: 110600 | U173: 236.6
C174: 920x491 | D174: 957 | E174: 422 | F174: 25.9 | G174: 47 | H174: 19 | I174: 62330 | J174: 491 | K174: 966300 | L174: 20200 | M174: 23000 | N174: 39.37 | O174: 59000 | P174: 2796 | Q174: 4335 | R174: 9.73 | S174: 3441 | T174: 122200 | U174: 256.6
C175: 920x537 | D175: 965 | E175: 425 | F175: 28.4 | G175: 51.1 | H175: 19 | I175: 68250 | J175: 537 | K175: 1066000 | L175: 22080 | M175: 25270 | N175: 39.51 | O175: 65550 | P175: 3085 | Q175: 4795 | R175: 9.8 | S175: 4447 | T175: 136900 | U175: 282.1
C176: 920x588 | D176: 975 | E176: 427 | F176: 31 | G176: 55.9 | H176: 19 | I176: 74810 | J176: 588 | K176: 1181000 | L176: 24230 | M176: 27840 | N176: 39.74 | O176: 72760 | P176: 3408 | Q176: 5310 | R176: 9.86 | S176: 5860 | T176: 153200 | U176: 309.3
C177: 920x656 | D177: 987 | E177: 431 | F177: 34.5 | G177: 62 | H177: 19 | I177: 83530 | J177: 656 | K177: 1335000 | L177: 27060 | M177: 31270 | N177: 39.98 | O177: 83040 | P177: 3853 | Q177: 6022 | R177: 9.97 | S177: 7950 | T177: 177600 | U177: 345.8
C178: 920x725 | D178: 999 | E178: 434 | F178: 38.1 | G178: 68.1 | H178: 19 | I178: 92290 | J178: 725 | K178: 1492000 | L178: 29880 | M178: 34740 | N178: 40.21 | O178: 93200 | P178: 4295 | Q178: 6734 | R178: 10.05 | S178: 10570 | T178: 201900 | U178: 383.6
C179: 920x787 | D179: 1011 | E179: 437 | F179: 40.9 | G179: 73.9 | H179: 19 | I179: 100200 | J179: 787 | K179: 1646000 | L179: 32560 | M179: 38010 | N179: 40.53 | O179: 103300 | P179: 4728 | Q179: 7425 | R179: 10.15 | S179: 13430 | T179: 226800 | U179: 414.5
C180: 920x970 | D180: 1043 | E180: 446 | F180: 50 | G180: 89.9 | H180: 19 | I180: 123700 | J180: 970 | K180: 2100000 | L180: 40270 | M180: 47660 | N180: 41.21 | O180: 133900 | P180: 6002 | Q180: 9490 | R180: 10.4 | S180: 24320 | T180: 304000 | U180: 513.8
C181: 920x1077 | D181: 1061 | E181: 451 | F181: 55 | G181: 99.1 | H181: 19 | I181: 137200 | J181: 1077 | K181: 2377000 | L181: 44790 | M181: 53390 | N181: 41.63 | O181: 152700 | P181: 6773 | Q181: 10740 | R181: 10.55 | S181: 33170 | T181: 350800 | U181: 570
C182: 920x1194 | D182: 1081 | E182: 457 | F182: 60.5 | G182: 109 | H182: 19 | I182: 152200 | J182: 1194 | K182: 2694000 | L182: 49830 | M182: 59830 | N182: 42.08 | O182: 175000 | P182: 7660 | Q182: 12180 | R182: 10.72 | S182: 44370 | T182: 409700 | U182: 632.7
C183: 920x1269 | D183: 1093 | E183: 461 | F183: 64 | G183: 115.1 | H183: 19 | I183: 161700 | J183: 1269 | K183: 2900000 | L183: 53040 | M183: 63960 | N183: 42.35 | O183: 189900 | P183: 8237 | Q183: 13130 | R183: 10.84 | S183: 52500 | T183: 449700 | U183: 672.9
C184: 920x1377 | D184: 1093 | E184: 473 | F184: 76.7 | G184: 115.1 | H184: 19 | I184: 175400 | J184: 1377 | K184: 3034000 | L184: 55500 | M184: 67680 | N184: 41.59 | O184: 206300 | P184: 8723 | Q184: 14160 | R184: 10.85 | S184: 61190 | T184: 485700 | U184: 797.2
C185: 1000 AA | D185: 982 | E185: 400 | F185: 16.5 | G185: 27.1 | H185: 30 | I185: 37760 | J185: 296 | K185: 620300 | L185: 12630 | M185: 14260 | N185: 40.53 | O185: 28960 | P185: 1448 | Q185: 2243 | R185: 8.76 | S185: 762.6 | T185: 65900 | U185: 181.5
C186: 1000 A | D186: 990 | E186: 400 | F186: 16.5 | G186: 31 | H186: 30 | I186: 40880 | J186: 321 | K186: 696400 | L186: 14070 | M186: 15800 | N186: 41.27 | O186: 33120 | P186: 1656 | Q186: 2555 | R186: 9 | S186: 1021 | T186: 76030 | U186: 184.6
C187: 1000 B | D187: 1000 | E187: 400 | F187: 19 | G187: 36.1 | H187: 30 | I187: 47280 | J187: 371 | K187: 813700 | L187: 16270 | M187: 18360 | N187: 41.49 | O187: 38580 | P187: 1929 | Q187: 2984 | R187: 9.03 | S187: 1575 | T187: 89440 | U187: 212.5
C188: 1000 M | D188: 1008 | E188: 402 | F188: 21.1 | G188: 40 | H188: 30 | I188: 52510 | J188: 412 | K188: 910500 | L188: 18070 | M188: 20460 | N188: 41.64 | O188: 43400 | P188: 2160 | Q188: 3349 | R188: 9.09 | S188: 2134 | T188: 101500 | U188: 236
C189: 1000x443 | D189: 1012 | E189: 402 | F189: 23.6 | G189: 41.9 | H189: 30 | I189: 56370 | J189: 443 | K189: 966500 | L189: 19100 | M189: 21780 | N189: 41.41 | O189: 45500 | P189: 2264 | Q189: 3529 | R189: 8.98 | S189: 2545 | T189: 106700 | U189: 261.8
C190: 1000x483 | D190: 1020 | E190: 404 | F190: 25.4 | G190: 46 | H190: 30 | I190: 61510 | J190: 483 | K190: 1067000 | L190: 20930 | M190: 23920 | N190: 41.66 | O190: 50710 | P190: 2510 | Q190: 3919 | R190: 9.08 | S190: 3311 | T190: 119900 | U190: 282.7
C191: 1000x539 | D191: 1030 | E191: 407 | F191: 28.4 | G191: 51.1 | H191: 30 | I191: 68720 | J191: 539 | K191: 1203000 | L191: 23350 | M191: 26820 | N191: 41.83 | O191: 57630 | P191: 2832 | Q191: 4436 | R191: 9.16 | S191: 4546 | T191: 137600 | U191: 316.4
C192: 1000x554 | D192: 1032 | E192: 408 | F192: 29.5 | G192: 52 | H192: 30 | I192: 70580 | J192: 554 | K192: 1232000 | L192: 23880 | M192: 27500 | N192: 41.79 | O192: 59100 | P192: 2897 | Q192: 4547 | R192: 9.15 | S192: 4860 | T192: 141300 | U192: 328
C193: 1000x591 | D193: 1040 | E193: 409 | F193: 31 | G193: 55.9 | H193: 30 | I193: 75270 | J193: 591 | K193: 1331000 | L193: 25600 | M193: 29530 | N193: 42.05 | O193: 64010 | P193: 3130 | Q193: 4916 | R193: 9.22 | S193: 5927 | T193: 154300 | U193: 346.3
C194: 1000x642 | D194: 1048 | E194: 412 | F194: 34 | G194: 60 | H194: 30 | I194: 81760 | J194: 642 | K194: 1451000 | L194: 27680 | M194: 32100 | N194: 42.12 | O194: 70280 | P194: 3412 | Q194: 5379 | R194: 9.27 | S194: 7440 | T194: 170700 | U194: 379.6
C195: 1000x748 | D195: 1068 | E195: 417 | F195: 39 | G195: 70 | H195: 30 | I195: 95340 | J195: 748 | K195: 1732000 | L195: 32430 | M195: 37880 | N195: 42.62 | O195: 85110 | P195: 4082 | Q195: 6459 | R195: 9.45 | S195: 11670 | T195: 210600 | U195: 438.9
C196: 1000x883 | D196: 1092 | E196: 424 | F196: 45.5 | G196: 82 | H196: 30 | I196: 112500 | J196: 883 | K196: 2096000 | L196: 38390 | M196: 45260 | N196: 43.16 | O196: 105000 | P196: 4952 | Q196: 7874 | R196: 9.66 | S196: 18750 | T196: 265700 | U196: 516.5
C197: 1000x976 | D197: 1108 | E197: 428 | F197: 50 | G197: 89.9 | H197: 30 | I197: 124300 | J197: 976 | K197: 2349000 | L197: 42400 | M197: 50300 | N197: 43.5 | O197: 118500 | P197: 5538 | Q197: 8839 | R197: 9.77 | S197: 24770 | T197: 304400 | U197: 570.7
C198: 1100 A | D198: 1090 | E198: 400 | F198: 18 | G198: 31 | H198: 20 | I198: 43650 | J198: 343 | K198: 867400 | L198: 15920 | M198: 18060 | N198: 44.58 | O198: 33120 | P198: 1656 | Q198: 2568 | R198: 8.71 | S198: 1037 | T198: 92710 | U198: 206.5
C199: 1100 B | D199: 1100 | E199: 400 | F199: 20 | G199: 36 | H199: 20 | I199: 49700 | J199: 390 | K199: 1005000 | L199: 18280 | M199: 20780 | N199: 44.98 | O199: 38480 | P199: 1924 | Q199: 2988 | R199: 8.8 | S199: 1564 | T199: 108700 | U199: 230.6
C200: 1100 M | D200: 1108 | E200: 402 | F200: 22 | G200: 40 | H200: 20 | I200: 55120 | J200: 433 | K200: 1126000 | L200: 20320 | M200: 23160 | N200: 45.19 | O200: 43410 | P200: 2160 | Q200: 3362 | R200: 8.87 | S200: 2130 | T200: 123500 | U200: 254.4
C201: 1100 R | D201: 1118 | E201: 405 | F201: 26 | G201: 45 | H201: 20 | I201: 63520 | J201: 499 | K201: 1294000 | L201: 23150 | M201: 26600 | N201: 45.14 | O201: 49980 | P201: 2468 | Q201: 3870 | R201: 8.87 | S201: 3135 | T201: 143400 | U201: 300.4
C203: Desig- | D203: Dimensions | I203: Area | J203: Weight | K203: ly | L203: Wel.y | M203: Wpl.y | N203: iy | O203: lz | P203: Wel.z | Q203: Wpl.z | R203: iz | S203: lt | T203: lw | U203: Avz
C204: nation | D204: h | E204: b | F204: tw | G204: tf | H204: r | I204: A | J204: G | K204: mm4 | L204: mm3 | M204: mm3 | N204: mm | O204: mm4 | P204: mm3 | Q204: mm3 | R204: mm | S204: mm4 | T204: mm6 | U204: mm2
B205: =C205 -> IPE | C205: IPE | D205: mm | E205: mm | F205: mm | G205: mm | H205: mm | I205: mm2 | J205: kg/m | K205: (x 104) | L205: (x 103) | M205: (x 103) | N205: (x 10 ) | O205: (x 104) | P205: (x 103) | Q205: (x 103) | R205: (x 10 ) | S205: (x 104) | T205: (x 109) | U205: (x 102)
... 302 more rows

Sheet from author
B1: Version: 1.1. - FREE LITE VERSION | K1: © 2013-2019 Damian Janicki
C3: For latest updates and news visit: | G3: Contact me at:
C4: www.YourSpreadsheets.co.uk | G4: info@yourspreadsheets.co.uk
C7: General information: Note: This spreadsheet contains macros. To change company logo: right click it and select 'change picture'.
C13: The Author takes no liability for use of this spreadsheet and gives no guarantee that it is error free. In no event shall the Author be responsible for any special, incidental or consequential damages whatsoever arising from the use of this spreadsheet, even if the Author has been advised of the possibility of such damage. This spreadsheet is a freeware and can be distributed freely but only in its original form. Reverse-engineering, decompiling or disassembling of this spreadsheet is not allowable. A full list of terms and conditions can be found here:
C24: www.yourspreadsheets.co.uk/checkout.html
C25: By using this spreadsheet you understand and agree with the terms and conditions. You also acknowledge that you do not become an owner of this spreadsheet. Damian Janicki
C32: This is a Free Lite Version. The full version of the spreadsheet allows to: - Input your company information and change logo; - Change beam span. - Change loading.
C39: This spreadsheet is based on Eurocode 3 (EN 1993-1-1: 2005) Changelog: 25.08.2019 - v.1.1. - corrected error when effective length was greater than actual length. Updated steel section sizes database. Added more options for deflection limits. 13.05.2013 - v.1.0. - official release of the spreadsheet.
